Workbook

Sheet AllModes
A1: Read instructions! | B1: Inches | D1: Feet | E1: All Modes | R1: BANDWIDTH
A2: Length = | B2: =B6/2.54 -> 198.8188976 | C2: Lx = | D2: =+B2/12 -> 16.56824147 | E2: nx | F2: ny | G2: nz | H2: f | I2: Type | J2: Weight | K2: SPACING | L2: Δf | M2: Octave Band | N2: Δmax | O2: Δavg | P2: Δ² | Q2: 1/3 Octave Band | R2: low | S2: center | T2: hi | U2: # of modes | V2: Measureable?
A3: Width = | B3: =B7/2.54 -> 162.992126 | C3: Ly = | D3: =+B3/12 -> 13.58267717 | E3: 1 | F3: 0 | G3: 0 | H3: =$D$5*SQRT((($E3/$D$2)^2)+(($F3/$D$3)^2)+(($G3/$D$4)^2)) -> 34.05491168 | I3: =+IF(+AND(E3=0,F3=0)+OR(+AND(E3=0,G3=0))+OR(+AND(F3=0,G3=0)),"Axial",(+IF(+OR(E3=0,F3=0,G3=0),"Tangential","Oblique"))) -> Axial | J3: =IF(I3="Axial",1,IF(I3="Tangential",0.5,IF(I3="Oblique",0.25,""))) -> 1 | L3: - | M3: =IF(H3<17.8,1,IF(H3<=22.4,2,IF(H3<=28.2,3,IF(H3<=35.5,4,IF(H3<=44.7,5,IF(H3<=56.2,6,IF(H3<=70.8,7,IF(H3<=89.1,8,IF(H3<=112,9,IF(H3<=141,10,IF(H3<=178,11,IF(H3<=224,12,IF(H3<=282,13,IF(H3<=355,14,IF(H3<=447,15,IF(H3<=562,16,IF(H3<=708,17,IF(H3<=891,18,IF(H3<=1122,19,IF(H3<=1413,20,IF(H3<=1778,21,IF(H3<=2239,22,IF(H3<=2818,23,IF(H3<=3548,24,IF(H3<=4467,25,IF(H3<=5623,26,IF(H3<=7079,27,IF(H3<=8913,28,IF(H3<=11220,29,IF(H3<=14130,30,IF(H3<=17780,31,IF(H3<=22390,32,)))))))))))))))))))))))))))))))) -> 4 | Q3: 1 | R3: 14.1 | S3: 16 | T3: 17.8 | U3: =COUNTIF($M$3:$M$1001,Q3) -> 0 | V3: =IF((U3)<5,"INACCURATE","CAN TEST") -> INACCURATE
A4: Height = | B4: =B8/2.54 -> 112.2047244 | C4: Lz = | D4: =+B4/12 -> 9.350393701 | E4: 0 | F4: 1 | G4: 0 | H4: =$D$5*SQRT((($E4/$D$2)^2)+(($F4/$D$3)^2)+(($G4/$D$4)^2)) -> 41.54041159 | I4: =+IF(+AND(E4=0,F4=0)+OR(+AND(E4=0,G4=0))+OR(+AND(F4=0,G4=0)),"Axial",(+IF(+OR(E4=0,F4=0,G4=0),"Tangential","Oblique"))) -> Axial | J4: =IF(I4="Axial",1,IF(I4="Tangential",0.5,IF(I4="Oblique",0.25,""))) -> 1 | K4: =IF((H4-H3)<1,"RED","OK") -> OK | L4: =H4-H3 -> 7.485499911 | M4: =IF(H4<17.8,1,IF(H4<=22.4,2,IF(H4<=28.2,3,IF(H4<=35.5,4,IF(H4<=44.7,5,IF(H4<=56.2,6,IF(H4<=70.8,7,IF(H4<=89.1,8,IF(H4<=112,9,IF(H4<=141,10,IF(H4<=178,11,IF(H4<=224,12,IF(H4<=282,13,IF(H4<=355,14,IF(H4<=447,15,IF(H4<=562,16,IF(H4<=708,17,IF(H4<=891,18,IF(H4<=1122,19,IF(H4<=1413,20,IF(H4<=1778,21,IF(H4<=2239,22,IF(H4<=2818,23,IF(H4<=3548,24,IF(H4<=4467,25,IF(H4<=5623,26,IF(H4<=7079,27,IF(H4<=8913,28,IF(H4<=11220,29,IF(H4<=14130,30,IF(H4<=17780,31,IF(H4<=22390,32,)))))))))))))))))))))))))))))))) -> 5 | Q4: =Q3+1 -> 2 | R4: 17.8 | S4: 20 | T4: 22.4 | U4: =COUNTIF($M$3:$M$1001,Q4) -> 0 | V4: =IF((U4)<5,"INACCURATE","CAN TEST") -> INACCURATE
A5: sea level, 21˚C | B5: Cm | C5: c/2 = | D5: =1128.46/2 -> 564.23 | E5: 1 | F5: 1 | G5: 0 | H5: =$D$5*SQRT((($E5/$D$2)^2)+(($F5/$D$3)^2)+(($G5/$D$4)^2)) -> 53.71538704 | I5: =+IF(+AND(E5=0,F5=0)+OR(+AND(E5=0,G5=0))+OR(+AND(F5=0,G5=0)),"Axial",(+IF(+OR(E5=0,F5=0,G5=0),"Tangential","Oblique"))) -> Tangential | J5: 0.5 | K5: =IF((H5-H4)<1,"RED","OK") -> OK | L5: =H5-H4 -> 12.17497545 | M5: 6 | P5: =O5*N5 -> 0 | Q5: 3 | R5: 22.4 | S5: 25 | T5: 28.2 | U5: 0 | V5: INACCURATE
A6: Length = | B6: 505 | C6: =IF(D7>1500,"PERFECT","TOO SMALL") -> PERFECT | D6: VOLUME | E6: 0 | F6: 0 | G6: 1 | H6: =$D$5*SQRT((($E6/$D$2)^2)+(($F6/$D$3)^2)+(($G6/$D$4)^2)) -> 60.34291368 | I6: =+IF(+AND(E6=0,F6=0)+OR(+AND(E6=0,G6=0))+OR(+AND(F6=0,G6=0)),"Axial",(+IF(+OR(E6=0,F6=0,G6=0),"Tangential","Oblique"))) -> Axial | J6: 1 | K6: OK | L6: 6.627526641 | M6: 7 | P6: 0 | Q6: 4 | R6: 28.2 | S6: 31.5 | T6: 35.5 | U6: 1 | V6: INACCURATE
A7: Width = | B7: 414 | D7: =+D2*D3*D4 -> 2104.222651 | E7: 2 | F7: 0 | G7: 0 | H7: =$D$5*SQRT((($E7/$D$2)^2)+(($F7/$D$3)^2)+(($G7/$D$4)^2)) -> 68.10982337 | I7: =+IF(+AND(E7=0,F7=0)+OR(+AND(E7=0,G7=0))+OR(+AND(F7=0,G7=0)),"Axial",(+IF(+OR(E7=0,F7=0,G7=0),"Tangential","Oblique"))) -> Axial | J7: 1 | K7: OK | L7: 7.766909682 | M7: 7 | P7: 0 | Q7: 5 | R7: 35.5 | S7: 40 | T7: 44.7 | U7: 1 | V7: INACCURATE
A8: Height = | B8: 285 | D8: =(B6*B7*B8)/1000000 -> 59.58495 | E8: 1 | F8: 0 | G8: 1 | H8: =$D$5*SQRT((($E8/$D$2)^2)+(($F8/$D$3)^2)+(($G8/$D$4)^2)) -> 69.28927941 | I8: =+IF(+AND(E8=0,F8=0)+OR(+AND(E8=0,G8=0))+OR(+AND(F8=0,G8=0)),"Axial",(+IF(+OR(E8=0,F8=0,G8=0),"Tangential","Oblique"))) -> Tangential | J8: 0.5 | K8: OK | L8: 1.179456047 | M8: 7 | P8: 0 | Q8: 6 | R8: 44.7 | S8: 50 | T8: 56.2 | U8: 1 | V8: INACCURATE
A9: If you found this spreadsheet helpful, please send a donation via PayPal to https://www.paypal.me/JHBrandt/ | E9: 0 | F9: 1 | G9: 1 | H9: =$D$5*SQRT((($E9/$D$2)^2)+(($F9/$D$3)^2)+(($G9/$D$4)^2)) -> 73.25894503 | I9: =+IF(+AND(E9=0,F9=0)+OR(+AND(E9=0,G9=0))+OR(+AND(F9=0,G9=0)),"Axial",(+IF(+OR(E9=0,F9=0,G9=0),"Tangential","Oblique"))) -> Tangential | J9: 0.5 | K9: OK | L9: 3.969665619 | M9: 8 | P9: 0 | Q9: 7 | R9: 56.2 | S9: 63 | T9: 70.8 | U9: 3 | V9: INACCURATE
E10: 2 | F10: 1 | G10: 0 | H10: =$D$5*SQRT((($E10/$D$2)^2)+(($F10/$D$3)^2)+(($G10/$D$4)^2)) -> 79.77815387 | I10: =+IF(+AND(E10=0,F10=0)+OR(+AND(E10=0,G10=0))+OR(+AND(F10=0,G10=0)),"Axial",(+IF(+OR(E10=0,F10=0,G10=0),"Tangential","Oblique"))) -> Tangential | J10: 0.5 | K10: OK | L10: 6.519208834 | M10: 8 | P10: 0 | Q10: 8 | R10: 70.8 | S10: 80 | T10: 89.1 | U10: 4 | V10: INACCURATE
E11: 1 | F11: 1 | G11: 1 | H11: =$D$5*SQRT((($E11/$D$2)^2)+(($F11/$D$3)^2)+(($G11/$D$4)^2)) -> 80.78743737 | I11: =+IF(+AND(E11=0,F11=0)+OR(+AND(E11=0,G11=0))+OR(+AND(F11=0,G11=0)),"Axial",(+IF(+OR(E11=0,F11=0,G11=0),"Tangential","Oblique"))) -> Oblique | J11: 0.25 | K11: OK | L11: 1.009283505 | M11: 8 | P11: 0 | Q11: 9 | R11: 89.1 | S11: 100 | T11: 112 | U11: 8 | V11: CAN TEST
A12: F/B walls | B12: =(B7/100)*(B8/100) -> 11.799 | E12: 0 | F12: 2 | G12: 0 | H12: =$D$5*SQRT((($E12/$D$2)^2)+(($F12/$D$3)^2)+(($G12/$D$4)^2)) -> 83.08082319 | I12: =+IF(+AND(E12=0,F12=0)+OR(+AND(E12=0,G12=0))+OR(+AND(F12=0,G12=0)),"Axial",(+IF(+OR(E12=0,F12=0,G12=0),"Tangential","Oblique"))) -> Axial | J12: 1 | K12: OK | L12: 2.293385817 | M12: 8 | P12: 0 | Q12: 10 | R12: 112 | S12: 125 | T12: 141 | U12: 13 | V12: CAN TEST
A13: Ceiling/Floor | B13: =(B6/100)*(B7/100) -> 20.907 | E13: 1 | F13: 2 | G13: 0 | H13: =$D$5*SQRT((($E13/$D$2)^2)+(($F13/$D$3)^2)+(($G13/$D$4)^2)) -> 89.78953275 | I13: =+IF(+AND(E13=0,F13=0)+OR(+AND(E13=0,G13=0))+OR(+AND(F13=0,G13=0)),"Axial",(+IF(+OR(E13=0,F13=0,G13=0),"Tangential","Oblique"))) -> Tangential | J13: 0.5 | K13: OK | L13: 6.708709561 | M13: 9 | P13: 0 | Q13: 11 | R13: 141 | S13: 160 | T13: 178 | U13: 24 | V13: CAN TEST
A14: Side Walls | B14: =(B6/100)*(B8/100) -> 14.3925 | D14: Position % | E14: 2 | F14: 0 | G14: 1 | H14: =$D$5*SQRT((($E14/$D$2)^2)+(($F14/$D$3)^2)+(($G14/$D$4)^2)) -> 90.9956882 | I14: =+IF(+AND(E14=0,F14=0)+OR(+AND(E14=0,G14=0))+OR(+AND(F14=0,G14=0)),"Axial",(+IF(+OR(E14=0,F14=0,G14=0),"Tangential","Oblique"))) -> Tangential | J14: 0.5 | K14: OK | L14: 1.20615545 | M14: 9 | P14: 0 | Q14: 12 | R14: 178 | S14: 200 | T14: 224 | U14: 51 | V14: CAN TEST
A15: Mix position | B15: =B6*D15 -> 189.375 | C15: to front wall | D15: =0.375 -> 0.375 | E15: 2 | F15: 1 | G15: 1 | H15: =$D$5*SQRT((($E15/$D$2)^2)+(($F15/$D$3)^2)+(($G15/$D$4)^2)) -> 100.0291011 | I15: =+IF(+AND(E15=0,F15=0)+OR(+AND(E15=0,G15=0))+OR(+AND(F15=0,G15=0)),"Axial",(+IF(+OR(E15=0,F15=0,G15=0),"Tangential","Oblique"))) -> Oblique | J15: 0.25 | K15: OK | L15: 9.033412898 | M15: 9 | P15: 0 | Q15: 13 | R15: 224 | S15: 250 | T15: 282 | U15: 88 | V15: CAN TEST
E16: 3 | F16: 0 | G16: 0 | H16: =$D$5*SQRT((($E16/$D$2)^2)+(($F16/$D$3)^2)+(($G16/$D$4)^2)) -> 102.164735 | I16: =+IF(+AND(E16=0,F16=0)+OR(+AND(E16=0,G16=0))+OR(+AND(F16=0,G16=0)),"Axial",(+IF(+OR(E16=0,F16=0,G16=0),"Tangential","Oblique"))) -> Axial | J16: 1 | K16: OK | L16: 2.135633952 | M16: 9 | P16: 0 | Q16: 14 | R16: 282 | S16: 315 | T16: 355 | U16: 159 | V16: CAN TEST
E17: 0 | F17: 2 | G17: 1 | H17: =$D$5*SQRT((($E17/$D$2)^2)+(($F17/$D$3)^2)+(($G17/$D$4)^2)) -> 102.6824737 | I17: =+IF(+AND(E17=0,F17=0)+OR(+AND(E17=0,G17=0))+OR(+AND(F17=0,G17=0)),"Axial",(+IF(+OR(E17=0,F17=0,G17=0),"Tangential","Oblique"))) -> Tangential | J17: 0.5 | K17: RED | L17: 0.5177386915 | M17: 9 | P17: 0 | Q17: 15 | R17: 355 | S17: 400 | T17: 447 | U17: 241 | V17: CAN TEST
A18: see the Ideal Rooms tab | E18: 2 | F18: 2 | G18: 0 | H18: =$D$5*SQRT((($E18/$D$2)^2)+(($F18/$D$3)^2)+(($G18/$D$4)^2)) -> 107.4307741 | I18: =+IF(+AND(E18=0,F18=0)+OR(+AND(E18=0,G18=0))+OR(+AND(F18=0,G18=0)),"Axial",(+IF(+OR(E18=0,F18=0,G18=0),"Tangential","Oblique"))) -> Tangential | J18: 0.5 | K18: OK | L18: 4.748300345 | M18: 9 | P18: 0 | Q18: 16 | R18: 447 | S18: 500 | T18: 562 | U18: 251 | V18: CAN TEST
B19: Height | C19: Width | D19: Length | E19: 1 | F19: 2 | G19: 1 | H19: =$D$5*SQRT((($E19/$D$2)^2)+(($F19/$D$3)^2)+(($G19/$D$4)^2)) -> 108.1823804 | I19: =+IF(+AND(E19=0,F19=0)+OR(+AND(E19=0,G19=0))+OR(+AND(F19=0,G19=0)),"Axial",(+IF(+OR(E19=0,F19=0,G19=0),"Tangential","Oblique"))) -> Oblique | J19: 0.25 | K19: RED | L19: 0.7516062879 | M19: 9 | Q19: 17 | R19: 562 | S19: 630 | T19: 708
A20: Ratio: | B20: 1 | C20: =B3/B4 -> 1.452631579 | D20: =B2/B4 -> 1.771929825 | E20: 3 | F20: 1 | G20: 0 | H20: =$D$5*SQRT((($E20/$D$2)^2)+(($F20/$D$3)^2)+(($G20/$D$4)^2)) -> 110.2870749 | I20: =+IF(+AND(E20=0,F20=0)+OR(+AND(E20=0,G20=0))+OR(+AND(F20=0,G20=0)),"Axial",(+IF(+OR(E20=0,F20=0,G20=0),"Tangential","Oblique"))) -> Tangential | J20: 0.5 | K20: OK | L20: 2.104694495 | M20: 9 | Q20: 18 | R20: 708 | S20: 800 | T20: 891
E21: 3 | F21: 0 | G21: 1 | H21: =$D$5*SQRT((($E21/$D$2)^2)+(($F21/$D$3)^2)+(($G21/$D$4)^2)) -> 118.6545419 | I21: =+IF(+AND(E21=0,F21=0)+OR(+AND(E21=0,G21=0))+OR(+AND(F21=0,G21=0)),"Axial",(+IF(+OR(E21=0,F21=0,G21=0),"Tangential","Oblique"))) -> Tangential | J21: 0.5 | K21: OK | L21: 8.367467057 | M21: 10 | Q21: 19 | R21: 891 | S21: 1000 | T21: 1122
A22: Instructions: | E22: 0 | F22: 0 | G22: 2 | H22: =$D$5*SQRT((($E22/$D$2)^2)+(($F22/$D$3)^2)+(($G22/$D$4)^2)) -> 120.6858274 | I22: =+IF(+AND(E22=0,F22=0)+OR(+AND(E22=0,G22=0))+OR(+AND(F22=0,G22=0)),"Axial",(+IF(+OR(E22=0,F22=0,G22=0),"Tangential","Oblique"))) -> Axial | J22: 1 | K22: OK | L22: 2.031285443 | M22: 10 | Q22: 20 | R22: 1122 | S22: 1250 | T22: 1413
A23: 1. Enter Dimensions in Yellow Area (centimeters). | E23: 2 | F23: 2 | G23: 1 | H23: =$D$5*SQRT((($E23/$D$2)^2)+(($F23/$D$3)^2)+(($G23/$D$4)^2)) -> 123.2178496 | I23: =+IF(+AND(E23=0,F23=0)+OR(+AND(E23=0,G23=0))+OR(+AND(F23=0,G23=0)),"Axial",(+IF(+OR(E23=0,F23=0,G23=0),"Tangential","Oblique"))) -> Oblique | J23: 0.25 | K23: OK | L23: 2.532022201 | M23: 10 | Q23: 21 | R23: 1413 | S23: 1600 | T23: 1778
A24: 2. Press Ctrl+Shift+S to Sort. | E24: 0 | F24: 3 | G24: 0 | H24: =$D$5*SQRT((($E24/$D$2)^2)+(($F24/$D$3)^2)+(($G24/$D$4)^2)) -> 124.6212348 | I24: =+IF(+AND(E24=0,F24=0)+OR(+AND(E24=0,G24=0))+OR(+AND(F24=0,G24=0)),"Axial",(+IF(+OR(E24=0,F24=0,G24=0),"Tangential","Oblique"))) -> Axial | J24: 1 | K24: OK | L24: 1.403385213 | M24: 10 | Q24: 22 | R24: 1778 | S24: 2000 | T24: 2239
A25: 3. Press Ctrl+Shift+C to Copy Mode Strength Data. | E25: 1 | F25: 0 | G25: 2 | H25: =$D$5*SQRT((($E25/$D$2)^2)+(($F25/$D$3)^2)+(($G25/$D$4)^2)) -> 125.3985883 | I25: =+IF(+AND(E25=0,F25=0)+OR(+AND(E25=0,G25=0))+OR(+AND(F25=0,G25=0)),"Axial",(+IF(+OR(E25=0,F25=0,G25=0),"Tangential","Oblique"))) -> Tangential | J25: 0.5 | K25: RED | L25: 0.7773534764 | M25: 10 | Q25: 23 | R25: 2239 | S25: 2500 | T25: 2818
E26: 3 | F26: 1 | G26: 1 | H26: =$D$5*SQRT((($E26/$D$2)^2)+(($F26/$D$3)^2)+(($G26/$D$4)^2)) -> 125.715974 | I26: =+IF(+AND(E26=0,F26=0)+OR(+AND(E26=0,G26=0))+OR(+AND(F26=0,G26=0)),"Axial",(+IF(+OR(E26=0,F26=0,G26=0),"Tangential","Oblique"))) -> Oblique | J26: 0.25 | K26: RED | L26: 0.3173857262 | M26: 10 | Q26: 24 | R26: 2818 | S26: 3150 | T26: 3548
A27: INSTRUCTIONS: | E27: 0 | F27: 1 | G27: 2 | H27: =$D$5*SQRT((($E27/$D$2)^2)+(($F27/$D$3)^2)+(($G27/$D$4)^2)) -> 127.6349275 | I27: =+IF(+AND(E27=0,F27=0)+OR(+AND(E27=0,G27=0))+OR(+AND(F27=0,G27=0)),"Axial",(+IF(+OR(E27=0,F27=0,G27=0),"Tangential","Oblique"))) -> Tangential | J27: 0.5 | K27: OK | L27: 1.918953535 | M27: 10 | Q27: 25 | R27: 3548 | S27: 4000 | T27: 4467
A28: 1. Enter Dimensions in Yellow Area (inches). | E28: 1 | F28: 3 | G28: 0 | H28: =$D$5*SQRT((($E28/$D$2)^2)+(($F28/$D$3)^2)+(($G28/$D$4)^2)) -> 129.190515 | I28: =+IF(+AND(E28=0,F28=0)+OR(+AND(E28=0,G28=0))+OR(+AND(F28=0,G28=0)),"Axial",(+IF(+OR(E28=0,F28=0,G28=0),"Tangential","Oblique"))) -> Tangential | J28: 0.5 | K28: OK | L28: 1.55558749 | M28: 10 | Q28: 26 | R28: 4467 | S28: 5000 | T28: 5623
A29: 2. Press Ctrl+Shift+S to Sort. | E29: 3 | F29: 2 | G29: 0 | H29: =$D$5*SQRT((($E29/$D$2)^2)+(($F29/$D$3)^2)+(($G29/$D$4)^2)) -> 131.6816474 | I29: =+IF(+AND(E29=0,F29=0)+OR(+AND(E29=0,G29=0))+OR(+AND(F29=0,G29=0)),"Axial",(+IF(+OR(E29=0,F29=0,G29=0),"Tangential","Oblique"))) -> Tangential | J29: 0.5 | K29: OK | L29: 2.491132418 | M29: 10 | Q29: 27 | R29: 5623 | S29: 6300 | T29: 7079
A30: 3. Press Ctrl+Shift+C to Copy Mode Strength Data. | E30: 1 | F30: 1 | G30: 2 | H30: =$D$5*SQRT((($E30/$D$2)^2)+(($F30/$D$3)^2)+(($G30/$D$4)^2)) -> 132.1000066 | I30: =+IF(+AND(E30=0,F30=0)+OR(+AND(E30=0,G30=0))+OR(+AND(F30=0,G30=0)),"Axial",(+IF(+OR(E30=0,F30=0,G30=0),"Tangential","Oblique"))) -> Oblique | J30: 0.25 | K30: RED | L30: 0.4183591304 | M30: 10 | Q30: 28 | R30: 7079 | S30: 8000 | T30: 8913
E31: 4 | F31: 0 | G31: 0 | H31: =$D$5*SQRT((($E31/$D$2)^2)+(($F31/$D$3)^2)+(($G31/$D$4)^2)) -> 136.2196467 | I31: =+IF(+AND(E31=0,F31=0)+OR(+AND(E31=0,G31=0))+OR(+AND(F31=0,G31=0)),"Axial",(+IF(+OR(E31=0,F31=0,G31=0),"Tangential","Oblique"))) -> Axial | J31: 1 | K31: OK | L31: 4.119640174 | M31: 10 | Q31: 29 | R31: 8913 | S31: 10000 | T31: 11220
A32: Other Notes: | E32: 0 | F32: 3 | G32: 1 | H32: =$D$5*SQRT((($E32/$D$2)^2)+(($F32/$D$3)^2)+(($G32/$D$4)^2)) -> 138.4619781 | I32: =+IF(+AND(E32=0,F32=0)+OR(+AND(E32=0,G32=0))+OR(+AND(F32=0,G32=0)),"Axial",(+IF(+OR(E32=0,F32=0,G32=0),"Tangential","Oblique"))) -> Tangential | J32: 0.5 | K32: OK | L32: 2.242331408 | M32: 10 | Q32: 30 | R32: 11220 | S32: 12500 | T32: 14130
A33: RT60 is not applicable to these small rooms. The mean free time is calculated instead from the mean free path. | E33: 2 | F33: 0 | G33: 2 | H33: =$D$5*SQRT((($E33/$D$2)^2)+(($F33/$D$3)^2)+(($G33/$D$4)^2)) -> 138.5785588 | I33: =+IF(+AND(E33=0,F33=0)+OR(+AND(E33=0,G33=0))+OR(+AND(F33=0,G33=0)),"Axial",(+IF(+OR(E33=0,F33=0,G33=0),"Tangential","Oblique"))) -> Tangential | J33: 0.5 | K33: RED | L33: 0.1165806864 | M33: 10 | Q33: 31 | R33: 14130 | S33: 16000 | T33: 17780
E34: 2 | F34: 3 | G34: 0 | H34: =$D$5*SQRT((($E34/$D$2)^2)+(($F34/$D$3)^2)+(($G34/$D$4)^2)) -> 142.0190135 | I34: =+IF(+AND(E34=0,F34=0)+OR(+AND(E34=0,G34=0))+OR(+AND(F34=0,G34=0)),"Axial",(+IF(+OR(E34=0,F34=0,G34=0),"Tangential","Oblique"))) -> Tangential | J34: 0.5 | K34: OK | L34: 3.440454681 | M34: 11 | Q34: 32 | R34: 17780 | S34: 20000 | T34: 22390
E35: 4 | F35: 1 | G35: 0 | H35: =$D$5*SQRT((($E35/$D$2)^2)+(($F35/$D$3)^2)+(($G35/$D$4)^2)) -> 142.4127731 | I35: =+IF(+AND(E35=0,F35=0)+OR(+AND(E35=0,G35=0))+OR(+AND(F35=0,G35=0)),"Axial",(+IF(+OR(E35=0,F35=0,G35=0),"Tangential","Oblique"))) -> Tangential | J35: 0.5 | K35: RED | L35: 0.393759625 | M35: 11
E36: 1 | F36: 3 | G36: 1 | H36: =$D$5*SQRT((($E36/$D$2)^2)+(($F36/$D$3)^2)+(($G36/$D$4)^2)) -> 142.5884161 | I36: =+IF(+AND(E36=0,F36=0)+OR(+AND(E36=0,G36=0))+OR(+AND(F36=0,G36=0)),"Axial",(+IF(+OR(E36=0,F36=0,G36=0),"Tangential","Oblique"))) -> Oblique | J36: 0.25 | K36: RED | L36: 0.1756429478 | M36: 11
E37: 2 | F37: 1 | G37: 2 | H37: =$D$5*SQRT((($E37/$D$2)^2)+(($F37/$D$3)^2)+(($G37/$D$4)^2)) -> 144.6707391 | I37: =+IF(+AND(E37=0,F37=0)+OR(+AND(E37=0,G37=0))+OR(+AND(F37=0,G37=0)),"Axial",(+IF(+OR(E37=0,F37=0,G37=0),"Tangential","Oblique"))) -> Oblique | J37: 0.25 | K37: OK | L37: 2.082323055 | M37: 11
E38: 3 | F38: 2 | G38: 1 | H38: =$D$5*SQRT((($E38/$D$2)^2)+(($F38/$D$3)^2)+(($G38/$D$4)^2)) -> 144.8493131 | I38: =+IF(+AND(E38=0,F38=0)+OR(+AND(E38=0,G38=0))+OR(+AND(F38=0,G38=0)),"Axial",(+IF(+OR(E38=0,F38=0,G38=0),"Tangential","Oblique"))) -> Oblique | J38: 0.25 | K38: RED | L38: 0.1785739499 | M38: 11
A39: If the "Ideal" bar does exceed the "Actual" bar in any given 1/3-octave band, the problem modes will usually be those occurring in the 1/3 octave bands that are lower than the violating band. I.e., if the "Ideal" bar at 100 Hz exceeds the "Actual" bar, the modes at 80 Hz and below are likely to give very perceptible problems in the room. | E39: 0 | F39: 2 | G39: 2 | H39: =$D$5*SQRT((($E39/$D$2)^2)+(($F39/$D$3)^2)+(($G39/$D$4)^2)) -> 146.5178901 | I39: =+IF(+AND(E39=0,F39=0)+OR(+AND(E39=0,G39=0))+OR(+AND(F39=0,G39=0)),"Axial",(+IF(+OR(E39=0,F39=0,G39=0),"Tangential","Oblique"))) -> Tangential | J39: 0.5 | K39: OK | L39: 1.66857698 | M39: 11
E40: 4 | F40: 0 | G40: 1 | H40: =$D$5*SQRT((($E40/$D$2)^2)+(($F40/$D$3)^2)+(($G40/$D$4)^2)) -> 148.9867759 | I40: =+IF(+AND(E40=0,F40=0)+OR(+AND(E40=0,G40=0))+OR(+AND(F40=0,G40=0)),"Axial",(+IF(+OR(E40=0,F40=0,G40=0),"Tangential","Oblique"))) -> Tangential | J40: 0.5 | K40: OK | L40: 2.468885817 | M40: 11
E41: 1 | F41: 2 | G41: 2 | H41: =$D$5*SQRT((($E41/$D$2)^2)+(($F41/$D$3)^2)+(($G41/$D$4)^2)) -> 150.4234992 | I41: =+IF(+AND(E41=0,F41=0)+OR(+AND(E41=0,G41=0))+OR(+AND(F41=0,G41=0)),"Axial",(+IF(+OR(E41=0,F41=0,G41=0),"Tangential","Oblique"))) -> Oblique | J41: 0.25 | K41: OK | L41: 1.436723342 | M41: 11
E42: 2 | F42: 3 | G42: 1 | H42: =$D$5*SQRT((($E42/$D$2)^2)+(($F42/$D$3)^2)+(($G42/$D$4)^2)) -> 154.3070557 | I42: =+IF(+AND(E42=0,F42=0)+OR(+AND(E42=0,G42=0))+OR(+AND(F42=0,G42=0)),"Axial",(+IF(+OR(E42=0,F42=0,G42=0),"Tangential","Oblique"))) -> Oblique | J42: 0.25 | K42: OK | L42: 3.883556446 | M42: 11
E43: 4 | F43: 1 | G43: 1 | H43: =$D$5*SQRT((($E43/$D$2)^2)+(($F43/$D$3)^2)+(($G43/$D$4)^2)) -> 154.6695354 | I43: =+IF(+AND(E43=0,F43=0)+OR(+AND(E43=0,G43=0))+OR(+AND(F43=0,G43=0)),"Axial",(+IF(+OR(E43=0,F43=0,G43=0),"Tangential","Oblique"))) -> Oblique | J43: 0.25 | K43: RED | L43: 0.3624797376 | M43: 11
E44: 3 | F44: 0 | G44: 2 | H44: =$D$5*SQRT((($E44/$D$2)^2)+(($F44/$D$3)^2)+(($G44/$D$4)^2)) -> 158.1224273 | I44: =+IF(+AND(E44=0,F44=0)+OR(+AND(E44=0,G44=0))+OR(+AND(F44=0,G44=0)),"Axial",(+IF(+OR(E44=0,F44=0,G44=0),"Tangential","Oblique"))) -> Tangential | J44: 0.5 | K44: OK | L44: 3.452891892 | M44: 11
E45: 4 | F45: 2 | G45: 0 | H45: =$D$5*SQRT((($E45/$D$2)^2)+(($F45/$D$3)^2)+(($G45/$D$4)^2)) -> 159.5563077 | I45: =+IF(+AND(E45=0,F45=0)+OR(+AND(E45=0,G45=0))+OR(+AND(F45=0,G45=0)),"Axial",(+IF(+OR(E45=0,F45=0,G45=0),"Tangential","Oblique"))) -> Tangential | J45: 0.5 | K45: OK | L45: 1.433880433 | M45: 11
E46: 3 | F46: 3 | G46: 0 | H46: =$D$5*SQRT((($E46/$D$2)^2)+(($F46/$D$3)^2)+(($G46/$D$4)^2)) -> 161.1461611 | I46: =+IF(+AND(E46=0,F46=0)+OR(+AND(E46=0,G46=0))+OR(+AND(F46=0,G46=0)),"Axial",(+IF(+OR(E46=0,F46=0,G46=0),"Tangential","Oblique"))) -> Tangential | J46: 0.5 | K46: OK | L46: 1.589853395 | M46: 11
E47: 2 | F47: 2 | G47: 2 | H47: =$D$5*SQRT((($E47/$D$2)^2)+(($F47/$D$3)^2)+(($G47/$D$4)^2)) -> 161.5748747 | I47: =+IF(+AND(E47=0,F47=0)+OR(+AND(E47=0,G47=0))+OR(+AND(F47=0,G47=0)),"Axial",(+IF(+OR(E47=0,F47=0,G47=0),"Tangential","Oblique"))) -> Oblique | J47: 0.25 | K47: RED | L47: 0.4287136145 | M47: 11
E48: 3 | F48: 1 | G48: 2 | H48: =$D$5*SQRT((($E48/$D$2)^2)+(($F48/$D$3)^2)+(($G48/$D$4)^2)) -> 163.4879439 | I48: =+IF(+AND(E48=0,F48=0)+OR(+AND(E48=0,G48=0))+OR(+AND(F48=0,G48=0)),"Axial",(+IF(+OR(E48=0,F48=0,G48=0),"Tangential","Oblique"))) -> Oblique | J48: 0.25 | K48: OK | L48: 1.913069188 | M48: 11
E49: 0 | F49: 4 | G49: 0 | H49: =$D$5*SQRT((($E49/$D$2)^2)+(($F49/$D$3)^2)+(($G49/$D$4)^2)) -> 166.1616464 | I49: =+IF(+AND(E49=0,F49=0)+OR(+AND(E49=0,G49=0))+OR(+AND(F49=0,G49=0)),"Axial",(+IF(+OR(E49=0,F49=0,G49=0),"Tangential","Oblique"))) -> Axial | J49: 1 | K49: OK | L49: 2.673702446 | M49: 11
E50: 1 | F50: 4 | G50: 0 | H50: =$D$5*SQRT((($E50/$D$2)^2)+(($F50/$D$3)^2)+(($G50/$D$4)^2)) -> 169.6155351 | I50: =+IF(+AND(E50=0,F50=0)+OR(+AND(E50=0,G50=0))+OR(+AND(F50=0,G50=0)),"Axial",(+IF(+OR(E50=0,F50=0,G50=0),"Tangential","Oblique"))) -> Tangential | J50: 0.5 | K50: OK | L50: 3.453888691 | M50: 11
E51: 5 | F51: 0 | G51: 0 | H51: =$D$5*SQRT((($E51/$D$2)^2)+(($F51/$D$3)^2)+(($G51/$D$4)^2)) -> 170.2745584 | I51: =+IF(+AND(E51=0,F51=0)+OR(+AND(E51=0,G51=0))+OR(+AND(F51=0,G51=0)),"Axial",(+IF(+OR(E51=0,F51=0,G51=0),"Tangential","Oblique"))) -> Axial | J51: 1 | K51: RED | L51: 0.6590233479 | M51: 11
E52: 4 | F52: 2 | G52: 1 | H52: =$D$5*SQRT((($E52/$D$2)^2)+(($F52/$D$3)^2)+(($G52/$D$4)^2)) -> 170.5857045 | I52: =+IF(+AND(E52=0,F52=0)+OR(+AND(E52=0,G52=0))+OR(+AND(F52=0,G52=0)),"Axial",(+IF(+OR(E52=0,F52=0,G52=0),"Tangential","Oblique"))) -> Oblique | J52: 0.25 | K52: RED | L52: 0.3111460542 | M52: 11
E53: 3 | F53: 3 | G53: 1 | H53: =$D$5*SQRT((($E53/$D$2)^2)+(($F53/$D$3)^2)+(($G53/$D$4)^2)) -> 172.0736833 | I53: =+IF(+AND(E53=0,F53=0)+OR(+AND(E53=0,G53=0))+OR(+AND(F53=0,G53=0)),"Axial",(+IF(+OR(E53=0,F53=0,G53=0),"Tangential","Oblique"))) -> Oblique | J53: 0.25 | K53: OK | L53: 1.487978812 | M53: 11
E54: 0 | F54: 3 | G54: 2 | H54: =$D$5*SQRT((($E54/$D$2)^2)+(($F54/$D$3)^2)+(($G54/$D$4)^2)) -> 173.4806072 | I54: =+IF(+AND(E54=0,F54=0)+OR(+AND(E54=0,G54=0))+OR(+AND(F54=0,G54=0)),"Axial",(+IF(+OR(E54=0,F54=0,G54=0),"Tangential","Oblique"))) -> Tangential | J54: 0.5 | K54: OK | L54: 1.406923952 | M54: 11
E55: 5 | F55: 1 | G55: 0 | H55: =$D$5*SQRT((($E55/$D$2)^2)+(($F55/$D$3)^2)+(($G55/$D$4)^2)) -> 175.2684542 | I55: =+IF(+AND(E55=0,F55=0)+OR(+AND(E55=0,G55=0))+OR(+AND(F55=0,G55=0)),"Axial",(+IF(+OR(E55=0,F55=0,G55=0),"Tangential","Oblique"))) -> Tangential | J55: 0.5 | K55: OK | L55: 1.78784697 | M55: 11
E56: 0 | F56: 4 | G56: 1 | H56: =$D$5*SQRT((($E56/$D$2)^2)+(($F56/$D$3)^2)+(($G56/$D$4)^2)) -> 176.7794104 | I56: =+IF(+AND(E56=0,F56=0)+OR(+AND(E56=0,G56=0))+OR(+AND(F56=0,G56=0)),"Axial",(+IF(+OR(E56=0,F56=0,G56=0),"Tangential","Oblique"))) -> Tangential | J56: 0.5 | K56: OK | L56: 1.510956244 | M56: 11
E57: 1 | F57: 3 | G57: 2 | H57: =$D$5*SQRT((($E57/$D$2)^2)+(($F57/$D$3)^2)+(($G57/$D$4)^2)) -> 176.7915668 | I57: =+IF(+AND(E57=0,F57=0)+OR(+AND(E57=0,G57=0))+OR(+AND(F57=0,G57=0)),"Axial",(+IF(+OR(E57=0,F57=0,G57=0),"Tangential","Oblique"))) -> Oblique | J57: 0.25 | K57: RED | L57: 0.01215636411 | M57: 11
E58: 3 | F58: 2 | G58: 2 | H58: =$D$5*SQRT((($E58/$D$2)^2)+(($F58/$D$3)^2)+(($G58/$D$4)^2)) -> 178.6200582 | I58: =+IF(+AND(E58=0,F58=0)+OR(+AND(E58=0,G58=0))+OR(+AND(F58=0,G58=0)),"Axial",(+IF(+OR(E58=0,F58=0,G58=0),"Tangential","Oblique"))) -> Oblique | J58: 0.25 | K58: OK | L58: 1.828491403 | M58: 12
E59: 2 | F59: 4 | G59: 0 | H59: =$D$5*SQRT((($E59/$D$2)^2)+(($F59/$D$3)^2)+(($G59/$D$4)^2)) -> 179.5790655 | I59: =+IF(+AND(E59=0,F59=0)+OR(+AND(E59=0,G59=0))+OR(+AND(F59=0,G59=0)),"Axial",(+IF(+OR(E59=0,F59=0,G59=0),"Tangential","Oblique"))) -> Tangential | J59: 0.5 | K59: RED | L59: 0.9590072837 | M59: 12
E60: 1 | F60: 4 | G60: 1 | H60: =$D$5*SQRT((($E60/$D$2)^2)+(($F60/$D$3)^2)+(($G60/$D$4)^2)) -> 180.0297113 | I60: =+IF(+AND(E60=0,F60=0)+OR(+AND(E60=0,G60=0))+OR(+AND(F60=0,G60=0)),"Axial",(+IF(+OR(E60=0,F60=0,G60=0),"Tangential","Oblique"))) -> Oblique | J60: 0.25 | K60: RED | L60: 0.4506458493 | M60: 12
E61: 5 | F61: 0 | G61: 1 | H61: =$D$5*SQRT((($E61/$D$2)^2)+(($F61/$D$3)^2)+(($G61/$D$4)^2)) -> 180.6507472 | I61: =+IF(+AND(E61=0,F61=0)+OR(+AND(E61=0,G61=0))+OR(+AND(F61=0,G61=0)),"Axial",(+IF(+OR(E61=0,F61=0,G61=0),"Tangential","Oblique"))) -> Tangential | J61: 0.5 | K61: RED | L61: 0.6210358836 | M61: 12
E62: 0 | F62: 0 | G62: 3 | H62: =$D$5*SQRT((($E62/$D$2)^2)+(($F62/$D$3)^2)+(($G62/$D$4)^2)) -> 181.0287411 | I62: =+IF(+AND(E62=0,F62=0)+OR(+AND(E62=0,G62=0))+OR(+AND(F62=0,G62=0)),"Axial",(+IF(+OR(E62=0,F62=0,G62=0),"Tangential","Oblique"))) -> Axial | J62: 1 | K62: RED | L62: 0.3779938203 | M62: 12
E63: 4 | F63: 0 | G63: 2 | H63: =$D$5*SQRT((($E63/$D$2)^2)+(($F63/$D$3)^2)+(($G63/$D$4)^2)) -> 181.9913764 | I63: =+IF(+AND(E63=0,F63=0)+OR(+AND(E63=0,G63=0))+OR(+AND(F63=0,G63=0)),"Axial",(+IF(+OR(E63=0,F63=0,G63=0),"Tangential","Oblique"))) -> Tangential | J63: 0.5 | K63: RED | L63: 0.9626353463 | M63: 12
E64: 1 | F64: 0 | G64: 3 | H64: =$D$5*SQRT((($E64/$D$2)^2)+(($F64/$D$3)^2)+(($G64/$D$4)^2)) -> 184.2040773 | I64: =+IF(+AND(E64=0,F64=0)+OR(+AND(E64=0,G64=0))+OR(+AND(F64=0,G64=0)),"Axial",(+IF(+OR(E64=0,F64=0,G64=0),"Tangential","Oblique"))) -> Tangential | J64: 0.5 | K64: OK | L64: 2.212700909 | M64: 12
E65: 4 | F65: 3 | G65: 0 | H65: =$D$5*SQRT((($E65/$D$2)^2)+(($F65/$D$3)^2)+(($G65/$D$4)^2)) -> 184.6246038 | I65: =+IF(+AND(E65=0,F65=0)+OR(+AND(E65=0,G65=0))+OR(+AND(F65=0,G65=0)),"Axial",(+IF(+OR(E65=0,F65=0,G65=0),"Tangential","Oblique"))) -> Tangential | J65: 0.5 | K65: RED | L65: 0.4205264553 | M65: 12 | AK65: =1127/((#REF!/12)*2) -> 
E66: 5 | F66: 1 | G66: 1 | H66: =$D$5*SQRT((($E66/$D$2)^2)+(($F66/$D$3)^2)+(($G66/$D$4)^2)) -> 185.3653103 | I66: =+IF(+AND(E66=0,F66=0)+OR(+AND(E66=0,G66=0))+OR(+AND(F66=0,G66=0)),"Axial",(+IF(+OR(E66=0,F66=0,G66=0),"Tangential","Oblique"))) -> Oblique | J66: 0.25 | K66: RED | L66: 0.7407065595 | M66: 12 | AK66: =1127/((#REF!/12)*2) -> 
E67: 0 | F67: 1 | G67: 3 | H67: =$D$5*SQRT((($E67/$D$2)^2)+(($F67/$D$3)^2)+(($G67/$D$4)^2)) -> 185.7337096 | I67: =+IF(+AND(E67=0,F67=0)+OR(+AND(E67=0,G67=0))+OR(+AND(F67=0,G67=0)),"Axial",(+IF(+OR(E67=0,F67=0,G67=0),"Tangential","Oblique"))) -> Tangential | J67: 0.5 | K67: RED | L67: 0.3683992793 | M67: 12
E68: 2 | F68: 3 | G68: 2 | H68: =$D$5*SQRT((($E68/$D$2)^2)+(($F68/$D$3)^2)+(($G68/$D$4)^2)) -> 186.3718571 | I68: =+IF(+AND(E68=0,F68=0)+OR(+AND(E68=0,G68=0))+OR(+AND(F68=0,G68=0)),"Axial",(+IF(+OR(E68=0,F68=0,G68=0),"Tangential","Oblique"))) -> Oblique | J68: =IF(I68="Axial",1,IF(I68="Tangential",0.5,IF(I68="Oblique",0.25,""))) -> 0.25 | K68: RED | L68: 0.6381475153 | M68: =IF(H68<17.8,1,IF(H68<=22.4,2,IF(H68<=28.2,3,IF(H68<=35.5,4,IF(H68<=44.7,5,IF(H68<=56.2,6,IF(H68<=70.8,7,IF(H68<=89.1,8,IF(H68<=112,9,IF(H68<=141,10,IF(H68<=178,11,IF(H68<=224,12,IF(H68<=282,13,IF(H68<=355,14,IF(H68<=447,15,IF(H68<=562,16,IF(H68<=708,17,IF(H68<=891,18,IF(H68<=1122,19,IF(H68<=1413,20,IF(H68<=1778,21,IF(H68<=2239,22,IF(H68<=2818,23,IF(H68<=3548,24,IF(H68<=4467,25,IF(H68<=5623,26,IF(H68<=7079,27,IF(H68<=8913,28,IF(H68<=11220,29,IF(H68<=14130,30,IF(H68<=17780,31,IF(H68<=22390,32,)))))))))))))))))))))))))))))))) -> 12
E69: 4 | F69: 1 | G69: 2 | H69: =$D$5*SQRT((($E69/$D$2)^2)+(($F69/$D$3)^2)+(($G69/$D$4)^2)) -> 186.6720838 | I69: =+IF(+AND(E69=0,F69=0)+OR(+AND(E69=0,G69=0))+OR(+AND(F69=0,G69=0)),"Axial",(+IF(+OR(E69=0,F69=0,G69=0),"Tangential","Oblique"))) -> Oblique | J69: 0.25 | K69: =IF((H69-H68)<1,"RED","OK") -> RED | L69: =H69-H68 -> 0.3002267062 | M69: 12
E70: 1 | F70: 1 | G70: 3 | H70: =$D$5*SQRT((($E70/$D$2)^2)+(($F70/$D$3)^2)+(($G70/$D$4)^2)) -> 188.8299444 | I70: =+IF(+AND(E70=0,F70=0)+OR(+AND(E70=0,G70=0))+OR(+AND(F70=0,G70=0)),"Axial",(+IF(+OR(E70=0,F70=0,G70=0),"Tangential","Oblique"))) -> Oblique | J70: 0.25 | K70: OK | L70: 2.15786055 | M70: 12
E71: 2 | F71: 4 | G71: 1 | H71: =$D$5*SQRT((($E71/$D$2)^2)+(($F71/$D$3)^2)+(($G71/$D$4)^2)) -> 189.4463196 | I71: =+IF(+AND(E71=0,F71=0)+OR(+AND(E71=0,G71=0))+OR(+AND(F71=0,G71=0)),"Axial",(+IF(+OR(E71=0,F71=0,G71=0),"Tangential","Oblique"))) -> Oblique | J71: 0.25 | K71: RED | L71: 0.6163751932 | M71: 12
E72: 5 | F72: 2 | G72: 0 | H72: =$D$5*SQRT((($E72/$D$2)^2)+(($F72/$D$3)^2)+(($G72/$D$4)^2)) -> 189.4619973 | I72: =+IF(+AND(E72=0,F72=0)+OR(+AND(E72=0,G72=0))+OR(+AND(F72=0,G72=0)),"Axial",(+IF(+OR(E72=0,F72=0,G72=0),"Tangential","Oblique"))) -> Tangential | J72: 0.5 | K72: RED | L72: 0.01567774462 | M72: 12
E73: 2 | F73: 0 | G73: 3 | H73: =$D$5*SQRT((($E73/$D$2)^2)+(($F73/$D$3)^2)+(($G73/$D$4)^2)) -> 193.4175616 | I73: =+IF(+AND(E73=0,F73=0)+OR(+AND(E73=0,G73=0))+OR(+AND(F73=0,G73=0)),"Axial",(+IF(+OR(E73=0,F73=0,G73=0),"Tangential","Oblique"))) -> Tangential | J73: 0.5 | K73: OK | L73: 3.955564264 | M73: 12
E74: 4 | F74: 3 | G74: 1 | H74: =$D$5*SQRT((($E74/$D$2)^2)+(($F74/$D$3)^2)+(($G74/$D$4)^2)) -> 194.2357113 | I74: =+IF(+AND(E74=0,F74=0)+OR(+AND(E74=0,G74=0))+OR(+AND(F74=0,G74=0)),"Axial",(+IF(+OR(E74=0,F74=0,G74=0),"Tangential","Oblique"))) -> Oblique | J74: 0.25 | K74: RED | L74: 0.8181497299 | M74: 12
E75: 3 | F75: 4 | G75: 0 | H75: =$D$5*SQRT((($E75/$D$2)^2)+(($F75/$D$3)^2)+(($G75/$D$4)^2)) -> 195.0572373 | I75: =+IF(+AND(E75=0,F75=0)+OR(+AND(E75=0,G75=0))+OR(+AND(F75=0,G75=0)),"Axial",(+IF(+OR(E75=0,F75=0,G75=0),"Tangential","Oblique"))) -> Tangential | J75: 0.5 | K75: RED | L75: 0.8215259715 | M75: 12 | N75: =0.16*(($D$8/$N$100)^(1/2)) -> 2.275786343
E76: 2 | F76: 1 | G76: 3 | H76: =$D$5*SQRT((($E76/$D$2)^2)+(($F76/$D$3)^2)+(($G76/$D$4)^2)) -> 197.8281045 | I76: =+IF(+AND(E76=0,F76=0)+OR(+AND(E76=0,G76=0))+OR(+AND(F76=0,G76=0)),"Axial",(+IF(+OR(E76=0,F76=0,G76=0),"Tangential","Oblique"))) -> Oblique | J76: 0.25 | K76: OK | L76: 2.770867201 | M76: 12
E77: 5 | F77: 2 | G77: 1 | H77: =$D$5*SQRT((($E77/$D$2)^2)+(($F77/$D$3)^2)+(($G77/$D$4)^2)) -> 198.8394218 | I77: =+IF(+AND(E77=0,F77=0)+OR(+AND(E77=0,G77=0))+OR(+AND(F77=0,G77=0)),"Axial",(+IF(+OR(E77=0,F77=0,G77=0),"Tangential","Oblique"))) -> Oblique | J77: 0.25 | K77: OK | L77: 1.01131731 | M77: 12
E78: 0 | F78: 2 | G78: 3 | H78: =$D$5*SQRT((($E78/$D$2)^2)+(($F78/$D$3)^2)+(($G78/$D$4)^2)) -> 199.1829015 | I78: =+IF(+AND(E78=0,F78=0)+OR(+AND(E78=0,G78=0))+OR(+AND(F78=0,G78=0)),"Axial",(+IF(+OR(E78=0,F78=0,G78=0),"Tangential","Oblique"))) -> Tangential | J78: 0.5 | K78: RED | L78: 0.3434797585 | M78: 12
E79: 4 | F79: 2 | G79: 2 | H79: =$D$5*SQRT((($E79/$D$2)^2)+(($F79/$D$3)^2)+(($G79/$D$4)^2)) -> 200.0582022 | I79: =+IF(+AND(E79=0,F79=0)+OR(+AND(E79=0,G79=0))+OR(+AND(F79=0,G79=0)),"Axial",(+IF(+OR(E79=0,F79=0,G79=0),"Tangential","Oblique"))) -> Oblique | J79: 0.25 | K79: RED | L79: 0.8753006472 | M79: 12
E80: 3 | F80: 3 | G80: 2 | H80: =$D$5*SQRT((($E80/$D$2)^2)+(($F80/$D$3)^2)+(($G80/$D$4)^2)) -> 201.3284733 | I80: =+IF(+AND(E80=0,F80=0)+OR(+AND(E80=0,G80=0))+OR(+AND(F80=0,G80=0)),"Axial",(+IF(+OR(E80=0,F80=0,G80=0),"Tangential","Oblique"))) -> Oblique | J80: 0.25 | K80: OK | L80: 1.270271137 | M80: 12
E81: 1 | F81: 2 | G81: 3 | H81: =$D$5*SQRT((($E81/$D$2)^2)+(($F81/$D$3)^2)+(($G81/$D$4)^2)) -> 202.0731681 | I81: =+IF(+AND(E81=0,F81=0)+OR(+AND(E81=0,G81=0))+OR(+AND(F81=0,G81=0)),"Axial",(+IF(+OR(E81=0,F81=0,G81=0),"Tangential","Oblique"))) -> Oblique | J81: 0.25 | K81: RED | L81: 0.7446947993 | M81: 12
E82: 3 | F82: 4 | G82: 1 | H82: =$D$5*SQRT((($E82/$D$2)^2)+(($F82/$D$3)^2)+(($G82/$D$4)^2)) -> 204.1778466 | I82: =+IF(+AND(E82=0,F82=0)+OR(+AND(E82=0,G82=0))+OR(+AND(F82=0,G82=0)),"Axial",(+IF(+OR(E82=0,F82=0,G82=0),"Tangential","Oblique"))) -> Oblique | J82: 0.25 | K82: OK | L82: 2.104678479 | M82: 12
E83: 6 | F83: 0 | G83: 0 | H83: =$D$5*SQRT((($E83/$D$2)^2)+(($F83/$D$3)^2)+(($G83/$D$4)^2)) -> 204.3294701 | I83: =+IF(+AND(E83=0,F83=0)+OR(+AND(E83=0,G83=0))+OR(+AND(F83=0,G83=0)),"Axial",(+IF(+OR(E83=0,F83=0,G83=0),"Tangential","Oblique"))) -> Axial | J83: 1 | K83: RED | L83: 0.151623489 | M83: 12
E84: 0 | F84: 4 | G84: 2 | H84: =$D$5*SQRT((($E84/$D$2)^2)+(($F84/$D$3)^2)+(($G84/$D$4)^2)) -> 205.3649475 | I84: =+IF(+AND(E84=0,F84=0)+OR(+AND(E84=0,G84=0))+OR(+AND(F84=0,G84=0)),"Axial",(+IF(+OR(E84=0,F84=0,G84=0),"Tangential","Oblique"))) -> Tangential | J84: 0.5 | K84: OK | L84: 1.035477383 | M84: 12
E85: 0 | F85: 5 | G85: 0 | H85: =$D$5*SQRT((($E85/$D$2)^2)+(($F85/$D$3)^2)+(($G85/$D$4)^2)) -> 207.702058 | I85: =+IF(+AND(E85=0,F85=0)+OR(+AND(E85=0,G85=0))+OR(+AND(F85=0,G85=0)),"Axial",(+IF(+OR(E85=0,F85=0,G85=0),"Tangential","Oblique"))) -> Axial | J85: 1 | K85: OK | L85: 2.337110489 | M85: 12
E86: 3 | F86: 0 | G86: 3 | H86: =$D$5*SQRT((($E86/$D$2)^2)+(($F86/$D$3)^2)+(($G86/$D$4)^2)) -> 207.8678382 | I86: =+IF(+AND(E86=0,F86=0)+OR(+AND(E86=0,G86=0))+OR(+AND(F86=0,G86=0)),"Axial",(+IF(+OR(E86=0,F86=0,G86=0),"Tangential","Oblique"))) -> Tangential | J86: 0.5 | K86: RED | L86: 0.1657802696 | M86: 12
E87: 1 | F87: 4 | G87: 2 | H87: =$D$5*SQRT((($E87/$D$2)^2)+(($F87/$D$3)^2)+(($G87/$D$4)^2)) -> 208.169399 | I87: =+IF(+AND(E87=0,F87=0)+OR(+AND(E87=0,G87=0))+OR(+AND(F87=0,G87=0)),"Axial",(+IF(+OR(E87=0,F87=0,G87=0),"Tangential","Oblique"))) -> Oblique | J87: 0.25 | K87: RED | L87: 0.3015607209 | M87: 12
E88: 6 | F88: 1 | G88: 0 | H88: =$D$5*SQRT((($E88/$D$2)^2)+(($F88/$D$3)^2)+(($G88/$D$4)^2)) -> 208.5093239 | I88: =+IF(+AND(E88=0,F88=0)+OR(+AND(E88=0,G88=0))+OR(+AND(F88=0,G88=0)),"Axial",(+IF(+OR(E88=0,F88=0,G88=0),"Tangential","Oblique"))) -> Tangential | J88: 0.5 | K88: RED | L88: 0.339924922 | M88: 12
E89: 5 | F89: 0 | G89: 2 | H89: =$D$5*SQRT((($E89/$D$2)^2)+(($F89/$D$3)^2)+(($G89/$D$4)^2)) -> 208.7067181 | I89: =+IF(+AND(E89=0,F89=0)+OR(+AND(E89=0,G89=0))+OR(+AND(F89=0,G89=0)),"Axial",(+IF(+OR(E89=0,F89=0,G89=0),"Tangential","Oblique"))) -> Tangential | J89: 0.5 | K89: RED | L89: 0.1973941955 | M89: 12
E90: 1 | F90: 5 | G90: 0 | H90: =$D$5*SQRT((($E90/$D$2)^2)+(($F90/$D$3)^2)+(($G90/$D$4)^2)) -> 210.4753712 | I90: =+IF(+AND(E90=0,F90=0)+OR(+AND(E90=0,G90=0))+OR(+AND(F90=0,G90=0)),"Axial",(+IF(+OR(E90=0,F90=0,G90=0),"Tangential","Oblique"))) -> Tangential | J90: 0.5 | K90: OK | L90: 1.768653153 | M90: 12
E91: 2 | F91: 2 | G91: 3 | H91: =$D$5*SQRT((($E91/$D$2)^2)+(($F91/$D$3)^2)+(($G91/$D$4)^2)) -> 210.5060006 | I91: =+IF(+AND(E91=0,F91=0)+OR(+AND(E91=0,G91=0))+OR(+AND(F91=0,G91=0)),"Axial",(+IF(+OR(E91=0,F91=0,G91=0),"Tangential","Oblique"))) -> Oblique | J91: 0.25 | K91: RED | L91: 0.03062941374 | M91: 12
E92: 5 | F92: 3 | G92: 0 | H92: =$D$5*SQRT((($E92/$D$2)^2)+(($F92/$D$3)^2)+(($G92/$D$4)^2)) -> 211.0068184 | I92: =+IF(+AND(E92=0,F92=0)+OR(+AND(E92=0,G92=0))+OR(+AND(F92=0,G92=0)),"Axial",(+IF(+OR(E92=0,F92=0,G92=0),"Tangential","Oblique"))) -> Tangential | J92: 0.5 | K92: RED | L92: 0.5008177336 | M92: 12
E93: 3 | F93: 1 | G93: 3 | H93: =$D$5*SQRT((($E93/$D$2)^2)+(($F93/$D$3)^2)+(($G93/$D$4)^2)) -> 211.9779327 | I93: =+IF(+AND(E93=0,F93=0)+OR(+AND(E93=0,G93=0))+OR(+AND(F93=0,G93=0)),"Axial",(+IF(+OR(E93=0,F93=0,G93=0),"Tangential","Oblique"))) -> Oblique | J93: 0.25 | K93: RED | L93: 0.9711143645 | M93: 12 | Q93: Transition/Diffusive ------Region------
E94: 5 | F94: 1 | G94: 2 | H94: =$D$5*SQRT((($E94/$D$2)^2)+(($F94/$D$3)^2)+(($G94/$D$4)^2)) -> 212.8006108 | I94: =+IF(+AND(E94=0,F94=0)+OR(+AND(E94=0,G94=0))+OR(+AND(F94=0,G94=0)),"Axial",(+IF(+OR(E94=0,F94=0,G94=0),"Tangential","Oblique"))) -> Oblique | J94: 0.25 | K94: RED | L94: 0.8226780796 | M94: 12 | N94: |----------------- Wave Region -----------------|----------- | R94: |----------- Ray Region ---------|
E95: 6 | F95: 0 | G95: 1 | H95: =$D$5*SQRT((($E95/$D$2)^2)+(($F95/$D$3)^2)+(($G95/$D$4)^2)) -> 213.0535134 | I95: =+IF(+AND(E95=0,F95=0)+OR(+AND(E95=0,G95=0))+OR(+AND(F95=0,G95=0)),"Axial",(+IF(+OR(E95=0,F95=0,G95=0),"Tangential","Oblique"))) -> Tangential | J95: 0.5 | K95: RED | L95: 0.2529026021 | M95: 12 | N95: F¹ | P95: F² | R95: F³ | T95: Fⁿ
E96: 4 | F96: 4 | G96: 0 | H96: =$D$5*SQRT((($E96/$D$2)^2)+(($F96/$D$3)^2)+(($G96/$D$4)^2)) -> 214.8615482 | I96: =+IF(+AND(E96=0,F96=0)+OR(+AND(E96=0,G96=0))+OR(+AND(F96=0,G96=0)),"Axial",(+IF(+OR(E96=0,F96=0,G96=0),"Tangential","Oblique"))) -> Tangential | J96: 0.5 | K96: OK | L96: 1.808034746 | M96: 12 | N96: =565/D2 -> 34.10138614 | P96: =(SQRT(N100/D8))*2000 -> 140.6107392 | R96: =4*P96 -> 562.4429569 | T96: 20,000Hz
E97: 0 | F97: 5 | G97: 1 | H97: =$D$5*SQRT((($E97/$D$2)^2)+(($F97/$D$3)^2)+(($G97/$D$4)^2)) -> 216.290111 | I97: =+IF(+AND(E97=0,F97=0)+OR(+AND(E97=0,G97=0))+OR(+AND(F97=0,G97=0)),"Axial",(+IF(+OR(E97=0,F97=0,G97=0),"Tangential","Oblique"))) -> Tangential | J97: 0.5 | K97: OK | L97: 1.428562831 | M97: 12 | N97: LF cutoff | P97: (Schroeder Frequency) | T97: HF cutoff
E98: 2 | F98: 4 | G98: 2 | H98: =$D$5*SQRT((($E98/$D$2)^2)+(($F98/$D$3)^2)+(($G98/$D$4)^2)) -> 216.3647607 | I98: =+IF(+AND(E98=0,F98=0)+OR(+AND(E98=0,G98=0))+OR(+AND(F98=0,G98=0)),"Axial",(+IF(+OR(E98=0,F98=0,G98=0),"Tangential","Oblique"))) -> Oblique | J98: 0.25 | K98: RED | L98: 0.07464974524 | M98: 12 | N98: =((SQRT(2))*(565/D2)) -> 48.22664277 | O98: <--This should be the LF cut-off of the speaker system if ported speakers are used
E99: 6 | F99: 1 | G99: 1 | H99: =$D$5*SQRT((($E99/$D$2)^2)+(($F99/$D$3)^2)+(($G99/$D$4)^2)) -> 217.0654403 | I99: =+IF(+AND(E99=0,F99=0)+OR(+AND(E99=0,G99=0))+OR(+AND(F99=0,G99=0)),"Axial",(+IF(+OR(E99=0,F99=0,G99=0),"Tangential","Oblique"))) -> Oblique | J99: 0.25 | K99: RED | L99: 0.7006795656 | M99: 12 | N99: MEAN FREE TIMES | O99: (Maximum) | P99: Permissible rise from 200 Hz @ 63 Hz | R99: =(((344/R96)/4)*100)*2 -> 30.58087898 | S99: Maximum depth for Schroeder 1D diffusor
E100: 2 | F100: 5 | G100: 0 | H100: =$D$5*SQRT((($E100/$D$2)^2)+(($F100/$D$3)^2)+(($G100/$D$4)^2)) -> 218.5842925 | I100: =+IF(+AND(E100=0,F100=0)+OR(+AND(E100=0,G100=0))+OR(+AND(F100=0,G100=0)),"Axial",(+IF(+OR(E100=0,F100=0,G100=0),"Tangential","Oblique"))) -> Tangential | J100: 0.5 | K100: OK | L100: 1.518852179 | M100: 12 | N100: =0.35*(($D$8/100)^(1/3)) -> 0.2945191719 | P100: =(N100*0.25)+N100 -> 0.3681489649 | R100: =(SQRT(2))*P96 -> 198.8536144 | S100: We don't want any problematic resonances below this frequency
E101: 1 | F101: 5 | G101: 1 | H101: =$D$5*SQRT((($E101/$D$2)^2)+(($F101/$D$3)^2)+(($G101/$D$4)^2)) -> 218.9546737 | I101: =+IF(+AND(E101=0,F101=0)+OR(+AND(E101=0,G101=0))+OR(+AND(F101=0,G101=0)),"Axial",(+IF(+OR(E101=0,F101=0,G101=0),"Tangential","Oblique"))) -> Oblique | J101: 0.25 | K101: RED | L101: 0.3703811893 | M101: 12 | N101: =N100 -> 0.2945191719 | O101: Balance spec. | P101: =P96 -> 140.6107392 | Q101: Schroeder @ spec | R101: =P101/2 -> 70.30536961 | S101: <---- Maximum inner shell MAM resonance
E102: 5 | F102: 3 | G102: 1 | H102: =$D$5*SQRT((($E102/$D$2)^2)+(($F102/$D$3)^2)+(($G102/$D$4)^2)) -> 219.4655887 | I102: =+IF(+AND(E102=0,F102=0)+OR(+AND(E102=0,G102=0))+OR(+AND(F102=0,G102=0)),"Axial",(+IF(+OR(E102=0,F102=0,G102=0),"Tangential","Oblique"))) -> Oblique | J102: 0.25 | K102: RED | L102: 0.5109150432 | M102: 12 | N102: Critical Distance - Dmin | O102: =N75*1000 -> 2275.786343 | P102: For control rooms, this is the circumference of the 'sweet-spot' - or best listening position
E103: 0 | F103: 3 | G103: 3 | H103: =$D$5*SQRT((($E103/$D$2)^2)+(($F103/$D$3)^2)+(($G103/$D$4)^2)) -> 219.7768351 | I103: =+IF(+AND(E103=0,F103=0)+OR(+AND(E103=0,G103=0))+OR(+AND(F103=0,G103=0)),"Axial",(+IF(+OR(E103=0,F103=0,G103=0),"Tangential","Oblique"))) -> Tangential | J103: 0.5 | K103: RED | L103: 0.3112463735 | M103: 12
E104: 4 | F104: 3 | G104: 2 | H104: =$D$5*SQRT((($E104/$D$2)^2)+(($F104/$D$3)^2)+(($G104/$D$4)^2)) -> 220.5704269 | I104: =+IF(+AND(E104=0,F104=0)+OR(+AND(E104=0,G104=0))+OR(+AND(F104=0,G104=0)),"Axial",(+IF(+OR(E104=0,F104=0,G104=0),"Tangential","Oblique"))) -> Oblique | J104: 0.25 | K104: RED | L104: 0.7935918458 | M104: 12
E105: 6 | F105: 2 | G105: 0 | H105: =$D$5*SQRT((($E105/$D$2)^2)+(($F105/$D$3)^2)+(($G105/$D$4)^2)) -> 220.5741497 | I105: =+IF(+AND(E105=0,F105=0)+OR(+AND(E105=0,G105=0))+OR(+AND(F105=0,G105=0)),"Axial",(+IF(+OR(E105=0,F105=0,G105=0),"Tangential","Oblique"))) -> Tangential | J105: 0.5 | K105: RED | L105: 0.003722793786 | M105: 12
E106: 1 | F106: 3 | G106: 3 | H106: =$D$5*SQRT((($E106/$D$2)^2)+(($F106/$D$3)^2)+(($G106/$D$4)^2)) -> 222.3996274 | I106: =+IF(+AND(E106=0,F106=0)+OR(+AND(E106=0,G106=0))+OR(+AND(F106=0,G106=0)),"Axial",(+IF(+OR(E106=0,F106=0,G106=0),"Tangential","Oblique"))) -> Oblique | J106: 0.25 | K106: OK | L106: 1.825477635 | M106: 12 | N106: see the Ratios tab for best room ratios + more information
E107: 4 | F107: 4 | G107: 1 | H107: =$D$5*SQRT((($E107/$D$2)^2)+(($F107/$D$3)^2)+(($G107/$D$4)^2)) -> 223.174264 | I107: =+IF(+AND(E107=0,F107=0)+OR(+AND(E107=0,G107=0))+OR(+AND(F107=0,G107=0)),"Axial",(+IF(+OR(E107=0,F107=0,G107=0),"Tangential","Oblique"))) -> Oblique | J107: 0.25 | K107: RED | L107: 0.7746366329 | M107: 12
E108: 3 | F108: 2 | G108: 3 | H108: =$D$5*SQRT((($E108/$D$2)^2)+(($F108/$D$3)^2)+(($G108/$D$4)^2)) -> 223.8558942 | I108: =+IF(+AND(E108=0,F108=0)+OR(+AND(E108=0,G108=0))+OR(+AND(F108=0,G108=0)),"Axial",(+IF(+OR(E108=0,F108=0,G108=0),"Tangential","Oblique"))) -> Oblique | J108: 0.25 | K108: RED | L108: 0.6816301683 | M108: 12
E109: 5 | F109: 2 | G109: 2 | H109: =$D$5*SQRT((($E109/$D$2)^2)+(($F109/$D$3)^2)+(($G109/$D$4)^2)) -> 224.635076 | I109: =+IF(+AND(E109=0,F109=0)+OR(+AND(E109=0,G109=0))+OR(+AND(F109=0,G109=0)),"Axial",(+IF(+OR(E109=0,F109=0,G109=0),"Tangential","Oblique"))) -> Oblique | J109: 0.25 | K109: RED | L109: 0.779181789 | M109: 13
E110: 4 | F110: 0 | G110: 3 | H110: =$D$5*SQRT((($E110/$D$2)^2)+(($F110/$D$3)^2)+(($G110/$D$4)^2)) -> 226.5550645 | I110: =+IF(+AND(E110=0,F110=0)+OR(+AND(E110=0,G110=0))+OR(+AND(F110=0,G110=0)),"Axial",(+IF(+OR(E110=0,F110=0,G110=0),"Tangential","Oblique"))) -> Tangential | J110: 0.5 | K110: OK | L110: 1.91998852 | M110: 13
E111: 2 | F111: 5 | G111: 1 | H111: =$D$5*SQRT((($E111/$D$2)^2)+(($F111/$D$3)^2)+(($G111/$D$4)^2)) -> 226.7605789 | I111: =+IF(+AND(E111=0,F111=0)+OR(+AND(E111=0,G111=0))+OR(+AND(F111=0,G111=0)),"Axial",(+IF(+OR(E111=0,F111=0,G111=0),"Tangential","Oblique"))) -> Oblique | J111: 0.25 | K111: RED | L111: 0.2055144458 | M111: 13
E112: 6 | F112: 2 | G112: 1 | H112: =$D$5*SQRT((($E112/$D$2)^2)+(($F112/$D$3)^2)+(($G112/$D$4)^2)) -> 228.6793011 | I112: =+IF(+AND(E112=0,F112=0)+OR(+AND(E112=0,G112=0))+OR(+AND(F112=0,G112=0)),"Axial",(+IF(+OR(E112=0,F112=0,G112=0),"Tangential","Oblique"))) -> Oblique | J112: 0.25 | K112: OK | L112: 1.918722199 | M112: 13 | N112: Temperature Centigrade | O112: 20 | P112: =331.23 + (0.606*O112) -> 343.35
E113: 3 | F113: 4 | G113: 2 | H113: =$D$5*SQRT((($E113/$D$2)^2)+(($F113/$D$3)^2)+(($G113/$D$4)^2)) -> 229.3739191 | I113: =+IF(+AND(E113=0,F113=0)+OR(+AND(E113=0,G113=0))+OR(+AND(F113=0,G113=0)),"Axial",(+IF(+OR(E113=0,F113=0,G113=0),"Tangential","Oblique"))) -> Oblique | J113: 0.25 | K113: RED | L113: 0.6946179253 | M113: 13 | N113: Temperature Fahrinheit | O113: =(9/5)*(O112)+32 -> 68 | P113: =P112*3.28084 -> 1126.476414
E114: 2 | F114: 3 | G114: 3 | H114: =$D$5*SQRT((($E114/$D$2)^2)+(($F114/$D$3)^2)+(($G114/$D$4)^2)) -> 230.08869 | I114: =+IF(+AND(E114=0,F114=0)+OR(+AND(E114=0,G114=0))+OR(+AND(F114=0,G114=0)),"Axial",(+IF(+OR(E114=0,F114=0,G114=0),"Tangential","Oblique"))) -> Oblique | J114: 0.25 | K114: RED | L114: 0.7147709876 | M114: 13
E115: 4 | F115: 1 | G115: 3 | H115: =$D$5*SQRT((($E115/$D$2)^2)+(($F115/$D$3)^2)+(($G115/$D$4)^2)) -> 230.331941 | I115: =+IF(+AND(E115=0,F115=0)+OR(+AND(E115=0,G115=0))+OR(+AND(F115=0,G115=0)),"Axial",(+IF(+OR(E115=0,F115=0,G115=0),"Tangential","Oblique"))) -> Oblique | J115: 0.25 | K115: RED | L115: 0.2432509451 | M115: 13
E116: 3 | F116: 5 | G116: 0 | H116: =$D$5*SQRT((($E116/$D$2)^2)+(($F116/$D$3)^2)+(($G116/$D$4)^2)) -> 231.4687408 | I116: =+IF(+AND(E116=0,F116=0)+OR(+AND(E116=0,G116=0))+OR(+AND(F116=0,G116=0)),"Axial",(+IF(+OR(E116=0,F116=0,G116=0),"Tangential","Oblique"))) -> Tangential | J116: 0.5 | K116: OK | L116: 1.136799826 | M116: 13 | N116: All Modes | S116: Poly Diameter | T116: Poly Radius | U116: Poly Depth
E117: 6 | F117: 0 | G117: 2 | H117: =$D$5*SQRT((($E117/$D$2)^2)+(($F117/$D$3)^2)+(($G117/$D$4)^2)) -> 237.3090839 | I117: =+IF(+AND(E117=0,F117=0)+OR(+AND(E117=0,G117=0))+OR(+AND(F117=0,G117=0)),"Axial",(+IF(+OR(E117=0,F117=0,G117=0),"Tangential","Oblique"))) -> Tangential | J117: 0.5 | K117: OK | L117: 5.84034304 | M117: 13 | N117: nx | O117: ny | P117: nz | Q117: f | R117: Width | S117: DIFFRACTION/SCATTERING @
E118: 5 | F118: 4 | G118: 0 | H118: =$D$5*SQRT((($E118/$D$2)^2)+(($F118/$D$3)^2)+(($G118/$D$4)^2)) -> 237.9140979 | I118: =+IF(+AND(E118=0,F118=0)+OR(+AND(E118=0,G118=0))+OR(+AND(F118=0,G118=0)),"Axial",(+IF(+OR(E118=0,F118=0,G118=0),"Tangential","Oblique"))) -> Tangential | J118: 0.5 | K118: RED | L118: 0.6050140289 | M118: 13 | N118: 0 | O118: 1 | P118: 0 | Q118: =$D$5*SQRT(((N118/$D$2)^2)+((O118/$D$3)^2)+((P118/$D$4)^2)) -> 41.54041159 | R118: =(((343.96*100))/Q118)/2 -> 414.0064901 | S118: =((343.96*100)*2)/Q118 -> 1656.02596 | T118: =S118/2 -> 828.0129801 | U118: =(T118*0.0317224829)*10 -> 262.666276
E119: 7 | F119: 0 | G119: 0 | H119: =$D$5*SQRT((($E119/$D$2)^2)+(($F119/$D$3)^2)+(($G119/$D$4)^2)) -> 238.3843818 | I119: =+IF(+AND(E119=0,F119=0)+OR(+AND(E119=0,G119=0))+OR(+AND(F119=0,G119=0)),"Axial",(+IF(+OR(E119=0,F119=0,G119=0),"Tangential","Oblique"))) -> Axial | J119: 1 | K119: RED | L119: 0.4702839015 | M119: 13
E120: 3 | F120: 5 | G120: 1 | H120: =$D$5*SQRT((($E120/$D$2)^2)+(($F120/$D$3)^2)+(($G120/$D$4)^2)) -> 239.2050275 | I120: =+IF(+AND(E120=0,F120=0)+OR(+AND(E120=0,G120=0))+OR(+AND(F120=0,G120=0)),"Axial",(+IF(+OR(E120=0,F120=0,G120=0),"Tangential","Oblique"))) -> Oblique | J120: 0.25 | K120: RED | L120: 0.8206457675 | M120: 13 | N120: Slat Diffraction Frequency, both width and gap
E121: 6 | F121: 3 | G121: 0 | H121: =$D$5*SQRT((($E121/$D$2)^2)+(($F121/$D$3)^2)+(($G121/$D$4)^2)) -> 239.3344616 | I121: =+IF(+AND(E121=0,F121=0)+OR(+AND(E121=0,G121=0))+OR(+AND(F121=0,G121=0)),"Axial",(+IF(+OR(E121=0,F121=0,G121=0),"Tangential","Oblique"))) -> Tangential | J121: 0.5 | K121: RED | L121: 0.129434051 | M121: 13 | O121: Full | P121: 1/2 wave | Q121: 1/4 wave
E122: 0 | F122: 5 | G122: 2 | H122: =$D$5*SQRT((($E122/$D$2)^2)+(($F122/$D$3)^2)+(($G122/$D$4)^2)) -> 240.2190954 | I122: =+IF(+AND(E122=0,F122=0)+OR(+AND(E122=0,G122=0))+OR(+AND(F122=0,G122=0)),"Axial",(+IF(+OR(E122=0,F122=0,G122=0),"Tangential","Oblique"))) -> Tangential | J122: 0.5 | K122: RED | L122: 0.8846338372 | M122: 13 | N122: =0.75*25.4 -> 19.05 | O122: =343.35/(N122*0.001) -> 18023.62205 | P122: =O122/2 -> 9011.811024 | Q122: 4505.905512
E123: 6 | F123: 1 | G123: 2 | H123: =$D$5*SQRT((($E123/$D$2)^2)+(($F123/$D$3)^2)+(($G123/$D$4)^2)) -> 240.9174279 | I123: =+IF(+AND(E123=0,F123=0)+OR(+AND(E123=0,G123=0))+OR(+AND(F123=0,G123=0)),"Axial",(+IF(+OR(E123=0,F123=0,G123=0),"Tangential","Oblique"))) -> Oblique | J123: 0.25 | K123: RED | L123: 0.6983324787 | M123: 13 | N123: =N122+19.05 -> 38.1 | O123: 9011.811024 | P123: 4505.905512 | Q123: 2252.952756
E124: 4 | F124: 2 | G124: 3 | H124: =$D$5*SQRT((($E124/$D$2)^2)+(($F124/$D$3)^2)+(($G124/$D$4)^2)) -> 241.3081441 | I124: =+IF(+AND(E124=0,F124=0)+OR(+AND(E124=0,G124=0))+OR(+AND(F124=0,G124=0)),"Axial",(+IF(+OR(E124=0,F124=0,G124=0),"Tangential","Oblique"))) -> Oblique | J124: 0.25 | K124: RED | L124: 0.390716216 | M124: 13 | N124: =N123+12.7 -> 50.8 | O124: 6758.858268 | P124: 3379.429134 | Q124: 1689.714567
E125: 0 | F125: 0 | G125: 4 | H125: =$D$5*SQRT((($E125/$D$2)^2)+(($F125/$D$3)^2)+(($G125/$D$4)^2)) -> 241.3716547 | I125: =+IF(+AND(E125=0,F125=0)+OR(+AND(E125=0,G125=0))+OR(+AND(F125=0,G125=0)),"Axial",(+IF(+OR(E125=0,F125=0,G125=0),"Tangential","Oblique"))) -> Axial | J125: 1 | K125: RED | L125: 0.0635106042 | M125: 13 | N125: =N124+50.8 -> 101.6 | O125: 3379.429134 | P125: 1689.714567 | Q125: 844.8572835
E126: 7 | F126: 1 | G126: 0 | H126: =$D$5*SQRT((($E126/$D$2)^2)+(($F126/$D$3)^2)+(($G126/$D$4)^2)) -> 241.9766916 | I126: =+IF(+AND(E126=0,F126=0)+OR(+AND(E126=0,G126=0))+OR(+AND(F126=0,G126=0)),"Axial",(+IF(+OR(E126=0,F126=0,G126=0),"Tangential","Oblique"))) -> Tangential | J126: 0.5 | K126: RED | L126: 0.6050368537 | M126: 13 | N126: 152.4 | O126: 2252.952756 | P126: 1126.476378 | Q126: 563.238189
E127: 3 | F127: 3 | G127: 3 | H127: =$D$5*SQRT((($E127/$D$2)^2)+(($F127/$D$3)^2)+(($G127/$D$4)^2)) -> 242.3623121 | I127: =+IF(+AND(E127=0,F127=0)+OR(+AND(E127=0,G127=0))+OR(+AND(F127=0,G127=0)),"Axial",(+IF(+OR(E127=0,F127=0,G127=0),"Tangential","Oblique"))) -> Oblique | J127: 0.25 | K127: RED | L127: 0.3856205242 | M127: 13 | N127: 203.2 | O127: 1689.714567 | P127: 844.8572835 | Q127: 422.4286417
E128: 1 | F128: 5 | G128: 2 | H128: =$D$5*SQRT((($E128/$D$2)^2)+(($F128/$D$3)^2)+(($G128/$D$4)^2)) -> 242.6210024 | I128: =+IF(+AND(E128=0,F128=0)+OR(+AND(E128=0,G128=0))+OR(+AND(F128=0,G128=0)),"Axial",(+IF(+OR(E128=0,F128=0,G128=0),"Tangential","Oblique"))) -> Oblique | J128: 0.25 | K128: RED | L128: 0.2586903207 | M128: 13 | N128: 254 | O128: 1351.771654 | P128: 675.8858268 | Q128: 337.9429134
E129: 5 | F129: 3 | G129: 2 | H129: =$D$5*SQRT((($E129/$D$2)^2)+(($F129/$D$3)^2)+(($G129/$D$4)^2)) -> 243.0821802 | I129: =+IF(+AND(E129=0,F129=0)+OR(+AND(E129=0,G129=0))+OR(+AND(F129=0,G129=0)),"Axial",(+IF(+OR(E129=0,F129=0,G129=0),"Tangential","Oblique"))) -> Oblique | J129: 0.25 | K129: RED | L129: 0.4611777631 | M129: 13 | N129: 304.8 | O129: 1126.476378 | P129: 563.238189 | Q129: 281.6190945
E130: 1 | F130: 0 | G130: 4 | H130: =$D$5*SQRT((($E130/$D$2)^2)+(($F130/$D$3)^2)+(($G130/$D$4)^2)) -> 243.7622053 | I130: =+IF(+AND(E130=0,F130=0)+OR(+AND(E130=0,G130=0))+OR(+AND(F130=0,G130=0)),"Axial",(+IF(+OR(E130=0,F130=0,G130=0),"Tangential","Oblique"))) -> Tangential | J130: 0.5 | K130: RED | L130: 0.6800250757 | M130: 13 | N130: 355.6 | O130: 965.5511811 | P130: 482.7755906 | Q130: 241.3877953
E131: 0 | F131: 1 | G131: 4 | H131: =$D$5*SQRT((($E131/$D$2)^2)+(($F131/$D$3)^2)+(($G131/$D$4)^2)) -> 244.9201533 | I131: =+IF(+AND(E131=0,F131=0)+OR(+AND(E131=0,G131=0))+OR(+AND(F131=0,G131=0)),"Axial",(+IF(+OR(E131=0,F131=0,G131=0),"Tangential","Oblique"))) -> Tangential | J131: 0.5 | K131: OK | L131: 1.157948053 | M131: 13 | N131: 406.4 | O131: 844.8572835 | P131: 422.4286417 | Q131: 211.2143209
E132: 5 | F132: 4 | G132: 1 | H132: =$D$5*SQRT((($E132/$D$2)^2)+(($F132/$D$3)^2)+(($G132/$D$4)^2)) -> 245.4473166 | I132: =+IF(+AND(E132=0,F132=0)+OR(+AND(E132=0,G132=0))+OR(+AND(F132=0,G132=0)),"Axial",(+IF(+OR(E132=0,F132=0,G132=0),"Tangential","Oblique"))) -> Oblique | J132: =IF(I132="Axial",1,IF(I132="Tangential",0.5,IF(I132="Oblique",0.25,""))) -> 0.25 | K132: RED | L132: 0.5271632242 | M132: =IF(H132<17.8,1,IF(H132<=22.4,2,IF(H132<=28.2,3,IF(H132<=35.5,4,IF(H132<=44.7,5,IF(H132<=56.2,6,IF(H132<=70.8,7,IF(H132<=89.1,8,IF(H132<=112,9,IF(H132<=141,10,IF(H132<=178,11,IF(H132<=224,12,IF(H132<=282,13,IF(H132<=355,14,IF(H132<=447,15,IF(H132<=562,16,IF(H132<=708,17,IF(H132<=891,18,IF(H132<=1122,19,IF(H132<=1413,20,IF(H132<=1778,21,IF(H132<=2239,22,IF(H132<=2818,23,IF(H132<=3548,24,IF(H132<=4467,25,IF(H132<=5623,26,IF(H132<=7079,27,IF(H132<=8913,28,IF(H132<=11220,29,IF(H132<=14130,30,IF(H132<=17780,31,IF(H132<=22390,32,)))))))))))))))))))))))))))))))) -> 13 | N132: 457.2 | O132: 750.984252 | P132: 375.492126 | Q132: 187.746063
E133: 0 | F133: 4 | G133: 3 | H133: =$D$5*SQRT((($E133/$D$2)^2)+(($F133/$D$3)^2)+(($G133/$D$4)^2)) -> 245.7256556 | I133: =+IF(+AND(E133=0,F133=0)+OR(+AND(E133=0,G133=0))+OR(+AND(F133=0,G133=0)),"Axial",(+IF(+OR(E133=0,F133=0,G133=0),"Tangential","Oblique"))) -> Tangential | J133: 0.5 | K133: =IF((H133-H132)<1,"RED","OK") -> RED | L133: =H133-H132 -> 0.2783390358 | M133: 13 | N133: 508 | O133: 675.8858268 | P133: 337.9429134 | Q133: 168.9714567
E134: 7 | F134: 0 | G134: 1 | H134: =$D$5*SQRT((($E134/$D$2)^2)+(($F134/$D$3)^2)+(($G134/$D$4)^2)) -> 245.9031938 | I134: =+IF(+AND(E134=0,F134=0)+OR(+AND(E134=0,G134=0))+OR(+AND(F134=0,G134=0)),"Axial",(+IF(+OR(E134=0,F134=0,G134=0),"Tangential","Oblique"))) -> Tangential | J134: 0.5 | K134: RED | L134: 0.1775381895 | M134: 13 | N134: 558.8 | O134: 614.4416607 | P134: 307.2208304 | Q134: 153.6104152
E135: 4 | F135: 4 | G135: 2 | H135: =$D$5*SQRT((($E135/$D$2)^2)+(($F135/$D$3)^2)+(($G135/$D$4)^2)) -> 246.4356991 | I135: =+IF(+AND(E135=0,F135=0)+OR(+AND(E135=0,G135=0))+OR(+AND(F135=0,G135=0)),"Axial",(+IF(+OR(E135=0,F135=0,G135=0),"Tangential","Oblique"))) -> Oblique | J135: 0.25 | K135: RED | L135: 0.5325053625 | M135: 13 | N135: 609.6 | O135: 563.238189 | P135: 281.6190945 | Q135: 140.8095472
E136: 6 | F136: 3 | G136: 1 | H136: =$D$5*SQRT((($E136/$D$2)^2)+(($F136/$D$3)^2)+(($G136/$D$4)^2)) -> 246.8243338 | I136: =+IF(+AND(E136=0,F136=0)+OR(+AND(E136=0,G136=0))+OR(+AND(F136=0,G136=0)),"Axial",(+IF(+OR(E136=0,F136=0,G136=0),"Tangential","Oblique"))) -> Oblique | J136: 0.25 | K136: RED | L136: 0.388634632 | M136: 13 | N136: 660.4 | O136: 519.9121744 | P136: 259.9560872 | Q136: 129.9780436
E137: 1 | F137: 1 | G137: 4 | H137: =$D$5*SQRT((($E137/$D$2)^2)+(($F137/$D$3)^2)+(($G137/$D$4)^2)) -> 247.276401 | I137: =+IF(+AND(E137=0,F137=0)+OR(+AND(E137=0,G137=0))+OR(+AND(F137=0,G137=0)),"Axial",(+IF(+OR(E137=0,F137=0,G137=0),"Tangential","Oblique"))) -> Oblique | J137: 0.25 | K137: RED | L137: 0.4520672775 | M137: 13 | N137: 711.2 | O137: 482.7755906 | P137: 241.3877953 | Q137: 120.6938976
E138: 1 | F138: 4 | G138: 3 | H138: =$D$5*SQRT((($E138/$D$2)^2)+(($F138/$D$3)^2)+(($G138/$D$4)^2)) -> 248.0742526 | I138: =+IF(+AND(E138=0,F138=0)+OR(+AND(E138=0,G138=0))+OR(+AND(F138=0,G138=0)),"Axial",(+IF(+OR(E138=0,F138=0,G138=0),"Tangential","Oblique"))) -> Oblique | J138: 0.25 | K138: RED | L138: 0.7978515926 | M138: 13 | N138: 762 | O138: 450.5905512 | P138: 225.2952756 | Q138: 112.6476378
E139: 4 | F139: 5 | G139: 0 | H139: =$D$5*SQRT((($E139/$D$2)^2)+(($F139/$D$3)^2)+(($G139/$D$4)^2)) -> 248.3866684 | I139: =+IF(+AND(E139=0,F139=0)+OR(+AND(E139=0,G139=0))+OR(+AND(F139=0,G139=0)),"Axial",(+IF(+OR(E139=0,F139=0,G139=0),"Tangential","Oblique"))) -> Tangential | J139: 0.5 | K139: RED | L139: 0.3124157638 | M139: 13 | N139: 812.8 | O139: 422.4286417 | P139: 211.2143209 | Q139: 105.6071604
E140: 5 | F140: 0 | G140: 3 | H140: =$D$5*SQRT((($E140/$D$2)^2)+(($F140/$D$3)^2)+(($G140/$D$4)^2)) -> 248.5253112 | I140: =+IF(+AND(E140=0,F140=0)+OR(+AND(E140=0,G140=0))+OR(+AND(F140=0,G140=0)),"Axial",(+IF(+OR(E140=0,F140=0,G140=0),"Tangential","Oblique"))) -> Tangential | J140: 0.5 | K140: RED | L140: 0.1386428427 | M140: 13 | N140: 863.6 | O140: 397.5798981 | P140: 198.7899491 | Q140: 99.39497453
E141: 0 | F141: 6 | G141: 0 | H141: =$D$5*SQRT((($E141/$D$2)^2)+(($F141/$D$3)^2)+(($G141/$D$4)^2)) -> 249.2424696 | I141: =+IF(+AND(E141=0,F141=0)+OR(+AND(E141=0,G141=0))+OR(+AND(F141=0,G141=0)),"Axial",(+IF(+OR(E141=0,F141=0,G141=0),"Tangential","Oblique"))) -> Axial | J141: 1 | K141: RED | L141: 0.7171583174 | M141: 13 | N141: 914.4 | O141: 375.492126 | P141: 187.746063 | Q141: 93.8730315
E142: 7 | F142: 1 | G142: 1 | H142: =$D$5*SQRT((($E142/$D$2)^2)+(($F142/$D$3)^2)+(($G142/$D$4)^2)) -> 249.387222 | I142: =+IF(+AND(E142=0,F142=0)+OR(+AND(E142=0,G142=0))+OR(+AND(F142=0,G142=0)),"Axial",(+IF(+OR(E142=0,F142=0,G142=0),"Tangential","Oblique"))) -> Oblique | J142: 0.25 | K142: RED | L142: 0.144752451 | M142: 13 | N142: 965.2 | O142: 355.7293825 | P142: 177.8646913 | Q142: 88.93234563
E143: 2 | F143: 5 | G143: 2 | H143: =$D$5*SQRT((($E143/$D$2)^2)+(($F143/$D$3)^2)+(($G143/$D$4)^2)) -> 249.6881292 | I143: =+IF(+AND(E143=0,F143=0)+OR(+AND(E143=0,G143=0))+OR(+AND(F143=0,G143=0)),"Axial",(+IF(+OR(E143=0,F143=0,G143=0),"Tangential","Oblique"))) -> Oblique | J143: 0.25 | K143: RED | L143: 0.3009071609 | M143: 13 | N143: 1016 | O143: 337.9429134 | P143: 168.9714567 | Q143: 84.48572835
E144: 2 | F144: 0 | G144: 4 | H144: =$D$5*SQRT((($E144/$D$2)^2)+(($F144/$D$3)^2)+(($G144/$D$4)^2)) -> 250.7971765 | I144: =+IF(+AND(E144=0,F144=0)+OR(+AND(E144=0,G144=0))+OR(+AND(F144=0,G144=0)),"Axial",(+IF(+OR(E144=0,F144=0,G144=0),"Tangential","Oblique"))) -> Tangential | J144: 0.5 | K144: OK | L144: 1.109047341 | M144: 13 | N144: 1066.8 | O144: 321.8503937 | P144: 160.9251969 | Q144: 80.46259843
E145: 6 | F145: 2 | G145: 2 | H145: =$D$5*SQRT((($E145/$D$2)^2)+(($F145/$D$3)^2)+(($G145/$D$4)^2)) -> 251.431948 | I145: =+IF(+AND(E145=0,F145=0)+OR(+AND(E145=0,G145=0))+OR(+AND(F145=0,G145=0)),"Axial",(+IF(+OR(E145=0,F145=0,G145=0),"Tangential","Oblique"))) -> Oblique | J145: 0.25 | K145: RED | L145: 0.6347714524 | M145: 13 | N145: 1117.6 | O145: 307.2208304 | P145: 153.6104152 | Q145: 76.80520759
E146: 1 | F146: 6 | G146: 0 | H146: =$D$5*SQRT((($E146/$D$2)^2)+(($F146/$D$3)^2)+(($G146/$D$4)^2)) -> 251.5582351 | I146: =+IF(+AND(E146=0,F146=0)+OR(+AND(E146=0,G146=0))+OR(+AND(F146=0,G146=0)),"Axial",(+IF(+OR(E146=0,F146=0,G146=0),"Tangential","Oblique"))) -> Tangential | J146: 0.5 | K146: RED | L146: 0.1262871258 | M146: 13 | N146: 1168.4 | O146: 293.8634029 | P146: 146.9317015 | Q146: 73.46585074
E147: 5 | F147: 1 | G147: 3 | H147: =$D$5*SQRT((($E147/$D$2)^2)+(($F147/$D$3)^2)+(($G147/$D$4)^2)) -> 251.9730861 | I147: =+IF(+AND(E147=0,F147=0)+OR(+AND(E147=0,G147=0))+OR(+AND(F147=0,G147=0)),"Axial",(+IF(+OR(E147=0,F147=0,G147=0),"Tangential","Oblique"))) -> Oblique | J147: 0.25 | K147: RED | L147: 0.4148510186 | M147: 13 | N147: 1219.2 | O147: 281.6190945 | P147: 140.8095472 | Q147: 70.40477362
E148: 7 | F148: 2 | G148: 0 | H148: =$D$5*SQRT((($E148/$D$2)^2)+(($F148/$D$3)^2)+(($G148/$D$4)^2)) -> 252.4470968 | I148: =+IF(+AND(E148=0,F148=0)+OR(+AND(E148=0,G148=0))+OR(+AND(F148=0,G148=0)),"Axial",(+IF(+OR(E148=0,F148=0,G148=0),"Tangential","Oblique"))) -> Tangential | J148: 0.5 | K148: RED | L148: 0.4740106388 | M148: 13
E149: 2 | F149: 1 | G149: 4 | H149: =$D$5*SQRT((($E149/$D$2)^2)+(($F149/$D$3)^2)+(($G149/$D$4)^2)) -> 254.2141411 | I149: =+IF(+AND(E149=0,F149=0)+OR(+AND(E149=0,G149=0))+OR(+AND(F149=0,G149=0)),"Axial",(+IF(+OR(E149=0,F149=0,G149=0),"Tangential","Oblique"))) -> Oblique | J149: 0.25 | K149: OK | L149: 1.767044365 | M149: 13
E150: 2 | F150: 4 | G150: 3 | H150: =$D$5*SQRT((($E150/$D$2)^2)+(($F150/$D$3)^2)+(($G150/$D$4)^2)) -> 254.9902858 | I150: =+IF(+AND(E150=0,F150=0)+OR(+AND(E150=0,G150=0))+OR(+AND(F150=0,G150=0)),"Axial",(+IF(+OR(E150=0,F150=0,G150=0),"Tangential","Oblique"))) -> Oblique | J150: 0.25 | K150: RED | L150: 0.7761446819 | M150: 13
E151: 0 | F151: 2 | G151: 4 | H151: =$D$5*SQRT((($E151/$D$2)^2)+(($F151/$D$3)^2)+(($G151/$D$4)^2)) -> 255.269855 | I151: =+IF(+AND(E151=0,F151=0)+OR(+AND(E151=0,G151=0))+OR(+AND(F151=0,G151=0)),"Axial",(+IF(+OR(E151=0,F151=0,G151=0),"Tangential","Oblique"))) -> Tangential | J151: 0.5 | K151: RED | L151: 0.2795692391 | M151: 13
E152: 4 | F152: 5 | G152: 1 | H152: =$D$5*SQRT((($E152/$D$2)^2)+(($F152/$D$3)^2)+(($G152/$D$4)^2)) -> 255.6114322 | I152: =+IF(+AND(E152=0,F152=0)+OR(+AND(E152=0,G152=0))+OR(+AND(F152=0,G152=0)),"Axial",(+IF(+OR(E152=0,F152=0,G152=0),"Tangential","Oblique"))) -> Oblique | J152: 0.25 | K152: RED | L152: 0.3415771639 | M152: 13
E153: 0 | F153: 6 | G153: 1 | H153: =$D$5*SQRT((($E153/$D$2)^2)+(($F153/$D$3)^2)+(($G153/$D$4)^2)) -> 256.443124 | I153: =+IF(+AND(E153=0,F153=0)+OR(+AND(E153=0,G153=0))+OR(+AND(F153=0,G153=0)),"Axial",(+IF(+OR(E153=0,F153=0,G153=0),"Tangential","Oblique"))) -> Tangential | J153: 0.5 | K153: RED | L153: 0.8316918352 | M153: 13
E154: 1 | F154: 2 | G154: 4 | H154: =$D$5*SQRT((($E154/$D$2)^2)+(($F154/$D$3)^2)+(($G154/$D$4)^2)) -> 257.531427 | I154: =+IF(+AND(E154=0,F154=0)+OR(+AND(E154=0,G154=0))+OR(+AND(F154=0,G154=0)),"Axial",(+IF(+OR(E154=0,F154=0,G154=0),"Tangential","Oblique"))) -> Oblique | J154: 0.25 | K154: OK | L154: 1.088302979 | M154: 13
E155: 2 | F155: 6 | G155: 0 | H155: =$D$5*SQRT((($E155/$D$2)^2)+(($F155/$D$3)^2)+(($G155/$D$4)^2)) -> 258.38103 | I155: =+IF(+AND(E155=0,F155=0)+OR(+AND(E155=0,G155=0))+OR(+AND(F155=0,G155=0)),"Axial",(+IF(+OR(E155=0,F155=0,G155=0),"Tangential","Oblique"))) -> Tangential | J155: 0.5 | K155: RED | L155: 0.8496030018 | M155: 13
E156: 4 | F156: 3 | G156: 3 | H156: =$D$5*SQRT((($E156/$D$2)^2)+(($F156/$D$3)^2)+(($G156/$D$4)^2)) -> 258.5684617 | I156: =+IF(+AND(E156=0,F156=0)+OR(+AND(E156=0,G156=0))+OR(+AND(F156=0,G156=0)),"Axial",(+IF(+OR(E156=0,F156=0,G156=0),"Tangential","Oblique"))) -> Oblique | J156: 0.25 | K156: RED | L156: 0.1874317112 | M156: 13
E157: 1 | F157: 6 | G157: 1 | H157: =$D$5*SQRT((($E157/$D$2)^2)+(($F157/$D$3)^2)+(($G157/$D$4)^2)) -> 258.6944392 | I157: =+IF(+AND(E157=0,F157=0)+OR(+AND(E157=0,G157=0))+OR(+AND(F157=0,G157=0)),"Axial",(+IF(+OR(E157=0,F157=0,G157=0),"Tangential","Oblique"))) -> Oblique | J157: 0.25 | K157: RED | L157: 0.1259774762 | M157: 13
E158: 7 | F158: 2 | G158: 1 | H158: =$D$5*SQRT((($E158/$D$2)^2)+(($F158/$D$3)^2)+(($G158/$D$4)^2)) -> 259.558864 | I158: =+IF(+AND(E158=0,F158=0)+OR(+AND(E158=0,G158=0))+OR(+AND(F158=0,G158=0)),"Axial",(+IF(+OR(E158=0,F158=0,G158=0),"Tangential","Oblique"))) -> Oblique | J158: 0.25 | K158: RED | L158: 0.8644248128 | M158: 13
E159: 3 | F159: 5 | G159: 2 | H159: =$D$5*SQRT((($E159/$D$2)^2)+(($F159/$D$3)^2)+(($G159/$D$4)^2)) -> 261.0418489 | I159: =+IF(+AND(E159=0,F159=0)+OR(+AND(E159=0,G159=0))+OR(+AND(F159=0,G159=0)),"Axial",(+IF(+OR(E159=0,F159=0,G159=0),"Tangential","Oblique"))) -> Oblique | J159: 0.25 | K159: OK | L159: 1.482984925 | M159: 13
E160: 5 | F160: 2 | G160: 3 | H160: =$D$5*SQRT((($E160/$D$2)^2)+(($F160/$D$3)^2)+(($G160/$D$4)^2)) -> 262.0443732 | I160: =+IF(+AND(E160=0,F160=0)+OR(+AND(E160=0,G160=0))+OR(+AND(F160=0,G160=0)),"Axial",(+IF(+OR(E160=0,F160=0,G160=0),"Tangential","Oblique"))) -> Oblique | J160: 0.25 | K160: OK | L160: 1.002524229 | M160: 13
E161: 3 | F161: 0 | G161: 4 | H161: =$D$5*SQRT((($E161/$D$2)^2)+(($F161/$D$3)^2)+(($G161/$D$4)^2)) -> 262.1028592 | I161: =+IF(+AND(E161=0,F161=0)+OR(+AND(E161=0,G161=0))+OR(+AND(F161=0,G161=0)),"Axial",(+IF(+OR(E161=0,F161=0,G161=0),"Tangential","Oblique"))) -> Tangential | J161: 0.5 | K161: RED | L161: 0.05848602028 | M161: 13
E162: 6 | F162: 4 | G162: 0 | H162: =$D$5*SQRT((($E162/$D$2)^2)+(($F162/$D$3)^2)+(($G162/$D$4)^2)) -> 263.3632949 | I162: =+IF(+AND(E162=0,F162=0)+OR(+AND(E162=0,G162=0))+OR(+AND(F162=0,G162=0)),"Axial",(+IF(+OR(E162=0,F162=0,G162=0),"Tangential","Oblique"))) -> Tangential | J162: 0.5 | K162: OK | L162: 1.260435661 | M162: 13
E163: 2 | F163: 2 | G163: 4 | H163: =$D$5*SQRT((($E163/$D$2)^2)+(($F163/$D$3)^2)+(($G163/$D$4)^2)) -> 264.2000131 | I163: =+IF(+AND(E163=0,F163=0)+OR(+AND(E163=0,G163=0))+OR(+AND(F163=0,G163=0)),"Axial",(+IF(+OR(E163=0,F163=0,G163=0),"Tangential","Oblique"))) -> Oblique | J163: 0.25 | K163: RED | L163: 0.8367182607 | M163: 13
E164: 2 | F164: 6 | G164: 1 | H164: =$D$5*SQRT((($E164/$D$2)^2)+(($F164/$D$3)^2)+(($G164/$D$4)^2)) -> 265.3337971 | I164: =+IF(+AND(E164=0,F164=0)+OR(+AND(E164=0,G164=0))+OR(+AND(F164=0,G164=0)),"Axial",(+IF(+OR(E164=0,F164=0,G164=0),"Tangential","Oblique"))) -> Oblique | J164: 0.25 | K164: OK | L164: 1.133784025 | M164: 13
E165: 3 | F165: 1 | G165: 4 | H165: =$D$5*SQRT((($E165/$D$2)^2)+(($F165/$D$3)^2)+(($G165/$D$4)^2)) -> 265.3742915 | I165: =+IF(+AND(E165=0,F165=0)+OR(+AND(E165=0,G165=0))+OR(+AND(F165=0,G165=0)),"Axial",(+IF(+OR(E165=0,F165=0,G165=0),"Tangential","Oblique"))) -> Oblique | J165: 0.25 | K165: RED | L165: 0.04049436621 | M165: 13
E166: 3 | F166: 4 | G166: 3 | H166: =$D$5*SQRT((($E166/$D$2)^2)+(($F166/$D$3)^2)+(($G166/$D$4)^2)) -> 266.1178891 | I166: =+IF(+AND(E166=0,F166=0)+OR(+AND(E166=0,G166=0))+OR(+AND(F166=0,G166=0)),"Axial",(+IF(+OR(E166=0,F166=0,G166=0),"Tangential","Oblique"))) -> Oblique | J166: 0.25 | K166: RED | L166: 0.7435975963 | M166: 13
E167: 5 | F167: 4 | G167: 2 | H167: =$D$5*SQRT((($E167/$D$2)^2)+(($F167/$D$3)^2)+(($G167/$D$4)^2)) -> 266.7736623 | I167: =+IF(+AND(E167=0,F167=0)+OR(+AND(E167=0,G167=0))+OR(+AND(F167=0,G167=0)),"Axial",(+IF(+OR(E167=0,F167=0,G167=0),"Tangential","Oblique"))) -> Oblique | J167: 0.25 | K167: RED | L167: 0.6557731973 | M167: 13
E168: 7 | F168: 0 | G168: 2 | H168: =$D$5*SQRT((($E168/$D$2)^2)+(($F168/$D$3)^2)+(($G168/$D$4)^2)) -> 267.1931556 | I168: =+IF(+AND(E168=0,F168=0)+OR(+AND(E168=0,G168=0))+OR(+AND(F168=0,G168=0)),"Axial",(+IF(+OR(E168=0,F168=0,G168=0),"Tangential","Oblique"))) -> Tangential | J168: 0.5 | K168: RED | L168: 0.4194933089 | M168: 13
E169: 6 | F169: 3 | G169: 2 | H169: =$D$5*SQRT((($E169/$D$2)^2)+(($F169/$D$3)^2)+(($G169/$D$4)^2)) -> 268.0411413 | I169: =+IF(+AND(E169=0,F169=0)+OR(+AND(E169=0,G169=0))+OR(+AND(F169=0,G169=0)),"Axial",(+IF(+OR(E169=0,F169=0,G169=0),"Tangential","Oblique"))) -> Oblique | J169: 0.25 | K169: RED | L169: 0.8479857039 | M169: 13
E170: 5 | F170: 5 | G170: 0 | H170: =$D$5*SQRT((($E170/$D$2)^2)+(($F170/$D$3)^2)+(($G170/$D$4)^2)) -> 268.5769352 | I170: =+IF(+AND(E170=0,F170=0)+OR(+AND(E170=0,G170=0))+OR(+AND(F170=0,G170=0)),"Axial",(+IF(+OR(E170=0,F170=0,G170=0),"Tangential","Oblique"))) -> Tangential | J170: 0.5 | K170: RED | L170: 0.5357938996 | M170: 13
E171: 7 | F171: 3 | G171: 0 | H171: =$D$5*SQRT((($E171/$D$2)^2)+(($F171/$D$3)^2)+(($G171/$D$4)^2)) -> 268.9936163 | I171: =+IF(+AND(E171=0,F171=0)+OR(+AND(E171=0,G171=0))+OR(+AND(F171=0,G171=0)),"Axial",(+IF(+OR(E171=0,F171=0,G171=0),"Tangential","Oblique"))) -> Tangential | J171: 0.5 | K171: RED | L171: 0.4166811345 | M171: 13
E172: 3 | F172: 6 | G172: 0 | H172: =$D$5*SQRT((($E172/$D$2)^2)+(($F172/$D$3)^2)+(($G172/$D$4)^2)) -> 269.3685982 | I172: =+IF(+AND(E172=0,F172=0)+OR(+AND(E172=0,G172=0))+OR(+AND(F172=0,G172=0)),"Axial",(+IF(+OR(E172=0,F172=0,G172=0),"Tangential","Oblique"))) -> Tangential | J172: 0.5 | K172: RED | L172: 0.3749819003 | M172: 13
E173: 6 | F173: 4 | G173: 1 | H173: =$D$5*SQRT((($E173/$D$2)^2)+(($F173/$D$3)^2)+(($G173/$D$4)^2)) -> 270.1878834 | I173: =+IF(+AND(E173=0,F173=0)+OR(+AND(E173=0,G173=0))+OR(+AND(F173=0,G173=0)),"Axial",(+IF(+OR(E173=0,F173=0,G173=0),"Tangential","Oblique"))) -> Oblique | J173: 0.25 | K173: RED | L173: 0.8192851015 | M173: 13
E174: 7 | F174: 1 | G174: 2 | H174: =$D$5*SQRT((($E174/$D$2)^2)+(($F174/$D$3)^2)+(($G174/$D$4)^2)) -> 270.4030107 | I174: =+IF(+AND(E174=0,F174=0)+OR(+AND(E174=0,G174=0))+OR(+AND(F174=0,G174=0)),"Axial",(+IF(+OR(E174=0,F174=0,G174=0),"Tangential","Oblique"))) -> Oblique | J174: 0.25 | K174: RED | L174: 0.2151273587 | M174: 13
E175: 0 | F175: 3 | G175: 4 | H175: =$D$5*SQRT((($E175/$D$2)^2)+(($F175/$D$3)^2)+(($G175/$D$4)^2)) -> 271.644488 | I175: =+IF(+AND(E175=0,F175=0)+OR(+AND(E175=0,G175=0))+OR(+AND(F175=0,G175=0)),"Axial",(+IF(+OR(E175=0,F175=0,G175=0),"Tangential","Oblique"))) -> Tangential | J175: 0.5 | K175: OK | L175: 1.241477306 | M175: 13
E176: 8 | F176: 0 | G176: 0 | H176: =$D$5*SQRT((($E176/$D$2)^2)+(($F176/$D$3)^2)+(($G176/$D$4)^2)) -> 272.4392935 | I176: =+IF(+AND(E176=0,F176=0)+OR(+AND(E176=0,G176=0))+OR(+AND(F176=0,G176=0)),"Axial",(+IF(+OR(E176=0,F176=0,G176=0),"Tangential","Oblique"))) -> Axial | J176: 1 | K176: RED | L176: 0.79480545 | M176: 13
E177: 6 | F177: 0 | G177: 3 | H177: =$D$5*SQRT((($E177/$D$2)^2)+(($F177/$D$3)^2)+(($G177/$D$4)^2)) -> 272.9870646 | I177: =+IF(+AND(E177=0,F177=0)+OR(+AND(E177=0,G177=0))+OR(+AND(F177=0,G177=0)),"Axial",(+IF(+OR(E177=0,F177=0,G177=0),"Tangential","Oblique"))) -> Tangential | J177: 0.5 | K177: RED | L177: 0.547771133 | M177: 13
E178: 1 | F178: 3 | G178: 4 | H178: =$D$5*SQRT((($E178/$D$2)^2)+(($F178/$D$3)^2)+(($G178/$D$4)^2)) -> 273.7708255 | I178: =+IF(+AND(E178=0,F178=0)+OR(+AND(E178=0,G178=0))+OR(+AND(F178=0,G178=0)),"Axial",(+IF(+OR(E178=0,F178=0,G178=0),"Tangential","Oblique"))) -> Oblique | J178: 0.25 | K178: RED | L178: 0.7837608723 | M178: 13
E179: 3 | F179: 2 | G179: 4 | H179: =$D$5*SQRT((($E179/$D$2)^2)+(($F179/$D$3)^2)+(($G179/$D$4)^2)) -> 274.9551454 | I179: =+IF(+AND(E179=0,F179=0)+OR(+AND(E179=0,G179=0))+OR(+AND(F179=0,G179=0)),"Axial",(+IF(+OR(E179=0,F179=0,G179=0),"Tangential","Oblique"))) -> Oblique | J179: 0.25 | K179: OK | L179: 1.184319925 | M179: 13
E180: 5 | F180: 5 | G180: 1 | H180: =$D$5*SQRT((($E180/$D$2)^2)+(($F180/$D$3)^2)+(($G180/$D$4)^2)) -> 275.2722968 | I180: =+IF(+AND(E180=0,F180=0)+OR(+AND(E180=0,G180=0))+OR(+AND(F180=0,G180=0)),"Axial",(+IF(+OR(E180=0,F180=0,G180=0),"Tangential","Oblique"))) -> Oblique | J180: 0.25 | K180: RED | L180: 0.3171513593 | M180: 13
E181: 0 | F181: 5 | G181: 3 | H181: =$D$5*SQRT((($E181/$D$2)^2)+(($F181/$D$3)^2)+(($G181/$D$4)^2)) -> 275.5205074 | I181: =+IF(+AND(E181=0,F181=0)+OR(+AND(E181=0,G181=0))+OR(+AND(F181=0,G181=0)),"Axial",(+IF(+OR(E181=0,F181=0,G181=0),"Tangential","Oblique"))) -> Tangential | J181: 0.5 | K181: RED | L181: 0.2482105984 | M181: 13
E182: 8 | F182: 1 | G182: 0 | H182: =$D$5*SQRT((($E182/$D$2)^2)+(($F182/$D$3)^2)+(($G182/$D$4)^2)) -> 275.588052 | I182: =+IF(+AND(E182=0,F182=0)+OR(+AND(E182=0,G182=0))+OR(+AND(F182=0,G182=0)),"Axial",(+IF(+OR(E182=0,F182=0,G182=0),"Tangential","Oblique"))) -> Tangential | J182: 0.5 | K182: RED | L182: 0.06754467189 | M182: 13
E183: 7 | F183: 3 | G183: 1 | H183: =$D$5*SQRT((($E183/$D$2)^2)+(($F183/$D$3)^2)+(($G183/$D$4)^2)) -> 275.6788582 | I183: =+IF(+AND(E183=0,F183=0)+OR(+AND(E183=0,G183=0))+OR(+AND(F183=0,G183=0)),"Axial",(+IF(+OR(E183=0,F183=0,G183=0),"Tangential","Oblique"))) -> Oblique | J183: 0.25 | K183: RED | L183: 0.09080619219 | M183: 13
E184: 3 | F184: 6 | G184: 1 | H184: =$D$5*SQRT((($E184/$D$2)^2)+(($F184/$D$3)^2)+(($G184/$D$4)^2)) -> 276.044759 | I184: =+IF(+AND(E184=0,F184=0)+OR(+AND(E184=0,G184=0))+OR(+AND(F184=0,G184=0)),"Axial",(+IF(+OR(E184=0,F184=0,G184=0),"Tangential","Oblique"))) -> Oblique | J184: 0.25 | K184: RED | L184: 0.3659007518 | M184: 13
E185: 6 | F185: 1 | G185: 3 | H185: =$D$5*SQRT((($E185/$D$2)^2)+(($F185/$D$3)^2)+(($G185/$D$4)^2)) -> 276.1295769 | I185: =+IF(+AND(E185=0,F185=0)+OR(+AND(E185=0,G185=0))+OR(+AND(F185=0,G185=0)),"Axial",(+IF(+OR(E185=0,F185=0,G185=0),"Tangential","Oblique"))) -> Oblique | J185: 0.25 | K185: RED | L185: 0.08481792038 | M185: 13
E186: 4 | F186: 5 | G186: 2 | H186: =$D$5*SQRT((($E186/$D$2)^2)+(($F186/$D$3)^2)+(($G186/$D$4)^2)) -> 276.1539534 | I186: =+IF(+AND(E186=0,F186=0)+OR(+AND(E186=0,G186=0))+OR(+AND(F186=0,G186=0)),"Axial",(+IF(+OR(E186=0,F186=0,G186=0),"Tangential","Oblique"))) -> Oblique | J186: 0.25 | K186: RED | L186: 0.02437649282 | M186: 13
E187: 0 | F187: 6 | G187: 2 | H187: =$D$5*SQRT((($E187/$D$2)^2)+(($F187/$D$3)^2)+(($G187/$D$4)^2)) -> 276.9239563 | I187: =+IF(+AND(E187=0,F187=0)+OR(+AND(E187=0,G187=0))+OR(+AND(F187=0,G187=0)),"Axial",(+IF(+OR(E187=0,F187=0,G187=0),"Tangential","Oblique"))) -> Tangential | J187: 0.5 | K187: RED | L187: 0.7700028986 | M187: 13
E188: 4 | F188: 0 | G188: 4 | H188: =$D$5*SQRT((($E188/$D$2)^2)+(($F188/$D$3)^2)+(($G188/$D$4)^2)) -> 277.1571177 | I188: =+IF(+AND(E188=0,F188=0)+OR(+AND(E188=0,G188=0))+OR(+AND(F188=0,G188=0)),"Axial",(+IF(+OR(E188=0,F188=0,G188=0),"Tangential","Oblique"))) -> Tangential | J188: 0.5 | K188: RED | L188: 0.2331613727 | M188: 13
E189: 1 | F189: 5 | G189: 3 | H189: =$D$5*SQRT((($E189/$D$2)^2)+(($F189/$D$3)^2)+(($G189/$D$4)^2)) -> 277.617159 | I189: =+IF(+AND(E189=0,F189=0)+OR(+AND(E189=0,G189=0))+OR(+AND(F189=0,G189=0)),"Axial",(+IF(+OR(E189=0,F189=0,G189=0),"Tangential","Oblique"))) -> Oblique | J189: 0.25 | K189: RED | L189: 0.4600413656 | M189: 13
E190: 5 | F190: 3 | G190: 3 | H190: =$D$5*SQRT((($E190/$D$2)^2)+(($F190/$D$3)^2)+(($G190/$D$4)^2)) -> 278.0202915 | I190: =+IF(+AND(E190=0,F190=0)+OR(+AND(E190=0,G190=0))+OR(+AND(F190=0,G190=0)),"Axial",(+IF(+OR(E190=0,F190=0,G190=0),"Tangential","Oblique"))) -> Oblique | J190: 0.25 | K190: RED | L190: 0.403132487 | M190: 13
E191: 1 | F191: 6 | G191: 2 | H191: =$D$5*SQRT((($E191/$D$2)^2)+(($F191/$D$3)^2)+(($G191/$D$4)^2)) -> 279.0100618 | I191: =+IF(+AND(E191=0,F191=0)+OR(+AND(E191=0,G191=0))+OR(+AND(F191=0,G191=0)),"Axial",(+IF(+OR(E191=0,F191=0,G191=0),"Tangential","Oblique"))) -> Oblique | J191: 0.25 | K191: RED | L191: 0.9897702693 | M191: 13
E192: 8 | F192: 0 | G192: 1 | H192: =$D$5*SQRT((($E192/$D$2)^2)+(($F192/$D$3)^2)+(($G192/$D$4)^2)) -> 279.0419966 | I192: =+IF(+AND(E192=0,F192=0)+OR(+AND(E192=0,G192=0))+OR(+AND(F192=0,G192=0)),"Axial",(+IF(+OR(E192=0,F192=0,G192=0),"Tangential","Oblique"))) -> Tangential | J192: 0.5 | K192: RED | L192: 0.03193480467 | M192: 13
E193: 7 | F193: 2 | G193: 2 | H193: =$D$5*SQRT((($E193/$D$2)^2)+(($F193/$D$3)^2)+(($G193/$D$4)^2)) -> 279.8117324 | I193: =+IF(+AND(E193=0,F193=0)+OR(+AND(E193=0,G193=0))+OR(+AND(F193=0,G193=0)),"Axial",(+IF(+OR(E193=0,F193=0,G193=0),"Tangential","Oblique"))) -> Oblique | J193: 0.25 | K193: RED | L193: 0.7697358161 | M193: 13
E194: 2 | F194: 3 | G194: 4 | H194: =$D$5*SQRT((($E194/$D$2)^2)+(($F194/$D$3)^2)+(($G194/$D$4)^2)) -> 280.0529877 | I194: =+IF(+AND(E194=0,F194=0)+OR(+AND(E194=0,G194=0))+OR(+AND(F194=0,G194=0)),"Axial",(+IF(+OR(E194=0,F194=0,G194=0),"Tangential","Oblique"))) -> Oblique | J194: 0.25 | K194: RED | L194: 0.2412552825 | M194: 13
E195: 4 | F195: 1 | G195: 4 | H195: =$D$5*SQRT((($E195/$D$2)^2)+(($F195/$D$3)^2)+(($G195/$D$4)^2)) -> 280.2528745 | I195: =+IF(+AND(E195=0,F195=0)+OR(+AND(E195=0,G195=0))+OR(+AND(F195=0,G195=0)),"Axial",(+IF(+OR(E195=0,F195=0,G195=0),"Tangential","Oblique"))) -> Oblique | J195: 0.25 | K195: RED | L195: 0.199886814 | M195: 13
E196: 4 | F196: 4 | G196: 3 | H196: =$D$5*SQRT((($E196/$D$2)^2)+(($F196/$D$3)^2)+(($G196/$D$4)^2)) -> 280.9570963 | I196: =+IF(+AND(E196=0,F196=0)+OR(+AND(E196=0,G196=0))+OR(+AND(F196=0,G196=0)),"Axial",(+IF(+OR(E196=0,F196=0,G196=0),"Tangential","Oblique"))) -> Oblique | J196: =IF(I196="Axial",1,IF(I196="Tangential",0.5,IF(I196="Oblique",0.25,""))) -> 0.25 | K196: RED | L196: 0.7042218216 | M196: =IF(H196<17.8,1,IF(H196<=22.4,2,IF(H196<=28.2,3,IF(H196<=35.5,4,IF(H196<=44.7,5,IF(H196<=56.2,6,IF(H196<=70.8,7,IF(H196<=89.1,8,IF(H196<=112,9,IF(H196<=141,10,IF(H196<=178,11,IF(H196<=224,12,IF(H196<=282,13,IF(H196<=355,14,IF(H196<=447,15,IF(H196<=562,16,IF(H196<=708,17,IF(H196<=891,18,IF(H196<=1122,19,IF(H196<=1413,20,IF(H196<=1778,21,IF(H196<=2239,22,IF(H196<=2818,23,IF(H196<=3548,24,IF(H196<=4467,25,IF(H196<=5623,26,IF(H196<=7079,27,IF(H196<=8913,28,IF(H196<=11220,29,IF(H196<=14130,30,IF(H196<=17780,31,IF(H196<=22390,32,)))))))))))))))))))))))))))))))) -> 13
E197: 8 | F197: 1 | G197: 1 | H197: =$D$5*SQRT((($E197/$D$2)^2)+(($F197/$D$3)^2)+(($G197/$D$4)^2)) -> 282.1170708 | I197: =+IF(+AND(E197=0,F197=0)+OR(+AND(E197=0,G197=0))+OR(+AND(F197=0,G197=0)),"Axial",(+IF(+OR(E197=0,F197=0,G197=0),"Tangential","Oblique"))) -> Oblique | J197: 0.25 | K197: =IF((H197-H196)<1,"RED","OK") -> OK | L197: =H197-H196 -> 1.159974511 | M197: 14
E198: 2 | F198: 5 | G198: 3 | H198: =$D$5*SQRT((($E198/$D$2)^2)+(($F198/$D$3)^2)+(($G198/$D$4)^2)) -> 283.8141963 | I198: =+IF(+AND(E198=0,F198=0)+OR(+AND(E198=0,G198=0))+OR(+AND(F198=0,G198=0)),"Axial",(+IF(+OR(E198=0,F198=0,G198=0),"Tangential","Oblique"))) -> Oblique | J198: 0.25 | K198: OK | L198: 1.697125457 | M198: 14
E199: 4 | F199: 6 | G199: 0 | H199: =$D$5*SQRT((($E199/$D$2)^2)+(($F199/$D$3)^2)+(($G199/$D$4)^2)) -> 284.038027 | I199: =+IF(+AND(E199=0,F199=0)+OR(+AND(E199=0,G199=0))+OR(+AND(F199=0,G199=0)),"Axial",(+IF(+OR(E199=0,F199=0,G199=0),"Tangential","Oblique"))) -> Tangential | J199: 0.5 | K199: RED | L199: 0.2238307331 | M199: 14
E200: 8 | F200: 2 | G200: 0 | H200: =$D$5*SQRT((($E200/$D$2)^2)+(($F200/$D$3)^2)+(($G200/$D$4)^2)) -> 284.8255463 | I200: =+IF(+AND(E200=0,F200=0)+OR(+AND(E200=0,G200=0))+OR(+AND(F200=0,G200=0)),"Axial",(+IF(+OR(E200=0,F200=0,G200=0),"Tangential","Oblique"))) -> Tangential | J200: 0.5 | K200: RED | L200: 0.7875192501 | M200: 14
... 801 more rows

Sheet Mode Strength
A1: f | B1: Strength | C1: Interval ** | D1: No Support Alerts | E1: 0.5% Near Co-Incidence | H1: ** NOTE:
A2: 34.05491168 | B2: 1 | H2: IDEAL Interval should not be greater than 5.611807 | I2: 5.611807 | J2: 1 | K2: 0 | L2: =I2/50 -> 0.11223614
A3: 41.54041159 | B3: =IF(A3=A2,B2+1,1) -> 1 | C3: =((A3-A2)/A3)*100 -> 18.01980198 | D3: =IF(C3>I2,J2,K2) -> 1 | E3: =IF(C3<(A2*1.005)-(A2),J2,K2) -> 0 | I3: 5.611807 | J3: 1 | K3: 0 | L3: =I3/50 -> 0.11223614
A4: 53.71538704 | B4: =IF(A4=A3,B3+1,1) -> 1 | C4: =((A4-A3)/A4)*100 -> 22.66571297 | D4: 1 | E4: =IF(C4<(A3*1.005)-(A3),J3,K3) -> 0 | I4: 5.611807 | J4: 1 | K4: 0 | L4: 0.11223614
A5: 60.34291368 | B5: 1 | C5: 10.98310678 | D5: 1 | E5: 0 | I5: 5.611807 | J5: 1 | K5: 0 | L5: 0.11223614
A6: 68.10982337 | B6: 1 | C6: 11.40350877 | D6: 1 | E6: 0 | I6: 5.611807 | J6: 1 | K6: 0 | L6: 0.11223614
A7: 69.28927941 | B7: 1 | C7: 1.702220108 | D7: 0 | E7: 0 | I7: 5.611807 | J7: 1 | K7: 0 | L7: 0.11223614
A8: 73.25894503 | B8: 1 | C8: 5.41867702 | D8: 0 | E8: 0 | I8: 5.611807 | J8: 1 | K8: 0 | L8: 0.11223614
A9: 79.77815387 | B9: 1 | C9: 8.171671715 | D9: 1 | E9: 0 | I9: 5.611807 | J9: 1 | K9: 0 | L9: 0.11223614
A10: 80.78743737 | B10: 1 | C10: 1.249307488 | D10: 0 | E10: 0 | I10: 5.611807 | J10: 1 | K10: 0 | L10: 0.11223614
A11: 83.08082319 | B11: 1 | C11: 2.760427411 | D11: 0 | E11: 0 | I11: 5.611807 | J11: 1 | K11: 0 | L11: 0.11223614
A12: 89.78953275 | B12: 1 | C12: 7.471594245 | D12: 1 | E12: 0 | I12: 5.611807 | J12: 1 | K12: 0 | L12: 0.11223614
A13: 90.9956882 | B13: 1 | C13: 1.325508355 | D13: 0 | E13: 0 | I13: 5.611807 | J13: 1 | K13: 0 | L13: 0.11223614
A14: 100.0291011 | B14: 1 | C14: 9.03078484 | D14: 1 | E14: 0 | I14: 5.611807 | J14: 1 | K14: 0 | L14: 0.11223614
A15: 102.164735 | B15: 1 | C15: 2.090382705 | D15: 0 | E15: 0 | I15: 5.611807 | J15: 1 | K15: 0 | L15: 0.11223614
A16: 102.6824737 | B16: 1 | C16: 0.504213302 | D16: 0 | E16: 1 | I16: 5.611807 | J16: 1 | K16: 0 | L16: 0.11223614
A17: 107.4307741 | B17: 1 | C17: 4.419869805 | D17: 0 | E17: 0 | I17: 5.611807 | J17: 1 | K17: 0 | L17: 0.11223614
A18: 108.1823804 | B18: 1 | C18: 0.6947585044 | D18: 0 | E18: 0 | I18: 5.611807 | J18: 1 | K18: 0 | L18: 0.11223614
A19: 110.2870749 | B19: 1 | C19: 1.908378201 | D19: 0 | E19: 0 | I19: 5.611807 | J19: 1 | K19: 0 | L19: 0.11223614
A20: 118.6545419 | B20: 1 | C20: 7.051956816 | D20: 1 | E20: 0 | I20: 5.611807 | J20: 1 | K20: 0 | L20: 0.11223614
A21: 120.6858274 | B21: 1 | C21: 1.683118463 | D21: 0 | E21: 0 | I21: 5.611807 | J21: 1 | K21: 0 | L21: 0.11223614
A22: 123.2178496 | B22: 1 | C22: 2.054915104 | D22: 0 | E22: 0 | I22: 5.611807 | J22: 1 | K22: 0 | L22: 0.11223614
A23: 124.6212348 | B23: 1 | C23: 1.126120452 | D23: 0 | E23: 0 | I23: 5.611807 | J23: 1 | K23: 0 | L23: 0.11223614
A24: 125.3985883 | B24: 1 | C24: 0.6199060828 | D24: 0 | E24: 1 | I24: 5.611807 | J24: 1 | K24: 0 | L24: 0.11223614
A25: 125.715974 | B25: 1 | C25: 0.2524625282 | D25: 0 | E25: 1 | I25: 5.611807 | J25: 1 | K25: 0 | L25: 0.11223614
A26: 127.6349275 | B26: 1 | C26: 1.503470541 | D26: 0 | E26: 0 | I26: 5.611807 | J26: 1 | K26: 0 | L26: 0.11223614
A27: 129.190515 | B27: 1 | C27: 1.204103482 | D27: 0 | E27: 0 | I27: 5.611807 | J27: 1 | K27: 0 | L27: 0.11223614
A28: 131.6816474 | B28: 1 | C28: 1.891784062 | D28: 0 | E28: 0 | I28: 5.611807 | J28: 1 | K28: 0 | L28: 0.11223614
A29: 132.1000066 | B29: 1 | C29: 0.3166987961 | D29: 0 | E29: 1 | I29: 5.611807 | J29: 1 | K29: 0 | L29: 0.11223614
A30: 136.2196467 | B30: 1 | C30: 3.024262853 | D30: 0 | E30: 0 | I30: 5.611807 | J30: 1 | K30: 0 | L30: 0.11223614
A31: 138.4619781 | B31: 1 | C31: 1.61945643 | D31: 0 | E31: 0 | I31: 5.611807 | J31: 1 | K31: 0 | L31: 0.11223614
A32: 138.5785588 | B32: 1 | C32: 0.08412606348 | D32: 0 | E32: 1 | I32: 5.611807 | J32: 1 | K32: 0 | L32: 0.11223614
A33: 142.0190135 | B33: 1 | C33: 2.422531037 | D33: 0 | E33: 0 | I33: 5.611807 | J33: 1 | K33: 0 | L33: 0.11223614
A34: 142.4127731 | B34: 1 | C34: 0.2764917896 | D34: 0 | E34: 1 | I34: 5.611807 | J34: 1 | K34: 0 | L34: 0.11223614
A35: 142.5884161 | B35: 1 | C35: 0.1231817792 | D35: 0 | E35: 1 | I35: 5.611807 | J35: 1 | K35: 0 | L35: 0.11223614
A36: 144.6707391 | B36: 1 | C36: 1.439353298 | D36: 0 | E36: 0 | I36: 5.611807 | J36: 1 | K36: 0 | L36: 0.11223614
A37: 144.8493131 | B37: 1 | C37: 0.1232825659 | D37: 0 | E37: 1 | I37: 5.611807 | J37: 1 | K37: 0 | L37: 0.11223614
A38: 146.5178901 | B38: 1 | C38: 1.138821327 | D38: 0 | E38: 0 | I38: 5.611807 | J38: 1 | K38: 0 | L38: 0.11223614
A39: 148.9867759 | B39: 1 | C39: 1.65711742 | D39: 0 | E39: 0 | I39: 5.611807 | J39: 1 | K39: 0 | L39: 0.11223614
A40: 150.4234992 | B40: 1 | C40: 0.9551189472 | D40: 0 | E40: 0 | I40: 5.611807 | J40: 1 | K40: 0 | L40: 0.11223614
A41: 154.3070557 | B41: 1 | C41: 2.516771789 | D41: 0 | E41: 0 | I41: 5.611807 | J41: 1 | K41: 0 | L41: 0.11223614
A42: 154.6695354 | B42: 1 | C42: 0.2343575525 | D42: 0 | E42: 1 | I42: 5.611807 | J42: 1 | K42: 0 | L42: 0.11223614
A43: 158.1224273 | B43: 1 | C43: 2.183682575 | D43: 0 | E43: 0 | I43: 5.611807 | J43: 1 | K43: 0 | L43: 0.11223614 | Q43: If you found this spreadsheet helpful, please send a donation via PayPal to https://www.paypal.me/JHBrandt/
A44: 159.5563077 | B44: 1 | C44: 0.8986673444 | D44: 0 | E44: 0 | I44: 5.611807 | J44: 1 | K44: 0 | L44: 0.11223614
A45: 161.1461611 | B45: 1 | C45: 0.9865909207 | D45: 0 | E45: 0 | I45: 5.611807 | J45: 1 | K45: 0 | L45: 0.11223614
A46: 161.5748747 | B46: 1 | C46: 0.265334332 | D46: 0 | E46: 1 | I46: 5.611807 | J46: 1 | K46: 0 | L46: 0.11223614
A47: 163.4879439 | B47: 1 | C47: 1.170159182 | D47: 0 | E47: 0 | I47: 5.611807 | J47: 1 | K47: 0 | L47: 0.11223614
A48: 166.1616464 | B48: 1 | C48: 1.609097228 | D48: 0 | E48: 0 | I48: 5.611807 | J48: 1 | K48: 0 | L48: 0.11223614
A49: 169.6155351 | B49: 1 | C49: 2.036304452 | D49: 0 | E49: 0 | I49: 5.611807 | J49: 1 | K49: 0 | L49: 0.11223614
A50: 170.2745584 | B50: 1 | C50: 0.387035711 | D50: 0 | E50: 1 | I50: 5.611807 | J50: 1 | K50: 0 | L50: 0.11223614
A51: 170.5857045 | B51: 1 | C51: 0.1823986688 | D51: 0 | E51: 1 | I51: 5.611807 | J51: 1 | K51: 0 | L51: 0.11223614
A52: 172.0736833 | B52: 1 | C52: 0.8647335165 | D52: 0 | E52: 0 | I52: 5.611807 | J52: 1 | K52: 0 | L52: 0.11223614
A53: 173.4806072 | B53: 1 | C53: 0.8109978252 | D53: 0 | E53: 1 | I53: 5.611807 | J53: 1 | K53: 0 | L53: 0.11223614
A54: 175.2684542 | B54: 1 | C54: 1.02006204 | D54: 0 | E54: 0 | I54: 5.611807 | J54: 1 | K54: 0 | L54: 0.11223614
A55: 176.7794104 | B55: 1 | C55: 0.8547127975 | D55: 0 | E55: 1 | I55: 5.611807 | J55: 1 | K55: 0 | L55: 0.11223614
A56: 176.7915668 | B56: 1 | C56: 0.006876099538 | D56: 0 | E56: 1 | I56: 5.611807 | J56: 1 | K56: 0 | L56: 0.11223614
A57: 178.6200582 | B57: 1 | C57: 1.023676412 | D57: 0 | E57: 0 | I57: 5.611807 | J57: 1 | K57: 0 | L57: 0.11223614
A58: 179.5790655 | B58: 1 | C58: 0.5340306683 | D58: 0 | E58: 1 | I58: 5.611807 | J58: 1 | K58: 0 | L58: 0.11223614
A59: 180.0297113 | B59: 1 | C59: 0.250317487 | D59: 0 | E59: 1 | I59: 5.611807 | J59: 1 | K59: 0 | L59: 0.11223614
A60: 180.6507472 | B60: 1 | C60: 0.343777091 | D60: 0 | E60: 1 | I60: 5.611807 | J60: 1 | K60: 0 | L60: 0.11223614
A61: 181.0287411 | B61: 1 | C61: 0.2088032089 | D61: 0 | E61: 1 | I61: 5.611807 | J61: 1 | K61: 0 | L61: 0.11223614
A62: 181.9913764 | B62: 1 | C62: 0.5289455827 | D62: 0 | E62: 1 | I62: 5.611807 | J62: 1 | K62: 0 | L62: 0.11223614
A63: 184.2040773 | B63: 1 | C63: 1.201222547 | D63: 0 | E63: 0 | I63: 5.611807 | J63: 1 | K63: 0 | L63: 0.11223614
A64: 184.6246038 | B64: 1 | C64: 0.2277737889 | D64: 0 | E64: 1 | I64: 5.611807 | J64: 1 | K64: 0 | L64: 0.11223614
A65: 185.3653103 | B65: 1 | C65: 0.3995928678 | D65: 0 | E65: 1 | I65: 5.611807 | J65: 1 | K65: 0 | L65: 0.11223614
A66: 185.7337096 | B66: 1 | C66: 0.1983480974 | D66: 0 | E66: 1 | I66: 5.611807 | J66: 1 | K66: 0 | L66: 0.11223614
A67: 186.3718571 | B67: 1 | C67: 0.342405514 | D67: =IF(C67>I66,J66,K66) -> 0 | E67: 1 | I67: 5.611807 | J67: 1 | K67: 0 | L67: =I67/50 -> 0.11223614
A68: 186.6720838 | B68: =IF(A68=A67,B67+1,1) -> 1 | C68: =((A68-A67)/A68)*100 -> 0.1608310681 | D68: 0 | E68: =IF(C68<(A67*1.005)-(A67),J67,K67) -> 1 | I68: 5.611807 | J68: 1 | K68: 0 | L68: 0.11223614
A69: 188.8299444 | B69: 1 | C69: 1.142753369 | D69: 0 | E69: 0 | I69: 5.611807 | J69: 1 | K69: 0 | L69: 0.11223614
A70: 189.4463196 | B70: 1 | C70: 0.3253561192 | D70: 0 | E70: 1 | I70: 5.611807 | J70: 1 | K70: 0 | L70: 0.11223614
A71: 189.4619973 | B71: 1 | C71: 0.008274875618 | D71: 0 | E71: 1 | I71: 5.611807 | J71: 1 | K71: 0 | L71: 0.11223614
A72: 193.4175616 | B72: 1 | C72: 2.045090545 | D72: 0 | E72: 0 | I72: 5.611807 | J72: 1 | K72: 0 | L72: 0.11223614
A73: 194.2357113 | B73: 1 | C73: 0.421214886 | D73: 0 | E73: 1 | I73: 5.611807 | J73: 1 | K73: 0 | L73: 0.11223614
A74: 195.0572373 | B74: 1 | C74: 0.4211717458 | D74: 0 | E74: 1 | I74: 5.611807 | J74: 1 | K74: 0 | L74: 0.11223614
A75: 197.8281045 | B75: 1 | C75: 1.400643861 | D75: 0 | E75: 0 | I75: 5.611807 | J75: 1 | K75: 0 | L75: 0.11223614
A76: 198.8394218 | B76: 1 | C76: 0.508610064 | D76: 0 | E76: 1 | I76: 5.611807 | J76: 1 | K76: 0 | L76: 0.11223614
A77: 199.1829015 | B77: 1 | C77: 0.1724443995 | D77: 0 | E77: 1 | I77: 5.611807 | J77: 1 | K77: 0 | L77: 0.11223614
A78: 200.0582022 | B78: 1 | C78: 0.4375229996 | D78: 0 | E78: 1 | I78: 5.611807 | J78: 1 | K78: 0 | L78: 0.11223614
A79: 201.3284733 | B79: 1 | C79: 0.6309446033 | D79: 0 | E79: 1 | I79: 5.611807 | J79: 1 | K79: 0 | L79: 0.11223614
A80: 202.0731681 | B80: 1 | C80: 0.3685273043 | D80: 0 | E80: 1 | I80: 5.611807 | J80: 1 | K80: 0 | L80: 0.11223614
A81: 204.1778466 | B81: 1 | C81: 1.030806483 | D81: 0 | E81: 0 | I81: 5.611807 | J81: 1 | K81: 0 | L81: 0.11223614
A82: 204.3294701 | B82: 1 | C82: 0.07420539434 | D82: 0 | E82: 1 | I82: 5.611807 | J82: 1 | K82: 0 | L82: 0.11223614
A83: 205.3649475 | B83: 1 | C83: 0.504213302 | D83: 0 | E83: 1 | I83: 5.611807 | J83: 1 | K83: 0 | L83: 0.11223614
A84: 207.702058 | B84: 1 | C84: 1.125222596 | D84: 0 | E84: 0 | I84: 5.611807 | J84: 1 | K84: 0 | L84: 0.11223614
A85: 207.8678382 | B85: 1 | C85: 0.07975272703 | D85: 0 | E85: 1 | I85: 5.611807 | J85: 1 | K85: 0 | L85: 0.11223614
A86: 208.169399 | B86: 1 | C86: 0.1448631367 | D86: 0 | E86: 1 | I86: 5.611807 | J86: 1 | K86: 0 | L86: 0.11223614
A87: 208.5093239 | B87: 1 | C87: 0.1630262454 | D87: 0 | E87: 1 | I87: 5.611807 | J87: 1 | K87: 0 | L87: 0.11223614
A88: 208.7067181 | B88: 1 | C88: 0.09457970367 | D88: 0 | E88: 1 | I88: 5.611807 | J88: 1 | K88: 0 | L88: 0.11223614
A89: 210.4753712 | B89: 1 | C89: 0.8403135922 | D89: 0 | E89: 1 | I89: 5.611807 | J89: 1 | K89: 0 | L89: 0.11223614
A90: 210.5060006 | B90: 1 | C90: 0.01455037559 | D90: 0 | E90: 1 | I90: 5.611807 | J90: 1 | K90: 0 | L90: 0.11223614
A91: 211.0068184 | B91: 1 | C91: 0.2373467063 | D91: 0 | E91: 1 | I91: 5.611807 | J91: 1 | K91: 0 | L91: 0.11223614
A92: 211.9779327 | B92: 1 | C92: 0.4581204996 | D92: 0 | E92: 1 | I92: 5.611807 | J92: 1 | K92: 0 | L92: 0.11223614
A93: 212.8006108 | B93: 1 | C93: 0.3865957322 | D93: 0 | E93: 1 | I93: 5.611807 | J93: 1 | K93: 0 | L93: 0.11223614
A94: 213.0535134 | B94: 1 | C94: 0.1187037932 | D94: 0 | E94: 1 | I94: 5.611807 | J94: 1 | K94: 0 | L94: 0.11223614
A95: 214.8615482 | B95: 1 | C95: 0.84148828 | D95: 0 | E95: 1 | I95: 5.611807 | J95: 1 | K95: 0 | L95: 0.11223614
A96: 216.290111 | B96: 1 | C96: 0.6604845797 | D96: 0 | E96: 1 | I96: 5.611807 | J96: 1 | K96: 0 | L96: 0.11223614
A97: 216.3647607 | B97: 1 | C97: 0.0345018038 | D97: 0 | E97: 1 | I97: 5.611807 | J97: 1 | K97: 0 | L97: 0.11223614
A98: 217.0654403 | B98: 1 | C98: 0.3227964639 | D98: 0 | E98: 1 | I98: 5.611807 | J98: 1 | K98: 0 | L98: 0.11223614
A99: 218.5842925 | B99: 1 | C99: 0.6948587943 | D99: 0 | E99: 1 | I99: 5.611807 | J99: 1 | K99: 0 | L99: 0.11223614
A100: 218.9546737 | B100: 1 | C100: 0.1691588414 | D100: 0 | E100: 1 | I100: 5.611807 | J100: 1 | K100: 0 | L100: 0.11223614
A101: 219.4655887 | B101: 1 | C101: 0.2327996139 | D101: 0 | E101: 1 | I101: 5.611807 | J101: 1 | K101: 0 | L101: 0.11223614
A102: 219.7768351 | B102: 1 | C102: 0.1416192809 | D102: 0 | E102: 1 | I102: 5.611807 | J102: 1 | K102: 0 | L102: 0.11223614
A103: 220.5704269 | B103: 1 | C103: 0.3597906831 | D103: 0 | E103: 1 | I103: 5.611807 | J103: 1 | K103: 0 | L103: 0.11223614
A104: 220.5741497 | B104: 1 | C104: 0.001687774288 | D104: 0 | E104: 1 | I104: 5.611807 | J104: 1 | K104: 0 | L104: 0.11223614
A105: 222.3996274 | B105: 1 | C105: 0.8208096643 | D105: 0 | E105: 1 | I105: 5.611807 | J105: 1 | K105: 0 | L105: 0.11223614
A106: 223.174264 | B106: 1 | C106: 0.3470994455 | D106: 0 | E106: 1 | I106: 5.611807 | J106: 1 | K106: 0 | L106: 0.11223614
A107: 223.8558942 | B107: 1 | C107: 0.304495073 | D107: 0 | E107: 1 | I107: 5.611807 | J107: 1 | K107: 0 | L107: 0.11223614
A108: 224.635076 | B108: 1 | C108: 0.3468655933 | D108: 0 | E108: 1 | I108: 5.611807 | J108: 1 | K108: 0 | L108: 0.11223614
A109: 226.5550645 | B109: 1 | C109: 0.8474710219 | D109: 0 | E109: 1 | I109: 5.611807 | J109: 1 | K109: 0 | L109: 0.11223614
A110: 226.7605789 | B110: 1 | C110: 0.09063058788 | D110: 0 | E110: 1 | I110: 5.611807 | J110: 1 | K110: 0 | L110: 0.11223614
A111: 228.6793011 | B111: 1 | C111: 0.8390449812 | D111: 0 | E111: 1 | I111: 5.611807 | J111: 1 | K111: 0 | L111: 0.11223614
A112: 229.3739191 | B112: 1 | C112: 0.3028321302 | D112: 0 | E112: 1 | I112: 5.611807 | J112: 1 | K112: 0 | L112: 0.11223614
A113: 230.08869 | B113: 1 | C113: 0.3106502051 | D113: 0 | E113: 1 | I113: 5.611807 | J113: 1 | K113: 0 | L113: 0.11223614
A114: 230.331941 | B114: 1 | C114: 0.1056088635 | D114: 0 | E114: 1 | I114: 5.611807 | J114: 1 | K114: 0 | L114: 0.11223614
A115: 231.4687408 | B115: 1 | C115: 0.4911245561 | D115: 0 | E115: 1 | I115: 5.611807 | J115: 1 | K115: 0 | L115: 0.11223614
A116: 237.3090839 | B116: 1 | C116: 2.461070156 | D116: 0 | E116: 0 | I116: 5.611807 | J116: 1 | K116: 0 | L116: 0.11223614
A117: 237.9140979 | B117: 1 | C117: 0.2542993603 | D117: 0 | E117: 1 | I117: 5.611807 | J117: 1 | K117: 0 | L117: 0.11223614
A118: 238.3843818 | B118: 1 | C118: 0.1972796615 | D118: 0 | E118: 1 | I118: 5.611807 | J118: 1 | K118: 0 | L118: 0.11223614
A119: 239.2050275 | B119: 1 | C119: 0.3430721235 | D119: 0 | E119: 1 | I119: 5.611807 | J119: 1 | K119: 0 | L119: 0.11223614
A120: 239.3344616 | B120: 1 | C120: 0.05408082487 | D120: 0 | E120: 1 | I120: 5.611807 | J120: 1 | K120: 0 | L120: 0.11223614
A121: 240.2190954 | B121: 1 | C121: 0.3682612473 | D121: 0 | E121: 1 | I121: 5.611807 | J121: 1 | K121: 0 | L121: 0.11223614
A122: 240.9174279 | B122: 1 | C122: 0.2898638279 | D122: 0 | E122: 1 | I122: 5.611807 | J122: 1 | K122: 0 | L122: 0.11223614
A123: 241.3081441 | B123: 1 | C123: 0.1619158845 | D123: 0 | E123: 1 | I123: 5.611807 | J123: 1 | K123: 0 | L123: 0.11223614
A124: 241.3716547 | B124: 1 | C124: 0.02631237055 | D124: 0 | E124: 1 | I124: 5.611807 | J124: 1 | K124: 0 | L124: 0.11223614
A125: 241.9766916 | B125: 1 | C125: 0.2500393115 | D125: 0 | E125: 1 | I125: 5.611807 | J125: 1 | K125: 0 | L125: 0.11223614
A126: 242.3623121 | B126: 1 | C126: 0.1591091126 | D126: 0 | E126: 1 | I126: 5.611807 | J126: 1 | K126: 0 | L126: 0.11223614
A127: 242.6210024 | B127: 1 | C127: 0.1066232181 | D127: 0 | E127: 1 | I127: 5.611807 | J127: 1 | K127: 0 | L127: 0.11223614
A128: 243.0821802 | B128: 1 | C128: 0.189720926 | D128: 0 | E128: 1 | I128: 5.611807 | J128: 1 | K128: 0 | L128: 0.11223614
A129: 243.7622053 | B129: 1 | C129: 0.2789706776 | D129: 0 | E129: 1 | I129: 5.611807 | J129: 1 | K129: 0 | L129: 0.11223614
A130: 244.9201533 | B130: 1 | C130: 0.4727859416 | D130: 0 | E130: 1 | I130: 5.611807 | J130: 1 | K130: 0 | L130: 0.11223614
A131: 245.4473166 | B131: 1 | C131: 0.2147765278 | D131: =IF(C131>I130,J130,K130) -> 0 | E131: 1 | I131: 5.611807 | J131: 1 | K131: 0 | L131: =I131/50 -> 0.11223614
A132: 245.7256556 | B132: =IF(A132=A131,B131+1,1) -> 1 | C132: =((A132-A131)/A132)*100 -> 0.1132722732 | D132: 0 | E132: =IF(C132<(A131*1.005)-(A131),J131,K131) -> 1 | I132: 5.611807 | J132: 1 | K132: 0 | L132: 0.11223614
A133: 245.9031938 | B133: 1 | C133: 0.07219840733 | D133: 0 | E133: 1 | I133: 5.611807 | J133: 1 | K133: 0 | L133: 0.11223614
A134: 246.4356991 | B134: 1 | C134: 0.2160828826 | D134: 0 | E134: 1 | I134: 5.611807 | J134: 1 | K134: 0 | L134: 0.11223614
A135: 246.8243338 | B135: 1 | C135: 0.1574539374 | D135: 0 | E135: 1 | I135: 5.611807 | J135: 1 | K135: 0 | L135: 0.11223614
A136: 247.276401 | B136: 1 | C136: 0.1828186093 | D136: 0 | E136: 1 | I136: 5.611807 | J136: 1 | K136: 0 | L136: 0.11223614
A137: 248.0742526 | B137: 1 | C137: 0.3216180575 | D137: 0 | E137: 1 | I137: 5.611807 | J137: 1 | K137: 0 | L137: 0.11223614
A138: 248.3866684 | B138: 1 | C138: 0.125777992 | D138: 0 | E138: 1 | I138: 5.611807 | J138: 1 | K138: 0 | L138: 0.11223614
A139: 248.5253112 | B139: 1 | C139: 0.05578620625 | D139: 0 | E139: 1 | I139: 5.611807 | J139: 1 | K139: 0 | L139: 0.11223614
A140: 249.2424696 | B140: 1 | C140: 0.2877351997 | D140: 0 | E140: 1 | I140: 5.611807 | J140: 1 | K140: 0 | L140: 0.11223614
A141: 249.387222 | B141: 1 | C141: 0.05804325092 | D141: 0 | E141: 1 | I141: 5.611807 | J141: 1 | K141: 0 | L141: 0.11223614
A142: 249.6881292 | B142: 1 | C142: 0.1205132026 | D142: 0 | E142: 1 | I142: 5.611807 | J142: 1 | K142: 0 | L142: 0.11223614
A143: 250.7971765 | B143: 1 | C143: 0.4422088622 | D143: 0 | E143: 1 | I143: 5.611807 | J143: 1 | K143: 0 | L143: 0.11223614
A144: 251.431948 | B144: 1 | C144: 0.2524625282 | D144: 0 | E144: 1 | I144: 5.611807 | J144: 1 | K144: 0 | L144: 0.11223614
A145: 251.5582351 | B145: 1 | C145: 0.05020194458 | D145: 0 | E145: 1 | I145: 5.611807 | J145: 1 | K145: 0 | L145: 0.11223614
A146: 251.9730861 | B146: 1 | C146: 0.1646410039 | D146: 0 | E146: 1 | I146: 5.611807 | J146: 1 | K146: 0 | L146: 0.11223614
A147: 252.4470968 | B147: 1 | C147: 0.1877663261 | D147: 0 | E147: 1 | I147: 5.611807 | J147: 1 | K147: 0 | L147: 0.11223614
A148: 254.2141411 | B148: 1 | C148: 0.6951007357 | D148: 0 | E148: 1 | I148: 5.611807 | J148: 1 | K148: 0 | L148: 0.11223614
A149: 254.9902858 | B149: 1 | C149: 0.3043820589 | D149: 0 | E149: 1 | I149: 5.611807 | J149: 1 | K149: 0 | L149: 0.11223614
A150: 255.269855 | B150: 1 | C150: 0.1095190966 | D150: 0 | E150: 1 | I150: 5.611807 | J150: 1 | K150: 0 | L150: 0.11223614
A151: 255.6114322 | B151: 1 | C151: 0.1336314112 | D151: 0 | E151: 1 | I151: 5.611807 | J151: 1 | K151: 0 | L151: 0.11223614
A152: 256.443124 | B152: 1 | C152: 0.3243182434 | D152: 0 | E152: 1 | I152: 5.611807 | J152: 1 | K152: 0 | L152: 0.11223614
A153: 257.531427 | B153: 1 | C153: 0.4225903578 | D153: 0 | E153: 1 | I153: 5.611807 | J153: 1 | K153: 0 | L153: 0.11223614
A154: 258.38103 | B154: 1 | C154: 0.3288178709 | D154: 0 | E154: 1 | I154: 5.611807 | J154: 1 | K154: 0 | L154: 0.11223614
A155: 258.5684617 | B155: 1 | C155: 0.07248823386 | D155: 0 | E155: 1 | I155: 5.611807 | J155: 1 | K155: 0 | L155: 0.11223614
A156: 258.6944392 | B156: 1 | C156: 0.04869740401 | D156: 0 | E156: 1 | I156: 5.611807 | J156: 1 | K156: 0 | L156: 0.11223614
A157: 259.558864 | B157: 1 | C157: 0.3330361365 | D157: 0 | E157: 1 | I157: 5.611807 | J157: 1 | K157: 0 | L157: 0.11223614
A158: 261.0418489 | B158: 1 | C158: 0.568102368 | D158: 0 | E158: 1 | I158: 5.611807 | J158: 1 | K158: 0 | L158: 0.11223614
A159: 262.0443732 | B159: 1 | C159: 0.382578041 | D159: 0 | E159: 1 | I159: 5.611807 | J159: 1 | K159: 0 | L159: 0.11223614
A160: 262.1028592 | B160: 1 | C160: 0.02231414814 | D160: 0 | E160: 1 | I160: 5.611807 | J160: 1 | K160: 0 | L160: 0.11223614
A161: 263.3632949 | B161: 1 | C161: 0.4785920005 | D161: 0 | E161: 1 | I161: 5.611807 | J161: 1 | K161: 0 | L161: 0.11223614
A162: 264.2000131 | B162: 1 | C162: 0.3166987961 | D162: 0 | E162: 1 | I162: 5.611807 | J162: 1 | K162: 0 | L162: 0.11223614
A163: 265.3337971 | B163: 1 | C163: 0.4273047901 | D163: 0 | E163: 1 | I163: 5.611807 | J163: 1 | K163: 0 | L163: 0.11223614
A164: 265.3742915 | B164: 1 | C164: 0.0152593403 | D164: 0 | E164: 1 | I164: 5.611807 | J164: 1 | K164: 0 | L164: 0.11223614
A165: 266.1178891 | B165: 1 | C165: 0.2794241299 | D165: 0 | E165: 1 | I165: 5.611807 | J165: 1 | K165: 0 | L165: 0.11223614
A166: 266.7736623 | B166: 1 | C166: 0.2458163192 | D166: 0 | E166: 1 | I166: 5.611807 | J166: 1 | K166: 0 | L166: 0.11223614
A167: 267.1931556 | B167: 1 | C167: 0.1570000204 | D167: 0 | E167: 1 | I167: 5.611807 | J167: 1 | K167: 0 | L167: 0.11223614
A168: 268.0411413 | B168: 1 | C168: 0.3163640103 | D168: 0 | E168: 1 | I168: 5.611807 | J168: 1 | K168: 0 | L168: 0.11223614
A169: 268.5769352 | B169: 1 | C169: 0.1994936383 | D169: 0 | E169: 1 | I169: 5.611807 | J169: 1 | K169: 0 | L169: 0.11223614
A170: 268.9936163 | B170: 1 | C170: 0.154903726 | D170: 0 | E170: 1 | I170: 5.611807 | J170: 1 | K170: 0 | L170: 0.11223614
A171: 269.3685982 | B171: 1 | C171: 0.1392077261 | D171: 0 | E171: 1 | I171: 5.611807 | J171: 1 | K171: 0 | L171: 0.11223614
A172: 270.1878834 | B172: 1 | C172: 0.303227921 | D172: 0 | E172: 1 | I172: 5.611807 | J172: 1 | K172: 0 | L172: 0.11223614
A173: 270.4030107 | B173: 1 | C173: 0.07955804862 | D173: 0 | E173: 1 | I173: 5.611807 | J173: 1 | K173: 0 | L173: 0.11223614
A174: 271.644488 | B174: 1 | C174: 0.4570228224 | D174: 0 | E174: 1 | I174: 5.611807 | J174: 1 | K174: 0 | L174: 0.11223614
A175: 272.4392935 | B175: 1 | C175: 0.2917367168 | D175: 0 | E175: 1 | I175: 5.611807 | J175: 1 | K175: 0 | L175: 0.11223614
A176: 272.9870646 | B176: 1 | C176: 0.2006582744 | D176: 0 | E176: 1 | I176: 5.611807 | J176: 1 | K176: 0 | L176: 0.11223614
A177: 273.7708255 | B177: 1 | C177: 0.2862835625 | D177: 0 | E177: 1 | I177: 5.611807 | J177: 1 | K177: 0 | L177: 0.11223614
A178: 274.9551454 | B178: 1 | C178: 0.4307320468 | D178: 0 | E178: 1 | I178: 5.611807 | J178: 1 | K178: 0 | L178: 0.11223614
A179: 275.2722968 | B179: 1 | C179: 0.1152136859 | D179: 0 | E179: 1 | I179: 5.611807 | J179: 1 | K179: 0 | L179: 0.11223614
A180: 275.5205074 | B180: 1 | C180: 0.0900878852 | D180: 0 | E180: 1 | I180: 5.611807 | J180: 1 | K180: 0 | L180: 0.11223614
A181: 275.588052 | B181: 1 | C181: 0.02450928892 | D181: 0 | E181: 1 | I181: 5.611807 | J181: 1 | K181: 0 | L181: 0.11223614
A182: 275.6788582 | B182: 1 | C182: 0.03293912082 | D182: 0 | E182: 1 | I182: 5.611807 | J182: 1 | K182: 0 | L182: 0.11223614
A183: 276.044759 | B183: 1 | C183: 0.1325512403 | D183: 0 | E183: 1 | I183: 5.611807 | J183: 1 | K183: 0 | L183: 0.11223614
A184: 276.1295769 | B184: 1 | C184: 0.03071670965 | D184: 0 | E184: 1 | I184: 5.611807 | J184: 1 | K184: 0 | L184: 0.11223614
A185: 276.1539534 | B185: 1 | C185: 0.008827138819 | D185: 0 | E185: 1 | I185: 5.611807 | J185: 1 | K185: 0 | L185: 0.11223614
A186: 276.9239563 | B186: 1 | C186: 0.2780557193 | D186: 0 | E186: 1 | I186: 5.611807 | J186: 1 | K186: 0 | L186: 0.11223614
A187: 277.1571177 | B187: 1 | C187: 0.08412606348 | D187: 0 | E187: 1 | I187: 5.611807 | J187: 1 | K187: 0 | L187: 0.11223614
A188: 277.617159 | B188: 1 | C188: 0.1657107101 | D188: 0 | E188: 1 | I188: 5.611807 | J188: 1 | K188: 0 | L188: 0.11223614
A189: 278.0202915 | B189: 1 | C189: 0.1450011022 | D189: 0 | E189: 1 | I189: 5.611807 | J189: 1 | K189: 0 | L189: 0.11223614
A190: 279.0100618 | B190: 1 | C190: 0.3547435755 | D190: 0 | E190: 1 | I190: 5.611807 | J190: 1 | K190: 0 | L190: 0.11223614
A191: 279.0419966 | B191: 1 | C191: 0.01144444387 | D191: 0 | E191: 1 | I191: 5.611807 | J191: 1 | K191: 0 | L191: 0.11223614
A192: 279.8117324 | B192: 1 | C192: 0.2750906152 | D192: 0 | E192: 1 | I192: 5.611807 | J192: 1 | K192: 0 | L192: 0.11223614
A193: 280.0529877 | B193: 1 | C193: 0.08614629842 | D193: 0 | E193: 1 | I193: 5.611807 | J193: 1 | K193: 0 | L193: 0.11223614
A194: 280.2528745 | B194: 1 | C194: 0.07132373374 | D194: 0 | E194: 1 | I194: 5.611807 | J194: 1 | K194: 0 | L194: 0.11223614
A195: 280.9570963 | B195: 1 | C195: 0.2506510178 | D195: =IF(C195>I194,J194,K194) -> 0 | E195: 1 | I195: 5.611807 | J195: 1 | K195: 0 | L195: =I195/50 -> 0.11223614
A196: 282.1170708 | B196: =IF(A196=A195,B195+1,1) -> 1 | C196: =((A196-A195)/A196)*100 -> 0.4111677848 | D196: 0 | E196: =IF(C196<(A195*1.005)-(A195),J195,K195) -> 1 | I196: 5.611807 | J196: 1 | K196: 0 | L196: 0.11223614
A197: 283.8141963 | B197: 1 | C197: 0.5979706016 | D197: 0 | E197: 1 | I197: 5.611807 | J197: 1 | K197: 0 | L197: 0.11223614
A198: 284.038027 | B198: 1 | C198: 0.07880308686 | D198: 0 | E198: 1 | I198: 5.611807 | J198: 1 | K198: 0 | L198: 0.11223614
A199: 284.8255463 | B199: 1 | C199: 0.2764917896 | D199: 0 | E199: 1 | I199: 5.611807 | J199: 1 | K199: 0 | L199: 0.11223614
A200: 285.1768322 | B200: 1 | C200: 0.1231817792 | D200: 0 | E200: 1 | I200: 5.611807 | J200: 1 | K200: 0 | L200: 0.11223614
... 800 more rows

Sheet Axial
C1: Axial Modes
A2: Lx = | B2: =+AllModes!D2 -> 16.56824147 | C2: nx | D2: ny | E2: nz | F2: f | G2: Type | H2: Spacing | J2: If you found this spreadsheet helpful, please send a donation via PayPal to https://www.paypal.me/JHBrandt/
A3: Ly = | B3: =+AllModes!D3 -> 13.58267717 | C3: 1 | D3: 0 | E3: 0 | F3: =$B$5*SQRT((($C3/$B$2)^2)+(($D3/$B$3)^2)+(($E3/$B$4)^2)) -> 34.10138614 | G3: =+IF(+AND(C3=0,D3=0)+OR(+AND(C3=0,E3=0))+OR(+AND(D3=0,E3=0)),"Axial",(+IF(+OR(C3=0,D3=0,E3=0),"Tangential","Oblique"))) -> Axial
A4: Lz = | B4: =+AllModes!D4 -> 9.350393701 | C4: 0 | D4: 1 | E4: 0 | F4: =$B$5*SQRT((($C4/$B$2)^2)+(($D4/$B$3)^2)+(($E4/$B$4)^2)) -> 41.59710145 | G4: =+IF(+AND(C4=0,D4=0)+OR(+AND(C4=0,E4=0))+OR(+AND(D4=0,E4=0)),"Axial",(+IF(+OR(C4=0,D4=0,E4=0),"Tangential","Oblique"))) -> Axial | H4: =F4-F3 -> 7.495715311
A5: c/2 = | B5: =1130/2 -> 565 | C5: 0 | D5: 0 | E5: 1 | F5: =$B$5*SQRT((($C5/$B$2)^2)+(($D5/$B$3)^2)+(($E5/$B$4)^2)) -> 60.42526316 | G5: =+IF(+AND(C5=0,D5=0)+OR(+AND(C5=0,E5=0))+OR(+AND(D5=0,E5=0)),"Axial",(+IF(+OR(C5=0,D5=0,E5=0),"Tangential","Oblique"))) -> Axial | H5: =F5-F4 -> 18.82816171
C6: 2 | D6: 0 | E6: 0 | F6: =$B$5*SQRT((($C6/$B$2)^2)+(($D6/$B$3)^2)+(($E6/$B$4)^2)) -> 68.20277228 | G6: =+IF(+AND(C6=0,D6=0)+OR(+AND(C6=0,E6=0))+OR(+AND(D6=0,E6=0)),"Axial",(+IF(+OR(C6=0,D6=0,E6=0),"Tangential","Oblique"))) -> Axial | H6: 7.777509119
A7: V = | B7: =B2*B3*B4 -> 2104.222651 | C7: 0 | D7: 2 | E7: 0 | F7: =$B$5*SQRT((($C7/$B$2)^2)+(($D7/$B$3)^2)+(($E7/$B$4)^2)) -> 83.1942029 | G7: =+IF(+AND(C7=0,D7=0)+OR(+AND(C7=0,E7=0))+OR(+AND(D7=0,E7=0)),"Axial",(+IF(+OR(C7=0,D7=0,E7=0),"Tangential","Oblique"))) -> Axial | H7: 14.99143062
C8: 3 | D8: 0 | E8: 0 | F8: =$B$5*SQRT((($C8/$B$2)^2)+(($D8/$B$3)^2)+(($E8/$B$4)^2)) -> 102.3041584 | G8: =+IF(+AND(C8=0,D8=0)+OR(+AND(C8=0,E8=0))+OR(+AND(D8=0,E8=0)),"Axial",(+IF(+OR(C8=0,D8=0,E8=0),"Tangential","Oblique"))) -> Axial | H8: 19.10995552
C9: 0 | D9: 0 | E9: 2 | F9: =$B$5*SQRT((($C9/$B$2)^2)+(($D9/$B$3)^2)+(($E9/$B$4)^2)) -> 120.8505263 | G9: =+IF(+AND(C9=0,D9=0)+OR(+AND(C9=0,E9=0))+OR(+AND(D9=0,E9=0)),"Axial",(+IF(+OR(C9=0,D9=0,E9=0),"Tangential","Oblique"))) -> Axial | H9: 18.5463679
C10: 0 | D10: 3 | E10: 0 | F10: =$B$5*SQRT((($C10/$B$2)^2)+(($D10/$B$3)^2)+(($E10/$B$4)^2)) -> 124.7913043 | G10: =+IF(+AND(C10=0,D10=0)+OR(+AND(C10=0,E10=0))+OR(+AND(D10=0,E10=0)),"Axial",(+IF(+OR(C10=0,D10=0,E10=0),"Tangential","Oblique"))) -> Axial | H10: 3.940778032
C11: 4 | D11: 0 | E11: 0 | F11: =$B$5*SQRT((($C11/$B$2)^2)+(($D11/$B$3)^2)+(($E11/$B$4)^2)) -> 136.4055446 | G11: =+IF(+AND(C11=0,D11=0)+OR(+AND(C11=0,E11=0))+OR(+AND(D11=0,E11=0)),"Axial",(+IF(+OR(C11=0,D11=0,E11=0),"Tangential","Oblique"))) -> Axial | H11: 11.61424021
C12: 0 | D12: 4 | E12: 0 | F12: =$B$5*SQRT((($C12/$B$2)^2)+(($D12/$B$3)^2)+(($E12/$B$4)^2)) -> 166.3884058 | G12: =+IF(+AND(C12=0,D12=0)+OR(+AND(C12=0,E12=0))+OR(+AND(D12=0,E12=0)),"Axial",(+IF(+OR(C12=0,D12=0,E12=0),"Tangential","Oblique"))) -> Axial | H12: 29.98286124
C13: 5 | D13: 0 | E13: 0 | F13: =$B$5*SQRT((($C13/$B$2)^2)+(($D13/$B$3)^2)+(($E13/$B$4)^2)) -> 170.5069307 | G13: =+IF(+AND(C13=0,D13=0)+OR(+AND(C13=0,E13=0))+OR(+AND(D13=0,E13=0)),"Axial",(+IF(+OR(C13=0,D13=0,E13=0),"Tangential","Oblique"))) -> Axial | H13: 4.118524896
C14: 0 | D14: 0 | E14: 3 | F14: =$B$5*SQRT((($C14/$B$2)^2)+(($D14/$B$3)^2)+(($E14/$B$4)^2)) -> 181.2757895 | G14: =+IF(+AND(C14=0,D14=0)+OR(+AND(C14=0,E14=0))+OR(+AND(D14=0,E14=0)),"Axial",(+IF(+OR(C14=0,D14=0,E14=0),"Tangential","Oblique"))) -> Axial | H14: 10.76885878
C15: 6 | D15: 0 | E15: 0 | F15: =$B$5*SQRT((($C15/$B$2)^2)+(($D15/$B$3)^2)+(($E15/$B$4)^2)) -> 204.6083168 | G15: =+IF(+AND(C15=0,D15=0)+OR(+AND(C15=0,E15=0))+OR(+AND(D15=0,E15=0)),"Axial",(+IF(+OR(C15=0,D15=0,E15=0),"Tangential","Oblique"))) -> Axial | H15: 23.33252736
C16: 0 | D16: 5 | E16: 0 | F16: =$B$5*SQRT((($C16/$B$2)^2)+(($D16/$B$3)^2)+(($E16/$B$4)^2)) -> 207.9855072 | G16: =+IF(+AND(C16=0,D16=0)+OR(+AND(C16=0,E16=0))+OR(+AND(D16=0,E16=0)),"Axial",(+IF(+OR(C16=0,D16=0,E16=0),"Tangential","Oblique"))) -> Axial | H16: 3.377190415
C17: 7 | D17: 0 | E17: 0 | F17: =$B$5*SQRT((($C17/$B$2)^2)+(($D17/$B$3)^2)+(($E17/$B$4)^2)) -> 238.709703 | G17: =+IF(+AND(C17=0,D17=0)+OR(+AND(C17=0,E17=0))+OR(+AND(D17=0,E17=0)),"Axial",(+IF(+OR(C17=0,D17=0,E17=0),"Tangential","Oblique"))) -> Axial | H17: 30.72419572
C18: 0 | D18: 0 | E18: 4 | F18: =$B$5*SQRT((($C18/$B$2)^2)+(($D18/$B$3)^2)+(($E18/$B$4)^2)) -> 241.7010526 | G18: =+IF(+AND(C18=0,D18=0)+OR(+AND(C18=0,E18=0))+OR(+AND(D18=0,E18=0)),"Axial",(+IF(+OR(C18=0,D18=0,E18=0),"Tangential","Oblique"))) -> Axial | H18: 2.991349661
C19: 0 | D19: 6 | E19: 0 | F19: =$B$5*SQRT((($C19/$B$2)^2)+(($D19/$B$3)^2)+(($E19/$B$4)^2)) -> 249.5826087 | G19: =+IF(+AND(C19=0,D19=0)+OR(+AND(C19=0,E19=0))+OR(+AND(D19=0,E19=0)),"Axial",(+IF(+OR(C19=0,D19=0,E19=0),"Tangential","Oblique"))) -> Axial | H19: 7.881556064
C20: 8 | D20: 0 | E20: 0 | F20: =$B$5*SQRT((($C20/$B$2)^2)+(($D20/$B$3)^2)+(($E20/$B$4)^2)) -> 272.8110891 | G20: =+IF(+AND(C20=0,D20=0)+OR(+AND(C20=0,E20=0))+OR(+AND(D20=0,E20=0)),"Axial",(+IF(+OR(C20=0,D20=0,E20=0),"Tangential","Oblique"))) -> Axial | H20: 23.22848041
C21: 0 | D21: 7 | E21: 0 | F21: =$B$5*SQRT((($C21/$B$2)^2)+(($D21/$B$3)^2)+(($E21/$B$4)^2)) -> 291.1797101 | G21: =+IF(+AND(C21=0,D21=0)+OR(+AND(C21=0,E21=0))+OR(+AND(D21=0,E21=0)),"Axial",(+IF(+OR(C21=0,D21=0,E21=0),"Tangential","Oblique"))) -> Axial | H21: 18.36862104
C22: 0 | D22: 0 | E22: 5 | F22: =$B$5*SQRT((($C22/$B$2)^2)+(($D22/$B$3)^2)+(($E22/$B$4)^2)) -> 302.1263158 | G22: =+IF(+AND(C22=0,D22=0)+OR(+AND(C22=0,E22=0))+OR(+AND(D22=0,E22=0)),"Axial",(+IF(+OR(C22=0,D22=0,E22=0),"Tangential","Oblique"))) -> Axial | H22: 10.94660564
C23: 9 | D23: 0 | E23: 0 | F23: =$B$5*SQRT((($C23/$B$2)^2)+(($D23/$B$3)^2)+(($E23/$B$4)^2)) -> 306.9124752 | G23: =+IF(+AND(C23=0,D23=0)+OR(+AND(C23=0,E23=0))+OR(+AND(D23=0,E23=0)),"Axial",(+IF(+OR(C23=0,D23=0,E23=0),"Tangential","Oblique"))) -> Axial | H23: 4.786159458
C24: 0 | D24: 8 | E24: 0 | F24: =$B$5*SQRT((($C24/$B$2)^2)+(($D24/$B$3)^2)+(($E24/$B$4)^2)) -> 332.7768116 | G24: =+IF(+AND(C24=0,D24=0)+OR(+AND(C24=0,E24=0))+OR(+AND(D24=0,E24=0)),"Axial",(+IF(+OR(C24=0,D24=0,E24=0),"Tangential","Oblique"))) -> Axial | H24: 25.86433635
C25: 0 | D25: 0 | E25: 6 | F25: =$B$5*SQRT((($C25/$B$2)^2)+(($D25/$B$3)^2)+(($E25/$B$4)^2)) -> 362.5515789 | G25: =+IF(+AND(C25=0,D25=0)+OR(+AND(C25=0,E25=0))+OR(+AND(D25=0,E25=0)),"Axial",(+IF(+OR(C25=0,D25=0,E25=0),"Tangential","Oblique"))) -> Axial | H25: 29.77476735
C26: 0 | D26: 9 | E26: 0 | F26: =$B$5*SQRT((($C26/$B$2)^2)+(($D26/$B$3)^2)+(($E26/$B$4)^2)) -> 374.373913 | G26: =+IF(+AND(C26=0,D26=0)+OR(+AND(C26=0,E26=0))+OR(+AND(D26=0,E26=0)),"Axial",(+IF(+OR(C26=0,D26=0,E26=0),"Tangential","Oblique"))) -> Axial | H26: 11.8223341
C27: 0 | D27: 0 | E27: 7 | F27: =$B$5*SQRT((($C27/$B$2)^2)+(($D27/$B$3)^2)+(($E27/$B$4)^2)) -> 422.9768421 | G27: =+IF(+AND(C27=0,D27=0)+OR(+AND(C27=0,E27=0))+OR(+AND(D27=0,E27=0)),"Axial",(+IF(+OR(C27=0,D27=0,E27=0),"Tangential","Oblique"))) -> Axial | H27: 48.60292906
C28: 0 | D28: 0 | E28: 8 | F28: =$B$5*SQRT((($C28/$B$2)^2)+(($D28/$B$3)^2)+(($E28/$B$4)^2)) -> 483.4021053 | G28: =+IF(+AND(C28=0,D28=0)+OR(+AND(C28=0,E28=0))+OR(+AND(D28=0,E28=0)),"Axial",(+IF(+OR(C28=0,D28=0,E28=0),"Tangential","Oblique"))) -> Axial | H28: 60.42526316
C29: 0 | D29: 0 | E29: 9 | F29: =$B$5*SQRT((($C29/$B$2)^2)+(($D29/$B$3)^2)+(($E29/$B$4)^2)) -> 543.8273684 | G29: =+IF(+AND(C29=0,D29=0)+OR(+AND(C29=0,E29=0))+OR(+AND(D29=0,E29=0)),"Axial",(+IF(+OR(C29=0,D29=0,E29=0),"Tangential","Oblique"))) -> Axial | H29: 60.42526316

Sheet Tangential
C1: Tangential Modes
A2: Lx = | B2: =+AllModes!D2 -> 16.56824147 | C2: nx | D2: ny | E2: nz | F2: f | G2: Type | H2: Spacing | J2: If you found this spreadsheet helpful, please send a donation via PayPal to https://www.paypal.me/JHBrandt/
A3: Ly = | B3: =+AllModes!D3 -> 13.58267717 | C3: 1 | D3: 1 | E3: 0 | F3: =$B$5*SQRT((($C3/$B$2)^2)+(($D3/$B$3)^2)+(($E3/$B$4)^2)) -> 53.78869199 | G3: =+IF(+AND(C3=0,D3=0)+OR(+AND(C3=0,E3=0))+OR(+AND(D3=0,E3=0)),"Axial",(+IF(+OR(C3=0,D3=0,E3=0),"Tangential","Oblique"))) -> Tangential
A4: Lz = | B4: =+AllModes!D4 -> 9.350393701 | C4: 1 | D4: 0 | E4: 1 | F4: =$B$5*SQRT((($C4/$B$2)^2)+(($D4/$B$3)^2)+(($E4/$B$4)^2)) -> 69.38383792 | G4: =+IF(+AND(C4=0,D4=0)+OR(+AND(C4=0,E4=0))+OR(+AND(D4=0,E4=0)),"Axial",(+IF(+OR(C4=0,D4=0,E4=0),"Tangential","Oblique"))) -> Tangential | H4: =F4-F3 -> 15.59514593
A5: c/2 = | B5: =1130/2 -> 565 | C5: 0 | D5: 1 | E5: 1 | F5: =$B$5*SQRT((($C5/$B$2)^2)+(($D5/$B$3)^2)+(($E5/$B$4)^2)) -> 73.35892091 | G5: =+IF(+AND(C5=0,D5=0)+OR(+AND(C5=0,E5=0))+OR(+AND(D5=0,E5=0)),"Axial",(+IF(+OR(C5=0,D5=0,E5=0),"Tangential","Oblique"))) -> Tangential | H5: =F5-F4 -> 3.975082989
C6: 2 | D6: 1 | E6: 0 | F6: =$B$5*SQRT((($C6/$B$2)^2)+(($D6/$B$3)^2)+(($E6/$B$4)^2)) -> 79.88702645 | G6: =+IF(+AND(C6=0,D6=0)+OR(+AND(C6=0,E6=0))+OR(+AND(D6=0,E6=0)),"Axial",(+IF(+OR(C6=0,D6=0,E6=0),"Tangential","Oblique"))) -> Tangential | H6: 6.528105544
A7: V = | B7: =B2*B3*B4 -> 2104.222651 | C7: 1 | D7: 2 | E7: 0 | F7: =$B$5*SQRT((($C7/$B$2)^2)+(($D7/$B$3)^2)+(($E7/$B$4)^2)) -> 89.91206778 | G7: =+IF(+AND(C7=0,D7=0)+OR(+AND(C7=0,E7=0))+OR(+AND(D7=0,E7=0)),"Axial",(+IF(+OR(C7=0,D7=0,E7=0),"Tangential","Oblique"))) -> Tangential | H7: 10.02504133
C8: 2 | D8: 0 | E8: 1 | F8: =$B$5*SQRT((($C8/$B$2)^2)+(($D8/$B$3)^2)+(($E8/$B$4)^2)) -> 91.11986926 | G8: =+IF(+AND(C8=0,D8=0)+OR(+AND(C8=0,E8=0))+OR(+AND(D8=0,E8=0)),"Axial",(+IF(+OR(C8=0,D8=0,E8=0),"Tangential","Oblique"))) -> Tangential | H8: 1.20780148
C9: 0 | D9: 2 | E9: 1 | F9: =$B$5*SQRT((($C9/$B$2)^2)+(($D9/$B$3)^2)+(($E9/$B$4)^2)) -> 102.8226037 | G9: =+IF(+AND(C9=0,D9=0)+OR(+AND(C9=0,E9=0))+OR(+AND(D9=0,E9=0)),"Axial",(+IF(+OR(C9=0,D9=0,E9=0),"Tangential","Oblique"))) -> Tangential | H9: 11.7027344
C10: 2 | D10: 2 | E10: 0 | F10: =$B$5*SQRT((($C10/$B$2)^2)+(($D10/$B$3)^2)+(($E10/$B$4)^2)) -> 107.577384 | G10: =+IF(+AND(C10=0,D10=0)+OR(+AND(C10=0,E10=0))+OR(+AND(D10=0,E10=0)),"Axial",(+IF(+OR(C10=0,D10=0,E10=0),"Tangential","Oblique"))) -> Tangential | H10: 4.754780311
C11: 3 | D11: 1 | E11: 0 | F11: =$B$5*SQRT((($C11/$B$2)^2)+(($D11/$B$3)^2)+(($E11/$B$4)^2)) -> 110.4375827 | G11: =+IF(+AND(C11=0,D11=0)+OR(+AND(C11=0,E11=0))+OR(+AND(D11=0,E11=0)),"Axial",(+IF(+OR(C11=0,D11=0,E11=0),"Tangential","Oblique"))) -> Tangential | H11: 2.860198753
C12: 3 | D12: 0 | E12: 1 | F12: =$B$5*SQRT((($C12/$B$2)^2)+(($D12/$B$3)^2)+(($E12/$B$4)^2)) -> 118.8164688 | G12: =+IF(+AND(C12=0,D12=0)+OR(+AND(C12=0,E12=0))+OR(+AND(D12=0,E12=0)),"Axial",(+IF(+OR(C12=0,D12=0,E12=0),"Tangential","Oblique"))) -> Tangential | H12: 8.37888607
C13: 1 | D13: 0 | E13: 2 | F13: =$B$5*SQRT((($C13/$B$2)^2)+(($D13/$B$3)^2)+(($E13/$B$4)^2)) -> 125.5697187 | G13: =+IF(+AND(C13=0,D13=0)+OR(+AND(C13=0,E13=0))+OR(+AND(D13=0,E13=0)),"Axial",(+IF(+OR(C13=0,D13=0,E13=0),"Tangential","Oblique"))) -> Tangential | H13: 6.753249877
C14: 0 | D14: 1 | E14: 2 | F14: =$B$5*SQRT((($C14/$B$2)^2)+(($D14/$B$3)^2)+(($E14/$B$4)^2)) -> 127.8091098 | G14: =+IF(+AND(C14=0,D14=0)+OR(+AND(C14=0,E14=0))+OR(+AND(D14=0,E14=0)),"Axial",(+IF(+OR(C14=0,D14=0,E14=0),"Tangential","Oblique"))) -> Tangential | H14: 2.239391175
C15: 1 | D15: 3 | E15: 0 | F15: =$B$5*SQRT((($C15/$B$2)^2)+(($D15/$B$3)^2)+(($E15/$B$4)^2)) -> 129.3668202 | G15: =+IF(+AND(C15=0,D15=0)+OR(+AND(C15=0,E15=0))+OR(+AND(D15=0,E15=0)),"Axial",(+IF(+OR(C15=0,D15=0,E15=0),"Tangential","Oblique"))) -> Tangential | H15: 1.557710387
C16: 3 | D16: 2 | E16: 0 | F16: =$B$5*SQRT((($C16/$B$2)^2)+(($D16/$B$3)^2)+(($E16/$B$4)^2)) -> 131.8613523 | G16: =+IF(+AND(C16=0,D16=0)+OR(+AND(C16=0,E16=0))+OR(+AND(D16=0,E16=0)),"Axial",(+IF(+OR(C16=0,D16=0,E16=0),"Tangential","Oblique"))) -> Tangential | H16: 2.494532046
C17: 0 | D17: 3 | E17: 1 | F17: =$B$5*SQRT((($C17/$B$2)^2)+(($D17/$B$3)^2)+(($E17/$B$4)^2)) -> 138.6509361 | G17: =+IF(+AND(C17=0,D17=0)+OR(+AND(C17=0,E17=0))+OR(+AND(D17=0,E17=0)),"Axial",(+IF(+OR(C17=0,D17=0,E17=0),"Tangential","Oblique"))) -> Tangential | H17: 6.789583774
C18: 2 | D18: 0 | E18: 2 | F18: =$B$5*SQRT((($C18/$B$2)^2)+(($D18/$B$3)^2)+(($E18/$B$4)^2)) -> 138.7676758 | G18: =+IF(+AND(C18=0,D18=0)+OR(+AND(C18=0,E18=0))+OR(+AND(D18=0,E18=0)),"Axial",(+IF(+OR(C18=0,D18=0,E18=0),"Tangential","Oblique"))) -> Tangential | H18: 0.1167397831
C19: 2 | D19: 3 | E19: 0 | F19: =$B$5*SQRT((($C19/$B$2)^2)+(($D19/$B$3)^2)+(($E19/$B$4)^2)) -> 142.2128257 | G19: =+IF(+AND(C19=0,D19=0)+OR(+AND(C19=0,E19=0))+OR(+AND(D19=0,E19=0)),"Axial",(+IF(+OR(C19=0,D19=0,E19=0),"Tangential","Oblique"))) -> Tangential | H19: 3.445149841
C20: 4 | D20: 1 | E20: 0 | F20: =$B$5*SQRT((($C20/$B$2)^2)+(($D20/$B$3)^2)+(($E20/$B$4)^2)) -> 142.6071227 | G20: =+IF(+AND(C20=0,D20=0)+OR(+AND(C20=0,E20=0))+OR(+AND(D20=0,E20=0)),"Axial",(+IF(+OR(C20=0,D20=0,E20=0),"Tangential","Oblique"))) -> Tangential | H20: 0.3942969855
C21: 0 | D21: 2 | E21: 2 | F21: =$B$5*SQRT((($C21/$B$2)^2)+(($D21/$B$3)^2)+(($E21/$B$4)^2)) -> 146.7178418 | G21: =+IF(+AND(C21=0,D21=0)+OR(+AND(C21=0,E21=0))+OR(+AND(D21=0,E21=0)),"Axial",(+IF(+OR(C21=0,D21=0,E21=0),"Tangential","Oblique"))) -> Tangential | H21: 4.110719152
C22: 4 | D22: 0 | E22: 1 | F22: =$B$5*SQRT((($C22/$B$2)^2)+(($D22/$B$3)^2)+(($E22/$B$4)^2)) -> 149.1900969 | G22: =+IF(+AND(C22=0,D22=0)+OR(+AND(C22=0,E22=0))+OR(+AND(D22=0,E22=0)),"Axial",(+IF(+OR(C22=0,D22=0,E22=0),"Tangential","Oblique"))) -> Tangential | H22: 2.472255085
C23: 3 | D23: 0 | E23: 2 | F23: =$B$5*SQRT((($C23/$B$2)^2)+(($D23/$B$3)^2)+(($E23/$B$4)^2)) -> 158.3382157 | G23: =+IF(+AND(C23=0,D23=0)+OR(+AND(C23=0,E23=0))+OR(+AND(D23=0,E23=0)),"Axial",(+IF(+OR(C23=0,D23=0,E23=0),"Tangential","Oblique"))) -> Tangential | H23: 9.148118765
C24: 4 | D24: 2 | E24: 0 | F24: =$B$5*SQRT((($C24/$B$2)^2)+(($D24/$B$3)^2)+(($E24/$B$4)^2)) -> 159.7740529 | G24: =+IF(+AND(C24=0,D24=0)+OR(+AND(C24=0,E24=0))+OR(+AND(D24=0,E24=0)),"Axial",(+IF(+OR(C24=0,D24=0,E24=0),"Tangential","Oblique"))) -> Tangential | H24: 1.435837238
C25: 3 | D25: 3 | E25: 0 | F25: =$B$5*SQRT((($C25/$B$2)^2)+(($D25/$B$3)^2)+(($E25/$B$4)^2)) -> 161.366076 | G25: =+IF(+AND(C25=0,D25=0)+OR(+AND(C25=0,E25=0))+OR(+AND(D25=0,E25=0)),"Axial",(+IF(+OR(C25=0,D25=0,E25=0),"Tangential","Oblique"))) -> Tangential | H25: 1.592023055
C26: 1 | D26: 4 | E26: 0 | F26: =$B$5*SQRT((($C26/$B$2)^2)+(($D26/$B$3)^2)+(($E26/$B$4)^2)) -> 169.847008 | G26: =+IF(+AND(C26=0,D26=0)+OR(+AND(C26=0,E26=0))+OR(+AND(D26=0,E26=0)),"Axial",(+IF(+OR(C26=0,D26=0,E26=0),"Tangential","Oblique"))) -> Tangential | H26: 8.480932024
C27: 0 | D27: 3 | E27: 2 | F27: =$B$5*SQRT((($C27/$B$2)^2)+(($D27/$B$3)^2)+(($E27/$B$4)^2)) -> 173.7173548 | G27: =+IF(+AND(C27=0,D27=0)+OR(+AND(C27=0,E27=0))+OR(+AND(D27=0,E27=0)),"Axial",(+IF(+OR(C27=0,D27=0,E27=0),"Tangential","Oblique"))) -> Tangential | H27: 3.870346798
C28: 5 | D28: 1 | E28: 0 | F28: =$B$5*SQRT((($C28/$B$2)^2)+(($D28/$B$3)^2)+(($E28/$B$4)^2)) -> 175.5076416 | G28: =+IF(+AND(C28=0,D28=0)+OR(+AND(C28=0,E28=0))+OR(+AND(D28=0,E28=0)),"Axial",(+IF(+OR(C28=0,D28=0,E28=0),"Tangential","Oblique"))) -> Tangential | H28: 1.79028683
C29: 0 | D29: 4 | E29: 1 | F29: =$B$5*SQRT((($C29/$B$2)^2)+(($D29/$B$3)^2)+(($E29/$B$4)^2)) -> 177.0206598 | G29: =+IF(+AND(C29=0,D29=0)+OR(+AND(C29=0,E29=0))+OR(+AND(D29=0,E29=0)),"Axial",(+IF(+OR(C29=0,D29=0,E29=0),"Tangential","Oblique"))) -> Tangential | H29: 1.513018234
C30: 2 | D30: 4 | E30: 0 | F30: =$B$5*SQRT((($C30/$B$2)^2)+(($D30/$B$3)^2)+(($E30/$B$4)^2)) -> 179.8241356 | G30: =+IF(+AND(C30=0,D30=0)+OR(+AND(C30=0,E30=0))+OR(+AND(D30=0,E30=0)),"Axial",(+IF(+OR(C30=0,D30=0,E30=0),"Tangential","Oblique"))) -> Tangential | H30: 2.803475717
C31: 5 | D31: 0 | E31: 1 | F31: =$B$5*SQRT((($C31/$B$2)^2)+(($D31/$B$3)^2)+(($E31/$B$4)^2)) -> 180.8972798 | G31: =+IF(+AND(C31=0,D31=0)+OR(+AND(C31=0,E31=0))+OR(+AND(D31=0,E31=0)),"Axial",(+IF(+OR(C31=0,D31=0,E31=0),"Tangential","Oblique"))) -> Tangential | H31: 1.073144248
C32: 4 | D32: 0 | E32: 2 | F32: =$B$5*SQRT((($C32/$B$2)^2)+(($D32/$B$3)^2)+(($E32/$B$4)^2)) -> 182.2397385 | G32: =+IF(+AND(C32=0,D32=0)+OR(+AND(C32=0,E32=0))+OR(+AND(D32=0,E32=0)),"Axial",(+IF(+OR(C32=0,D32=0,E32=0),"Tangential","Oblique"))) -> Tangential | H32: 1.342458712
C33: 1 | D33: 0 | E33: 3 | F33: =$B$5*SQRT((($C33/$B$2)^2)+(($D33/$B$3)^2)+(($E33/$B$4)^2)) -> 184.4554591 | G33: =+IF(+AND(C33=0,D33=0)+OR(+AND(C33=0,E33=0))+OR(+AND(D33=0,E33=0)),"Axial",(+IF(+OR(C33=0,D33=0,E33=0),"Tangential","Oblique"))) -> Tangential | H33: 2.215720564
C34: 4 | D34: 3 | E34: 0 | F34: =$B$5*SQRT((($C34/$B$2)^2)+(($D34/$B$3)^2)+(($E34/$B$4)^2)) -> 184.8765594 | G34: =+IF(+AND(C34=0,D34=0)+OR(+AND(C34=0,E34=0))+OR(+AND(D34=0,E34=0)),"Axial",(+IF(+OR(C34=0,D34=0,E34=0),"Tangential","Oblique"))) -> Tangential | H34: 0.4211003443
C35: 0 | D35: 1 | E35: 3 | F35: =$B$5*SQRT((($C35/$B$2)^2)+(($D35/$B$3)^2)+(($E35/$B$4)^2)) -> 185.9871789 | G35: =+IF(+AND(C35=0,D35=0)+OR(+AND(C35=0,E35=0))+OR(+AND(D35=0,E35=0)),"Axial",(+IF(+OR(C35=0,D35=0,E35=0),"Tangential","Oblique"))) -> Tangential | H35: 1.110619426
C36: 5 | D36: 2 | E36: 0 | F36: =$B$5*SQRT((($C36/$B$2)^2)+(($D36/$B$3)^2)+(($E36/$B$4)^2)) -> 189.7205545 | G36: =+IF(+AND(C36=0,D36=0)+OR(+AND(C36=0,E36=0))+OR(+AND(D36=0,E36=0)),"Axial",(+IF(+OR(C36=0,D36=0,E36=0),"Tangential","Oblique"))) -> Tangential | H36: 3.733375673
C37: 2 | D37: 0 | E37: 3 | F37: =$B$5*SQRT((($C37/$B$2)^2)+(($D37/$B$3)^2)+(($E37/$B$4)^2)) -> 193.6815169 | G37: =+IF(+AND(C37=0,D37=0)+OR(+AND(C37=0,E37=0))+OR(+AND(D37=0,E37=0)),"Axial",(+IF(+OR(C37=0,D37=0,E37=0),"Tangential","Oblique"))) -> Tangential | H37: 3.96096239
C38: 3 | D38: 4 | E38: 0 | F38: =$B$5*SQRT((($C38/$B$2)^2)+(($D38/$B$3)^2)+(($E38/$B$4)^2)) -> 195.3234303 | G38: =+IF(+AND(C38=0,D38=0)+OR(+AND(C38=0,E38=0))+OR(+AND(D38=0,E38=0)),"Axial",(+IF(+OR(C38=0,D38=0,E38=0),"Tangential","Oblique"))) -> Tangential | H38: 1.641913353
C39: 0 | D39: 2 | E39: 3 | F39: =$B$5*SQRT((($C39/$B$2)^2)+(($D39/$B$3)^2)+(($E39/$B$4)^2)) -> 199.4547248 | G39: =+IF(+AND(C39=0,D39=0)+OR(+AND(C39=0,E39=0))+OR(+AND(D39=0,E39=0)),"Axial",(+IF(+OR(C39=0,D39=0,E39=0),"Tangential","Oblique"))) -> Tangential | H39: 4.131294529
C40: 0 | D40: 4 | E40: 2 | F40: =$B$5*SQRT((($C40/$B$2)^2)+(($D40/$B$3)^2)+(($E40/$B$4)^2)) -> 205.6452073 | G40: =+IF(+AND(C40=0,D40=0)+OR(+AND(C40=0,E40=0))+OR(+AND(D40=0,E40=0)),"Axial",(+IF(+OR(C40=0,D40=0,E40=0),"Tangential","Oblique"))) -> Tangential | H40: 6.190482522
C41: 3 | D41: 0 | E41: 3 | F41: =$B$5*SQRT((($C41/$B$2)^2)+(($D41/$B$3)^2)+(($E41/$B$4)^2)) -> 208.1515138 | G41: =+IF(+AND(C41=0,D41=0)+OR(+AND(C41=0,E41=0))+OR(+AND(D41=0,E41=0)),"Axial",(+IF(+OR(C41=0,D41=0,E41=0),"Tangential","Oblique"))) -> Tangential | H41: 2.506306433
C42: 6 | D42: 1 | E42: 0 | F42: =$B$5*SQRT((($C42/$B$2)^2)+(($D42/$B$3)^2)+(($E42/$B$4)^2)) -> 208.7938748 | G42: =+IF(+AND(C42=0,D42=0)+OR(+AND(C42=0,E42=0))+OR(+AND(D42=0,E42=0)),"Axial",(+IF(+OR(C42=0,D42=0,E42=0),"Tangential","Oblique"))) -> Tangential | H42: 0.642361073
C43: 5 | D43: 0 | E43: 2 | F43: =$B$5*SQRT((($C43/$B$2)^2)+(($D43/$B$3)^2)+(($E43/$B$4)^2)) -> 208.9915384 | G43: =+IF(+AND(C43=0,D43=0)+OR(+AND(C43=0,E43=0))+OR(+AND(D43=0,E43=0)),"Axial",(+IF(+OR(C43=0,D43=0,E43=0),"Tangential","Oblique"))) -> Tangential | H43: 0.1976635777
C44: 1 | D44: 5 | E44: 0 | F44: =$B$5*SQRT((($C44/$B$2)^2)+(($D44/$B$3)^2)+(($E44/$B$4)^2)) -> 210.7626052 | G44: =+IF(+AND(C44=0,D44=0)+OR(+AND(C44=0,E44=0))+OR(+AND(D44=0,E44=0)),"Axial",(+IF(+OR(C44=0,D44=0,E44=0),"Tangential","Oblique"))) -> Tangential | H44: 1.771066819
C45: 5 | D45: 3 | E45: 0 | F45: =$B$5*SQRT((($C45/$B$2)^2)+(($D45/$B$3)^2)+(($E45/$B$4)^2)) -> 211.2947776 | G45: =+IF(+AND(C45=0,D45=0)+OR(+AND(C45=0,E45=0))+OR(+AND(D45=0,E45=0)),"Axial",(+IF(+OR(C45=0,D45=0,E45=0),"Tangential","Oblique"))) -> Tangential | H45: 0.5321724088
C46: 6 | D46: 0 | E46: 1 | F46: =$B$5*SQRT((($C46/$B$2)^2)+(($D46/$B$3)^2)+(($E46/$B$4)^2)) -> 213.3442658 | G46: =+IF(+AND(C46=0,D46=0)+OR(+AND(C46=0,E46=0))+OR(+AND(D46=0,E46=0)),"Axial",(+IF(+OR(C46=0,D46=0,E46=0),"Tangential","Oblique"))) -> Tangential | H46: 2.049488154
C47: 4 | D47: 4 | E47: 0 | F47: =$B$5*SQRT((($C47/$B$2)^2)+(($D47/$B$3)^2)+(($E47/$B$4)^2)) -> 215.1547679 | G47: =+IF(+AND(C47=0,D47=0)+OR(+AND(C47=0,E47=0))+OR(+AND(D47=0,E47=0)),"Axial",(+IF(+OR(C47=0,D47=0,E47=0),"Tangential","Oblique"))) -> Tangential | H47: 1.810502156
C48: 0 | D48: 5 | E48: 1 | F48: =$B$5*SQRT((($C48/$B$2)^2)+(($D48/$B$3)^2)+(($E48/$B$4)^2)) -> 216.5852803 | G48: =+IF(+AND(C48=0,D48=0)+OR(+AND(C48=0,E48=0))+OR(+AND(D48=0,E48=0)),"Axial",(+IF(+OR(C48=0,D48=0,E48=0),"Tangential","Oblique"))) -> Tangential | H48: 1.430512378
C49: 2 | D49: 5 | E49: 0 | F49: =$B$5*SQRT((($C49/$B$2)^2)+(($D49/$B$3)^2)+(($E49/$B$4)^2)) -> 218.8825927 | G49: =+IF(+AND(C49=0,D49=0)+OR(+AND(C49=0,E49=0))+OR(+AND(D49=0,E49=0)),"Axial",(+IF(+OR(C49=0,D49=0,E49=0),"Tangential","Oblique"))) -> Tangential | H49: 2.297312341
C50: 0 | D50: 3 | E50: 3 | F50: =$B$5*SQRT((($C50/$B$2)^2)+(($D50/$B$3)^2)+(($E50/$B$4)^2)) -> 220.0767627 | G50: =+IF(+AND(C50=0,D50=0)+OR(+AND(C50=0,E50=0))+OR(+AND(D50=0,E50=0)),"Axial",(+IF(+OR(C50=0,D50=0,E50=0),"Tangential","Oblique"))) -> Tangential | H50: 1.194170059
C51: 6 | D51: 2 | E51: 0 | F51: =$B$5*SQRT((($C51/$B$2)^2)+(($D51/$B$3)^2)+(($E51/$B$4)^2)) -> 220.8751655 | G51: =+IF(+AND(C51=0,D51=0)+OR(+AND(C51=0,E51=0))+OR(+AND(D51=0,E51=0)),"Axial",(+IF(+OR(C51=0,D51=0,E51=0),"Tangential","Oblique"))) -> Tangential | H51: 0.7984027283
C52: 4 | D52: 0 | E52: 3 | F52: =$B$5*SQRT((($C52/$B$2)^2)+(($D52/$B$3)^2)+(($E52/$B$4)^2)) -> 226.8642423 | G52: =+IF(+AND(C52=0,D52=0)+OR(+AND(C52=0,E52=0))+OR(+AND(D52=0,E52=0)),"Axial",(+IF(+OR(C52=0,D52=0,E52=0),"Tangential","Oblique"))) -> Tangential | H52: 5.98907685
C53: 3 | D53: 5 | E53: 0 | F53: =$B$5*SQRT((($C53/$B$2)^2)+(($D53/$B$3)^2)+(($E53/$B$4)^2)) -> 231.7846243 | G53: =+IF(+AND(C53=0,D53=0)+OR(+AND(C53=0,E53=0))+OR(+AND(D53=0,E53=0)),"Axial",(+IF(+OR(C53=0,D53=0,E53=0),"Tangential","Oblique"))) -> Tangential | H53: 4.920381982
C54: 6 | D54: 0 | E54: 2 | F54: =$B$5*SQRT((($C54/$B$2)^2)+(($D54/$B$3)^2)+(($E54/$B$4)^2)) -> 237.6329376 | G54: =+IF(+AND(C54=0,D54=0)+OR(+AND(C54=0,E54=0))+OR(+AND(D54=0,E54=0)),"Axial",(+IF(+OR(C54=0,D54=0,E54=0),"Tangential","Oblique"))) -> Tangential | H54: 5.848313307
C55: 5 | D55: 4 | E55: 0 | F55: =$B$5*SQRT((($C55/$B$2)^2)+(($D55/$B$3)^2)+(($E55/$B$4)^2)) -> 238.2387773 | G55: =+IF(+AND(C55=0,D55=0)+OR(+AND(C55=0,E55=0))+OR(+AND(D55=0,E55=0)),"Axial",(+IF(+OR(C55=0,D55=0,E55=0),"Tangential","Oblique"))) -> Tangential | H55: 0.6058396866
C56: 6 | D56: 3 | E56: 0 | F56: =$B$5*SQRT((($C56/$B$2)^2)+(($D56/$B$3)^2)+(($E56/$B$4)^2)) -> 239.6610794 | G56: =+IF(+AND(C56=0,D56=0)+OR(+AND(C56=0,E56=0))+OR(+AND(D56=0,E56=0)),"Axial",(+IF(+OR(C56=0,D56=0,E56=0),"Tangential","Oblique"))) -> Tangential | H56: 1.422302079
C57: 0 | D57: 5 | E57: 2 | F57: =$B$5*SQRT((($C57/$B$2)^2)+(($D57/$B$3)^2)+(($E57/$B$4)^2)) -> 240.5469204 | G57: =+IF(+AND(C57=0,D57=0)+OR(+AND(C57=0,E57=0))+OR(+AND(D57=0,E57=0)),"Axial",(+IF(+OR(C57=0,D57=0,E57=0),"Tangential","Oblique"))) -> Tangential | H57: 0.8858410897
C58: 7 | D58: 1 | E58: 0 | F58: =$B$5*SQRT((($C58/$B$2)^2)+(($D58/$B$3)^2)+(($E58/$B$4)^2)) -> 242.3069152 | G58: =+IF(+AND(C58=0,D58=0)+OR(+AND(C58=0,E58=0))+OR(+AND(D58=0,E58=0)),"Axial",(+IF(+OR(C58=0,D58=0,E58=0),"Tangential","Oblique"))) -> Tangential | H58: 1.75999473
C59: 1 | D59: 0 | E59: 4 | F59: =$B$5*SQRT((($C59/$B$2)^2)+(($D59/$B$3)^2)+(($E59/$B$4)^2)) -> 244.0948655 | G59: =+IF(+AND(C59=0,D59=0)+OR(+AND(C59=0,E59=0))+OR(+AND(D59=0,E59=0)),"Axial",(+IF(+OR(C59=0,D59=0,E59=0),"Tangential","Oblique"))) -> Tangential | H59: 1.787950359
C60: 0 | D60: 1 | E60: 4 | F60: =$B$5*SQRT((($C60/$B$2)^2)+(($D60/$B$3)^2)+(($E60/$B$4)^2)) -> 245.2543938 | G60: =+IF(+AND(C60=0,D60=0)+OR(+AND(C60=0,E60=0))+OR(+AND(D60=0,E60=0)),"Axial",(+IF(+OR(C60=0,D60=0,E60=0),"Tangential","Oblique"))) -> Tangential | H60: 1.159528295
C61: 0 | D61: 4 | E61: 3 | F61: =$B$5*SQRT((($C61/$B$2)^2)+(($D61/$B$3)^2)+(($E61/$B$4)^2)) -> 246.0609954 | G61: =+IF(+AND(C61=0,D61=0)+OR(+AND(C61=0,E61=0))+OR(+AND(D61=0,E61=0)),"Axial",(+IF(+OR(C61=0,D61=0,E61=0),"Tangential","Oblique"))) -> Tangential | H61: 0.8066015222
C62: 7 | D62: 0 | E62: 1 | F62: =$B$5*SQRT((($C62/$B$2)^2)+(($D62/$B$3)^2)+(($E62/$B$4)^2)) -> 246.2387758 | G62: =+IF(+AND(C62=0,D62=0)+OR(+AND(C62=0,E62=0))+OR(+AND(D62=0,E62=0)),"Axial",(+IF(+OR(C62=0,D62=0,E62=0),"Tangential","Oblique"))) -> Tangential | H62: 0.1777804744
C63: 4 | D63: 5 | E63: 0 | F63: =$B$5*SQRT((($C63/$B$2)^2)+(($D63/$B$3)^2)+(($E63/$B$4)^2)) -> 248.7256396 | G63: =+IF(+AND(C63=0,D63=0)+OR(+AND(C63=0,E63=0))+OR(+AND(D63=0,E63=0)),"Axial",(+IF(+OR(C63=0,D63=0,E63=0),"Tangential","Oblique"))) -> Tangential | H63: 2.486863806
C64: 5 | D64: 0 | E64: 3 | F64: =$B$5*SQRT((($C64/$B$2)^2)+(($D64/$B$3)^2)+(($E64/$B$4)^2)) -> 248.8644717 | G64: =+IF(+AND(C64=0,D64=0)+OR(+AND(C64=0,E64=0))+OR(+AND(D64=0,E64=0)),"Axial",(+IF(+OR(C64=0,D64=0,E64=0),"Tangential","Oblique"))) -> Tangential | H64: 0.1388320475
C65: 2 | D65: 0 | E65: 4 | F65: =$B$5*SQRT((($C65/$B$2)^2)+(($D65/$B$3)^2)+(($E65/$B$4)^2)) -> 251.1394373 | G65: =+IF(+AND(C65=0,D65=0)+OR(+AND(C65=0,E65=0))+OR(+AND(D65=0,E65=0)),"Axial",(+IF(+OR(C65=0,D65=0,E65=0),"Tangential","Oblique"))) -> Tangential | H65: 2.274965666
C66: 1 | D66: 6 | E66: 0 | F66: =$B$5*SQRT((($C66/$B$2)^2)+(($D66/$B$3)^2)+(($E66/$B$4)^2)) -> 251.9015345 | G66: =+IF(+AND(C66=0,D66=0)+OR(+AND(C66=0,E66=0))+OR(+AND(D66=0,E66=0)),"Axial",(+IF(+OR(C66=0,D66=0,E66=0),"Tangential","Oblique"))) -> Tangential | H66: 0.7620971885
C67: 7 | D67: 2 | E67: 0 | F67: =$B$5*SQRT((($C67/$B$2)^2)+(($D67/$B$3)^2)+(($E67/$B$4)^2)) -> 252.7916092 | G67: =+IF(+AND(C67=0,D67=0)+OR(+AND(C67=0,E67=0))+OR(+AND(D67=0,E67=0)),"Axial",(+IF(+OR(C67=0,D67=0,E67=0),"Tangential","Oblique"))) -> Tangential | H67: 0.8900746796
C68: 0 | D68: 2 | E68: 4 | F68: =$B$5*SQRT((($C68/$B$2)^2)+(($D68/$B$3)^2)+(($E68/$B$4)^2)) -> 255.6182197 | G68: =+IF(+AND(C68=0,D68=0)+OR(+AND(C68=0,E68=0))+OR(+AND(D68=0,E68=0)),"Axial",(+IF(+OR(C68=0,D68=0,E68=0),"Tangential","Oblique"))) -> Tangential | H68: 2.826610481
C69: 0 | D69: 6 | E69: 1 | F69: =$B$5*SQRT((($C69/$B$2)^2)+(($D69/$B$3)^2)+(($E69/$B$4)^2)) -> 256.7930898 | G69: =+IF(+AND(C69=0,D69=0)+OR(+AND(C69=0,E69=0))+OR(+AND(D69=0,E69=0)),"Axial",(+IF(+OR(C69=0,D69=0,E69=0),"Tangential","Oblique"))) -> Tangential | H69: =F69-F68 -> 1.17487015
C70: 2 | D70: 6 | E70: 0 | F70: =$B$5*SQRT((($C70/$B$2)^2)+(($D70/$B$3)^2)+(($E70/$B$4)^2)) -> 258.7336405 | G70: =+IF(+AND(C70=0,D70=0)+OR(+AND(C70=0,E70=0))+OR(+AND(D70=0,E70=0)),"Axial",(+IF(+OR(C70=0,D70=0,E70=0),"Tangential","Oblique"))) -> Tangential | H70: 1.940550625
C71: 3 | D71: 0 | E71: 4 | F71: =$B$5*SQRT((($C71/$B$2)^2)+(($D71/$B$3)^2)+(($E71/$B$4)^2)) -> 262.4605488 | G71: =+IF(+AND(C71=0,D71=0)+OR(+AND(C71=0,E71=0))+OR(+AND(D71=0,E71=0)),"Axial",(+IF(+OR(C71=0,D71=0,E71=0),"Tangential","Oblique"))) -> Tangential | H71: 3.726908325
C72: 6 | D72: 4 | E72: 0 | F72: =$B$5*SQRT((($C72/$B$2)^2)+(($D72/$B$3)^2)+(($E72/$B$4)^2)) -> 263.7227046 | G72: =+IF(+AND(C72=0,D72=0)+OR(+AND(C72=0,E72=0))+OR(+AND(D72=0,E72=0)),"Axial",(+IF(+OR(C72=0,D72=0,E72=0),"Tangential","Oblique"))) -> Tangential | H72: 1.262155768
C73: 7 | D73: 0 | E73: 2 | F73: =$B$5*SQRT((($C73/$B$2)^2)+(($D73/$B$3)^2)+(($E73/$B$4)^2)) -> 267.5577919 | G73: =+IF(+AND(C73=0,D73=0)+OR(+AND(C73=0,E73=0))+OR(+AND(D73=0,E73=0)),"Axial",(+IF(+OR(C73=0,D73=0,E73=0),"Tangential","Oblique"))) -> Tangential | H73: 3.835087334
C74: 5 | D74: 5 | E74: 0 | F74: =$B$5*SQRT((($C74/$B$2)^2)+(($D74/$B$3)^2)+(($E74/$B$4)^2)) -> 268.9434599 | G74: =+IF(+AND(C74=0,D74=0)+OR(+AND(C74=0,E74=0))+OR(+AND(D74=0,E74=0)),"Axial",(+IF(+OR(C74=0,D74=0,E74=0),"Tangential","Oblique"))) -> Tangential | H74: 1.385668036
C75: 7 | D75: 3 | E75: 0 | F75: =$B$5*SQRT((($C75/$B$2)^2)+(($D75/$B$3)^2)+(($E75/$B$4)^2)) -> 269.3607097 | G75: =+IF(+AND(C75=0,D75=0)+OR(+AND(C75=0,E75=0))+OR(+AND(D75=0,E75=0)),"Axial",(+IF(+OR(C75=0,D75=0,E75=0),"Tangential","Oblique"))) -> Tangential | H75: 0.4172497758
C76: 3 | D76: 6 | E76: 0 | F76: =$B$5*SQRT((($C76/$B$2)^2)+(($D76/$B$3)^2)+(($E76/$B$4)^2)) -> 269.7362033 | G76: =+IF(+AND(C76=0,D76=0)+OR(+AND(C76=0,E76=0))+OR(+AND(D76=0,E76=0)),"Axial",(+IF(+OR(C76=0,D76=0,E76=0),"Tangential","Oblique"))) -> Tangential | H76: 0.375493635
C77: 0 | D77: 3 | E77: 4 | F77: =$B$5*SQRT((($C77/$B$2)^2)+(($D77/$B$3)^2)+(($E77/$B$4)^2)) -> 272.015199 | G77: =+IF(+AND(C77=0,D77=0)+OR(+AND(C77=0,E77=0))+OR(+AND(D77=0,E77=0)),"Axial",(+IF(+OR(C77=0,D77=0,E77=0),"Tangential","Oblique"))) -> Tangential | H77: 2.278995654
C78: 6 | D78: 0 | E78: 3 | F78: =$B$5*SQRT((($C78/$B$2)^2)+(($D78/$B$3)^2)+(($E78/$B$4)^2)) -> 273.3596078 | G78: =+IF(+AND(C78=0,D78=0)+OR(+AND(C78=0,E78=0))+OR(+AND(D78=0,E78=0)),"Axial",(+IF(+OR(C78=0,D78=0,E78=0),"Tangential","Oblique"))) -> Tangential | H78: 1.344408786
C79: 0 | D79: 5 | E79: 3 | F79: =$B$5*SQRT((($C79/$B$2)^2)+(($D79/$B$3)^2)+(($E79/$B$4)^2)) -> 275.8965079 | G79: =+IF(+AND(C79=0,D79=0)+OR(+AND(C79=0,E79=0))+OR(+AND(D79=0,E79=0)),"Axial",(+IF(+OR(C79=0,D79=0,E79=0),"Tangential","Oblique"))) -> Tangential | H79: 2.536900124
C80: 8 | D80: 1 | E80: 0 | F80: =$B$5*SQRT((($C80/$B$2)^2)+(($D80/$B$3)^2)+(($E80/$B$4)^2)) -> 275.9641448 | G80: =+IF(+AND(C80=0,D80=0)+OR(+AND(C80=0,E80=0))+OR(+AND(D80=0,E80=0)),"Axial",(+IF(+OR(C80=0,D80=0,E80=0),"Tangential","Oblique"))) -> Tangential | H80: 0.06763684954
C81: 0 | D81: 6 | E81: 2 | F81: =$B$5*SQRT((($C81/$B$2)^2)+(($D81/$B$3)^2)+(($E81/$B$4)^2)) -> 277.3018721 | G81: =+IF(+AND(C81=0,D81=0)+OR(+AND(C81=0,E81=0))+OR(+AND(D81=0,E81=0)),"Axial",(+IF(+OR(C81=0,D81=0,E81=0),"Tangential","Oblique"))) -> Tangential | H81: 1.337727353
C82: 4 | D82: 0 | E82: 4 | F82: =$B$5*SQRT((($C82/$B$2)^2)+(($D82/$B$3)^2)+(($E82/$B$4)^2)) -> 277.5353517 | G82: =+IF(+AND(C82=0,D82=0)+OR(+AND(C82=0,E82=0))+OR(+AND(D82=0,E82=0)),"Axial",(+IF(+OR(C82=0,D82=0,E82=0),"Tangential","Oblique"))) -> Tangential | H82: 0.2334795661
C83: 8 | D83: 0 | E83: 1 | F83: =$B$5*SQRT((($C83/$B$2)^2)+(($D83/$B$3)^2)+(($E83/$B$4)^2)) -> 279.4228029 | G83: =+IF(+AND(C83=0,D83=0)+OR(+AND(C83=0,E83=0))+OR(+AND(D83=0,E83=0)),"Axial",(+IF(+OR(C83=0,D83=0,E83=0),"Tangential","Oblique"))) -> Tangential | H83: 1.887451205
C84: 4 | D84: 6 | E84: 0 | F84: =$B$5*SQRT((($C84/$B$2)^2)+(($D84/$B$3)^2)+(($E84/$B$4)^2)) -> 284.4256514 | G84: =+IF(+AND(C84=0,D84=0)+OR(+AND(C84=0,E84=0))+OR(+AND(D84=0,E84=0)),"Axial",(+IF(+OR(C84=0,D84=0,E84=0),"Tangential","Oblique"))) -> Tangential | H84: 5.002848476
C85: 8 | D85: 2 | E85: 0 | F85: =$B$5*SQRT((($C85/$B$2)^2)+(($D85/$B$3)^2)+(($E85/$B$4)^2)) -> 285.2142453 | G85: =+IF(+AND(C85=0,D85=0)+OR(+AND(C85=0,E85=0))+OR(+AND(D85=0,E85=0)),"Axial",(+IF(+OR(C85=0,D85=0,E85=0),"Tangential","Oblique"))) -> Tangential | H85: 0.788593971
C86: 7 | D86: 4 | E86: 0 | F86: =$B$5*SQRT((($C86/$B$2)^2)+(($D86/$B$3)^2)+(($E86/$B$4)^2)) -> 290.9766724 | G86: =+IF(+AND(C86=0,D86=0)+OR(+AND(C86=0,E86=0))+OR(+AND(D86=0,E86=0)),"Axial",(+IF(+OR(C86=0,D86=0,E86=0),"Tangential","Oblique"))) -> Tangential | H86: 5.762427066
C87: 6 | D87: 5 | E87: 0 | F87: =$B$5*SQRT((($C87/$B$2)^2)+(($D87/$B$3)^2)+(($E87/$B$4)^2)) -> 291.7576641 | G87: =+IF(+AND(C87=0,D87=0)+OR(+AND(C87=0,E87=0))+OR(+AND(D87=0,E87=0)),"Axial",(+IF(+OR(C87=0,D87=0,E87=0),"Tangential","Oblique"))) -> Tangential | H87: 0.7809916747
C88: 1 | D88: 7 | E88: 0 | F88: =$B$5*SQRT((($C88/$B$2)^2)+(($D88/$B$3)^2)+(($E88/$B$4)^2)) -> 293.169794 | G88: =+IF(+AND(C88=0,D88=0)+OR(+AND(C88=0,E88=0))+OR(+AND(D88=0,E88=0)),"Axial",(+IF(+OR(C88=0,D88=0,E88=0),"Tangential","Oblique"))) -> Tangential | H88: 1.412129973
C89: 0 | D89: 4 | E89: 4 | F89: =$B$5*SQRT((($C89/$B$2)^2)+(($D89/$B$3)^2)+(($E89/$B$4)^2)) -> 293.4356836 | G89: =+IF(+AND(C89=0,D89=0)+OR(+AND(C89=0,E89=0))+OR(+AND(D89=0,E89=0)),"Axial",(+IF(+OR(C89=0,D89=0,E89=0),"Tangential","Oblique"))) -> Tangential | H89: 0.2658895905
C90: 5 | D90: 0 | E90: 4 | F90: =$B$5*SQRT((($C90/$B$2)^2)+(($D90/$B$3)^2)+(($E90/$B$4)^2)) -> 295.7904871 | G90: =+IF(+AND(C90=0,D90=0)+OR(+AND(C90=0,E90=0))+OR(+AND(D90=0,E90=0)),"Axial",(+IF(+OR(C90=0,D90=0,E90=0),"Tangential","Oblique"))) -> Tangential | H90: 2.354803469
C91: 0 | D91: 7 | E91: 1 | F91: =$B$5*SQRT((($C91/$B$2)^2)+(($D91/$B$3)^2)+(($E91/$B$4)^2)) -> 297.383315 | G91: =+IF(+AND(C91=0,D91=0)+OR(+AND(C91=0,E91=0))+OR(+AND(D91=0,E91=0)),"Axial",(+IF(+OR(C91=0,D91=0,E91=0),"Tangential","Oblique"))) -> Tangential | H91: 1.592827881
C92: 8 | D92: 0 | E92: 2 | F92: =$B$5*SQRT((($C92/$B$2)^2)+(($D92/$B$3)^2)+(($E92/$B$4)^2)) -> 298.3801938 | G92: =+IF(+AND(C92=0,D92=0)+OR(+AND(C92=0,E92=0))+OR(+AND(D92=0,E92=0)),"Axial",(+IF(+OR(C92=0,D92=0,E92=0),"Tangential","Oblique"))) -> Tangential | H92: 0.9968788203
C93: 2 | D93: 7 | E93: 0 | F93: =$B$5*SQRT((($C93/$B$2)^2)+(($D93/$B$3)^2)+(($E93/$B$4)^2)) -> 299.0605988 | G93: =+IF(+AND(C93=0,D93=0)+OR(+AND(C93=0,E93=0))+OR(+AND(D93=0,E93=0)),"Axial",(+IF(+OR(C93=0,D93=0,E93=0),"Tangential","Oblique"))) -> Tangential | H93: 0.6804049871
C94: 7 | D94: 0 | E94: 3 | F94: =$B$5*SQRT((($C94/$B$2)^2)+(($D94/$B$3)^2)+(($E94/$B$4)^2)) -> 299.7386097 | G94: =+IF(+AND(C94=0,D94=0)+OR(+AND(C94=0,E94=0))+OR(+AND(D94=0,E94=0)),"Axial",(+IF(+OR(C94=0,D94=0,E94=0),"Tangential","Oblique"))) -> Tangential | H94: 0.6780109081
C95: 8 | D95: 3 | E95: 0 | F95: =$B$5*SQRT((($C95/$B$2)^2)+(($D95/$B$3)^2)+(($E95/$B$4)^2)) -> 299.9979333 | G95: =+IF(+AND(C95=0,D95=0)+OR(+AND(C95=0,E95=0))+OR(+AND(D95=0,E95=0)),"Axial",(+IF(+OR(C95=0,D95=0,E95=0),"Tangential","Oblique"))) -> Tangential | H95: 0.2593236013
C96: 5 | D96: 6 | E96: 0 | F96: =$B$5*SQRT((($C96/$B$2)^2)+(($D96/$B$3)^2)+(($E96/$B$4)^2)) -> 302.2649367 | G96: =+IF(+AND(C96=0,D96=0)+OR(+AND(C96=0,E96=0))+OR(+AND(D96=0,E96=0)),"Axial",(+IF(+OR(C96=0,D96=0,E96=0),"Tangential","Oblique"))) -> Tangential | H96: 2.267003437
C97: 1 | D97: 0 | E97: 5 | F97: =$B$5*SQRT((($C97/$B$2)^2)+(($D97/$B$3)^2)+(($E97/$B$4)^2)) -> 304.0447586 | G97: =+IF(+AND(C97=0,D97=0)+OR(+AND(C97=0,E97=0))+OR(+AND(D97=0,E97=0)),"Axial",(+IF(+OR(C97=0,D97=0,E97=0),"Tangential","Oblique"))) -> Tangential | H97: 1.779821863
C98: 0 | D98: 1 | E98: 5 | F98: =$B$5*SQRT((($C98/$B$2)^2)+(($D98/$B$3)^2)+(($E98/$B$4)^2)) -> 304.976441 | G98: =+IF(+AND(C98=0,D98=0)+OR(+AND(C98=0,E98=0))+OR(+AND(D98=0,E98=0)),"Axial",(+IF(+OR(C98=0,D98=0,E98=0),"Tangential","Oblique"))) -> Tangential | H98: 0.9316823664
C99: 0 | D99: 6 | E99: 3 | F99: =$B$5*SQRT((($C99/$B$2)^2)+(($D99/$B$3)^2)+(($E99/$B$4)^2)) -> 308.467811 | G99: =+IF(+AND(C99=0,D99=0)+OR(+AND(C99=0,E99=0))+OR(+AND(D99=0,E99=0)),"Axial",(+IF(+OR(C99=0,D99=0,E99=0),"Tangential","Oblique"))) -> Tangential | H99: 3.491370022
C100: 3 | D100: 7 | E100: 0 | F100: =$B$5*SQRT((($C100/$B$2)^2)+(($D100/$B$3)^2)+(($E100/$B$4)^2)) -> 308.6288458 | G100: =+IF(+AND(C100=0,D100=0)+OR(+AND(C100=0,E100=0))+OR(+AND(D100=0,E100=0)),"Axial",(+IF(+OR(C100=0,D100=0,E100=0),"Tangential","Oblique"))) -> Tangential | H100: 0.1610347675
C101: 9 | D101: 1 | E101: 0 | F101: =$B$5*SQRT((($C101/$B$2)^2)+(($D101/$B$3)^2)+(($E101/$B$4)^2)) -> 309.7185598 | G101: =+IF(+AND(C101=0,D101=0)+OR(+AND(C101=0,E101=0))+OR(+AND(D101=0,E101=0)),"Axial",(+IF(+OR(C101=0,D101=0,E101=0),"Tangential","Oblique"))) -> Tangential | H101: 1.089714093
C102: 2 | D102: 0 | E102: 5 | F102: =$B$5*SQRT((($C102/$B$2)^2)+(($D102/$B$3)^2)+(($E102/$B$4)^2)) -> 309.7287989 | G102: =+IF(+AND(C102=0,D102=0)+OR(+AND(C102=0,E102=0))+OR(+AND(D102=0,E102=0)),"Axial",(+IF(+OR(C102=0,D102=0,E102=0),"Tangential","Oblique"))) -> Tangential | H102: 0.01023900932
C103: 9 | D103: 0 | E103: 1 | F103: =$B$5*SQRT((($C103/$B$2)^2)+(($D103/$B$3)^2)+(($E103/$B$4)^2)) -> 312.8042197 | G103: =+IF(+AND(C103=0,D103=0)+OR(+AND(C103=0,E103=0))+OR(+AND(D103=0,E103=0)),"Axial",(+IF(+OR(C103=0,D103=0,E103=0),"Tangential","Oblique"))) -> Tangential | H103: 3.075420892
C104: 0 | D104: 2 | E104: 5 | F104: =$B$5*SQRT((($C104/$B$2)^2)+(($D104/$B$3)^2)+(($E104/$B$4)^2)) -> 313.371323 | G104: =+IF(+AND(C104=0,D104=0)+OR(+AND(C104=0,E104=0))+OR(+AND(D104=0,E104=0)),"Axial",(+IF(+OR(C104=0,D104=0,E104=0),"Tangential","Oblique"))) -> Tangential | H104: 0.5671032705
C105: 0 | D105: 7 | E105: 2 | F105: =$B$5*SQRT((($C105/$B$2)^2)+(($D105/$B$3)^2)+(($E105/$B$4)^2)) -> 315.2625466 | G105: =+IF(+AND(C105=0,D105=0)+OR(+AND(C105=0,E105=0))+OR(+AND(D105=0,E105=0)),"Axial",(+IF(+OR(C105=0,D105=0,E105=0),"Tangential","Oblique"))) -> Tangential | H105: 1.89122362
C106: 7 | D106: 5 | E106: 0 | F106: =$B$5*SQRT((($C106/$B$2)^2)+(($D106/$B$3)^2)+(($E106/$B$4)^2)) -> 316.6074755 | G106: =+IF(+AND(C106=0,D106=0)+OR(+AND(C106=0,E106=0))+OR(+AND(D106=0,E106=0)),"Axial",(+IF(+OR(C106=0,D106=0,E106=0),"Tangential","Oblique"))) -> Tangential | H106: 1.344928824
C107: 6 | D107: 0 | E107: 4 | F107: =$B$5*SQRT((($C107/$B$2)^2)+(($D107/$B$3)^2)+(($E107/$B$4)^2)) -> 316.6764313 | G107: =+IF(+AND(C107=0,D107=0)+OR(+AND(C107=0,E107=0))+OR(+AND(D107=0,E107=0)),"Axial",(+IF(+OR(C107=0,D107=0,E107=0),"Tangential","Oblique"))) -> Tangential | H107: 0.06895587072
C108: 9 | D108: 2 | E108: 0 | F108: =$B$5*SQRT((($C108/$B$2)^2)+(($D108/$B$3)^2)+(($E108/$B$4)^2)) -> 317.9882747 | G108: =+IF(+AND(C108=0,D108=0)+OR(+AND(C108=0,E108=0))+OR(+AND(D108=0,E108=0)),"Axial",(+IF(+OR(C108=0,D108=0,E108=0),"Tangential","Oblique"))) -> Tangential | H108: 1.311843389
C109: 0 | D109: 5 | E109: 4 | F109: =$B$5*SQRT((($C109/$B$2)^2)+(($D109/$B$3)^2)+(($E109/$B$4)^2)) -> 318.8688917 | G109: =+IF(+AND(C109=0,D109=0)+OR(+AND(C109=0,E109=0))+OR(+AND(D109=0,E109=0)),"Axial",(+IF(+OR(C109=0,D109=0,E109=0),"Tangential","Oblique"))) -> Tangential | H109: 0.8806169403
C110: 3 | D110: 0 | E110: 5 | F110: =$B$5*SQRT((($C110/$B$2)^2)+(($D110/$B$3)^2)+(($E110/$B$4)^2)) -> 318.9771959 | G110: =+IF(+AND(C110=0,D110=0)+OR(+AND(C110=0,E110=0))+OR(+AND(D110=0,E110=0)),"Axial",(+IF(+OR(C110=0,D110=0,E110=0),"Tangential","Oblique"))) -> Tangential | H110: 0.1083042685
C111: 8 | D111: 4 | E111: 0 | F111: =$B$5*SQRT((($C111/$B$2)^2)+(($D111/$B$3)^2)+(($E111/$B$4)^2)) -> 319.5481058 | G111: =+IF(+AND(C111=0,D111=0)+OR(+AND(C111=0,E111=0))+OR(+AND(D111=0,E111=0)),"Axial",(+IF(+OR(C111=0,D111=0,E111=0),"Tangential","Oblique"))) -> Tangential | H111: 0.5709098791
C112: 4 | D112: 7 | E112: 0 | F112: =$B$5*SQRT((($C112/$B$2)^2)+(($D112/$B$3)^2)+(($E112/$B$4)^2)) -> 321.5464137 | G112: =+IF(+AND(C112=0,D112=0)+OR(+AND(C112=0,E112=0))+OR(+AND(D112=0,E112=0)),"Axial",(+IF(+OR(C112=0,D112=0,E112=0),"Tangential","Oblique"))) -> Tangential | H112: 1.998307928
C113: 6 | D113: 6 | E113: 0 | F113: =$B$5*SQRT((($C113/$B$2)^2)+(($D113/$B$3)^2)+(($E113/$B$4)^2)) -> 322.7321519 | G113: =+IF(+AND(C113=0,D113=0)+OR(+AND(C113=0,E113=0))+OR(+AND(D113=0,E113=0)),"Axial",(+IF(+OR(C113=0,D113=0,E113=0),"Tangential","Oblique"))) -> Tangential | H113: 1.185738181
C114: 0 | D114: 3 | E114: 5 | F114: =$B$5*SQRT((($C114/$B$2)^2)+(($D114/$B$3)^2)+(($E114/$B$4)^2)) -> 326.8840472 | G114: =+IF(+AND(C114=0,D114=0)+OR(+AND(C114=0,E114=0))+OR(+AND(D114=0,E114=0)),"Axial",(+IF(+OR(C114=0,D114=0,E114=0),"Tangential","Oblique"))) -> Tangential | H114: 4.151895314
C115: 8 | D115: 0 | E115: 3 | F115: =$B$5*SQRT((($C115/$B$2)^2)+(($D115/$B$3)^2)+(($E115/$B$4)^2)) -> 327.5466412 | G115: =+IF(+AND(C115=0,D115=0)+OR(+AND(C115=0,E115=0))+OR(+AND(D115=0,E115=0)),"Axial",(+IF(+OR(C115=0,D115=0,E115=0),"Tangential","Oblique"))) -> Tangential | H115: 0.662594014
C116: 9 | D116: 0 | E116: 2 | F116: =$B$5*SQRT((($C116/$B$2)^2)+(($D116/$B$3)^2)+(($E116/$B$4)^2)) -> 329.8486277 | G116: =+IF(+AND(C116=0,D116=0)+OR(+AND(C116=0,E116=0))+OR(+AND(D116=0,E116=0)),"Axial",(+IF(+OR(C116=0,D116=0,E116=0),"Tangential","Oblique"))) -> Tangential | H116: 2.301986423
C117: 9 | D117: 3 | E117: 0 | F117: =$B$5*SQRT((($C117/$B$2)^2)+(($D117/$B$3)^2)+(($E117/$B$4)^2)) -> 331.3127482 | G117: =+IF(+AND(C117=0,D117=0)+OR(+AND(C117=0,E117=0))+OR(+AND(D117=0,E117=0)),"Axial",(+IF(+OR(C117=0,D117=0,E117=0),"Tangential","Oblique"))) -> Tangential | H117: 1.464120509
C118: 4 | D118: 0 | E118: 5 | F118: =$B$5*SQRT((($C118/$B$2)^2)+(($D118/$B$3)^2)+(($E118/$B$4)^2)) -> 331.4917545 | G118: =+IF(+AND(C118=0,D118=0)+OR(+AND(C118=0,E118=0))+OR(+AND(D118=0,E118=0)),"Axial",(+IF(+OR(C118=0,D118=0,E118=0),"Tangential","Oblique"))) -> Tangential | H118: 0.179006289
C119: 1 | D119: 8 | E119: 0 | F119: =$B$5*SQRT((($C119/$B$2)^2)+(($D119/$B$3)^2)+(($E119/$B$4)^2)) -> 334.5195224 | G119: =+IF(+AND(C119=0,D119=0)+OR(+AND(C119=0,E119=0))+OR(+AND(D119=0,E119=0)),"Axial",(+IF(+OR(C119=0,D119=0,E119=0),"Tangential","Oblique"))) -> Tangential | H119: 3.027767943
C120: 5 | D120: 7 | E120: 0 | F120: =$B$5*SQRT((($C120/$B$2)^2)+(($D120/$B$3)^2)+(($E120/$B$4)^2)) -> 337.4288622 | G120: =+IF(+AND(C120=0,D120=0)+OR(+AND(C120=0,E120=0))+OR(+AND(D120=0,E120=0)),"Axial",(+IF(+OR(C120=0,D120=0,E120=0),"Tangential","Oblique"))) -> Tangential | H120: 2.909339747
C121: 0 | D121: 8 | E121: 1 | F121: =$B$5*SQRT((($C121/$B$2)^2)+(($D121/$B$3)^2)+(($E121/$B$4)^2)) -> 338.2183005 | G121: =+IF(+AND(C121=0,D121=0)+OR(+AND(C121=0,E121=0))+OR(+AND(D121=0,E121=0)),"Axial",(+IF(+OR(C121=0,D121=0,E121=0),"Tangential","Oblique"))) -> Tangential | H121: 0.7894383009
C122: 2 | D122: 8 | E122: 0 | F122: =$B$5*SQRT((($C122/$B$2)^2)+(($D122/$B$3)^2)+(($E122/$B$4)^2)) -> 339.694016 | G122: =+IF(+AND(C122=0,D122=0)+OR(+AND(C122=0,E122=0))+OR(+AND(D122=0,E122=0)),"Axial",(+IF(+OR(C122=0,D122=0,E122=0),"Tangential","Oblique"))) -> Tangential | H122: 1.475715508
C123: 7 | D123: 0 | E123: 4 | F123: =$B$5*SQRT((($C123/$B$2)^2)+(($D123/$B$3)^2)+(($E123/$B$4)^2)) -> 339.7082883 | G123: =+IF(+AND(C123=0,D123=0)+OR(+AND(C123=0,E123=0))+OR(+AND(D123=0,E123=0)),"Axial",(+IF(+OR(C123=0,D123=0,E123=0),"Tangential","Oblique"))) -> Tangential | H123: 0.01427233057
C124: 0 | D124: 7 | E124: 3 | F124: =$B$5*SQRT((($C124/$B$2)^2)+(($D124/$B$3)^2)+(($E124/$B$4)^2)) -> 342.9964073 | G124: =+IF(+AND(C124=0,D124=0)+OR(+AND(C124=0,E124=0))+OR(+AND(D124=0,E124=0)),"Axial",(+IF(+OR(C124=0,D124=0,E124=0),"Tangential","Oblique"))) -> Tangential | H124: 3.288119048
C125: 8 | D125: 5 | E125: 0 | F125: =$B$5*SQRT((($C125/$B$2)^2)+(($D125/$B$3)^2)+(($E125/$B$4)^2)) -> 343.0508148 | G125: =+IF(+AND(C125=0,D125=0)+OR(+AND(C125=0,E125=0))+OR(+AND(D125=0,E125=0)),"Axial",(+IF(+OR(C125=0,D125=0,E125=0),"Tangential","Oblique"))) -> Tangential | H125: 0.05440750246
C126: 0 | D126: 4 | E126: 5 | F126: =$B$5*SQRT((($C126/$B$2)^2)+(($D126/$B$3)^2)+(($E126/$B$4)^2)) -> 344.9136302 | G126: =+IF(+AND(C126=0,D126=0)+OR(+AND(C126=0,E126=0))+OR(+AND(D126=0,E126=0)),"Axial",(+IF(+OR(C126=0,D126=0,E126=0),"Tangential","Oblique"))) -> Tangential | H126: 1.862815325
C127: 7 | D127: 6 | E127: 0 | F127: =$B$5*SQRT((($C127/$B$2)^2)+(($D127/$B$3)^2)+(($E127/$B$4)^2)) -> 345.3603927 | G127: =+IF(+AND(C127=0,D127=0)+OR(+AND(C127=0,E127=0))+OR(+AND(D127=0,E127=0)),"Axial",(+IF(+OR(C127=0,D127=0,E127=0),"Tangential","Oblique"))) -> Tangential | H127: 0.4467625451
C128: 5 | D128: 0 | E128: 5 | F128: =$B$5*SQRT((($C128/$B$2)^2)+(($D128/$B$3)^2)+(($E128/$B$4)^2)) -> 346.9191896 | G128: =+IF(+AND(C128=0,D128=0)+OR(+AND(C128=0,E128=0))+OR(+AND(D128=0,E128=0)),"Axial",(+IF(+OR(C128=0,D128=0,E128=0),"Tangential","Oblique"))) -> Tangential | H128: 1.558796878
C129: 0 | D129: 6 | E129: 4 | F129: =$B$5*SQRT((($C129/$B$2)^2)+(($D129/$B$3)^2)+(($E129/$B$4)^2)) -> 347.4347096 | G129: =+IF(+AND(C129=0,D129=0)+OR(+AND(C129=0,E129=0))+OR(+AND(D129=0,E129=0)),"Axial",(+IF(+OR(C129=0,D129=0,E129=0),"Tangential","Oblique"))) -> Tangential | H129: 0.5155199677
C130: 3 | D130: 8 | E130: 0 | F130: =$B$5*SQRT((($C130/$B$2)^2)+(($D130/$B$3)^2)+(($E130/$B$4)^2)) -> 348.1473067 | G130: =+IF(+AND(C130=0,D130=0)+OR(+AND(C130=0,E130=0))+OR(+AND(D130=0,E130=0)),"Axial",(+IF(+OR(C130=0,D130=0,E130=0),"Tangential","Oblique"))) -> Tangential | H130: 0.7125971429
C131: 9 | D131: 4 | E131: 0 | F131: =$B$5*SQRT((($C131/$B$2)^2)+(($D131/$B$3)^2)+(($E131/$B$4)^2)) -> 349.1136907 | G131: =+IF(+AND(C131=0,D131=0)+OR(+AND(C131=0,E131=0))+OR(+AND(D131=0,E131=0)),"Axial",(+IF(+OR(C131=0,D131=0,E131=0),"Tangential","Oblique"))) -> Tangential | H131: 0.9663840151
C132: 0 | D132: 8 | E132: 2 | F132: =$B$5*SQRT((($C132/$B$2)^2)+(($D132/$B$3)^2)+(($E132/$B$4)^2)) -> 354.0413197 | G132: =+IF(+AND(C132=0,D132=0)+OR(+AND(C132=0,E132=0))+OR(+AND(D132=0,E132=0)),"Axial",(+IF(+OR(C132=0,D132=0,E132=0),"Tangential","Oblique"))) -> Tangential | H132: 4.92762897
C133: 6 | D133: 7 | E133: 0 | F133: =$B$5*SQRT((($C133/$B$2)^2)+(($D133/$B$3)^2)+(($E133/$B$4)^2)) -> 355.8794556 | G133: =+IF(+AND(C133=0,D133=0)+OR(+AND(C133=0,E133=0))+OR(+AND(D133=0,E133=0)),"Axial",(+IF(+OR(C133=0,D133=0,E133=0),"Tangential","Oblique"))) -> Tangential | H133: =F133-F132 -> 1.838135911
C134: 9 | D134: 0 | E134: 3 | F134: =$B$5*SQRT((($C134/$B$2)^2)+(($D134/$B$3)^2)+(($E134/$B$4)^2)) -> 356.4494064 | G134: =+IF(+AND(C134=0,D134=0)+OR(+AND(C134=0,E134=0))+OR(+AND(D134=0,E134=0)),"Axial",(+IF(+OR(C134=0,D134=0,E134=0),"Tangential","Oblique"))) -> Tangential | H134: 0.5699507864
C135: 4 | D135: 8 | E135: 0 | F135: =$B$5*SQRT((($C135/$B$2)^2)+(($D135/$B$3)^2)+(($E135/$B$4)^2)) -> 359.6482711 | G135: =+IF(+AND(C135=0,D135=0)+OR(+AND(C135=0,E135=0))+OR(+AND(D135=0,E135=0)),"Axial",(+IF(+OR(C135=0,D135=0,E135=0),"Tangential","Oblique"))) -> Tangential | H135: 3.198864736
C136: 1 | D136: 0 | E136: 6 | F136: =$B$5*SQRT((($C136/$B$2)^2)+(($D136/$B$3)^2)+(($E136/$B$4)^2)) -> 364.1518254 | G136: =+IF(+AND(C136=0,D136=0)+OR(+AND(C136=0,E136=0))+OR(+AND(D136=0,E136=0)),"Axial",(+IF(+OR(C136=0,D136=0,E136=0),"Tangential","Oblique"))) -> Tangential | H136: 4.503554268
C137: 8 | D137: 0 | E137: 4 | F137: =$B$5*SQRT((($C137/$B$2)^2)+(($D137/$B$3)^2)+(($E137/$B$4)^2)) -> 364.479477 | G137: =+IF(+AND(C137=0,D137=0)+OR(+AND(C137=0,E137=0))+OR(+AND(D137=0,E137=0)),"Axial",(+IF(+OR(C137=0,D137=0,E137=0),"Tangential","Oblique"))) -> Tangential | H137: 0.3276516524
C138: 6 | D138: 0 | E138: 5 | F138: =$B$5*SQRT((($C138/$B$2)^2)+(($D138/$B$3)^2)+(($E138/$B$4)^2)) -> 364.8902219 | G138: =+IF(+AND(C138=0,D138=0)+OR(+AND(C138=0,E138=0))+OR(+AND(D138=0,E138=0)),"Axial",(+IF(+OR(C138=0,D138=0,E138=0),"Tangential","Oblique"))) -> Tangential | H138: 0.4107448193
C139: 0 | D139: 1 | E139: 6 | F139: =$B$5*SQRT((($C139/$B$2)^2)+(($D139/$B$3)^2)+(($E139/$B$4)^2)) -> 364.9300841 | G139: =+IF(+AND(C139=0,D139=0)+OR(+AND(C139=0,E139=0))+OR(+AND(D139=0,E139=0)),"Axial",(+IF(+OR(C139=0,D139=0,E139=0),"Tangential","Oblique"))) -> Tangential | H139: 0.03986219178
C140: 0 | D140: 5 | E140: 5 | F140: =$B$5*SQRT((($C140/$B$2)^2)+(($D140/$B$3)^2)+(($E140/$B$4)^2)) -> 366.7946045 | G140: =+IF(+AND(C140=0,D140=0)+OR(+AND(C140=0,E140=0))+OR(+AND(D140=0,E140=0)),"Axial",(+IF(+OR(C140=0,D140=0,E140=0),"Tangential","Oblique"))) -> Tangential | H140: 1.864520484
C141: 2 | D141: 0 | E141: 6 | F141: =$B$5*SQRT((($C141/$B$2)^2)+(($D141/$B$3)^2)+(($E141/$B$4)^2)) -> 368.9109182 | G141: =+IF(+AND(C141=0,D141=0)+OR(+AND(C141=0,E141=0))+OR(+AND(D141=0,E141=0)),"Axial",(+IF(+OR(C141=0,D141=0,E141=0),"Tangential","Oblique"))) -> Tangential | H141: 2.116313632
C142: 8 | D142: 6 | E142: 0 | F142: =$B$5*SQRT((($C142/$B$2)^2)+(($D142/$B$3)^2)+(($E142/$B$4)^2)) -> 369.7531189 | G142: =+IF(+AND(C142=0,D142=0)+OR(+AND(C142=0,E142=0))+OR(+AND(D142=0,E142=0)),"Axial",(+IF(+OR(C142=0,D142=0,E142=0),"Tangential","Oblique"))) -> Tangential | H142: 0.8422006885
C143: 9 | D143: 5 | E143: 0 | F143: =$B$5*SQRT((($C143/$B$2)^2)+(($D143/$B$3)^2)+(($E143/$B$4)^2)) -> 370.7468661 | G143: =+IF(+AND(C143=0,D143=0)+OR(+AND(C143=0,E143=0))+OR(+AND(D143=0,E143=0)),"Axial",(+IF(+OR(C143=0,D143=0,E143=0),"Tangential","Oblique"))) -> Tangential | H143: 0.9937471951
C144: 0 | D144: 2 | E144: 6 | F144: =$B$5*SQRT((($C144/$B$2)^2)+(($D144/$B$3)^2)+(($E144/$B$4)^2)) -> 371.9743577 | G144: =+IF(+AND(C144=0,D144=0)+OR(+AND(C144=0,E144=0))+OR(+AND(D144=0,E144=0)),"Axial",(+IF(+OR(C144=0,D144=0,E144=0),"Tangential","Oblique"))) -> Tangential | H144: 1.227491658
C145: 5 | D145: 8 | E145: 0 | F145: =$B$5*SQRT((($C145/$B$2)^2)+(($D145/$B$3)^2)+(($E145/$B$4)^2)) -> 373.9157923 | G145: =+IF(+AND(C145=0,D145=0)+OR(+AND(C145=0,E145=0))+OR(+AND(D145=0,E145=0)),"Axial",(+IF(+OR(C145=0,D145=0,E145=0),"Tangential","Oblique"))) -> Tangential | H145: 1.941434615
C146: 1 | D146: 9 | E146: 0 | F146: =$B$5*SQRT((($C146/$B$2)^2)+(($D146/$B$3)^2)+(($E146/$B$4)^2)) -> 375.9238371 | G146: =+IF(+AND(C146=0,D146=0)+OR(+AND(C146=0,E146=0))+OR(+AND(D146=0,E146=0)),"Axial",(+IF(+OR(C146=0,D146=0,E146=0),"Tangential","Oblique"))) -> Tangential | H146: 2.008044782
C147: 7 | D147: 7 | E147: 0 | F147: =$B$5*SQRT((($C147/$B$2)^2)+(($D147/$B$3)^2)+(($E147/$B$4)^2)) -> 376.5208439 | G147: =+IF(+AND(C147=0,D147=0)+OR(+AND(C147=0,E147=0))+OR(+AND(D147=0,E147=0)),"Axial",(+IF(+OR(C147=0,D147=0,E147=0),"Tangential","Oblique"))) -> Tangential | H147: 0.597006796
C148: 3 | D148: 0 | E148: 6 | F148: =$B$5*SQRT((($C148/$B$2)^2)+(($D148/$B$3)^2)+(($E148/$B$4)^2)) -> 376.709156 | G148: =+IF(+AND(C148=0,D148=0)+OR(+AND(C148=0,E148=0))+OR(+AND(D148=0,E148=0)),"Axial",(+IF(+OR(C148=0,D148=0,E148=0),"Tangential","Oblique"))) -> Tangential | H148: 0.1883121147
C149: 0 | D149: 7 | E149: 4 | F149: =$B$5*SQRT((($C149/$B$2)^2)+(($D149/$B$3)^2)+(($E149/$B$4)^2)) -> 378.4243946 | G149: =+IF(+AND(C149=0,D149=0)+OR(+AND(C149=0,E149=0))+OR(+AND(D149=0,E149=0)),"Axial",(+IF(+OR(C149=0,D149=0,E149=0),"Tangential","Oblique"))) -> Tangential | H149: 1.715238604
C150: 0 | D150: 8 | E150: 3 | F150: =$B$5*SQRT((($C150/$B$2)^2)+(($D150/$B$3)^2)+(($E150/$B$4)^2)) -> 378.9476457 | G150: =+IF(+AND(C150=0,D150=0)+OR(+AND(C150=0,E150=0))+OR(+AND(D150=0,E150=0)),"Axial",(+IF(+OR(C150=0,D150=0,E150=0),"Tangential","Oblique"))) -> Tangential | H150: 0.5232510836
C151: 0 | D151: 9 | E151: 1 | F151: =$B$5*SQRT((($C151/$B$2)^2)+(($D151/$B$3)^2)+(($E151/$B$4)^2)) -> 379.2189858 | G151: =+IF(+AND(C151=0,D151=0)+OR(+AND(C151=0,E151=0))+OR(+AND(D151=0,E151=0)),"Axial",(+IF(+OR(C151=0,D151=0,E151=0),"Tangential","Oblique"))) -> Tangential | H151: 0.2713401019
C152: 2 | D152: 9 | E152: 0 | F152: =$B$5*SQRT((($C152/$B$2)^2)+(($D152/$B$3)^2)+(($E152/$B$4)^2)) -> 380.5357341 | G152: =+IF(+AND(C152=0,D152=0)+OR(+AND(C152=0,E152=0))+OR(+AND(D152=0,E152=0)),"Axial",(+IF(+OR(C152=0,D152=0,E152=0),"Tangential","Oblique"))) -> Tangential | H152: 1.316748277
C153: 0 | D153: 3 | E153: 6 | F153: =$B$5*SQRT((($C153/$B$2)^2)+(($D153/$B$3)^2)+(($E153/$B$4)^2)) -> 383.4273295 | G153: =+IF(+AND(C153=0,D153=0)+OR(+AND(C153=0,E153=0))+OR(+AND(D153=0,E153=0)),"Axial",(+IF(+OR(C153=0,D153=0,E153=0),"Tangential","Oblique"))) -> Tangential | H153: 2.891595457
C154: 7 | D154: 0 | E154: 5 | F154: =$B$5*SQRT((($C154/$B$2)^2)+(($D154/$B$3)^2)+(($E154/$B$4)^2)) -> 385.0488709 | G154: =+IF(+AND(C154=0,D154=0)+OR(+AND(C154=0,E154=0))+OR(+AND(D154=0,E154=0)),"Axial",(+IF(+OR(C154=0,D154=0,E154=0),"Tangential","Oblique"))) -> Tangential | H154: 1.621541364
C155: 4 | D155: 0 | E155: 6 | F155: =$B$5*SQRT((($C155/$B$2)^2)+(($D155/$B$3)^2)+(($E155/$B$4)^2)) -> 387.3630338 | G155: =+IF(+AND(C155=0,D155=0)+OR(+AND(C155=0,E155=0))+OR(+AND(D155=0,E155=0)),"Axial",(+IF(+OR(C155=0,D155=0,E155=0),"Tangential","Oblique"))) -> Tangential | H155: 2.314162931
C156: 3 | D156: 9 | E156: 0 | F156: =$B$5*SQRT((($C156/$B$2)^2)+(($D156/$B$3)^2)+(($E156/$B$4)^2)) -> 388.1004607 | G156: =+IF(+AND(C156=0,D156=0)+OR(+AND(C156=0,E156=0))+OR(+AND(D156=0,E156=0)),"Axial",(+IF(+OR(C156=0,D156=0,E156=0),"Tangential","Oblique"))) -> Tangential | H156: 0.7374268657
C157: 6 | D157: 8 | E157: 0 | F157: =$B$5*SQRT((($C157/$B$2)^2)+(($D157/$B$3)^2)+(($E157/$B$4)^2)) -> 390.6468605 | G157: =+IF(+AND(C157=0,D157=0)+OR(+AND(C157=0,E157=0))+OR(+AND(D157=0,E157=0)),"Axial",(+IF(+OR(C157=0,D157=0,E157=0),"Tangential","Oblique"))) -> Tangential | H157: 2.546399841
C158: 9 | D158: 0 | E158: 4 | F158: =$B$5*SQRT((($C158/$B$2)^2)+(($D158/$B$3)^2)+(($E158/$B$4)^2)) -> 390.6592714 | G158: =+IF(+AND(C158=0,D158=0)+OR(+AND(C158=0,E158=0))+OR(+AND(D158=0,E158=0)),"Axial",(+IF(+OR(C158=0,D158=0,E158=0),"Tangential","Oblique"))) -> Tangential | H158: 0.01241082577
C159: 0 | D159: 6 | E159: 5 | F159: =$B$5*SQRT((($C159/$B$2)^2)+(($D159/$B$3)^2)+(($E159/$B$4)^2)) -> 391.8823666 | G159: =+IF(+AND(C159=0,D159=0)+OR(+AND(C159=0,E159=0))+OR(+AND(D159=0,E159=0)),"Axial",(+IF(+OR(C159=0,D159=0,E159=0),"Tangential","Oblique"))) -> Tangential | H159: 1.223095237
C160: 0 | D160: 9 | E160: 2 | F160: =$B$5*SQRT((($C160/$B$2)^2)+(($D160/$B$3)^2)+(($E160/$B$4)^2)) -> 393.3963351 | G160: =+IF(+AND(C160=0,D160=0)+OR(+AND(C160=0,E160=0))+OR(+AND(D160=0,E160=0)),"Axial",(+IF(+OR(C160=0,D160=0,E160=0),"Tangential","Oblique"))) -> Tangential | H160: 1.513968506
C161: 9 | D161: 6 | E161: 0 | F161: =$B$5*SQRT((($C161/$B$2)^2)+(($D161/$B$3)^2)+(($E161/$B$4)^2)) -> 395.5840568 | G161: =+IF(+AND(C161=0,D161=0)+OR(+AND(C161=0,E161=0))+OR(+AND(D161=0,E161=0)),"Axial",(+IF(+OR(C161=0,D161=0,E161=0),"Tangential","Oblique"))) -> Tangential | H161: 2.187721729
C162: 4 | D162: 9 | E162: 0 | F162: =$B$5*SQRT((($C162/$B$2)^2)+(($D162/$B$3)^2)+(($E162/$B$4)^2)) -> 398.4498706 | G162: =+IF(+AND(C162=0,D162=0)+OR(+AND(C162=0,E162=0))+OR(+AND(D162=0,E162=0)),"Axial",(+IF(+OR(C162=0,D162=0,E162=0),"Tangential","Oblique"))) -> Tangential | H162: 2.865813724
C163: 0 | D163: 4 | E163: 6 | F163: =$B$5*SQRT((($C163/$B$2)^2)+(($D163/$B$3)^2)+(($E163/$B$4)^2)) -> 398.9094496 | G163: =+IF(+AND(C163=0,D163=0)+OR(+AND(C163=0,E163=0))+OR(+AND(D163=0,E163=0)),"Axial",(+IF(+OR(C163=0,D163=0,E163=0),"Tangential","Oblique"))) -> Tangential | H163: 0.4595790367
C164: 8 | D164: 7 | E164: 0 | F164: =$B$5*SQRT((($C164/$B$2)^2)+(($D164/$B$3)^2)+(($E164/$B$4)^2)) -> 399.0131751 | G164: =+IF(+AND(C164=0,D164=0)+OR(+AND(C164=0,E164=0))+OR(+AND(D164=0,E164=0)),"Axial",(+IF(+OR(C164=0,D164=0,E164=0),"Tangential","Oblique"))) -> Tangential | H164: 0.103725546
C165: 5 | D165: 0 | E165: 6 | F165: =$B$5*SQRT((($C165/$B$2)^2)+(($D165/$B$3)^2)+(($E165/$B$4)^2)) -> 400.6448063 | G165: =+IF(+AND(C165=0,D165=0)+OR(+AND(C165=0,E165=0))+OR(+AND(D165=0,E165=0)),"Axial",(+IF(+OR(C165=0,D165=0,E165=0),"Tangential","Oblique"))) -> Tangential | H165: 1.631631149
C166: 8 | D166: 0 | E166: 5 | F166: =$B$5*SQRT((($C166/$B$2)^2)+(($D166/$B$3)^2)+(($E166/$B$4)^2)) -> 407.0702655 | G166: =+IF(+AND(C166=0,D166=0)+OR(+AND(C166=0,E166=0))+OR(+AND(D166=0,E166=0)),"Axial",(+IF(+OR(C166=0,D166=0,E166=0),"Tangential","Oblique"))) -> Tangential | H166: 6.425459179
C167: 7 | D167: 8 | E167: 0 | F167: =$B$5*SQRT((($C167/$B$2)^2)+(($D167/$B$3)^2)+(($E167/$B$4)^2)) -> 409.5396545 | G167: =+IF(+AND(C167=0,D167=0)+OR(+AND(C167=0,E167=0))+OR(+AND(D167=0,E167=0)),"Axial",(+IF(+OR(C167=0,D167=0,E167=0),"Tangential","Oblique"))) -> Tangential
C168: 0 | D168: 8 | E168: 4 | F168: =$B$5*SQRT((($C168/$B$2)^2)+(($D168/$B$3)^2)+(($E168/$B$4)^2)) -> 411.2904146 | G168: =+IF(+AND(C168=0,D168=0)+OR(+AND(C168=0,E168=0))+OR(+AND(D168=0,E168=0)),"Axial",(+IF(+OR(C168=0,D168=0,E168=0),"Tangential","Oblique"))) -> Tangential
C169: 5 | D169: 9 | E169: 0 | F169: =$B$5*SQRT((($C169/$B$2)^2)+(($D169/$B$3)^2)+(($E169/$B$4)^2)) -> 411.3738448 | G169: =+IF(+AND(C169=0,D169=0)+OR(+AND(C169=0,E169=0))+OR(+AND(D169=0,E169=0)),"Axial",(+IF(+OR(C169=0,D169=0,E169=0),"Tangential","Oblique"))) -> Tangential
C170: 0 | D170: 9 | E170: 3 | F170: =$B$5*SQRT((($C170/$B$2)^2)+(($D170/$B$3)^2)+(($E170/$B$4)^2)) -> 415.9528082 | G170: =+IF(+AND(C170=0,D170=0)+OR(+AND(C170=0,E170=0))+OR(+AND(D170=0,E170=0)),"Axial",(+IF(+OR(C170=0,D170=0,E170=0),"Tangential","Oblique"))) -> Tangential
C171: 6 | D171: 0 | E171: 6 | F171: =$B$5*SQRT((($C171/$B$2)^2)+(($D171/$B$3)^2)+(($E171/$B$4)^2)) -> 416.3030275 | G171: =+IF(+AND(C171=0,D171=0)+OR(+AND(C171=0,E171=0))+OR(+AND(D171=0,E171=0)),"Axial",(+IF(+OR(C171=0,D171=0,E171=0),"Tangential","Oblique"))) -> Tangential
C172: 0 | D172: 5 | E172: 6 | F172: =$B$5*SQRT((($C172/$B$2)^2)+(($D172/$B$3)^2)+(($E172/$B$4)^2)) -> 417.9732272 | G172: =+IF(+AND(C172=0,D172=0)+OR(+AND(C172=0,E172=0))+OR(+AND(D172=0,E172=0)),"Axial",(+IF(+OR(C172=0,D172=0,E172=0),"Tangential","Oblique"))) -> Tangential
C173: 0 | D173: 7 | E173: 5 | F173: =$B$5*SQRT((($C173/$B$2)^2)+(($D173/$B$3)^2)+(($E173/$B$4)^2)) -> 419.6021143 | G173: =+IF(+AND(C173=0,D173=0)+OR(+AND(C173=0,E173=0))+OR(+AND(D173=0,E173=0)),"Axial",(+IF(+OR(C173=0,D173=0,E173=0),"Tangential","Oblique"))) -> Tangential
C174: 9 | D174: 7 | E174: 0 | F174: =$B$5*SQRT((($C174/$B$2)^2)+(($D174/$B$3)^2)+(($E174/$B$4)^2)) -> 423.0613325 | G174: =+IF(+AND(C174=0,D174=0)+OR(+AND(C174=0,E174=0))+OR(+AND(D174=0,E174=0)),"Axial",(+IF(+OR(C174=0,D174=0,E174=0),"Tangential","Oblique"))) -> Tangential
C175: 1 | D175: 0 | E175: 7 | F175: =$B$5*SQRT((($C175/$B$2)^2)+(($D175/$B$3)^2)+(($E175/$B$4)^2)) -> 424.3492824 | G175: =+IF(+AND(C175=0,D175=0)+OR(+AND(C175=0,E175=0))+OR(+AND(D175=0,E175=0)),"Axial",(+IF(+OR(C175=0,D175=0,E175=0),"Tangential","Oblique"))) -> Tangential
C176: 0 | D176: 1 | E176: 7 | F176: =$B$5*SQRT((($C176/$B$2)^2)+(($D176/$B$3)^2)+(($E176/$B$4)^2)) -> 425.0173265 | G176: =+IF(+AND(C176=0,D176=0)+OR(+AND(C176=0,E176=0))+OR(+AND(D176=0,E176=0)),"Axial",(+IF(+OR(C176=0,D176=0,E176=0),"Tangential","Oblique"))) -> Tangential
C177: 6 | D177: 9 | E177: 0 | F177: =$B$5*SQRT((($C177/$B$2)^2)+(($D177/$B$3)^2)+(($E177/$B$4)^2)) -> 426.638477 | G177: =+IF(+AND(C177=0,D177=0)+OR(+AND(C177=0,E177=0))+OR(+AND(D177=0,E177=0)),"Axial",(+IF(+OR(C177=0,D177=0,E177=0),"Tangential","Oblique"))) -> Tangential
C178: 2 | D178: 0 | E178: 7 | F178: =$B$5*SQRT((($C178/$B$2)^2)+(($D178/$B$3)^2)+(($E178/$B$4)^2)) -> 428.4402258 | G178: =+IF(+AND(C178=0,D178=0)+OR(+AND(C178=0,E178=0))+OR(+AND(D178=0,E178=0)),"Axial",(+IF(+OR(C178=0,D178=0,E178=0),"Tangential","Oblique"))) -> Tangential
C179: 8 | D179: 8 | E179: 0 | F179: =$B$5*SQRT((($C179/$B$2)^2)+(($D179/$B$3)^2)+(($E179/$B$4)^2)) -> 430.3095359 | G179: =+IF(+AND(C179=0,D179=0)+OR(+AND(C179=0,E179=0))+OR(+AND(D179=0,E179=0)),"Axial",(+IF(+OR(C179=0,D179=0,E179=0),"Tangential","Oblique"))) -> Tangential
C180: 9 | D180: 0 | E180: 5 | F180: =$B$5*SQRT((($C180/$B$2)^2)+(($D180/$B$3)^2)+(($E180/$B$4)^2)) -> 430.6687569 | G180: =+IF(+AND(C180=0,D180=0)+OR(+AND(C180=0,E180=0))+OR(+AND(D180=0,E180=0)),"Axial",(+IF(+OR(C180=0,D180=0,E180=0),"Tangential","Oblique"))) -> Tangential
C181: 0 | D181: 2 | E181: 7 | F181: =$B$5*SQRT((($C181/$B$2)^2)+(($D181/$B$3)^2)+(($E181/$B$4)^2)) -> 431.0808327 | G181: =+IF(+AND(C181=0,D181=0)+OR(+AND(C181=0,E181=0))+OR(+AND(D181=0,E181=0)),"Axial",(+IF(+OR(C181=0,D181=0,E181=0),"Tangential","Oblique"))) -> Tangential
C182: 7 | D182: 0 | E182: 6 | F182: =$B$5*SQRT((($C182/$B$2)^2)+(($D182/$B$3)^2)+(($E182/$B$4)^2)) -> 434.0806028 | G182: =+IF(+AND(C182=0,D182=0)+OR(+AND(C182=0,E182=0))+OR(+AND(D182=0,E182=0)),"Axial",(+IF(+OR(C182=0,D182=0,E182=0),"Tangential","Oblique"))) -> Tangential
C183: 3 | D183: 0 | E183: 7 | F183: =$B$5*SQRT((($C183/$B$2)^2)+(($D183/$B$3)^2)+(($E183/$B$4)^2)) -> 435.1730113 | G183: =+IF(+AND(C183=0,D183=0)+OR(+AND(C183=0,E183=0))+OR(+AND(D183=0,E183=0)),"Axial",(+IF(+OR(C183=0,D183=0,E183=0),"Tangential","Oblique"))) -> Tangential
C184: 0 | D184: 6 | E184: 6 | F184: =$B$5*SQRT((($C184/$B$2)^2)+(($D184/$B$3)^2)+(($E184/$B$4)^2)) -> 440.1535254 | G184: =+IF(+AND(C184=0,D184=0)+OR(+AND(C184=0,E184=0))+OR(+AND(D184=0,E184=0)),"Axial",(+IF(+OR(C184=0,D184=0,E184=0),"Tangential","Oblique"))) -> Tangential
C185: 0 | D185: 3 | E185: 7 | F185: =$B$5*SQRT((($C185/$B$2)^2)+(($D185/$B$3)^2)+(($E185/$B$4)^2)) -> 441.0014497 | G185: =+IF(+AND(C185=0,D185=0)+OR(+AND(C185=0,E185=0))+OR(+AND(D185=0,E185=0)),"Axial",(+IF(+OR(C185=0,D185=0,E185=0),"Tangential","Oblique"))) -> Tangential
C186: 7 | D186: 9 | E186: 0 | F186: =$B$5*SQRT((($C186/$B$2)^2)+(($D186/$B$3)^2)+(($E186/$B$4)^2)) -> 444.0024201 | G186: =+IF(+AND(C186=0,D186=0)+OR(+AND(C186=0,E186=0))+OR(+AND(D186=0,E186=0)),"Axial",(+IF(+OR(C186=0,D186=0,E186=0),"Tangential","Oblique"))) -> Tangential
C187: 4 | D187: 0 | E187: 7 | F187: =$B$5*SQRT((($C187/$B$2)^2)+(($D187/$B$3)^2)+(($E187/$B$4)^2)) -> 444.4275886 | G187: =+IF(+AND(C187=0,D187=0)+OR(+AND(C187=0,E187=0))+OR(+AND(D187=0,E187=0)),"Axial",(+IF(+OR(C187=0,D187=0,E187=0),"Tangential","Oblique"))) -> Tangential
C188: 0 | D188: 9 | E188: 4 | F188: =$B$5*SQRT((($C188/$B$2)^2)+(($D188/$B$3)^2)+(($E188/$B$4)^2)) -> 445.6178022 | G188: =+IF(+AND(C188=0,D188=0)+OR(+AND(C188=0,E188=0))+OR(+AND(D188=0,E188=0)),"Axial",(+IF(+OR(C188=0,D188=0,E188=0),"Tangential","Oblique"))) -> Tangential
C189: 0 | D189: 8 | E189: 5 | F189: =$B$5*SQRT((($C189/$B$2)^2)+(($D189/$B$3)^2)+(($E189/$B$4)^2)) -> 449.4671479 | G189: =+IF(+AND(C189=0,D189=0)+OR(+AND(C189=0,E189=0))+OR(+AND(D189=0,E189=0)),"Axial",(+IF(+OR(C189=0,D189=0,E189=0),"Tangential","Oblique"))) -> Tangential
C190: 9 | D190: 8 | E190: 0 | F190: =$B$5*SQRT((($C190/$B$2)^2)+(($D190/$B$3)^2)+(($E190/$B$4)^2)) -> 452.6982149 | G190: =+IF(+AND(C190=0,D190=0)+OR(+AND(C190=0,E190=0))+OR(+AND(D190=0,E190=0)),"Axial",(+IF(+OR(C190=0,D190=0,E190=0),"Tangential","Oblique"))) -> Tangential
C191: 8 | D191: 0 | E191: 6 | F191: =$B$5*SQRT((($C191/$B$2)^2)+(($D191/$B$3)^2)+(($E191/$B$4)^2)) -> 453.7284846 | G191: =+IF(+AND(C191=0,D191=0)+OR(+AND(C191=0,E191=0))+OR(+AND(D191=0,E191=0)),"Axial",(+IF(+OR(C191=0,D191=0,E191=0),"Tangential","Oblique"))) -> Tangential
C192: 0 | D192: 4 | E192: 7 | F192: =$B$5*SQRT((($C192/$B$2)^2)+(($D192/$B$3)^2)+(($E192/$B$4)^2)) -> 454.5266885 | G192: =+IF(+AND(C192=0,D192=0)+OR(+AND(C192=0,E192=0))+OR(+AND(D192=0,E192=0)),"Axial",(+IF(+OR(C192=0,D192=0,E192=0),"Tangential","Oblique"))) -> Tangential
C193: 5 | D193: 0 | E193: 7 | F193: =$B$5*SQRT((($C193/$B$2)^2)+(($D193/$B$3)^2)+(($E193/$B$4)^2)) -> 456.0504603 | G193: =+IF(+AND(C193=0,D193=0)+OR(+AND(C193=0,E193=0))+OR(+AND(D193=0,E193=0)),"Axial",(+IF(+OR(C193=0,D193=0,E193=0),"Tangential","Oblique"))) -> Tangential
C194: 8 | D194: 9 | E194: 0 | F194: =$B$5*SQRT((($C194/$B$2)^2)+(($D194/$B$3)^2)+(($E194/$B$4)^2)) -> 463.2296591 | G194: =+IF(+AND(C194=0,D194=0)+OR(+AND(C194=0,E194=0))+OR(+AND(D194=0,E194=0)),"Axial",(+IF(+OR(C194=0,D194=0,E194=0),"Tangential","Oblique"))) -> Tangential
C195: 0 | D195: 7 | E195: 6 | F195: =$B$5*SQRT((($C195/$B$2)^2)+(($D195/$B$3)^2)+(($E195/$B$4)^2)) -> 465.0045924 | G195: =+IF(+AND(C195=0,D195=0)+OR(+AND(C195=0,E195=0))+OR(+AND(D195=0,E195=0)),"Axial",(+IF(+OR(C195=0,D195=0,E195=0),"Tangential","Oblique"))) -> Tangential
C196: 6 | D196: 0 | E196: 7 | F196: =$B$5*SQRT((($C196/$B$2)^2)+(($D196/$B$3)^2)+(($E196/$B$4)^2)) -> 469.8659088 | G196: =+IF(+AND(C196=0,D196=0)+OR(+AND(C196=0,E196=0))+OR(+AND(D196=0,E196=0)),"Axial",(+IF(+OR(C196=0,D196=0,E196=0),"Tangential","Oblique"))) -> Tangential
C197: 0 | D197: 5 | E197: 7 | F197: =$B$5*SQRT((($C197/$B$2)^2)+(($D197/$B$3)^2)+(($E197/$B$4)^2)) -> 471.3463484 | G197: =+IF(+AND(C197=0,D197=0)+OR(+AND(C197=0,E197=0))+OR(+AND(D197=0,E197=0)),"Axial",(+IF(+OR(C197=0,D197=0,E197=0),"Tangential","Oblique"))) -> Tangential
C198: 9 | D198: 0 | E198: 6 | F198: =$B$5*SQRT((($C198/$B$2)^2)+(($D198/$B$3)^2)+(($E198/$B$4)^2)) -> 475.014647 | G198: =+IF(+AND(C198=0,D198=0)+OR(+AND(C198=0,E198=0))+OR(+AND(D198=0,E198=0)),"Axial",(+IF(+OR(C198=0,D198=0,E198=0),"Tangential","Oblique"))) -> Tangential
C199: 0 | D199: 9 | E199: 5 | F199: =$B$5*SQRT((($C199/$B$2)^2)+(($D199/$B$3)^2)+(($E199/$B$4)^2)) -> 481.0780991 | G199: =+IF(+AND(C199=0,D199=0)+OR(+AND(C199=0,E199=0))+OR(+AND(D199=0,E199=0)),"Axial",(+IF(+OR(C199=0,D199=0,E199=0),"Tangential","Oblique"))) -> Tangential
C200: 9 | D200: 9 | E200: 0 | F200: =$B$5*SQRT((($C200/$B$2)^2)+(($D200/$B$3)^2)+(($E200/$B$4)^2)) -> 484.0982279 | G200: =+IF(+AND(C200=0,D200=0)+OR(+AND(C200=0,E200=0))+OR(+AND(D200=0,E200=0)),"Axial",(+IF(+OR(C200=0,D200=0,E200=0),"Tangential","Oblique"))) -> Tangential
... 45 more rows

Sheet Oblique
C1: Oblique Modes
A2: Lx = | B2: =+AllModes!D2 -> 16.56824147 | C2: nx | D2: ny | E2: nz | F2: f | G2: Type | H2: Spacing | J2: If you found this spreadsheet helpful, please send a donation via PayPal to https://www.paypal.me/JHBrandt/
A3: Ly = | B3: =+AllModes!D3 -> 13.58267717 | C3: 1 | D3: 1 | E3: 1 | F3: =$B$5*SQRT((($C3/$B$2)^2)+(($D3/$B$3)^2)+(($E3/$B$4)^2)) -> 80.89768732 | G3: =+IF(+AND(C3=0,D3=0)+OR(+AND(C3=0,E3=0))+OR(+AND(D3=0,E3=0)),"Axial",(+IF(+OR(C3=0,D3=0,E3=0),"Tangential","Oblique"))) -> Oblique
A4: Lz = | B4: =+AllModes!D4 -> 9.350393701 | C4: 2 | D4: 1 | E4: 1 | F4: =$B$5*SQRT((($C4/$B$2)^2)+(($D4/$B$3)^2)+(($E4/$B$4)^2)) -> 100.16561 | G4: =+IF(+AND(C4=0,D4=0)+OR(+AND(C4=0,E4=0))+OR(+AND(D4=0,E4=0)),"Axial",(+IF(+OR(C4=0,D4=0,E4=0),"Tangential","Oblique"))) -> Oblique | H4: =F4-F3 -> 19.26792266
A5: c/2 = | B5: =1130/2 -> 565 | C5: 1 | D5: 2 | E5: 1 | F5: =$B$5*SQRT((($C5/$B$2)^2)+(($D5/$B$3)^2)+(($E5/$B$4)^2)) -> 108.330016 | G5: =+IF(+AND(C5=0,D5=0)+OR(+AND(C5=0,E5=0))+OR(+AND(D5=0,E5=0)),"Axial",(+IF(+OR(C5=0,D5=0,E5=0),"Tangential","Oblique"))) -> Oblique | H5: =F5-F4 -> 8.164405989
C6: 2 | D6: 2 | E6: 1 | F6: =$B$5*SQRT((($C6/$B$2)^2)+(($D6/$B$3)^2)+(($E6/$B$4)^2)) -> 123.3860039 | G6: =+IF(+AND(C6=0,D6=0)+OR(+AND(C6=0,E6=0))+OR(+AND(D6=0,E6=0)),"Axial",(+IF(+OR(C6=0,D6=0,E6=0),"Tangential","Oblique"))) -> Oblique | H6: 15.05598798
A7: V = | B7: =B2*B3*B4 -> 2104.222651 | C7: 3 | D7: 1 | E7: 1 | F7: =$B$5*SQRT((($C7/$B$2)^2)+(($D7/$B$3)^2)+(($E7/$B$4)^2)) -> 125.8875375 | G7: =+IF(+AND(C7=0,D7=0)+OR(+AND(C7=0,E7=0))+OR(+AND(D7=0,E7=0)),"Axial",(+IF(+OR(C7=0,D7=0,E7=0),"Tangential","Oblique"))) -> Oblique | H7: 2.501533585
C8: 1 | D8: 1 | E8: 2 | F8: =$B$5*SQRT((($C8/$B$2)^2)+(($D8/$B$3)^2)+(($E8/$B$4)^2)) -> 132.2802823 | G8: =+IF(+AND(C8=0,D8=0)+OR(+AND(C8=0,E8=0))+OR(+AND(D8=0,E8=0)),"Axial",(+IF(+OR(C8=0,D8=0,E8=0),"Tangential","Oblique"))) -> Oblique | H8: 6.39274481
C9: 1 | D9: 3 | E9: 1 | F9: =$B$5*SQRT((($C9/$B$2)^2)+(($D9/$B$3)^2)+(($E9/$B$4)^2)) -> 142.7830053 | G9: =+IF(+AND(C9=0,D9=0)+OR(+AND(C9=0,E9=0))+OR(+AND(D9=0,E9=0)),"Axial",(+IF(+OR(C9=0,D9=0,E9=0),"Tangential","Oblique"))) -> Oblique | H9: 10.50272297
C10: 2 | D10: 1 | E10: 2 | F10: =$B$5*SQRT((($C10/$B$2)^2)+(($D10/$B$3)^2)+(($E10/$B$4)^2)) -> 144.8681701 | G10: =+IF(+AND(C10=0,D10=0)+OR(+AND(C10=0,E10=0))+OR(+AND(D10=0,E10=0)),"Axial",(+IF(+OR(C10=0,D10=0,E10=0),"Tangential","Oblique"))) -> Oblique | H10: 2.085164784
C11: 3 | D11: 2 | E11: 1 | F11: =$B$5*SQRT((($C11/$B$2)^2)+(($D11/$B$3)^2)+(($E11/$B$4)^2)) -> 145.0469877 | G11: =+IF(+AND(C11=0,D11=0)+OR(+AND(C11=0,E11=0))+OR(+AND(D11=0,E11=0)),"Axial",(+IF(+OR(C11=0,D11=0,E11=0),"Tangential","Oblique"))) -> Oblique | H11: 0.1788176482
C12: 1 | D12: 2 | E12: 2 | F12: =$B$5*SQRT((($C12/$B$2)^2)+(($D12/$B$3)^2)+(($E12/$B$4)^2)) -> 150.6287809 | G12: =+IF(+AND(C12=0,D12=0)+OR(+AND(C12=0,E12=0))+OR(+AND(D12=0,E12=0)),"Axial",(+IF(+OR(C12=0,D12=0,E12=0),"Tangential","Oblique"))) -> Oblique | H12: 5.581793185
C13: 2 | D13: 3 | E13: 1 | F13: =$B$5*SQRT((($C13/$B$2)^2)+(($D13/$B$3)^2)+(($E13/$B$4)^2)) -> 154.5176372 | G13: =+IF(+AND(C13=0,D13=0)+OR(+AND(C13=0,E13=0))+OR(+AND(D13=0,E13=0)),"Axial",(+IF(+OR(C13=0,D13=0,E13=0),"Tangential","Oblique"))) -> Oblique | H13: 3.888856303
C14: 4 | D14: 1 | E14: 1 | F14: =$B$5*SQRT((($C14/$B$2)^2)+(($D14/$B$3)^2)+(($E14/$B$4)^2)) -> 154.8806116 | G14: =+IF(+AND(C14=0,D14=0)+OR(+AND(C14=0,E14=0))+OR(+AND(D14=0,E14=0)),"Axial",(+IF(+OR(C14=0,D14=0,E14=0),"Tangential","Oblique"))) -> Oblique | H14: 0.3629744107
C15: 2 | D15: 2 | E15: 2 | F15: =$B$5*SQRT((($C15/$B$2)^2)+(($D15/$B$3)^2)+(($E15/$B$4)^2)) -> 161.7953746 | G15: =+IF(+AND(C15=0,D15=0)+OR(+AND(C15=0,E15=0))+OR(+AND(D15=0,E15=0)),"Axial",(+IF(+OR(C15=0,D15=0,E15=0),"Tangential","Oblique"))) -> Oblique | H15: 6.914762995
C16: 3 | D16: 1 | E16: 2 | F16: =$B$5*SQRT((($C16/$B$2)^2)+(($D16/$B$3)^2)+(($E16/$B$4)^2)) -> 163.7110546 | G16: =+IF(+AND(C16=0,D16=0)+OR(+AND(C16=0,E16=0))+OR(+AND(D16=0,E16=0)),"Axial",(+IF(+OR(C16=0,D16=0,E16=0),"Tangential","Oblique"))) -> Oblique | H16: 1.915679937
C17: 4 | D17: 2 | E17: 1 | F17: =$B$5*SQRT((($C17/$B$2)^2)+(($D17/$B$3)^2)+(($E17/$B$4)^2)) -> 170.8185014 | G17: =+IF(+AND(C17=0,D17=0)+OR(+AND(C17=0,E17=0))+OR(+AND(D17=0,E17=0)),"Axial",(+IF(+OR(C17=0,D17=0,E17=0),"Tangential","Oblique"))) -> Oblique | H17: 7.107446794
C18: 3 | D18: 3 | E18: 1 | F18: =$B$5*SQRT((($C18/$B$2)^2)+(($D18/$B$3)^2)+(($E18/$B$4)^2)) -> 172.3085108 | G18: =+IF(+AND(C18=0,D18=0)+OR(+AND(C18=0,E18=0))+OR(+AND(D18=0,E18=0)),"Axial",(+IF(+OR(C18=0,D18=0,E18=0),"Tangential","Oblique"))) -> Oblique | H18: 1.490009445
C19: 1 | D19: 3 | E19: 2 | F19: =$B$5*SQRT((($C19/$B$2)^2)+(($D19/$B$3)^2)+(($E19/$B$4)^2)) -> 177.0328328 | G19: =+IF(+AND(C19=0,D19=0)+OR(+AND(C19=0,E19=0))+OR(+AND(D19=0,E19=0)),"Axial",(+IF(+OR(C19=0,D19=0,E19=0),"Tangential","Oblique"))) -> Oblique | H19: 4.724321987
C20: 3 | D20: 2 | E20: 2 | F20: =$B$5*SQRT((($C20/$B$2)^2)+(($D20/$B$3)^2)+(($E20/$B$4)^2)) -> 178.8638195 | G20: =+IF(+AND(C20=0,D20=0)+OR(+AND(C20=0,E20=0))+OR(+AND(D20=0,E20=0)),"Axial",(+IF(+OR(C20=0,D20=0,E20=0),"Tangential","Oblique"))) -> Oblique | H20: 1.83098673
C21: 1 | D21: 4 | E21: 1 | F21: =$B$5*SQRT((($C21/$B$2)^2)+(($D21/$B$3)^2)+(($E21/$B$4)^2)) -> 180.2753964 | G21: =+IF(+AND(C21=0,D21=0)+OR(+AND(C21=0,E21=0))+OR(+AND(D21=0,E21=0)),"Axial",(+IF(+OR(C21=0,D21=0,E21=0),"Tangential","Oblique"))) -> Oblique | H21: 1.411576875
C22: 5 | D22: 1 | E22: 1 | F22: =$B$5*SQRT((($C22/$B$2)^2)+(($D22/$B$3)^2)+(($E22/$B$4)^2)) -> 185.6182768 | G22: =+IF(+AND(C22=0,D22=0)+OR(+AND(C22=0,E22=0))+OR(+AND(D22=0,E22=0)),"Axial",(+IF(+OR(C22=0,D22=0,E22=0),"Tangential","Oblique"))) -> Oblique | H22: 5.342880422
C23: 2 | D23: 3 | E23: 2 | F23: =$B$5*SQRT((($C23/$B$2)^2)+(($D23/$B$3)^2)+(($E23/$B$4)^2)) -> 186.6261972 | G23: =+IF(+AND(C23=0,D23=0)+OR(+AND(C23=0,E23=0))+OR(+AND(D23=0,E23=0)),"Axial",(+IF(+OR(C23=0,D23=0,E23=0),"Tangential","Oblique"))) -> Oblique | H23: 1.007920421
C24: 4 | D24: 1 | E24: 2 | F24: =$B$5*SQRT((($C24/$B$2)^2)+(($D24/$B$3)^2)+(($E24/$B$4)^2)) -> 186.9268337 | G24: =+IF(+AND(C24=0,D24=0)+OR(+AND(C24=0,E24=0))+OR(+AND(D24=0,E24=0)),"Axial",(+IF(+OR(C24=0,D24=0,E24=0),"Tangential","Oblique"))) -> Oblique | H24: 0.3006364231
C25: 1 | D25: 1 | E25: 3 | F25: =$B$5*SQRT((($C25/$B$2)^2)+(($D25/$B$3)^2)+(($E25/$B$4)^2)) -> 189.087639 | G25: =+IF(+AND(C25=0,D25=0)+OR(+AND(C25=0,E25=0))+OR(+AND(D25=0,E25=0)),"Axial",(+IF(+OR(C25=0,D25=0,E25=0),"Tangential","Oblique"))) -> Oblique | H25: 2.160805365
C26: 2 | D26: 4 | E26: 1 | F26: =$B$5*SQRT((($C26/$B$2)^2)+(($D26/$B$3)^2)+(($E26/$B$4)^2)) -> 189.7048554 | G26: =+IF(+AND(C26=0,D26=0)+OR(+AND(C26=0,E26=0))+OR(+AND(D26=0,E26=0)),"Axial",(+IF(+OR(C26=0,D26=0,E26=0),"Tangential","Oblique"))) -> Oblique | H26: 0.6172163553
C27: 4 | D27: 3 | E27: 1 | F27: =$B$5*SQRT((($C27/$B$2)^2)+(($D27/$B$3)^2)+(($E27/$B$4)^2)) -> 194.5007832 | G27: =+IF(+AND(C27=0,D27=0)+OR(+AND(C27=0,E27=0))+OR(+AND(D27=0,E27=0)),"Axial",(+IF(+OR(C27=0,D27=0,E27=0),"Tangential","Oblique"))) -> Oblique | H27: 4.795927782
C28: 2 | D28: 1 | E28: 3 | F28: =$B$5*SQRT((($C28/$B$2)^2)+(($D28/$B$3)^2)+(($E28/$B$4)^2)) -> 198.0980789 | G28: =+IF(+AND(C28=0,D28=0)+OR(+AND(C28=0,E28=0))+OR(+AND(D28=0,E28=0)),"Axial",(+IF(+OR(C28=0,D28=0,E28=0),"Tangential","Oblique"))) -> Oblique | H28: 3.597295681
C29: 5 | D29: 2 | E29: 1 | F29: =$B$5*SQRT((($C29/$B$2)^2)+(($D29/$B$3)^2)+(($E29/$B$4)^2)) -> 199.1107763 | G29: =+IF(+AND(C29=0,D29=0)+OR(+AND(C29=0,E29=0))+OR(+AND(D29=0,E29=0)),"Axial",(+IF(+OR(C29=0,D29=0,E29=0),"Tangential","Oblique"))) -> Oblique | H29: 1.012697447
C30: 4 | D30: 2 | E30: 2 | F30: =$B$5*SQRT((($C30/$B$2)^2)+(($D30/$B$3)^2)+(($E30/$B$4)^2)) -> 200.33122 | G30: =+IF(+AND(C30=0,D30=0)+OR(+AND(C30=0,E30=0))+OR(+AND(D30=0,E30=0)),"Axial",(+IF(+OR(C30=0,D30=0,E30=0),"Tangential","Oblique"))) -> Oblique | H30: 1.220443665
C31: 3 | D31: 3 | E31: 2 | F31: =$B$5*SQRT((($C31/$B$2)^2)+(($D31/$B$3)^2)+(($E31/$B$4)^2)) -> 201.6032246 | G31: =+IF(+AND(C31=0,D31=0)+OR(+AND(C31=0,E31=0))+OR(+AND(D31=0,E31=0)),"Axial",(+IF(+OR(C31=0,D31=0,E31=0),"Tangential","Oblique"))) -> Oblique | H31: 1.272004666
C32: 1 | D32: 2 | E32: 3 | F32: =$B$5*SQRT((($C32/$B$2)^2)+(($D32/$B$3)^2)+(($E32/$B$4)^2)) -> 202.3489357 | G32: =+IF(+AND(C32=0,D32=0)+OR(+AND(C32=0,E32=0))+OR(+AND(D32=0,E32=0)),"Axial",(+IF(+OR(C32=0,D32=0,E32=0),"Tangential","Oblique"))) -> Oblique | H32: 0.7457110781
C33: 3 | D33: 4 | E33: 1 | F33: =$B$5*SQRT((($C33/$B$2)^2)+(($D33/$B$3)^2)+(($E33/$B$4)^2)) -> 204.4564864 | G33: =+IF(+AND(C33=0,D33=0)+OR(+AND(C33=0,E33=0))+OR(+AND(D33=0,E33=0)),"Axial",(+IF(+OR(C33=0,D33=0,E33=0),"Tangential","Oblique"))) -> Oblique | H33: 2.107550716
C34: 1 | D34: 4 | E34: 2 | F34: =$B$5*SQRT((($C34/$B$2)^2)+(($D34/$B$3)^2)+(($E34/$B$4)^2)) -> 208.453486 | G34: =+IF(+AND(C34=0,D34=0)+OR(+AND(C34=0,E34=0))+OR(+AND(D34=0,E34=0)),"Axial",(+IF(+OR(C34=0,D34=0,E34=0),"Tangential","Oblique"))) -> Oblique | H34: 3.99699959
C35: 2 | D35: 2 | E35: 3 | F35: =$B$5*SQRT((($C35/$B$2)^2)+(($D35/$B$3)^2)+(($E35/$B$4)^2)) -> 210.7932764 | G35: =+IF(+AND(C35=0,D35=0)+OR(+AND(C35=0,E35=0))+OR(+AND(D35=0,E35=0)),"Axial",(+IF(+OR(C35=0,D35=0,E35=0),"Tangential","Oblique"))) -> Oblique | H35: 2.339790425
C36: 3 | D36: 1 | E36: 3 | F36: =$B$5*SQRT((($C36/$B$2)^2)+(($D36/$B$3)^2)+(($E36/$B$4)^2)) -> 212.2672173 | G36: =+IF(+AND(C36=0,D36=0)+OR(+AND(C36=0,E36=0))+OR(+AND(D36=0,E36=0)),"Axial",(+IF(+OR(C36=0,D36=0,E36=0),"Tangential","Oblique"))) -> Oblique | H36: 1.473940832
C37: 5 | D37: 1 | E37: 2 | F37: =$B$5*SQRT((($C37/$B$2)^2)+(($D37/$B$3)^2)+(($E37/$B$4)^2)) -> 213.0910181 | G37: =+IF(+AND(C37=0,D37=0)+OR(+AND(C37=0,E37=0))+OR(+AND(D37=0,E37=0)),"Axial",(+IF(+OR(C37=0,D37=0,E37=0),"Tangential","Oblique"))) -> Oblique | H37: 0.8238007815
C38: 2 | D38: 4 | E38: 2 | F38: =$B$5*SQRT((($C38/$B$2)^2)+(($D38/$B$3)^2)+(($E38/$B$4)^2)) -> 216.6600319 | G38: =+IF(+AND(C38=0,D38=0)+OR(+AND(C38=0,E38=0))+OR(+AND(D38=0,E38=0)),"Axial",(+IF(+OR(C38=0,D38=0,E38=0),"Tangential","Oblique"))) -> Oblique | H38: 3.56901389
C39: 6 | D39: 1 | E39: 1 | F39: =$B$5*SQRT((($C39/$B$2)^2)+(($D39/$B$3)^2)+(($E39/$B$4)^2)) -> 217.3616677 | G39: =+IF(+AND(C39=0,D39=0)+OR(+AND(C39=0,E39=0))+OR(+AND(D39=0,E39=0)),"Axial",(+IF(+OR(C39=0,D39=0,E39=0),"Tangential","Oblique"))) -> Oblique | H39: 0.7016357772
C40: 1 | D40: 5 | E40: 1 | F40: =$B$5*SQRT((($C40/$B$2)^2)+(($D40/$B$3)^2)+(($E40/$B$4)^2)) -> 219.2534793 | G40: =+IF(+AND(C40=0,D40=0)+OR(+AND(C40=0,E40=0))+OR(+AND(D40=0,E40=0)),"Axial",(+IF(+OR(C40=0,D40=0,E40=0),"Tangential","Oblique"))) -> Oblique | H40: 1.89181159
C41: 5 | D41: 3 | E41: 1 | F41: =$B$5*SQRT((($C41/$B$2)^2)+(($D41/$B$3)^2)+(($E41/$B$4)^2)) -> 219.7650916 | G41: =+IF(+AND(C41=0,D41=0)+OR(+AND(C41=0,E41=0))+OR(+AND(D41=0,E41=0)),"Axial",(+IF(+OR(C41=0,D41=0,E41=0),"Tangential","Oblique"))) -> Oblique | H41: 0.5116122847
C42: 4 | D42: 3 | E42: 2 | F42: =$B$5*SQRT((($C42/$B$2)^2)+(($D42/$B$3)^2)+(($E42/$B$4)^2)) -> 220.8714376 | G42: =+IF(+AND(C42=0,D42=0)+OR(+AND(C42=0,E42=0))+OR(+AND(D42=0,E42=0)),"Axial",(+IF(+OR(C42=0,D42=0,E42=0),"Tangential","Oblique"))) -> Oblique | H42: 1.106345983
C43: 1 | D43: 3 | E43: 3 | F43: =$B$5*SQRT((($C43/$B$2)^2)+(($D43/$B$3)^2)+(($E43/$B$4)^2)) -> 222.7031343 | G43: =+IF(+AND(C43=0,D43=0)+OR(+AND(C43=0,E43=0))+OR(+AND(D43=0,E43=0)),"Axial",(+IF(+OR(C43=0,D43=0,E43=0),"Tangential","Oblique"))) -> Oblique | H43: 1.831696723
C44: 4 | D44: 4 | E44: 1 | F44: =$B$5*SQRT((($C44/$B$2)^2)+(($D44/$B$3)^2)+(($E44/$B$4)^2)) -> 223.4788281 | G44: =+IF(+AND(C44=0,D44=0)+OR(+AND(C44=0,E44=0))+OR(+AND(D44=0,E44=0)),"Axial",(+IF(+OR(C44=0,D44=0,E44=0),"Tangential","Oblique"))) -> Oblique | H44: 0.7756937731
C45: 3 | D45: 2 | E45: 3 | F45: =$B$5*SQRT((($C45/$B$2)^2)+(($D45/$B$3)^2)+(($E45/$B$4)^2)) -> 224.1613885 | G45: =+IF(+AND(C45=0,D45=0)+OR(+AND(C45=0,E45=0))+OR(+AND(D45=0,E45=0)),"Axial",(+IF(+OR(C45=0,D45=0,E45=0),"Tangential","Oblique"))) -> Oblique | H45: 0.6825603834
C46: 5 | D46: 2 | E46: 2 | F46: =$B$5*SQRT((($C46/$B$2)^2)+(($D46/$B$3)^2)+(($E46/$B$4)^2)) -> 224.9416336 | G46: =+IF(+AND(C46=0,D46=0)+OR(+AND(C46=0,E46=0))+OR(+AND(D46=0,E46=0)),"Axial",(+IF(+OR(C46=0,D46=0,E46=0),"Tangential","Oblique"))) -> Oblique | H46: 0.7802451319
C47: 2 | D47: 5 | E47: 1 | F47: =$B$5*SQRT((($C47/$B$2)^2)+(($D47/$B$3)^2)+(($E47/$B$4)^2)) -> 227.0700372 | G47: =+IF(+AND(C47=0,D47=0)+OR(+AND(C47=0,E47=0))+OR(+AND(D47=0,E47=0)),"Axial",(+IF(+OR(C47=0,D47=0,E47=0),"Tangential","Oblique"))) -> Oblique | H47: 2.128403622
C48: 6 | D48: 2 | E48: 1 | F48: =$B$5*SQRT((($C48/$B$2)^2)+(($D48/$B$3)^2)+(($E48/$B$4)^2)) -> 228.9913779 | G48: =+IF(+AND(C48=0,D48=0)+OR(+AND(C48=0,E48=0))+OR(+AND(D48=0,E48=0)),"Axial",(+IF(+OR(C48=0,D48=0,E48=0),"Tangential","Oblique"))) -> Oblique | H48: 1.921340663
C49: 3 | D49: 4 | E49: 2 | F49: =$B$5*SQRT((($C49/$B$2)^2)+(($D49/$B$3)^2)+(($E49/$B$4)^2)) -> 229.6869437 | G49: =+IF(+AND(C49=0,D49=0)+OR(+AND(C49=0,E49=0))+OR(+AND(D49=0,E49=0)),"Axial",(+IF(+OR(C49=0,D49=0,E49=0),"Tangential","Oblique"))) -> Oblique | H49: 0.6955658646
C50: 2 | D50: 3 | E50: 3 | F50: =$B$5*SQRT((($C50/$B$2)^2)+(($D50/$B$3)^2)+(($E50/$B$4)^2)) -> 230.4026902 | G50: =+IF(+AND(C50=0,D50=0)+OR(+AND(C50=0,E50=0))+OR(+AND(D50=0,E50=0)),"Axial",(+IF(+OR(C50=0,D50=0,E50=0),"Tangential","Oblique"))) -> Oblique | H50: 0.7157464296
C51: 4 | D51: 1 | E51: 3 | F51: =$B$5*SQRT((($C51/$B$2)^2)+(($D51/$B$3)^2)+(($E51/$B$4)^2)) -> 230.6462731 | G51: =+IF(+AND(C51=0,D51=0)+OR(+AND(C51=0,E51=0))+OR(+AND(D51=0,E51=0)),"Axial",(+IF(+OR(C51=0,D51=0,E51=0),"Tangential","Oblique"))) -> Oblique | H51: 0.2435829077
C52: 3 | D52: 5 | E52: 1 | F52: =$B$5*SQRT((($C52/$B$2)^2)+(($D52/$B$3)^2)+(($E52/$B$4)^2)) -> 239.5314687 | G52: =+IF(+AND(C52=0,D52=0)+OR(+AND(C52=0,E52=0))+OR(+AND(D52=0,E52=0)),"Axial",(+IF(+OR(C52=0,D52=0,E52=0),"Tangential","Oblique"))) -> Oblique | H52: 8.885195591
C53: 6 | D53: 1 | E53: 2 | F53: =$B$5*SQRT((($C53/$B$2)^2)+(($D53/$B$3)^2)+(($E53/$B$4)^2)) -> 241.2462059 | G53: =+IF(+AND(C53=0,D53=0)+OR(+AND(C53=0,E53=0))+OR(+AND(D53=0,E53=0)),"Axial",(+IF(+OR(C53=0,D53=0,E53=0),"Tangential","Oblique"))) -> Oblique | H53: 1.714737266
C54: 4 | D54: 2 | E54: 3 | F54: =$B$5*SQRT((($C54/$B$2)^2)+(($D54/$B$3)^2)+(($E54/$B$4)^2)) -> 241.6374554 | G54: =+IF(+AND(C54=0,D54=0)+OR(+AND(C54=0,E54=0))+OR(+AND(D54=0,E54=0)),"Axial",(+IF(+OR(C54=0,D54=0,E54=0),"Tangential","Oblique"))) -> Oblique | H54: 0.3912494232
C55: 3 | D55: 3 | E55: 3 | F55: =$B$5*SQRT((($C55/$B$2)^2)+(($D55/$B$3)^2)+(($E55/$B$4)^2)) -> 242.693062 | G55: =+IF(+AND(C55=0,D55=0)+OR(+AND(C55=0,E55=0))+OR(+AND(D55=0,E55=0)),"Axial",(+IF(+OR(C55=0,D55=0,E55=0),"Tangential","Oblique"))) -> Oblique | H55: 1.055606596
C56: 1 | D56: 5 | E56: 2 | F56: =$B$5*SQRT((($C56/$B$2)^2)+(($D56/$B$3)^2)+(($E56/$B$4)^2)) -> 242.9521053 | G56: =+IF(+AND(C56=0,D56=0)+OR(+AND(C56=0,E56=0))+OR(+AND(D56=0,E56=0)),"Axial",(+IF(+OR(C56=0,D56=0,E56=0),"Tangential","Oblique"))) -> Oblique | H56: 0.2590433532
C57: 5 | D57: 3 | E57: 2 | F57: =$B$5*SQRT((($C57/$B$2)^2)+(($D57/$B$3)^2)+(($E57/$B$4)^2)) -> 243.4139124 | G57: =+IF(+AND(C57=0,D57=0)+OR(+AND(C57=0,E57=0))+OR(+AND(D57=0,E57=0)),"Axial",(+IF(+OR(C57=0,D57=0,E57=0),"Tangential","Oblique"))) -> Oblique | H57: 0.4618071286
C58: 5 | D58: 4 | E58: 1 | F58: =$B$5*SQRT((($C58/$B$2)^2)+(($D58/$B$3)^2)+(($E58/$B$4)^2)) -> 245.7822765 | G58: =+IF(+AND(C58=0,D58=0)+OR(+AND(C58=0,E58=0))+OR(+AND(D58=0,E58=0)),"Axial",(+IF(+OR(C58=0,D58=0,E58=0),"Tangential","Oblique"))) -> Oblique | H58: 2.368364035
C59: 4 | D59: 4 | E59: 2 | F59: =$B$5*SQRT((($C59/$B$2)^2)+(($D59/$B$3)^2)+(($E59/$B$4)^2)) -> 246.7720079 | G59: =+IF(+AND(C59=0,D59=0)+OR(+AND(C59=0,E59=0))+OR(+AND(D59=0,E59=0)),"Axial",(+IF(+OR(C59=0,D59=0,E59=0),"Tangential","Oblique"))) -> Oblique | H59: 0.9897314254
C60: 6 | D60: 3 | E60: 1 | F60: =$B$5*SQRT((($C60/$B$2)^2)+(($D60/$B$3)^2)+(($E60/$B$4)^2)) -> 247.1611729 | G60: =+IF(+AND(C60=0,D60=0)+OR(+AND(C60=0,E60=0))+OR(+AND(D60=0,E60=0)),"Axial",(+IF(+OR(C60=0,D60=0,E60=0),"Tangential","Oblique"))) -> Oblique | H60: 0.3891649984
C61: 1 | D61: 1 | E61: 4 | F61: =$B$5*SQRT((($C61/$B$2)^2)+(($D61/$B$3)^2)+(($E61/$B$4)^2)) -> 247.6138571 | G61: =+IF(+AND(C61=0,D61=0)+OR(+AND(C61=0,E61=0))+OR(+AND(D61=0,E61=0)),"Axial",(+IF(+OR(C61=0,D61=0,E61=0),"Tangential","Oblique"))) -> Oblique | H61: 0.4526842099
C62: 1 | D62: 4 | E62: 3 | F62: =$B$5*SQRT((($C62/$B$2)^2)+(($D62/$B$3)^2)+(($E62/$B$4)^2)) -> 248.4127975 | G62: =+IF(+AND(C62=0,D62=0)+OR(+AND(C62=0,E62=0))+OR(+AND(D62=0,E62=0)),"Axial",(+IF(+OR(C62=0,D62=0,E62=0),"Tangential","Oblique"))) -> Oblique | H62: 0.798940414
C63: 7 | D63: 1 | E63: 1 | F63: =$B$5*SQRT((($C63/$B$2)^2)+(($D63/$B$3)^2)+(($E63/$B$4)^2)) -> 249.7275587 | G63: =+IF(+AND(C63=0,D63=0)+OR(+AND(C63=0,E63=0))+OR(+AND(D63=0,E63=0)),"Axial",(+IF(+OR(C63=0,D63=0,E63=0),"Tangential","Oblique"))) -> Oblique | H63: 1.314761173
C64: 2 | D64: 5 | E64: 2 | F64: =$B$5*SQRT((($C64/$B$2)^2)+(($D64/$B$3)^2)+(($E64/$B$4)^2)) -> 250.0288765 | G64: =+IF(+AND(C64=0,D64=0)+OR(+AND(C64=0,E64=0))+OR(+AND(D64=0,E64=0)),"Axial",(+IF(+OR(C64=0,D64=0,E64=0),"Tangential","Oblique"))) -> Oblique | H64: 0.3013178064
C65: 6 | D65: 2 | E65: 2 | F65: =$B$5*SQRT((($C65/$B$2)^2)+(($D65/$B$3)^2)+(($E65/$B$4)^2)) -> 251.7750751 | G65: =+IF(+AND(C65=0,D65=0)+OR(+AND(C65=0,E65=0))+OR(+AND(D65=0,E65=0)),"Axial",(+IF(+OR(C65=0,D65=0,E65=0),"Tangential","Oblique"))) -> Oblique | H65: 1.746198568
C66: 5 | D66: 1 | E66: 3 | F66: =$B$5*SQRT((($C66/$B$2)^2)+(($D66/$B$3)^2)+(($E66/$B$4)^2)) -> 252.3169517 | G66: =+IF(+AND(C66=0,D66=0)+OR(+AND(C66=0,E66=0))+OR(+AND(D66=0,E66=0)),"Axial",(+IF(+OR(C66=0,D66=0,E66=0),"Tangential","Oblique"))) -> Oblique | H66: 0.5418766311
C67: 2 | D67: 1 | E67: 4 | F67: =$B$5*SQRT((($C67/$B$2)^2)+(($D67/$B$3)^2)+(($E67/$B$4)^2)) -> 254.561065 | G67: =+IF(+AND(C67=0,D67=0)+OR(+AND(C67=0,E67=0))+OR(+AND(D67=0,E67=0)),"Axial",(+IF(+OR(C67=0,D67=0,E67=0),"Tangential","Oblique"))) -> Oblique | H67: 2.244113353
C68: 2 | D68: 4 | E68: 3 | F68: =$B$5*SQRT((($C68/$B$2)^2)+(($D68/$B$3)^2)+(($E68/$B$4)^2)) -> 255.3382689 | G68: =+IF(+AND(C68=0,D68=0)+OR(+AND(C68=0,E68=0))+OR(+AND(D68=0,E68=0)),"Axial",(+IF(+OR(C68=0,D68=0,E68=0),"Tangential","Oblique"))) -> Oblique | H68: 0.7772038801
C69: 4 | D69: 5 | E69: 1 | F69: =$B$5*SQRT((($C69/$B$2)^2)+(($D69/$B$3)^2)+(($E69/$B$4)^2)) -> 255.960263 | G69: =+IF(+AND(C69=0,D69=0)+OR(+AND(C69=0,E69=0))+OR(+AND(D69=0,E69=0)),"Axial",(+IF(+OR(C69=0,D69=0,E69=0),"Tangential","Oblique"))) -> Oblique | H69: =F69-F68 -> 0.6219940764
C70: 1 | D70: 2 | E70: 4 | F70: =$B$5*SQRT((($C70/$B$2)^2)+(($D70/$B$3)^2)+(($E70/$B$4)^2)) -> 257.882878 | G70: =+IF(+AND(C70=0,D70=0)+OR(+AND(C70=0,E70=0))+OR(+AND(D70=0,E70=0)),"Axial",(+IF(+OR(C70=0,D70=0,E70=0),"Tangential","Oblique"))) -> Oblique | H70: 1.922615015
C71: 4 | D71: 3 | E71: 3 | F71: =$B$5*SQRT((($C71/$B$2)^2)+(($D71/$B$3)^2)+(($E71/$B$4)^2)) -> 258.921328 | G71: =+IF(+AND(C71=0,D71=0)+OR(+AND(C71=0,E71=0))+OR(+AND(D71=0,E71=0)),"Axial",(+IF(+OR(C71=0,D71=0,E71=0),"Tangential","Oblique"))) -> Oblique | H71: 1.038449946
C72: 1 | D72: 6 | E72: 1 | F72: =$B$5*SQRT((($C72/$B$2)^2)+(($D72/$B$3)^2)+(($E72/$B$4)^2)) -> 259.0474774 | G72: =+IF(+AND(C72=0,D72=0)+OR(+AND(C72=0,E72=0))+OR(+AND(D72=0,E72=0)),"Axial",(+IF(+OR(C72=0,D72=0,E72=0),"Tangential","Oblique"))) -> Oblique | H72: 0.1261493966
C73: 7 | D73: 2 | E73: 1 | F73: =$B$5*SQRT((($C73/$B$2)^2)+(($D73/$B$3)^2)+(($E73/$B$4)^2)) -> 259.9130818 | G73: =+IF(+AND(C73=0,D73=0)+OR(+AND(C73=0,E73=0))+OR(+AND(D73=0,E73=0)),"Axial",(+IF(+OR(C73=0,D73=0,E73=0),"Tangential","Oblique"))) -> Oblique | H73: 0.8656044862
C74: 3 | D74: 5 | E74: 2 | F74: =$B$5*SQRT((($C74/$B$2)^2)+(($D74/$B$3)^2)+(($E74/$B$4)^2)) -> 261.3980906 | G74: =+IF(+AND(C74=0,D74=0)+OR(+AND(C74=0,E74=0))+OR(+AND(D74=0,E74=0)),"Axial",(+IF(+OR(C74=0,D74=0,E74=0),"Tangential","Oblique"))) -> Oblique | H74: 1.485008743
C75: 5 | D75: 2 | E75: 3 | F75: =$B$5*SQRT((($C75/$B$2)^2)+(($D75/$B$3)^2)+(($E75/$B$4)^2)) -> 262.401983 | G75: =+IF(+AND(C75=0,D75=0)+OR(+AND(C75=0,E75=0))+OR(+AND(D75=0,E75=0)),"Axial",(+IF(+OR(C75=0,D75=0,E75=0),"Tangential","Oblique"))) -> Oblique | H75: 1.003892366
C76: 2 | D76: 2 | E76: 4 | F76: =$B$5*SQRT((($C76/$B$2)^2)+(($D76/$B$3)^2)+(($E76/$B$4)^2)) -> 264.5605647 | G76: =+IF(+AND(C76=0,D76=0)+OR(+AND(C76=0,E76=0))+OR(+AND(D76=0,E76=0)),"Axial",(+IF(+OR(C76=0,D76=0,E76=0),"Tangential","Oblique"))) -> Oblique | H76: 2.158581726
C77: 2 | D77: 6 | E77: 1 | F77: =$B$5*SQRT((($C77/$B$2)^2)+(($D77/$B$3)^2)+(($E77/$B$4)^2)) -> 265.695896 | G77: =+IF(+AND(C77=0,D77=0)+OR(+AND(C77=0,E77=0))+OR(+AND(D77=0,E77=0)),"Axial",(+IF(+OR(C77=0,D77=0,E77=0),"Tangential","Oblique"))) -> Oblique | H77: 1.135331291
C78: 3 | D78: 1 | E78: 4 | F78: =$B$5*SQRT((($C78/$B$2)^2)+(($D78/$B$3)^2)+(($E78/$B$4)^2)) -> 265.7364456 | G78: =+IF(+AND(C78=0,D78=0)+OR(+AND(C78=0,E78=0))+OR(+AND(D78=0,E78=0)),"Axial",(+IF(+OR(C78=0,D78=0,E78=0),"Tangential","Oblique"))) -> Oblique | H78: 0.04054962853
C79: 3 | D79: 4 | E79: 3 | F79: =$B$5*SQRT((($C79/$B$2)^2)+(($D79/$B$3)^2)+(($E79/$B$4)^2)) -> 266.481058 | G79: =+IF(+AND(C79=0,D79=0)+OR(+AND(C79=0,E79=0))+OR(+AND(D79=0,E79=0)),"Axial",(+IF(+OR(C79=0,D79=0,E79=0),"Tangential","Oblique"))) -> Oblique | H79: 0.7446123777
C80: 5 | D80: 4 | E80: 2 | F80: =$B$5*SQRT((($C80/$B$2)^2)+(($D80/$B$3)^2)+(($E80/$B$4)^2)) -> 267.1377261 | G80: =+IF(+AND(C80=0,D80=0)+OR(+AND(C80=0,E80=0))+OR(+AND(D80=0,E80=0)),"Axial",(+IF(+OR(C80=0,D80=0,E80=0),"Tangential","Oblique"))) -> Oblique | H80: 0.6566681255
C81: 6 | D81: 3 | E81: 2 | F81: =$B$5*SQRT((($C81/$B$2)^2)+(($D81/$B$3)^2)+(($E81/$B$4)^2)) -> 268.4069348 | G81: =+IF(+AND(C81=0,D81=0)+OR(+AND(C81=0,E81=0))+OR(+AND(D81=0,E81=0)),"Axial",(+IF(+OR(C81=0,D81=0,E81=0),"Tangential","Oblique"))) -> Oblique | H81: 1.269208731
C82: 6 | D82: 4 | E82: 1 | F82: =$B$5*SQRT((($C82/$B$2)^2)+(($D82/$B$3)^2)+(($E82/$B$4)^2)) -> 270.5566065 | G82: =+IF(+AND(C82=0,D82=0)+OR(+AND(C82=0,E82=0))+OR(+AND(D82=0,E82=0)),"Axial",(+IF(+OR(C82=0,D82=0,E82=0),"Tangential","Oblique"))) -> Oblique | H82: 2.149671677
C83: 7 | D83: 1 | E83: 2 | F83: =$B$5*SQRT((($C83/$B$2)^2)+(($D83/$B$3)^2)+(($E83/$B$4)^2)) -> 270.7720275 | G83: =+IF(+AND(C83=0,D83=0)+OR(+AND(C83=0,E83=0))+OR(+AND(D83=0,E83=0)),"Axial",(+IF(+OR(C83=0,D83=0,E83=0),"Tangential","Oblique"))) -> Oblique | H83: 0.2154209413
C84: 1 | D84: 3 | E84: 4 | F84: =$B$5*SQRT((($C84/$B$2)^2)+(($D84/$B$3)^2)+(($E84/$B$4)^2)) -> 274.1444382 | G84: =+IF(+AND(C84=0,D84=0)+OR(+AND(C84=0,E84=0))+OR(+AND(D84=0,E84=0)),"Axial",(+IF(+OR(C84=0,D84=0,E84=0),"Tangential","Oblique"))) -> Oblique | H84: 3.37241079
C85: 3 | D85: 2 | E85: 4 | F85: =$B$5*SQRT((($C85/$B$2)^2)+(($D85/$B$3)^2)+(($E85/$B$4)^2)) -> 275.3303744 | G85: =+IF(+AND(C85=0,D85=0)+OR(+AND(C85=0,E85=0))+OR(+AND(D85=0,E85=0)),"Axial",(+IF(+OR(C85=0,D85=0,E85=0),"Tangential","Oblique"))) -> Oblique | H85: 1.185936157
C86: 5 | D86: 5 | E86: 1 | F86: =$B$5*SQRT((($C86/$B$2)^2)+(($D86/$B$3)^2)+(($E86/$B$4)^2)) -> 275.6479586 | G86: =+IF(+AND(C86=0,D86=0)+OR(+AND(C86=0,E86=0))+OR(+AND(D86=0,E86=0)),"Axial",(+IF(+OR(C86=0,D86=0,E86=0),"Tangential","Oblique"))) -> Oblique | H86: 0.3175841731
C87: 7 | D87: 3 | E87: 1 | F87: =$B$5*SQRT((($C87/$B$2)^2)+(($D87/$B$3)^2)+(($E87/$B$4)^2)) -> 276.0550749 | G87: =+IF(+AND(C87=0,D87=0)+OR(+AND(C87=0,E87=0))+OR(+AND(D87=0,E87=0)),"Axial",(+IF(+OR(C87=0,D87=0,E87=0),"Tangential","Oblique"))) -> Oblique | H87: 0.4071162935
C88: 3 | D88: 6 | E88: 1 | F88: =$B$5*SQRT((($C88/$B$2)^2)+(($D88/$B$3)^2)+(($E88/$B$4)^2)) -> 276.421475 | G88: =+IF(+AND(C88=0,D88=0)+OR(+AND(C88=0,E88=0))+OR(+AND(D88=0,E88=0)),"Axial",(+IF(+OR(C88=0,D88=0,E88=0),"Tangential","Oblique"))) -> Oblique | H88: 0.3664000935
C89: 6 | D89: 1 | E89: 3 | F89: =$B$5*SQRT((($C89/$B$2)^2)+(($D89/$B$3)^2)+(($E89/$B$4)^2)) -> 276.5064086 | G89: =+IF(+AND(C89=0,D89=0)+OR(+AND(C89=0,E89=0))+OR(+AND(D89=0,E89=0)),"Axial",(+IF(+OR(C89=0,D89=0,E89=0),"Tangential","Oblique"))) -> Oblique | H89: 0.08493367069
C90: 4 | D90: 5 | E90: 2 | F90: =$B$5*SQRT((($C90/$B$2)^2)+(($D90/$B$3)^2)+(($E90/$B$4)^2)) -> 276.5308184 | G90: =+IF(+AND(C90=0,D90=0)+OR(+AND(C90=0,E90=0))+OR(+AND(D90=0,E90=0)),"Axial",(+IF(+OR(C90=0,D90=0,E90=0),"Tangential","Oblique"))) -> Oblique | H90: 0.02440975922
C91: 1 | D91: 5 | E91: 3 | F91: =$B$5*SQRT((($C91/$B$2)^2)+(($D91/$B$3)^2)+(($E91/$B$4)^2)) -> 277.9960209 | G91: =+IF(+AND(C91=0,D91=0)+OR(+AND(C91=0,E91=0))+OR(+AND(D91=0,E91=0)),"Axial",(+IF(+OR(C91=0,D91=0,E91=0),"Tangential","Oblique"))) -> Oblique | H91: 1.465202462
C92: 5 | D92: 3 | E92: 3 | F92: =$B$5*SQRT((($C92/$B$2)^2)+(($D92/$B$3)^2)+(($E92/$B$4)^2)) -> 278.3997035 | G92: =+IF(+AND(C92=0,D92=0)+OR(+AND(C92=0,E92=0))+OR(+AND(D92=0,E92=0)),"Axial",(+IF(+OR(C92=0,D92=0,E92=0),"Tangential","Oblique"))) -> Oblique | H92: 0.4036826386
C93: 1 | D93: 6 | E93: 2 | F93: =$B$5*SQRT((($C93/$B$2)^2)+(($D93/$B$3)^2)+(($E93/$B$4)^2)) -> 279.3908245 | G93: =+IF(+AND(C93=0,D93=0)+OR(+AND(C93=0,E93=0))+OR(+AND(D93=0,E93=0)),"Axial",(+IF(+OR(C93=0,D93=0,E93=0),"Tangential","Oblique"))) -> Oblique | H93: 0.9911210006
C94: 7 | D94: 2 | E94: 2 | F94: =$B$5*SQRT((($C94/$B$2)^2)+(($D94/$B$3)^2)+(($E94/$B$4)^2)) -> 280.1935891 | G94: =+IF(+AND(C94=0,D94=0)+OR(+AND(C94=0,E94=0))+OR(+AND(D94=0,E94=0)),"Axial",(+IF(+OR(C94=0,D94=0,E94=0),"Tangential","Oblique"))) -> Oblique | H94: 0.802764654
C95: 2 | D95: 3 | E95: 4 | F95: =$B$5*SQRT((($C95/$B$2)^2)+(($D95/$B$3)^2)+(($E95/$B$4)^2)) -> 280.4351737 | G95: =+IF(+AND(C95=0,D95=0)+OR(+AND(C95=0,E95=0))+OR(+AND(D95=0,E95=0)),"Axial",(+IF(+OR(C95=0,D95=0,E95=0),"Tangential","Oblique"))) -> Oblique | H95: 0.2415845216
C96: 4 | D96: 1 | E96: 4 | F96: =$B$5*SQRT((($C96/$B$2)^2)+(($D96/$B$3)^2)+(($E96/$B$4)^2)) -> 280.6353333 | G96: =+IF(+AND(C96=0,D96=0)+OR(+AND(C96=0,E96=0))+OR(+AND(D96=0,E96=0)),"Axial",(+IF(+OR(C96=0,D96=0,E96=0),"Tangential","Oblique"))) -> Oblique | H96: 0.2001595979
C97: 4 | D97: 4 | E97: 3 | F97: =$B$5*SQRT((($C97/$B$2)^2)+(($D97/$B$3)^2)+(($E97/$B$4)^2)) -> 281.3405161 | G97: =+IF(+AND(C97=0,D97=0)+OR(+AND(C97=0,E97=0))+OR(+AND(D97=0,E97=0)),"Axial",(+IF(+OR(C97=0,D97=0,E97=0),"Tangential","Oblique"))) -> Oblique | H97: 0.7051828673
C98: 8 | D98: 1 | E98: 1 | F98: =$B$5*SQRT((($C98/$B$2)^2)+(($D98/$B$3)^2)+(($E98/$B$4)^2)) -> 282.5020737 | G98: =+IF(+AND(C98=0,D98=0)+OR(+AND(C98=0,E98=0))+OR(+AND(D98=0,E98=0)),"Axial",(+IF(+OR(C98=0,D98=0,E98=0),"Tangential","Oblique"))) -> Oblique | H98: 1.161557518
C99: 2 | D99: 5 | E99: 3 | F99: =$B$5*SQRT((($C99/$B$2)^2)+(($D99/$B$3)^2)+(($E99/$B$4)^2)) -> 284.2015152 | G99: =+IF(+AND(C99=0,D99=0)+OR(+AND(C99=0,E99=0))+OR(+AND(D99=0,E99=0)),"Axial",(+IF(+OR(C99=0,D99=0,E99=0),"Tangential","Oblique"))) -> Oblique | H99: 1.69944151
C100: 2 | D100: 6 | E100: 2 | F100: =$B$5*SQRT((($C100/$B$2)^2)+(($D100/$B$3)^2)+(($E100/$B$4)^2)) -> 285.5660106 | G100: =+IF(+AND(C100=0,D100=0)+OR(+AND(C100=0,E100=0))+OR(+AND(D100=0,E100=0)),"Axial",(+IF(+OR(C100=0,D100=0,E100=0),"Tangential","Oblique"))) -> Oblique | H100: 1.364495457
C101: 6 | D101: 2 | E101: 3 | F101: =$B$5*SQRT((($C101/$B$2)^2)+(($D101/$B$3)^2)+(($E101/$B$4)^2)) -> 285.7389553 | G101: =+IF(+AND(C101=0,D101=0)+OR(+AND(C101=0,E101=0))+OR(+AND(D101=0,E101=0)),"Axial",(+IF(+OR(C101=0,D101=0,E101=0),"Tangential","Oblique"))) -> Oblique | H101: 0.1729446572
C102: 4 | D102: 2 | E102: 4 | F102: =$B$5*SQRT((($C102/$B$2)^2)+(($D102/$B$3)^2)+(($E102/$B$4)^2)) -> 289.7363402 | G102: =+IF(+AND(C102=0,D102=0)+OR(+AND(C102=0,E102=0))+OR(+AND(D102=0,E102=0)),"Axial",(+IF(+OR(C102=0,D102=0,E102=0),"Tangential","Oblique"))) -> Oblique | H102: 3.99738491
C103: 6 | D103: 4 | E103: 2 | F103: =$B$5*SQRT((($C103/$B$2)^2)+(($D103/$B$3)^2)+(($E103/$B$4)^2)) -> 290.0939755 | G103: =+IF(+AND(C103=0,D103=0)+OR(+AND(C103=0,E103=0))+OR(+AND(D103=0,E103=0)),"Axial",(+IF(+OR(C103=0,D103=0,E103=0),"Tangential","Oblique"))) -> Oblique | H103: 0.3576352965
C104: 3 | D104: 3 | E104: 4 | F104: =$B$5*SQRT((($C104/$B$2)^2)+(($D104/$B$3)^2)+(($E104/$B$4)^2)) -> 290.6172901 | G104: =+IF(+AND(C104=0,D104=0)+OR(+AND(C104=0,E104=0))+OR(+AND(D104=0,E104=0)),"Axial",(+IF(+OR(C104=0,D104=0,E104=0),"Tangential","Oblique"))) -> Oblique | H104: 0.5233146316
C105: 4 | D105: 6 | E105: 1 | F105: =$B$5*SQRT((($C105/$B$2)^2)+(($D105/$B$3)^2)+(($E105/$B$4)^2)) -> 290.7733887 | G105: =+IF(+AND(C105=0,D105=0)+OR(+AND(C105=0,E105=0))+OR(+AND(D105=0,E105=0)),"Axial",(+IF(+OR(C105=0,D105=0,E105=0),"Tangential","Oblique"))) -> Oblique | H105: 0.1560985862
C106: 8 | D106: 2 | E106: 1 | F106: =$B$5*SQRT((($C106/$B$2)^2)+(($D106/$B$3)^2)+(($E106/$B$4)^2)) -> 291.5448133 | G106: =+IF(+AND(C106=0,D106=0)+OR(+AND(C106=0,E106=0))+OR(+AND(D106=0,E106=0)),"Axial",(+IF(+OR(C106=0,D106=0,E106=0),"Tangential","Oblique"))) -> Oblique | H106: 0.7714246037
C107: 3 | D107: 5 | E107: 3 | F107: =$B$5*SQRT((($C107/$B$2)^2)+(($D107/$B$3)^2)+(($E107/$B$4)^2)) -> 294.2533329 | G107: =+IF(+AND(C107=0,D107=0)+OR(+AND(C107=0,E107=0))+OR(+AND(D107=0,E107=0)),"Axial",(+IF(+OR(C107=0,D107=0,E107=0),"Tangential","Oblique"))) -> Oblique | H107: 2.708519563
C108: 5 | D108: 5 | E108: 2 | F108: =$B$5*SQRT((($C108/$B$2)^2)+(($D108/$B$3)^2)+(($E108/$B$4)^2)) -> 294.8481547 | G108: =+IF(+AND(C108=0,D108=0)+OR(+AND(C108=0,E108=0))+OR(+AND(D108=0,E108=0)),"Axial",(+IF(+OR(C108=0,D108=0,E108=0),"Tangential","Oblique"))) -> Oblique | H108: 0.594821867
C109: 7 | D109: 3 | E109: 2 | F109: =$B$5*SQRT((($C109/$B$2)^2)+(($D109/$B$3)^2)+(($E109/$B$4)^2)) -> 295.2287954 | G109: =+IF(+AND(C109=0,D109=0)+OR(+AND(C109=0,E109=0))+OR(+AND(D109=0,E109=0)),"Axial",(+IF(+OR(C109=0,D109=0,E109=0),"Tangential","Oblique"))) -> Oblique | H109: 0.3806406843
C110: 1 | D110: 4 | E110: 4 | F110: =$B$5*SQRT((($C110/$B$2)^2)+(($D110/$B$3)^2)+(($E110/$B$4)^2)) -> 295.4105702 | G110: =+IF(+AND(C110=0,D110=0)+OR(+AND(C110=0,E110=0))+OR(+AND(D110=0,E110=0)),"Axial",(+IF(+OR(C110=0,D110=0,E110=0),"Tangential","Oblique"))) -> Oblique | H110: 0.1817747444
C111: 3 | D111: 6 | E111: 2 | F111: =$B$5*SQRT((($C111/$B$2)^2)+(($D111/$B$3)^2)+(($E111/$B$4)^2)) -> 295.5714281 | G111: =+IF(+AND(C111=0,D111=0)+OR(+AND(C111=0,E111=0))+OR(+AND(D111=0,E111=0)),"Axial",(+IF(+OR(C111=0,D111=0,E111=0),"Tangential","Oblique"))) -> Oblique | H111: 0.1608579282
C112: 7 | D112: 4 | E112: 1 | F112: =$B$5*SQRT((($C112/$B$2)^2)+(($D112/$B$3)^2)+(($E112/$B$4)^2)) -> 297.1845156 | G112: =+IF(+AND(C112=0,D112=0)+OR(+AND(C112=0,E112=0))+OR(+AND(D112=0,E112=0)),"Axial",(+IF(+OR(C112=0,D112=0,E112=0),"Tangential","Oblique"))) -> Oblique | H112: 1.613087495
C113: 6 | D113: 5 | E113: 1 | F113: =$B$5*SQRT((($C113/$B$2)^2)+(($D113/$B$3)^2)+(($E113/$B$4)^2)) -> 297.9492356 | G113: =+IF(+AND(C113=0,D113=0)+OR(+AND(C113=0,E113=0))+OR(+AND(D113=0,E113=0)),"Axial",(+IF(+OR(C113=0,D113=0,E113=0),"Tangential","Oblique"))) -> Oblique | H113: 0.7647199717
C114: 5 | D114: 1 | E114: 4 | F114: =$B$5*SQRT((($C114/$B$2)^2)+(($D114/$B$3)^2)+(($E114/$B$4)^2)) -> 298.7010732 | G114: =+IF(+AND(C114=0,D114=0)+OR(+AND(C114=0,E114=0))+OR(+AND(D114=0,E114=0)),"Axial",(+IF(+OR(C114=0,D114=0,E114=0),"Tangential","Oblique"))) -> Oblique | H114: 0.7518376025
C115: 1 | D115: 7 | E115: 1 | F115: =$B$5*SQRT((($C115/$B$2)^2)+(($D115/$B$3)^2)+(($E115/$B$4)^2)) -> 299.3321576 | G115: =+IF(+AND(C115=0,D115=0)+OR(+AND(C115=0,E115=0))+OR(+AND(D115=0,E115=0)),"Axial",(+IF(+OR(C115=0,D115=0,E115=0),"Tangential","Oblique"))) -> Oblique | H115: 0.6310844254
C116: 5 | D116: 4 | E116: 3 | F116: =$B$5*SQRT((($C116/$B$2)^2)+(($D116/$B$3)^2)+(($E116/$B$4)^2)) -> 299.3637033 | G116: =+IF(+AND(C116=0,D116=0)+OR(+AND(C116=0,E116=0))+OR(+AND(D116=0,E116=0)),"Axial",(+IF(+OR(C116=0,D116=0,E116=0),"Tangential","Oblique"))) -> Oblique | H116: 0.03154570501
C117: 6 | D117: 3 | E117: 3 | F117: =$B$5*SQRT((($C117/$B$2)^2)+(($D117/$B$3)^2)+(($E117/$B$4)^2)) -> 300.4968299 | G117: =+IF(+AND(C117=0,D117=0)+OR(+AND(C117=0,E117=0))+OR(+AND(D117=0,E117=0)),"Axial",(+IF(+OR(C117=0,D117=0,E117=0),"Tangential","Oblique"))) -> Oblique | H117: 1.133126655
C118: 2 | D118: 4 | E118: 4 | F118: =$B$5*SQRT((($C118/$B$2)^2)+(($D118/$B$3)^2)+(($E118/$B$4)^2)) -> 301.2575619 | G118: =+IF(+AND(C118=0,D118=0)+OR(+AND(C118=0,E118=0))+OR(+AND(D118=0,E118=0)),"Axial",(+IF(+OR(C118=0,D118=0,E118=0),"Tangential","Oblique"))) -> Oblique | H118: 0.7607319076
C119: 8 | D119: 1 | E119: 2 | F119: =$B$5*SQRT((($C119/$B$2)^2)+(($D119/$B$3)^2)+(($E119/$B$4)^2)) -> 301.2657612 | G119: =+IF(+AND(C119=0,D119=0)+OR(+AND(C119=0,E119=0))+OR(+AND(D119=0,E119=0)),"Axial",(+IF(+OR(C119=0,D119=0,E119=0),"Tangential","Oblique"))) -> Oblique | H119: 0.00819939606
C120: 7 | D120: 1 | E120: 3 | F120: =$B$5*SQRT((($C120/$B$2)^2)+(($D120/$B$3)^2)+(($E120/$B$4)^2)) -> 302.6112242 | G120: =+IF(+AND(C120=0,D120=0)+OR(+AND(C120=0,E120=0))+OR(+AND(D120=0,E120=0)),"Axial",(+IF(+OR(C120=0,D120=0,E120=0),"Tangential","Oblique"))) -> Oblique | H120: 1.345462916
C121: 4 | D121: 3 | E121: 4 | F121: =$B$5*SQRT((($C121/$B$2)^2)+(($D121/$B$3)^2)+(($E121/$B$4)^2)) -> 304.3004125 | G121: =+IF(+AND(C121=0,D121=0)+OR(+AND(C121=0,E121=0))+OR(+AND(D121=0,E121=0)),"Axial",(+IF(+OR(C121=0,D121=0,E121=0),"Tangential","Oblique"))) -> Oblique | H121: 1.689188371
C122: 2 | D122: 7 | E122: 1 | F122: =$B$5*SQRT((($C122/$B$2)^2)+(($D122/$B$3)^2)+(($E122/$B$4)^2)) -> 305.1040055 | G122: =+IF(+AND(C122=0,D122=0)+OR(+AND(C122=0,E122=0))+OR(+AND(D122=0,E122=0)),"Axial",(+IF(+OR(C122=0,D122=0,E122=0),"Tangential","Oblique"))) -> Oblique | H122: 0.8035929677
C123: 8 | D123: 3 | E123: 1 | F123: =$B$5*SQRT((($C123/$B$2)^2)+(($D123/$B$3)^2)+(($E123/$B$4)^2)) -> 306.0228299 | G123: =+IF(+AND(C123=0,D123=0)+OR(+AND(C123=0,E123=0))+OR(+AND(D123=0,E123=0)),"Axial",(+IF(+OR(C123=0,D123=0,E123=0),"Tangential","Oblique"))) -> Oblique | H123: 0.9188243794
C124: 1 | D124: 1 | E124: 5 | F124: =$B$5*SQRT((($C124/$B$2)^2)+(($D124/$B$3)^2)+(($E124/$B$4)^2)) -> 306.8770667 | G124: =+IF(+AND(C124=0,D124=0)+OR(+AND(C124=0,E124=0))+OR(+AND(D124=0,E124=0)),"Axial",(+IF(+OR(C124=0,D124=0,E124=0),"Tangential","Oblique"))) -> Oblique | H124: 0.8542368365
C125: 5 | D125: 2 | E125: 4 | F125: =$B$5*SQRT((($C125/$B$2)^2)+(($D125/$B$3)^2)+(($E125/$B$4)^2)) -> 307.267453 | G125: =+IF(+AND(C125=0,D125=0)+OR(+AND(C125=0,E125=0))+OR(+AND(D125=0,E125=0)),"Axial",(+IF(+OR(C125=0,D125=0,E125=0),"Tangential","Oblique"))) -> Oblique | H125: 0.3903862491
C126: 4 | D126: 5 | E126: 3 | F126: =$B$5*SQRT((($C126/$B$2)^2)+(($D126/$B$3)^2)+(($E126/$B$4)^2)) -> 307.7748457 | G126: =+IF(+AND(C126=0,D126=0)+OR(+AND(C126=0,E126=0))+OR(+AND(D126=0,E126=0)),"Axial",(+IF(+OR(C126=0,D126=0,E126=0),"Tangential","Oblique"))) -> Oblique | H126: 0.5073927536
C127: 5 | D127: 6 | E127: 1 | F127: =$B$5*SQRT((($C127/$B$2)^2)+(($D127/$B$3)^2)+(($E127/$B$4)^2)) -> 308.2455262 | G127: =+IF(+AND(C127=0,D127=0)+OR(+AND(C127=0,E127=0))+OR(+AND(D127=0,E127=0)),"Axial",(+IF(+OR(C127=0,D127=0,E127=0),"Tangential","Oblique"))) -> Oblique | H127: 0.4706804508
C128: 4 | D128: 6 | E128: 2 | F128: =$B$5*SQRT((($C128/$B$2)^2)+(($D128/$B$3)^2)+(($E128/$B$4)^2)) -> 309.0352745 | G128: =+IF(+AND(C128=0,D128=0)+OR(+AND(C128=0,E128=0))+OR(+AND(D128=0,E128=0)),"Axial",(+IF(+OR(C128=0,D128=0,E128=0),"Tangential","Oblique"))) -> Oblique | H128: 0.7897482854
C129: 8 | D129: 2 | E129: 2 | F129: =$B$5*SQRT((($C129/$B$2)^2)+(($D129/$B$3)^2)+(($E129/$B$4)^2)) -> 309.7612233 | G129: =+IF(+AND(C129=0,D129=0)+OR(+AND(C129=0,E129=0))+OR(+AND(D129=0,E129=0)),"Axial",(+IF(+OR(C129=0,D129=0,E129=0),"Tangential","Oblique"))) -> Oblique | H129: 0.7259488214
C130: 1 | D130: 6 | E130: 3 | F130: =$B$5*SQRT((($C130/$B$2)^2)+(($D130/$B$3)^2)+(($E130/$B$4)^2)) -> 310.3470556 | G130: =+IF(+AND(C130=0,D130=0)+OR(+AND(C130=0,E130=0))+OR(+AND(D130=0,E130=0)),"Axial",(+IF(+OR(C130=0,D130=0,E130=0),"Tangential","Oblique"))) -> Oblique | H130: 0.5858323684
C131: 3 | D131: 4 | E131: 4 | F131: =$B$5*SQRT((($C131/$B$2)^2)+(($D131/$B$3)^2)+(($E131/$B$4)^2)) -> 310.7581717 | G131: =+IF(+AND(C131=0,D131=0)+OR(+AND(C131=0,E131=0))+OR(+AND(D131=0,E131=0)),"Axial",(+IF(+OR(C131=0,D131=0,E131=0),"Tangential","Oblique"))) -> Oblique | H131: 0.4111160165
C132: 7 | D132: 2 | E132: 3 | F132: =$B$5*SQRT((($C132/$B$2)^2)+(($D132/$B$3)^2)+(($E132/$B$4)^2)) -> 311.0699432 | G132: =+IF(+AND(C132=0,D132=0)+OR(+AND(C132=0,E132=0))+OR(+AND(D132=0,E132=0)),"Axial",(+IF(+OR(C132=0,D132=0,E132=0),"Tangential","Oblique"))) -> Oblique | H132: 0.3117714955
C133: 2 | D133: 1 | E133: 5 | F133: =$B$5*SQRT((($C133/$B$2)^2)+(($D133/$B$3)^2)+(($E133/$B$4)^2)) -> 312.5095962 | G133: =+IF(+AND(C133=0,D133=0)+OR(+AND(C133=0,E133=0))+OR(+AND(D133=0,E133=0)),"Axial",(+IF(+OR(C133=0,D133=0,E133=0),"Tangential","Oblique"))) -> Oblique | H133: =F133-F132 -> 1.439652993
C134: 3 | D134: 7 | E134: 1 | F134: =$B$5*SQRT((($C134/$B$2)^2)+(($D134/$B$3)^2)+(($E134/$B$4)^2)) -> 314.4884368 | G134: =+IF(+AND(C134=0,D134=0)+OR(+AND(C134=0,E134=0))+OR(+AND(D134=0,E134=0)),"Axial",(+IF(+OR(C134=0,D134=0,E134=0),"Tangential","Oblique"))) -> Oblique | H134: 1.978840609
C135: 7 | D135: 4 | E135: 2 | F135: =$B$5*SQRT((($C135/$B$2)^2)+(($D135/$B$3)^2)+(($E135/$B$4)^2)) -> 315.0750285 | G135: =+IF(+AND(C135=0,D135=0)+OR(+AND(C135=0,E135=0))+OR(+AND(D135=0,E135=0)),"Axial",(+IF(+OR(C135=0,D135=0,E135=0),"Tangential","Oblique"))) -> Oblique | H135: 0.5865917419
C136: 1 | D136: 2 | E136: 5 | F136: =$B$5*SQRT((($C136/$B$2)^2)+(($D136/$B$3)^2)+(($E136/$B$4)^2)) -> 315.2213359 | G136: =+IF(+AND(C136=0,D136=0)+OR(+AND(C136=0,E136=0))+OR(+AND(D136=0,E136=0)),"Axial",(+IF(+OR(C136=0,D136=0,E136=0),"Tangential","Oblique"))) -> Oblique | H136: 0.1463074254
C137: 9 | D137: 1 | E137: 1 | F137: =$B$5*SQRT((($C137/$B$2)^2)+(($D137/$B$3)^2)+(($E137/$B$4)^2)) -> 315.5579166 | G137: =+IF(+AND(C137=0,D137=0)+OR(+AND(C137=0,E137=0))+OR(+AND(D137=0,E137=0)),"Axial",(+IF(+OR(C137=0,D137=0,E137=0),"Tangential","Oblique"))) -> Oblique | H137: 0.3365806871
C138: 6 | D138: 5 | E138: 2 | F138: =$B$5*SQRT((($C138/$B$2)^2)+(($D138/$B$3)^2)+(($E138/$B$4)^2)) -> 315.7964285 | G138: =+IF(+AND(C138=0,D138=0)+OR(+AND(C138=0,E138=0))+OR(+AND(D138=0,E138=0)),"Axial",(+IF(+OR(C138=0,D138=0,E138=0),"Tangential","Oblique"))) -> Oblique | H138: 0.2385118816
C139: 2 | D139: 6 | E139: 3 | F139: =$B$5*SQRT((($C139/$B$2)^2)+(($D139/$B$3)^2)+(($E139/$B$4)^2)) -> 315.9177244 | G139: =+IF(+AND(C139=0,D139=0)+OR(+AND(C139=0,E139=0))+OR(+AND(D139=0,E139=0)),"Axial",(+IF(+OR(C139=0,D139=0,E139=0),"Tangential","Oblique"))) -> Oblique | H139: 0.1212958528
C140: 1 | D140: 7 | E140: 2 | F140: =$B$5*SQRT((($C140/$B$2)^2)+(($D140/$B$3)^2)+(($E140/$B$4)^2)) -> 317.1015261 | G140: =+IF(+AND(C140=0,D140=0)+OR(+AND(C140=0,E140=0))+OR(+AND(D140=0,E140=0)),"Axial",(+IF(+OR(C140=0,D140=0,E140=0),"Tangential","Oblique"))) -> Oblique | H140: 1.183801737
C141: 6 | D141: 1 | E141: 4 | F141: =$B$5*SQRT((($C141/$B$2)^2)+(($D141/$B$3)^2)+(($E141/$B$4)^2)) -> 319.3967455 | G141: =+IF(+AND(C141=0,D141=0)+OR(+AND(C141=0,E141=0))+OR(+AND(D141=0,E141=0)),"Axial",(+IF(+OR(C141=0,D141=0,E141=0),"Tangential","Oblique"))) -> Oblique | H141: 2.295219369
C142: 6 | D142: 4 | E142: 3 | F142: =$B$5*SQRT((($C142/$B$2)^2)+(($D142/$B$3)^2)+(($E142/$B$4)^2)) -> 320.0165257 | G142: =+IF(+AND(C142=0,D142=0)+OR(+AND(C142=0,E142=0))+OR(+AND(D142=0,E142=0)),"Axial",(+IF(+OR(C142=0,D142=0,E142=0),"Tangential","Oblique"))) -> Oblique | H142: 0.6197802871
C143: 1 | D143: 5 | E143: 4 | F143: =$B$5*SQRT((($C143/$B$2)^2)+(($D143/$B$3)^2)+(($E143/$B$4)^2)) -> 320.6871912 | G143: =+IF(+AND(C143=0,D143=0)+OR(+AND(C143=0,E143=0))+OR(+AND(D143=0,E143=0)),"Axial",(+IF(+OR(C143=0,D143=0,E143=0),"Tangential","Oblique"))) -> Oblique | H143: 0.6706654624
C144: 2 | D144: 2 | E144: 5 | F144: =$B$5*SQRT((($C144/$B$2)^2)+(($D144/$B$3)^2)+(($E144/$B$4)^2)) -> 320.7073498 | G144: =+IF(+AND(C144=0,D144=0)+OR(+AND(C144=0,E144=0))+OR(+AND(D144=0,E144=0)),"Axial",(+IF(+OR(C144=0,D144=0,E144=0),"Tangential","Oblique"))) -> Oblique | H144: 0.0201586225
C145: 5 | D145: 3 | E145: 4 | F145: =$B$5*SQRT((($C145/$B$2)^2)+(($D145/$B$3)^2)+(($E145/$B$4)^2)) -> 321.0371971 | G145: =+IF(+AND(C145=0,D145=0)+OR(+AND(C145=0,E145=0))+OR(+AND(D145=0,E145=0)),"Axial",(+IF(+OR(C145=0,D145=0,E145=0),"Tangential","Oblique"))) -> Oblique | H145: 0.3298472339
C146: 3 | D146: 1 | E146: 5 | F146: =$B$5*SQRT((($C146/$B$2)^2)+(($D146/$B$3)^2)+(($E146/$B$4)^2)) -> 321.6780539 | G146: =+IF(+AND(C146=0,D146=0)+OR(+AND(C146=0,E146=0))+OR(+AND(D146=0,E146=0)),"Axial",(+IF(+OR(C146=0,D146=0,E146=0),"Tangential","Oblique"))) -> Oblique | H146: 0.6408568517
C147: 7 | D147: 5 | E147: 1 | F147: =$B$5*SQRT((($C147/$B$2)^2)+(($D147/$B$3)^2)+(($E147/$B$4)^2)) -> 322.3220531 | G147: =+IF(+AND(C147=0,D147=0)+OR(+AND(C147=0,E147=0))+OR(+AND(D147=0,E147=0)),"Axial",(+IF(+OR(C147=0,D147=0,E147=0),"Tangential","Oblique"))) -> Oblique | H147: 0.643999231
C148: 2 | D148: 7 | E148: 2 | F148: =$B$5*SQRT((($C148/$B$2)^2)+(($D148/$B$3)^2)+(($E148/$B$4)^2)) -> 322.5555634 | G148: =+IF(+AND(C148=0,D148=0)+OR(+AND(C148=0,E148=0))+OR(+AND(D148=0,E148=0)),"Axial",(+IF(+OR(C148=0,D148=0,E148=0),"Tangential","Oblique"))) -> Oblique | H148: 0.233510218
C149: 8 | D149: 3 | E149: 2 | F149: =$B$5*SQRT((($C149/$B$2)^2)+(($D149/$B$3)^2)+(($E149/$B$4)^2)) -> 323.424813 | G149: =+IF(+AND(C149=0,D149=0)+OR(+AND(C149=0,E149=0))+OR(+AND(D149=0,E149=0)),"Axial",(+IF(+OR(C149=0,D149=0,E149=0),"Tangential","Oblique"))) -> Oblique | H149: 0.8692496796
C150: 4 | D150: 4 | E150: 4 | F150: =$B$5*SQRT((($C150/$B$2)^2)+(($D150/$B$3)^2)+(($E150/$B$4)^2)) -> 323.5907493 | G150: =+IF(+AND(C150=0,D150=0)+OR(+AND(C150=0,E150=0))+OR(+AND(D150=0,E150=0)),"Axial",(+IF(+OR(C150=0,D150=0,E150=0),"Tangential","Oblique"))) -> Oblique | H150: 0.1659362246
C151: 9 | D151: 2 | E151: 1 | F151: =$B$5*SQRT((($C151/$B$2)^2)+(($D151/$B$3)^2)+(($E151/$B$4)^2)) -> 323.6784752 | G151: =+IF(+AND(C151=0,D151=0)+OR(+AND(C151=0,E151=0))+OR(+AND(D151=0,E151=0)),"Axial",(+IF(+OR(C151=0,D151=0,E151=0),"Tangential","Oblique"))) -> Oblique | H151: 0.08772589818
C152: 5 | D152: 5 | E152: 3 | F152: =$B$5*SQRT((($C152/$B$2)^2)+(($D152/$B$3)^2)+(($E152/$B$4)^2)) -> 324.3323858 | G152: =+IF(+AND(C152=0,D152=0)+OR(+AND(C152=0,E152=0))+OR(+AND(D152=0,E152=0)),"Axial",(+IF(+OR(C152=0,D152=0,E152=0),"Tangential","Oblique"))) -> Oblique | H152: 0.653910648
C153: 7 | D153: 3 | E153: 3 | F153: =$B$5*SQRT((($C153/$B$2)^2)+(($D153/$B$3)^2)+(($E153/$B$4)^2)) -> 324.6784621 | G153: =+IF(+AND(C153=0,D153=0)+OR(+AND(C153=0,E153=0))+OR(+AND(D153=0,E153=0)),"Axial",(+IF(+OR(C153=0,D153=0,E153=0),"Tangential","Oblique"))) -> Oblique | H153: 0.3460763326
C154: 3 | D154: 6 | E154: 3 | F154: =$B$5*SQRT((($C154/$B$2)^2)+(($D154/$B$3)^2)+(($E154/$B$4)^2)) -> 324.9900479 | G154: =+IF(+AND(C154=0,D154=0)+OR(+AND(C154=0,E154=0))+OR(+AND(D154=0,E154=0)),"Axial",(+IF(+OR(C154=0,D154=0,E154=0),"Tangential","Oblique"))) -> Oblique | H154: 0.3115857647
C155: 8 | D155: 4 | E155: 1 | F155: =$B$5*SQRT((($C155/$B$2)^2)+(($D155/$B$3)^2)+(($E155/$B$4)^2)) -> 325.2110151 | G155: =+IF(+AND(C155=0,D155=0)+OR(+AND(C155=0,E155=0))+OR(+AND(D155=0,E155=0)),"Axial",(+IF(+OR(C155=0,D155=0,E155=0),"Tangential","Oblique"))) -> Oblique | H155: 0.2209672032
C156: 5 | D156: 6 | E156: 2 | F156: =$B$5*SQRT((($C156/$B$2)^2)+(($D156/$B$3)^2)+(($E156/$B$4)^2)) -> 325.528711 | G156: =+IF(+AND(C156=0,D156=0)+OR(+AND(C156=0,E156=0))+OR(+AND(D156=0,E156=0)),"Axial",(+IF(+OR(C156=0,D156=0,E156=0),"Tangential","Oblique"))) -> Oblique | H156: 0.3176958898
C157: 2 | D157: 5 | E157: 4 | F157: =$B$5*SQRT((($C157/$B$2)^2)+(($D157/$B$3)^2)+(($E157/$B$4)^2)) -> 326.0812601 | G157: =+IF(+AND(C157=0,D157=0)+OR(+AND(C157=0,E157=0))+OR(+AND(D157=0,E157=0)),"Axial",(+IF(+OR(C157=0,D157=0,E157=0),"Tangential","Oblique"))) -> Oblique | H157: 0.5525491344
C158: 4 | D158: 7 | E158: 1 | F158: =$B$5*SQRT((($C158/$B$2)^2)+(($D158/$B$3)^2)+(($E158/$B$4)^2)) -> 327.1747371 | G158: =+IF(+AND(C158=0,D158=0)+OR(+AND(C158=0,E158=0))+OR(+AND(D158=0,E158=0)),"Axial",(+IF(+OR(C158=0,D158=0,E158=0),"Tangential","Oblique"))) -> Oblique | H158: 1.093476986
C159: 6 | D159: 2 | E159: 4 | F159: =$B$5*SQRT((($C159/$B$2)^2)+(($D159/$B$3)^2)+(($E159/$B$4)^2)) -> 327.4221091 | G159: =+IF(+AND(C159=0,D159=0)+OR(+AND(C159=0,E159=0))+OR(+AND(D159=0,E159=0)),"Axial",(+IF(+OR(C159=0,D159=0,E159=0),"Tangential","Oblique"))) -> Oblique | H159: 0.247372018
C160: 6 | D160: 6 | E160: 1 | F160: =$B$5*SQRT((($C160/$B$2)^2)+(($D160/$B$3)^2)+(($E160/$B$4)^2)) -> 328.3401503 | G160: =+IF(+AND(C160=0,D160=0)+OR(+AND(C160=0,E160=0))+OR(+AND(D160=0,E160=0)),"Axial",(+IF(+OR(C160=0,D160=0,E160=0),"Tangential","Oblique"))) -> Oblique | H160: 0.91804117
C161: 1 | D161: 3 | E161: 5 | F161: =$B$5*SQRT((($C161/$B$2)^2)+(($D161/$B$3)^2)+(($E161/$B$4)^2)) -> 328.6580059 | G161: =+IF(+AND(C161=0,D161=0)+OR(+AND(C161=0,E161=0))+OR(+AND(D161=0,E161=0)),"Axial",(+IF(+OR(C161=0,D161=0,E161=0),"Tangential","Oblique"))) -> Oblique | H161: 0.317855629
C162: 3 | D162: 2 | E162: 5 | F162: =$B$5*SQRT((($C162/$B$2)^2)+(($D162/$B$3)^2)+(($E162/$B$4)^2)) -> 329.6478832 | G162: =+IF(+AND(C162=0,D162=0)+OR(+AND(C162=0,E162=0))+OR(+AND(D162=0,E162=0)),"Axial",(+IF(+OR(C162=0,D162=0,E162=0),"Tangential","Oblique"))) -> Oblique | H162: 0.9898772872
C163: 8 | D163: 1 | E163: 3 | F163: =$B$5*SQRT((($C163/$B$2)^2)+(($D163/$B$3)^2)+(($E163/$B$4)^2)) -> 330.1774084 | G163: =+IF(+AND(C163=0,D163=0)+OR(+AND(C163=0,E163=0))+OR(+AND(D163=0,E163=0)),"Axial",(+IF(+OR(C163=0,D163=0,E163=0),"Tangential","Oblique"))) -> Oblique | H163: 0.5295252029
C164: 3 | D164: 7 | E164: 2 | F164: =$B$5*SQRT((($C164/$B$2)^2)+(($D164/$B$3)^2)+(($E164/$B$4)^2)) -> 331.4462462 | G164: =+IF(+AND(C164=0,D164=0)+OR(+AND(C164=0,E164=0))+OR(+AND(D164=0,E164=0)),"Axial",(+IF(+OR(C164=0,D164=0,E164=0),"Tangential","Oblique"))) -> Oblique | H164: 1.268837798
C165: 9 | D165: 1 | E165: 2 | F165: =$B$5*SQRT((($C165/$B$2)^2)+(($D165/$B$3)^2)+(($E165/$B$4)^2)) -> 332.4611797 | G165: =+IF(+AND(C165=0,D165=0)+OR(+AND(C165=0,E165=0))+OR(+AND(D165=0,E165=0)),"Axial",(+IF(+OR(C165=0,D165=0,E165=0),"Tangential","Oblique"))) -> Oblique | H165: 1.014933492
C166: 2 | D166: 3 | E166: 5 | F166: =$B$5*SQRT((($C166/$B$2)^2)+(($D166/$B$3)^2)+(($E166/$B$4)^2)) -> 333.9233422 | G166: =+IF(+AND(C166=0,D166=0)+OR(+AND(C166=0,E166=0))+OR(+AND(D166=0,E166=0)),"Axial",(+IF(+OR(C166=0,D166=0,E166=0),"Tangential","Oblique"))) -> Oblique | H166: 1.462162498
C167: 4 | D167: 1 | E167: 5 | F167: =$B$5*SQRT((($C167/$B$2)^2)+(($D167/$B$3)^2)+(($E167/$B$4)^2)) -> 334.0914577 | G167: =+IF(+AND(C167=0,D167=0)+OR(+AND(C167=0,E167=0))+OR(+AND(D167=0,E167=0)),"Axial",(+IF(+OR(C167=0,D167=0,E167=0),"Tangential","Oblique"))) -> Oblique | H167: 0.1681155074
C168: 3 | D168: 5 | E168: 4 | F168: =$B$5*SQRT((($C168/$B$2)^2)+(($D168/$B$3)^2)+(($E168/$B$4)^2)) -> 334.8783524 | G168: =+IF(+AND(C168=0,D168=0)+OR(+AND(C168=0,E168=0))+OR(+AND(D168=0,E168=0)),"Axial",(+IF(+OR(C168=0,D168=0,E168=0),"Tangential","Oblique"))) -> Oblique | H168: 0.7868946584
C169: 9 | D169: 3 | E169: 1 | F169: =$B$5*SQRT((($C169/$B$2)^2)+(($D169/$B$3)^2)+(($E169/$B$4)^2)) -> 336.7778935 | G169: =+IF(+AND(C169=0,D169=0)+OR(+AND(C169=0,E169=0))+OR(+AND(D169=0,E169=0)),"Axial",(+IF(+OR(C169=0,D169=0,E169=0),"Tangential","Oblique"))) -> Oblique | H169: 1.899541085
C170: 4 | D170: 6 | E170: 3 | F170: =$B$5*SQRT((($C170/$B$2)^2)+(($D170/$B$3)^2)+(($E170/$B$4)^2)) -> 337.2815782 | G170: =+IF(+AND(C170=0,D170=0)+OR(+AND(C170=0,E170=0))+OR(+AND(D170=0,E170=0)),"Axial",(+IF(+OR(C170=0,D170=0,E170=0),"Tangential","Oblique"))) -> Oblique | H170: 0.5036847355
C171: 8 | D171: 2 | E171: 3 | F171: =$B$5*SQRT((($C171/$B$2)^2)+(($D171/$B$3)^2)+(($E171/$B$4)^2)) -> 337.9468562 | G171: =+IF(+AND(C171=0,D171=0)+OR(+AND(C171=0,E171=0))+OR(+AND(D171=0,E171=0)),"Axial",(+IF(+OR(C171=0,D171=0,E171=0),"Tangential","Oblique"))) -> Oblique | H171: 0.6652779494
C172: 7 | D172: 5 | E172: 2 | F172: =$B$5*SQRT((($C172/$B$2)^2)+(($D172/$B$3)^2)+(($E172/$B$4)^2)) -> 338.8880984 | G172: =+IF(+AND(C172=0,D172=0)+OR(+AND(C172=0,E172=0))+OR(+AND(D172=0,E172=0)),"Axial",(+IF(+OR(C172=0,D172=0,E172=0),"Tangential","Oblique"))) -> Oblique | H172: 0.9412422293
C173: 5 | D173: 4 | E173: 4 | F173: =$B$5*SQRT((($C173/$B$2)^2)+(($D173/$B$3)^2)+(($E173/$B$4)^2)) -> 339.3775388 | G173: =+IF(+AND(C173=0,D173=0)+OR(+AND(C173=0,E173=0))+OR(+AND(D173=0,E173=0)),"Axial",(+IF(+OR(C173=0,D173=0,E173=0),"Tangential","Oblique"))) -> Oblique | H173: 0.4894404133
C174: 1 | D174: 8 | E174: 1 | F174: =$B$5*SQRT((($C174/$B$2)^2)+(($D174/$B$3)^2)+(($E174/$B$4)^2)) -> 339.9331159 | G174: =+IF(+AND(C174=0,D174=0)+OR(+AND(C174=0,E174=0))+OR(+AND(D174=0,E174=0)),"Axial",(+IF(+OR(C174=0,D174=0,E174=0),"Tangential","Oblique"))) -> Oblique | H174: 0.555577121
C175: 9 | D175: 2 | E175: 2 | F175: =$B$5*SQRT((($C175/$B$2)^2)+(($D175/$B$3)^2)+(($E175/$B$4)^2)) -> 340.1784716 | G175: =+IF(+AND(C175=0,D175=0)+OR(+AND(C175=0,E175=0))+OR(+AND(D175=0,E175=0)),"Axial",(+IF(+OR(C175=0,D175=0,E175=0),"Tangential","Oblique"))) -> Oblique | H175: 0.2453557229
C176: 6 | D176: 3 | E176: 4 | F176: =$B$5*SQRT((($C176/$B$2)^2)+(($D176/$B$3)^2)+(($E176/$B$4)^2)) -> 340.3774843 | G176: =+IF(+AND(C176=0,D176=0)+OR(+AND(C176=0,E176=0))+OR(+AND(D176=0,E176=0)),"Axial",(+IF(+OR(C176=0,D176=0,E176=0),"Tangential","Oblique"))) -> Oblique | H176: 0.1990126312
C177: 8 | D177: 4 | E177: 2 | F177: =$B$5*SQRT((($C177/$B$2)^2)+(($D177/$B$3)^2)+(($E177/$B$4)^2)) -> 341.6370027 | G177: =+IF(+AND(C177=0,D177=0)+OR(+AND(C177=0,E177=0))+OR(+AND(D177=0,E177=0)),"Axial",(+IF(+OR(C177=0,D177=0,E177=0),"Tangential","Oblique"))) -> Oblique | H177: 1.259518457
C178: 4 | D178: 2 | E178: 5 | F178: =$B$5*SQRT((($C178/$B$2)^2)+(($D178/$B$3)^2)+(($E178/$B$4)^2)) -> 341.7719396 | G178: =+IF(+AND(C178=0,D178=0)+OR(+AND(C178=0,E178=0))+OR(+AND(D178=0,E178=0)),"Axial",(+IF(+OR(C178=0,D178=0,E178=0),"Tangential","Oblique"))) -> Oblique | H178: 0.134936833
C179: 7 | D179: 1 | E179: 4 | F179: =$B$5*SQRT((($C179/$B$2)^2)+(($D179/$B$3)^2)+(($E179/$B$4)^2)) -> 342.2455843 | G179: =+IF(+AND(C179=0,D179=0)+OR(+AND(C179=0,E179=0))+OR(+AND(D179=0,E179=0)),"Axial",(+IF(+OR(C179=0,D179=0,E179=0),"Tangential","Oblique"))) -> Oblique | H179: 0.4736447524
C180: 3 | D180: 3 | E180: 5 | F180: =$B$5*SQRT((($C180/$B$2)^2)+(($D180/$B$3)^2)+(($E180/$B$4)^2)) -> 342.5190815 | G180: =+IF(+AND(C180=0,D180=0)+OR(+AND(C180=0,E180=0))+OR(+AND(D180=0,E180=0)),"Axial",(+IF(+OR(C180=0,D180=0,E180=0),"Tangential","Oblique"))) -> Oblique | H180: 0.2734971407
C181: 5 | D181: 7 | E181: 1 | F181: =$B$5*SQRT((($C181/$B$2)^2)+(($D181/$B$3)^2)+(($E181/$B$4)^2)) -> 342.7965132 | G181: =+IF(+AND(C181=0,D181=0)+OR(+AND(C181=0,E181=0))+OR(+AND(D181=0,E181=0)),"Axial",(+IF(+OR(C181=0,D181=0,E181=0),"Tangential","Oblique"))) -> Oblique | H181: 0.2774317134
C182: 7 | D182: 4 | E182: 3 | F182: =$B$5*SQRT((($C182/$B$2)^2)+(($D182/$B$3)^2)+(($E182/$B$4)^2)) -> 342.8240594 | G182: =+IF(+AND(C182=0,D182=0)+OR(+AND(C182=0,E182=0))+OR(+AND(D182=0,E182=0)),"Axial",(+IF(+OR(C182=0,D182=0,E182=0),"Tangential","Oblique"))) -> Oblique | H182: 0.02754626068
C183: 6 | D183: 5 | E183: 3 | F183: =$B$5*SQRT((($C183/$B$2)^2)+(($D183/$B$3)^2)+(($E183/$B$4)^2)) -> 343.4871852 | G183: =+IF(+AND(C183=0,D183=0)+OR(+AND(C183=0,E183=0))+OR(+AND(D183=0,E183=0)),"Axial",(+IF(+OR(C183=0,D183=0,E183=0),"Tangential","Oblique"))) -> Oblique | H183: 0.6631257595
C184: 4 | D184: 7 | E184: 2 | F184: =$B$5*SQRT((($C184/$B$2)^2)+(($D184/$B$3)^2)+(($E184/$B$4)^2)) -> 343.5068353 | G184: =+IF(+AND(C184=0,D184=0)+OR(+AND(C184=0,E184=0))+OR(+AND(D184=0,E184=0)),"Axial",(+IF(+OR(C184=0,D184=0,E184=0),"Tangential","Oblique"))) -> Oblique | H184: 0.01965010633
C185: 6 | D185: 6 | E185: 2 | F185: =$B$5*SQRT((($C185/$B$2)^2)+(($D185/$B$3)^2)+(($E185/$B$4)^2)) -> 344.6170216 | G185: =+IF(+AND(C185=0,D185=0)+OR(+AND(C185=0,E185=0))+OR(+AND(D185=0,E185=0)),"Axial",(+IF(+OR(C185=0,D185=0,E185=0),"Tangential","Oblique"))) -> Oblique | H185: 1.110186323
C186: 1 | D186: 7 | E186: 3 | F186: =$B$5*SQRT((($C186/$B$2)^2)+(($D186/$B$3)^2)+(($E186/$B$4)^2)) -> 344.6874526 | G186: =+IF(+AND(C186=0,D186=0)+OR(+AND(C186=0,E186=0))+OR(+AND(D186=0,E186=0)),"Axial",(+IF(+OR(C186=0,D186=0,E186=0),"Tangential","Oblique"))) -> Oblique | H186: 0.07043098798
C187: 2 | D187: 8 | E187: 1 | F187: =$B$5*SQRT((($C187/$B$2)^2)+(($D187/$B$3)^2)+(($E187/$B$4)^2)) -> 345.0264293 | G187: =+IF(+AND(C187=0,D187=0)+OR(+AND(C187=0,E187=0))+OR(+AND(D187=0,E187=0)),"Axial",(+IF(+OR(C187=0,D187=0,E187=0),"Tangential","Oblique"))) -> Oblique | H187: 0.3389766815
C188: 1 | D188: 4 | E188: 5 | F188: =$B$5*SQRT((($C188/$B$2)^2)+(($D188/$B$3)^2)+(($E188/$B$4)^2)) -> 346.5953214 | G188: =+IF(+AND(C188=0,D188=0)+OR(+AND(C188=0,E188=0))+OR(+AND(D188=0,E188=0)),"Axial",(+IF(+OR(C188=0,D188=0,E188=0),"Tangential","Oblique"))) -> Oblique | H188: 1.568892105
C189: 4 | D189: 5 | E189: 4 | F189: =$B$5*SQRT((($C189/$B$2)^2)+(($D189/$B$3)^2)+(($E189/$B$4)^2)) -> 346.8196111 | G189: =+IF(+AND(C189=0,D189=0)+OR(+AND(C189=0,E189=0))+OR(+AND(D189=0,E189=0)),"Axial",(+IF(+OR(C189=0,D189=0,E189=0),"Tangential","Oblique"))) -> Oblique | H189: 0.2242897187
C190: 8 | D190: 5 | E190: 1 | F190: =$B$5*SQRT((($C190/$B$2)^2)+(($D190/$B$3)^2)+(($E190/$B$4)^2)) -> 348.3318446 | G190: =+IF(+AND(C190=0,D190=0)+OR(+AND(C190=0,E190=0))+OR(+AND(D190=0,E190=0)),"Axial",(+IF(+OR(C190=0,D190=0,E190=0),"Tangential","Oblique"))) -> Oblique | H190: 1.51223353
C191: 1 | D191: 6 | E191: 4 | F191: =$B$5*SQRT((($C191/$B$2)^2)+(($D191/$B$3)^2)+(($E191/$B$4)^2)) -> 349.1042566 | G191: =+IF(+AND(C191=0,D191=0)+OR(+AND(C191=0,E191=0))+OR(+AND(D191=0,E191=0)),"Axial",(+IF(+OR(C191=0,D191=0,E191=0),"Tangential","Oblique"))) -> Oblique | H191: 0.7724119087
C192: 5 | D192: 1 | E192: 5 | F192: =$B$5*SQRT((($C192/$B$2)^2)+(($D192/$B$3)^2)+(($E192/$B$4)^2)) -> 349.4041256 | G192: =+IF(+AND(C192=0,D192=0)+OR(+AND(C192=0,E192=0))+OR(+AND(D192=0,E192=0)),"Axial",(+IF(+OR(C192=0,D192=0,E192=0),"Tangential","Oblique"))) -> Oblique | H192: 0.2998690039
C193: 2 | D193: 7 | E193: 3 | F193: =$B$5*SQRT((($C193/$B$2)^2)+(($D193/$B$3)^2)+(($E193/$B$4)^2)) -> 349.7115291 | G193: =+IF(+AND(C193=0,D193=0)+OR(+AND(C193=0,E193=0))+OR(+AND(D193=0,E193=0)),"Axial",(+IF(+OR(C193=0,D193=0,E193=0),"Tangential","Oblique"))) -> Oblique | H193: 0.3074035582
C194: 7 | D194: 2 | E194: 4 | F194: =$B$5*SQRT((($C194/$B$2)^2)+(($D194/$B$3)^2)+(($E194/$B$4)^2)) -> 349.7470465 | G194: =+IF(+AND(C194=0,D194=0)+OR(+AND(C194=0,E194=0))+OR(+AND(D194=0,E194=0)),"Axial",(+IF(+OR(C194=0,D194=0,E194=0),"Tangential","Oblique"))) -> Oblique | H194: 0.03551737942
C195: 8 | D195: 3 | E195: 3 | F195: =$B$5*SQRT((($C195/$B$2)^2)+(($D195/$B$3)^2)+(($E195/$B$4)^2)) -> 350.5134403 | G195: =+IF(+AND(C195=0,D195=0)+OR(+AND(C195=0,E195=0))+OR(+AND(D195=0,E195=0)),"Axial",(+IF(+OR(C195=0,D195=0,E195=0),"Tangential","Oblique"))) -> Oblique | H195: 0.7663938059
C196: 7 | D196: 6 | E196: 1 | F196: =$B$5*SQRT((($C196/$B$2)^2)+(($D196/$B$3)^2)+(($E196/$B$4)^2)) -> 350.6066361 | G196: =+IF(+AND(C196=0,D196=0)+OR(+AND(C196=0,E196=0))+OR(+AND(D196=0,E196=0)),"Axial",(+IF(+OR(C196=0,D196=0,E196=0),"Tangential","Oblique"))) -> Oblique | H196: 0.09319580834
C197: 2 | D197: 4 | E197: 5 | F197: =$B$5*SQRT((($C197/$B$2)^2)+(($D197/$B$3)^2)+(($E197/$B$4)^2)) -> 351.5921365 | G197: =+IF(+AND(C197=0,D197=0)+OR(+AND(C197=0,E197=0))+OR(+AND(D197=0,E197=0)),"Axial",(+IF(+OR(C197=0,D197=0,E197=0),"Tangential","Oblique"))) -> Oblique | H197: =F197-F196 -> 0.9855003545
C198: 5 | D198: 6 | E198: 3 | F198: =$B$5*SQRT((($C198/$B$2)^2)+(($D198/$B$3)^2)+(($E198/$B$4)^2)) -> 352.4556764 | G198: =+IF(+AND(C198=0,D198=0)+OR(+AND(C198=0,E198=0))+OR(+AND(D198=0,E198=0)),"Axial",(+IF(+OR(C198=0,D198=0,E198=0),"Tangential","Oblique"))) -> Oblique | H198: 0.8635399377
C199: 9 | D199: 3 | E199: 2 | F199: =$B$5*SQRT((($C199/$B$2)^2)+(($D199/$B$3)^2)+(($E199/$B$4)^2)) -> 352.6655453 | G199: =+IF(+AND(C199=0,D199=0)+OR(+AND(C199=0,E199=0))+OR(+AND(D199=0,E199=0)),"Axial",(+IF(+OR(C199=0,D199=0,E199=0),"Tangential","Oblique"))) -> Oblique | H199: 0.2098688603
C200: 3 | D200: 8 | E200: 1 | F200: =$B$5*SQRT((($C200/$B$2)^2)+(($D200/$B$3)^2)+(($E200/$B$4)^2)) -> 353.352175 | G200: =+IF(+AND(C200=0,D200=0)+OR(+AND(C200=0,E200=0))+OR(+AND(D200=0,E200=0)),"Axial",(+IF(+OR(C200=0,D200=0,E200=0),"Tangential","Oblique"))) -> Oblique | H200: 0.6866297595
... 531 more rows

Sheet Bonello
A1: f | B1: 16 | C1: 20 | D1: 25 | E1: 31.5 | F1: 40 | G1: 50 | H1: 63 | I1: 80 | J1: 100 | K1: 125 | L1: 160 | M1: 200 | N1: 250 | P1: 16 | Q1: 20 | R1: 25 | S1: 31.5 | T1: 40 | U1: 50 | V1: 63 | W1: 80 | X1: 100 | Y1: 125 | Z1: 160 | AA1: 200 | AB1: 250
A2: ='Mode Strength'!A2 -> 34.05491168 | B2: =IF((AND($A2>=14.1,$A2<17.8)),1,0) -> 0 | C2: =IF((AND($A2>=17.8,$A2<22.4)),1,0) -> 0 | D2: =IF((AND($A2>=22.4,$A2<28.2)),1,0) -> 0 | E2: =IF((AND($A2>=28.2,$A2<35.5)),1,0) -> 1 | F2: =IF((AND($A2>=35.5,$A2<44.7)),1,0) -> 0 | G2: =IF((AND($A2>=44.7,$A2<56.2)),1,0) -> 0 | H2: =IF((AND($A2>=56.2,$A2<70.8)),1,0) -> 0 | I2: =IF((AND($A2>=70.8,$A2<89.1)),1,0) -> 0 | J2: =IF((AND($A2>=89.1,$A2<112)),1,0) -> 0 | K2: =IF((AND($A2>=112,$A2<141)),1,0) -> 0 | L2: =IF((AND($A2>=141,$A2<178)),1,0) -> 0 | M2: =IF((AND($A2>=178,$A2<224)),1,0) -> 0 | N2: =IF((AND($A2>=224,$A2<282)),1,0) -> 0 | O2: Actual | P2: =SUM(B2:B1000) -> 0 | Q2: 0 | R2: 0 | S2: 1 | T2: 1 | U2: 1 | V2: 3 | W2: 4 | X2: 8 | Y2: 13 | Z2: 24 | AA2: 51 | AB2: 88
A3: ='Mode Strength'!A3 -> 41.54041159 | B3: =IF((AND($A3>=14.1,$A3<17.8)),1,0) -> 0 | C3: =IF((AND($A3>=17.8,$A3<22.4)),1,0) -> 0 | D3: =IF((AND($A3>=22.4,$A3<28.2)),1,0) -> 0 | E3: =IF((AND($A3>=28.2,$A3<35.5)),1,0) -> 0 | F3: =IF((AND($A3>=35.5,$A3<44.7)),1,0) -> 1 | G3: =IF((AND($A3>=44.7,$A3<56.2)),1,0) -> 0 | H3: =IF((AND($A3>=56.2,$A3<70.8)),1,0) -> 0 | I3: =IF((AND($A3>=70.8,$A3<89.1)),1,0) -> 0 | J3: =IF((AND($A3>=89.1,$A3<112)),1,0) -> 0 | K3: =IF((AND($A3>=112,$A3<141)),1,0) -> 0 | L3: =IF((AND($A3>=141,$A3<178)),1,0) -> 0 | M3: =IF((AND($A3>=178,$A3<224)),1,0) -> 0 | N3: =IF((AND($A3>=224,$A3<282)),1,0) -> 0 | O3: Ideal | Q3: =P2 -> 0 | R3: =IF(Q2>=Q3,Q2,Q3) -> 0 | S3: =IF(R2>=R3,R2,R3) -> 0 | T3: 1 | U3: 1 | V3: 1 | W3: 3 | X3: 4 | Y3: 8 | Z3: 13 | AA3: 24 | AB3: 51
A4: ='Mode Strength'!A4 -> 53.71538704 | B4: 0 | C4: 0 | D4: 0 | E4: 0 | F4: 0 | G4: 1 | H4: 0 | I4: 0 | J4: 0 | K4: 0 | L4: 0 | M4: 0 | N4: 0
A5: ='Mode Strength'!A5 -> 60.34291368 | B5: 0 | C5: 0 | D5: 0 | E5: 0 | F5: 0 | G5: 0 | H5: 1 | I5: 0 | J5: 0 | K5: 0 | L5: 0 | M5: 0 | N5: 0
A6: ='Mode Strength'!A6 -> 68.10982337 | B6: 0 | C6: 0 | D6: 0 | E6: 0 | F6: 0 | G6: 0 | H6: 1 | I6: 0 | J6: 0 | K6: 0 | L6: 0 | M6: 0 | N6: 0
A7: ='Mode Strength'!A7 -> 69.28927941 | B7: 0 | C7: 0 | D7: 0 | E7: 0 | F7: 0 | G7: 0 | H7: 1 | I7: 0 | J7: 0 | K7: 0 | L7: 0 | M7: 0 | N7: 0
A8: ='Mode Strength'!A8 -> 73.25894503 | B8: 0 | C8: 0 | D8: 0 | E8: 0 | F8: 0 | G8: 0 | H8: 0 | I8: 1 | J8: 0 | K8: 0 | L8: 0 | M8: 0 | N8: 0
A9: ='Mode Strength'!A9 -> 79.77815387 | B9: 0 | C9: 0 | D9: 0 | E9: 0 | F9: 0 | G9: 0 | H9: 0 | I9: 1 | J9: 0 | K9: 0 | L9: 0 | M9: 0 | N9: 0
A10: ='Mode Strength'!A10 -> 80.78743737 | B10: 0 | C10: 0 | D10: 0 | E10: 0 | F10: 0 | G10: 0 | H10: 0 | I10: 1 | J10: 0 | K10: 0 | L10: 0 | M10: 0 | N10: 0
A11: ='Mode Strength'!A11 -> 83.08082319 | B11: 0 | C11: 0 | D11: 0 | E11: 0 | F11: 0 | G11: 0 | H11: 0 | I11: 1 | J11: 0 | K11: 0 | L11: 0 | M11: 0 | N11: 0
A12: ='Mode Strength'!A12 -> 89.78953275 | B12: 0 | C12: 0 | D12: 0 | E12: 0 | F12: 0 | G12: 0 | H12: 0 | I12: 0 | J12: 1 | K12: 0 | L12: 0 | M12: 0 | N12: 0
A13: ='Mode Strength'!A13 -> 90.9956882 | B13: 0 | C13: 0 | D13: 0 | E13: 0 | F13: 0 | G13: 0 | H13: 0 | I13: 0 | J13: 1 | K13: 0 | L13: 0 | M13: 0 | N13: 0
A14: ='Mode Strength'!A14 -> 100.0291011 | B14: 0 | C14: 0 | D14: 0 | E14: 0 | F14: 0 | G14: 0 | H14: 0 | I14: 0 | J14: 1 | K14: 0 | L14: 0 | M14: 0 | N14: 0
A15: ='Mode Strength'!A15 -> 102.164735 | B15: 0 | C15: 0 | D15: 0 | E15: 0 | F15: 0 | G15: 0 | H15: 0 | I15: 0 | J15: 1 | K15: 0 | L15: 0 | M15: 0 | N15: 0
A16: ='Mode Strength'!A16 -> 102.6824737 | B16: 0 | C16: 0 | D16: 0 | E16: 0 | F16: 0 | G16: 0 | H16: 0 | I16: 0 | J16: 1 | K16: 0 | L16: 0 | M16: 0 | N16: 0
A17: ='Mode Strength'!A17 -> 107.4307741 | B17: 0 | C17: 0 | D17: 0 | E17: 0 | F17: 0 | G17: 0 | H17: 0 | I17: 0 | J17: 1 | K17: 0 | L17: 0 | M17: 0 | N17: 0
A18: ='Mode Strength'!A18 -> 108.1823804 | B18: 0 | C18: 0 | D18: 0 | E18: 0 | F18: 0 | G18: 0 | H18: 0 | I18: 0 | J18: 1 | K18: 0 | L18: 0 | M18: 0 | N18: 0
A19: ='Mode Strength'!A19 -> 110.2870749 | B19: 0 | C19: 0 | D19: 0 | E19: 0 | F19: 0 | G19: 0 | H19: 0 | I19: 0 | J19: 1 | K19: 0 | L19: 0 | M19: 0 | N19: 0
A20: ='Mode Strength'!A20 -> 118.6545419 | B20: 0 | C20: 0 | D20: 0 | E20: 0 | F20: 0 | G20: 0 | H20: 0 | I20: 0 | J20: 0 | K20: 1 | L20: 0 | M20: 0 | N20: 0
A21: ='Mode Strength'!A21 -> 120.6858274 | B21: 0 | C21: 0 | D21: 0 | E21: 0 | F21: 0 | G21: 0 | H21: 0 | I21: 0 | J21: 0 | K21: 1 | L21: 0 | M21: 0 | N21: 0
A22: ='Mode Strength'!A22 -> 123.2178496 | B22: 0 | C22: 0 | D22: 0 | E22: 0 | F22: 0 | G22: 0 | H22: 0 | I22: 0 | J22: 0 | K22: 1 | L22: 0 | M22: 0 | N22: 0
A23: ='Mode Strength'!A23 -> 124.6212348 | B23: 0 | C23: 0 | D23: 0 | E23: 0 | F23: 0 | G23: 0 | H23: 0 | I23: 0 | J23: 0 | K23: 1 | L23: 0 | M23: 0 | N23: 0
A24: ='Mode Strength'!A24 -> 125.3985883 | B24: 0 | C24: 0 | D24: 0 | E24: 0 | F24: 0 | G24: 0 | H24: 0 | I24: 0 | J24: 0 | K24: 1 | L24: 0 | M24: 0 | N24: 0
A25: ='Mode Strength'!A25 -> 125.715974 | B25: 0 | C25: 0 | D25: 0 | E25: 0 | F25: 0 | G25: 0 | H25: 0 | I25: 0 | J25: 0 | K25: 1 | L25: 0 | M25: 0 | N25: 0
A26: ='Mode Strength'!A26 -> 127.6349275 | B26: 0 | C26: 0 | D26: 0 | E26: 0 | F26: 0 | G26: 0 | H26: 0 | I26: 0 | J26: 0 | K26: 1 | L26: 0 | M26: 0 | N26: 0
A27: ='Mode Strength'!A27 -> 129.190515 | B27: 0 | C27: 0 | D27: 0 | E27: 0 | F27: 0 | G27: 0 | H27: 0 | I27: 0 | J27: 0 | K27: 1 | L27: 0 | M27: 0 | N27: 0
A28: ='Mode Strength'!A28 -> 131.6816474 | B28: 0 | C28: 0 | D28: 0 | E28: 0 | F28: 0 | G28: 0 | H28: 0 | I28: 0 | J28: 0 | K28: 1 | L28: 0 | M28: 0 | N28: 0
A29: ='Mode Strength'!A29 -> 132.1000066 | B29: 0 | C29: 0 | D29: 0 | E29: 0 | F29: 0 | G29: 0 | H29: 0 | I29: 0 | J29: 0 | K29: 1 | L29: 0 | M29: 0 | N29: 0
A30: ='Mode Strength'!A30 -> 136.2196467 | B30: 0 | C30: 0 | D30: 0 | E30: 0 | F30: 0 | G30: 0 | H30: 0 | I30: 0 | J30: 0 | K30: 1 | L30: 0 | M30: 0 | N30: 0
A31: ='Mode Strength'!A31 -> 138.4619781 | B31: 0 | C31: 0 | D31: 0 | E31: 0 | F31: 0 | G31: 0 | H31: 0 | I31: 0 | J31: 0 | K31: 1 | L31: 0 | M31: 0 | N31: 0
A32: ='Mode Strength'!A32 -> 138.5785588 | B32: 0 | C32: 0 | D32: 0 | E32: 0 | F32: 0 | G32: 0 | H32: 0 | I32: 0 | J32: 0 | K32: 1 | L32: 0 | M32: 0 | N32: 0
A33: ='Mode Strength'!A33 -> 142.0190135 | B33: 0 | C33: 0 | D33: 0 | E33: 0 | F33: 0 | G33: 0 | H33: 0 | I33: 0 | J33: 0 | K33: 0 | L33: 1 | M33: 0 | N33: 0
A34: ='Mode Strength'!A34 -> 142.4127731 | B34: 0 | C34: 0 | D34: 0 | E34: 0 | F34: 0 | G34: 0 | H34: 0 | I34: 0 | J34: 0 | K34: 0 | L34: 1 | M34: 0 | N34: 0
A35: ='Mode Strength'!A35 -> 142.5884161 | B35: 0 | C35: 0 | D35: 0 | E35: 0 | F35: 0 | G35: 0 | H35: 0 | I35: 0 | J35: 0 | K35: 0 | L35: 1 | M35: 0 | N35: 0
A36: ='Mode Strength'!A36 -> 144.6707391 | B36: 0 | C36: 0 | D36: 0 | E36: 0 | F36: 0 | G36: 0 | H36: 0 | I36: 0 | J36: 0 | K36: 0 | L36: 1 | M36: 0 | N36: 0
A37: ='Mode Strength'!A37 -> 144.8493131 | B37: 0 | C37: 0 | D37: 0 | E37: 0 | F37: 0 | G37: 0 | H37: 0 | I37: 0 | J37: 0 | K37: 0 | L37: 1 | M37: 0 | N37: 0
A38: ='Mode Strength'!A38 -> 146.5178901 | B38: 0 | C38: 0 | D38: 0 | E38: 0 | F38: 0 | G38: 0 | H38: 0 | I38: 0 | J38: 0 | K38: 0 | L38: 1 | M38: 0 | N38: 0
A39: ='Mode Strength'!A39 -> 148.9867759 | B39: 0 | C39: 0 | D39: 0 | E39: 0 | F39: 0 | G39: 0 | H39: 0 | I39: 0 | J39: 0 | K39: 0 | L39: 1 | M39: 0 | N39: 0
A40: ='Mode Strength'!A40 -> 150.4234992 | B40: 0 | C40: 0 | D40: 0 | E40: 0 | F40: 0 | G40: 0 | H40: 0 | I40: 0 | J40: 0 | K40: 0 | L40: 1 | M40: 0 | N40: 0
A41: ='Mode Strength'!A41 -> 154.3070557 | B41: 0 | C41: 0 | D41: 0 | E41: 0 | F41: 0 | G41: 0 | H41: 0 | I41: 0 | J41: 0 | K41: 0 | L41: 1 | M41: 0 | N41: 0 | P41: If you found this spreadsheet helpful, please send a donation via PayPal to https://www.paypal.me/JHBrandt/
A42: ='Mode Strength'!A42 -> 154.6695354 | B42: 0 | C42: 0 | D42: 0 | E42: 0 | F42: 0 | G42: 0 | H42: 0 | I42: 0 | J42: 0 | K42: 0 | L42: 1 | M42: 0 | N42: 0
A43: ='Mode Strength'!A43 -> 158.1224273 | B43: 0 | C43: 0 | D43: 0 | E43: 0 | F43: 0 | G43: 0 | H43: 0 | I43: 0 | J43: 0 | K43: 0 | L43: 1 | M43: 0 | N43: 0
A44: ='Mode Strength'!A44 -> 159.5563077 | B44: 0 | C44: 0 | D44: 0 | E44: 0 | F44: 0 | G44: 0 | H44: 0 | I44: 0 | J44: 0 | K44: 0 | L44: 1 | M44: 0 | N44: 0
A45: ='Mode Strength'!A45 -> 161.1461611 | B45: 0 | C45: 0 | D45: 0 | E45: 0 | F45: 0 | G45: 0 | H45: 0 | I45: 0 | J45: 0 | K45: 0 | L45: 1 | M45: 0 | N45: 0
A46: ='Mode Strength'!A46 -> 161.5748747 | B46: 0 | C46: 0 | D46: 0 | E46: 0 | F46: 0 | G46: 0 | H46: 0 | I46: 0 | J46: 0 | K46: 0 | L46: 1 | M46: 0 | N46: 0
A47: ='Mode Strength'!A47 -> 163.4879439 | B47: 0 | C47: 0 | D47: 0 | E47: 0 | F47: 0 | G47: 0 | H47: 0 | I47: 0 | J47: 0 | K47: 0 | L47: 1 | M47: 0 | N47: 0
A48: ='Mode Strength'!A48 -> 166.1616464 | B48: 0 | C48: 0 | D48: 0 | E48: 0 | F48: 0 | G48: 0 | H48: 0 | I48: 0 | J48: 0 | K48: 0 | L48: 1 | M48: 0 | N48: 0
A49: ='Mode Strength'!A49 -> 169.6155351 | B49: 0 | C49: 0 | D49: 0 | E49: 0 | F49: 0 | G49: 0 | H49: 0 | I49: 0 | J49: 0 | K49: 0 | L49: 1 | M49: 0 | N49: 0
A50: ='Mode Strength'!A50 -> 170.2745584 | B50: 0 | C50: 0 | D50: 0 | E50: 0 | F50: 0 | G50: 0 | H50: 0 | I50: 0 | J50: 0 | K50: 0 | L50: 1 | M50: 0 | N50: 0
A51: ='Mode Strength'!A51 -> 170.5857045 | B51: 0 | C51: 0 | D51: 0 | E51: 0 | F51: 0 | G51: 0 | H51: 0 | I51: 0 | J51: 0 | K51: 0 | L51: 1 | M51: 0 | N51: 0
A52: ='Mode Strength'!A52 -> 172.0736833 | B52: 0 | C52: 0 | D52: 0 | E52: 0 | F52: 0 | G52: 0 | H52: 0 | I52: 0 | J52: 0 | K52: 0 | L52: 1 | M52: 0 | N52: 0
A53: ='Mode Strength'!A53 -> 173.4806072 | B53: 0 | C53: 0 | D53: 0 | E53: 0 | F53: 0 | G53: 0 | H53: 0 | I53: 0 | J53: 0 | K53: 0 | L53: 1 | M53: 0 | N53: 0
A54: ='Mode Strength'!A54 -> 175.2684542 | B54: 0 | C54: 0 | D54: 0 | E54: 0 | F54: 0 | G54: 0 | H54: 0 | I54: 0 | J54: 0 | K54: 0 | L54: 1 | M54: 0 | N54: 0
A55: ='Mode Strength'!A55 -> 176.7794104 | B55: 0 | C55: 0 | D55: 0 | E55: 0 | F55: 0 | G55: 0 | H55: 0 | I55: 0 | J55: 0 | K55: 0 | L55: 1 | M55: 0 | N55: 0
A56: ='Mode Strength'!A56 -> 176.7915668 | B56: 0 | C56: 0 | D56: 0 | E56: 0 | F56: 0 | G56: 0 | H56: 0 | I56: 0 | J56: 0 | K56: 0 | L56: 1 | M56: 0 | N56: 0
A57: ='Mode Strength'!A57 -> 178.6200582 | B57: 0 | C57: 0 | D57: 0 | E57: 0 | F57: 0 | G57: 0 | H57: 0 | I57: 0 | J57: 0 | K57: 0 | L57: 0 | M57: 1 | N57: 0
A58: ='Mode Strength'!A58 -> 179.5790655 | B58: 0 | C58: 0 | D58: 0 | E58: 0 | F58: 0 | G58: 0 | H58: 0 | I58: 0 | J58: 0 | K58: 0 | L58: 0 | M58: 1 | N58: 0
A59: ='Mode Strength'!A59 -> 180.0297113 | B59: 0 | C59: 0 | D59: 0 | E59: 0 | F59: 0 | G59: 0 | H59: 0 | I59: 0 | J59: 0 | K59: 0 | L59: 0 | M59: 1 | N59: 0
A60: ='Mode Strength'!A60 -> 180.6507472 | B60: 0 | C60: 0 | D60: 0 | E60: 0 | F60: 0 | G60: 0 | H60: 0 | I60: 0 | J60: 0 | K60: 0 | L60: 0 | M60: 1 | N60: 0
A61: ='Mode Strength'!A61 -> 181.0287411 | B61: 0 | C61: 0 | D61: 0 | E61: 0 | F61: 0 | G61: 0 | H61: 0 | I61: 0 | J61: 0 | K61: 0 | L61: 0 | M61: 1 | N61: 0
A62: ='Mode Strength'!A62 -> 181.9913764 | B62: 0 | C62: 0 | D62: 0 | E62: 0 | F62: 0 | G62: 0 | H62: 0 | I62: 0 | J62: 0 | K62: 0 | L62: 0 | M62: 1 | N62: 0
A63: ='Mode Strength'!A63 -> 184.2040773 | B63: 0 | C63: 0 | D63: 0 | E63: 0 | F63: 0 | G63: 0 | H63: 0 | I63: 0 | J63: 0 | K63: 0 | L63: 0 | M63: 1 | N63: 0
A64: ='Mode Strength'!A64 -> 184.6246038 | B64: 0 | C64: 0 | D64: 0 | E64: 0 | F64: 0 | G64: 0 | H64: 0 | I64: 0 | J64: 0 | K64: 0 | L64: 0 | M64: 1 | N64: 0
A65: ='Mode Strength'!A65 -> 185.3653103 | B65: 0 | C65: 0 | D65: 0 | E65: 0 | F65: 0 | G65: 0 | H65: 0 | I65: 0 | J65: 0 | K65: 0 | L65: 0 | M65: 1 | N65: 0
A66: ='Mode Strength'!A66 -> 185.7337096 | B66: 0 | C66: 0 | D66: 0 | E66: 0 | F66: 0 | G66: 0 | H66: 0 | I66: 0 | J66: 0 | K66: 0 | L66: 0 | M66: 1 | N66: 0
A67: ='Mode Strength'!A67 -> 186.3718571 | B67: =IF((AND($A67>=14.1,$A67<17.8)),1,0) -> 0 | C67: =IF((AND($A67>=17.8,$A67<22.4)),1,0) -> 0 | D67: =IF((AND($A67>=22.4,$A67<28.2)),1,0) -> 0 | E67: =IF((AND($A67>=28.2,$A67<35.5)),1,0) -> 0 | F67: =IF((AND($A67>=35.5,$A67<44.7)),1,0) -> 0 | G67: =IF((AND($A67>=44.7,$A67<56.2)),1,0) -> 0 | H67: =IF((AND($A67>=56.2,$A67<70.8)),1,0) -> 0 | I67: =IF((AND($A67>=70.8,$A67<89.1)),1,0) -> 0 | J67: =IF((AND($A67>=89.1,$A67<112)),1,0) -> 0 | K67: =IF((AND($A67>=112,$A67<141)),1,0) -> 0 | L67: =IF((AND($A67>=141,$A67<178)),1,0) -> 0 | M67: =IF((AND($A67>=178,$A67<224)),1,0) -> 1 | N67: =IF((AND($A67>=224,$A67<282)),1,0) -> 0
A68: ='Mode Strength'!A68 -> 186.6720838 | B68: 0 | C68: 0 | D68: 0 | E68: 0 | F68: 0 | G68: 0 | H68: 0 | I68: 0 | J68: 0 | K68: 0 | L68: 0 | M68: 1 | N68: 0
A69: ='Mode Strength'!A69 -> 188.8299444 | B69: 0 | C69: 0 | D69: 0 | E69: 0 | F69: 0 | G69: 0 | H69: 0 | I69: 0 | J69: 0 | K69: 0 | L69: 0 | M69: 1 | N69: 0
A70: ='Mode Strength'!A70 -> 189.4463196 | B70: 0 | C70: 0 | D70: 0 | E70: 0 | F70: 0 | G70: 0 | H70: 0 | I70: 0 | J70: 0 | K70: 0 | L70: 0 | M70: 1 | N70: 0
A71: ='Mode Strength'!A71 -> 189.4619973 | B71: 0 | C71: 0 | D71: 0 | E71: 0 | F71: 0 | G71: 0 | H71: 0 | I71: 0 | J71: 0 | K71: 0 | L71: 0 | M71: 1 | N71: 0
A72: ='Mode Strength'!A72 -> 193.4175616 | B72: 0 | C72: 0 | D72: 0 | E72: 0 | F72: 0 | G72: 0 | H72: 0 | I72: 0 | J72: 0 | K72: 0 | L72: 0 | M72: 1 | N72: 0
A73: ='Mode Strength'!A73 -> 194.2357113 | B73: 0 | C73: 0 | D73: 0 | E73: 0 | F73: 0 | G73: 0 | H73: 0 | I73: 0 | J73: 0 | K73: 0 | L73: 0 | M73: 1 | N73: 0
A74: ='Mode Strength'!A74 -> 195.0572373 | B74: 0 | C74: 0 | D74: 0 | E74: 0 | F74: 0 | G74: 0 | H74: 0 | I74: 0 | J74: 0 | K74: 0 | L74: 0 | M74: 1 | N74: 0
A75: ='Mode Strength'!A75 -> 197.8281045 | B75: 0 | C75: 0 | D75: 0 | E75: 0 | F75: 0 | G75: 0 | H75: 0 | I75: 0 | J75: 0 | K75: 0 | L75: 0 | M75: 1 | N75: 0
A76: ='Mode Strength'!A76 -> 198.8394218 | B76: 0 | C76: 0 | D76: 0 | E76: 0 | F76: 0 | G76: 0 | H76: 0 | I76: 0 | J76: 0 | K76: 0 | L76: 0 | M76: 1 | N76: 0
A77: ='Mode Strength'!A77 -> 199.1829015 | B77: 0 | C77: 0 | D77: 0 | E77: 0 | F77: 0 | G77: 0 | H77: 0 | I77: 0 | J77: 0 | K77: 0 | L77: 0 | M77: 1 | N77: 0
A78: ='Mode Strength'!A78 -> 200.0582022 | B78: 0 | C78: 0 | D78: 0 | E78: 0 | F78: 0 | G78: 0 | H78: 0 | I78: 0 | J78: 0 | K78: 0 | L78: 0 | M78: 1 | N78: 0
A79: ='Mode Strength'!A79 -> 201.3284733 | B79: 0 | C79: 0 | D79: 0 | E79: 0 | F79: 0 | G79: 0 | H79: 0 | I79: 0 | J79: 0 | K79: 0 | L79: 0 | M79: 1 | N79: 0
A80: ='Mode Strength'!A80 -> 202.0731681 | B80: 0 | C80: 0 | D80: 0 | E80: 0 | F80: 0 | G80: 0 | H80: 0 | I80: 0 | J80: 0 | K80: 0 | L80: 0 | M80: 1 | N80: 0
A81: ='Mode Strength'!A81 -> 204.1778466 | B81: 0 | C81: 0 | D81: 0 | E81: 0 | F81: 0 | G81: 0 | H81: 0 | I81: 0 | J81: 0 | K81: 0 | L81: 0 | M81: 1 | N81: 0
A82: ='Mode Strength'!A82 -> 204.3294701 | B82: 0 | C82: 0 | D82: 0 | E82: 0 | F82: 0 | G82: 0 | H82: 0 | I82: 0 | J82: 0 | K82: 0 | L82: 0 | M82: 1 | N82: 0
A83: ='Mode Strength'!A83 -> 205.3649475 | B83: 0 | C83: 0 | D83: 0 | E83: 0 | F83: 0 | G83: 0 | H83: 0 | I83: 0 | J83: 0 | K83: 0 | L83: 0 | M83: 1 | N83: 0
A84: ='Mode Strength'!A84 -> 207.702058 | B84: 0 | C84: 0 | D84: 0 | E84: 0 | F84: 0 | G84: 0 | H84: 0 | I84: 0 | J84: 0 | K84: 0 | L84: 0 | M84: 1 | N84: 0
A85: ='Mode Strength'!A85 -> 207.8678382 | B85: 0 | C85: 0 | D85: 0 | E85: 0 | F85: 0 | G85: 0 | H85: 0 | I85: 0 | J85: 0 | K85: 0 | L85: 0 | M85: 1 | N85: 0
A86: ='Mode Strength'!A86 -> 208.169399 | B86: 0 | C86: 0 | D86: 0 | E86: 0 | F86: 0 | G86: 0 | H86: 0 | I86: 0 | J86: 0 | K86: 0 | L86: 0 | M86: 1 | N86: 0
A87: ='Mode Strength'!A87 -> 208.5093239 | B87: 0 | C87: 0 | D87: 0 | E87: 0 | F87: 0 | G87: 0 | H87: 0 | I87: 0 | J87: 0 | K87: 0 | L87: 0 | M87: 1 | N87: 0
A88: ='Mode Strength'!A88 -> 208.7067181 | B88: 0 | C88: 0 | D88: 0 | E88: 0 | F88: 0 | G88: 0 | H88: 0 | I88: 0 | J88: 0 | K88: 0 | L88: 0 | M88: 1 | N88: 0
A89: ='Mode Strength'!A89 -> 210.4753712 | B89: 0 | C89: 0 | D89: 0 | E89: 0 | F89: 0 | G89: 0 | H89: 0 | I89: 0 | J89: 0 | K89: 0 | L89: 0 | M89: 1 | N89: 0
A90: ='Mode Strength'!A90 -> 210.5060006 | B90: 0 | C90: 0 | D90: 0 | E90: 0 | F90: 0 | G90: 0 | H90: 0 | I90: 0 | J90: 0 | K90: 0 | L90: 0 | M90: 1 | N90: 0
A91: ='Mode Strength'!A91 -> 211.0068184 | B91: 0 | C91: 0 | D91: 0 | E91: 0 | F91: 0 | G91: 0 | H91: 0 | I91: 0 | J91: 0 | K91: 0 | L91: 0 | M91: 1 | N91: 0
A92: ='Mode Strength'!A92 -> 211.9779327 | B92: 0 | C92: 0 | D92: 0 | E92: 0 | F92: 0 | G92: 0 | H92: 0 | I92: 0 | J92: 0 | K92: 0 | L92: 0 | M92: 1 | N92: 0
A93: ='Mode Strength'!A93 -> 212.8006108 | B93: 0 | C93: 0 | D93: 0 | E93: 0 | F93: 0 | G93: 0 | H93: 0 | I93: 0 | J93: 0 | K93: 0 | L93: 0 | M93: 1 | N93: 0
A94: ='Mode Strength'!A94 -> 213.0535134 | B94: 0 | C94: 0 | D94: 0 | E94: 0 | F94: 0 | G94: 0 | H94: 0 | I94: 0 | J94: 0 | K94: 0 | L94: 0 | M94: 1 | N94: 0
A95: ='Mode Strength'!A95 -> 214.8615482 | B95: 0 | C95: 0 | D95: 0 | E95: 0 | F95: 0 | G95: 0 | H95: 0 | I95: 0 | J95: 0 | K95: 0 | L95: 0 | M95: 1 | N95: 0
A96: ='Mode Strength'!A96 -> 216.290111 | B96: 0 | C96: 0 | D96: 0 | E96: 0 | F96: 0 | G96: 0 | H96: 0 | I96: 0 | J96: 0 | K96: 0 | L96: 0 | M96: 1 | N96: 0
A97: ='Mode Strength'!A97 -> 216.3647607 | B97: 0 | C97: 0 | D97: 0 | E97: 0 | F97: 0 | G97: 0 | H97: 0 | I97: 0 | J97: 0 | K97: 0 | L97: 0 | M97: 1 | N97: 0
A98: ='Mode Strength'!A98 -> 217.0654403 | B98: 0 | C98: 0 | D98: 0 | E98: 0 | F98: 0 | G98: 0 | H98: 0 | I98: 0 | J98: 0 | K98: 0 | L98: 0 | M98: 1 | N98: 0
A99: ='Mode Strength'!A99 -> 218.5842925 | B99: 0 | C99: 0 | D99: 0 | E99: 0 | F99: 0 | G99: 0 | H99: 0 | I99: 0 | J99: 0 | K99: 0 | L99: 0 | M99: 1 | N99: 0
A100: ='Mode Strength'!A100 -> 218.9546737 | B100: 0 | C100: 0 | D100: 0 | E100: 0 | F100: 0 | G100: 0 | H100: 0 | I100: 0 | J100: 0 | K100: 0 | L100: 0 | M100: 1 | N100: 0
A101: ='Mode Strength'!A101 -> 219.4655887 | B101: 0 | C101: 0 | D101: 0 | E101: 0 | F101: 0 | G101: 0 | H101: 0 | I101: 0 | J101: 0 | K101: 0 | L101: 0 | M101: 1 | N101: 0
A102: ='Mode Strength'!A102 -> 219.7768351 | B102: 0 | C102: 0 | D102: 0 | E102: 0 | F102: 0 | G102: 0 | H102: 0 | I102: 0 | J102: 0 | K102: 0 | L102: 0 | M102: 1 | N102: 0
A103: ='Mode Strength'!A103 -> 220.5704269 | B103: 0 | C103: 0 | D103: 0 | E103: 0 | F103: 0 | G103: 0 | H103: 0 | I103: 0 | J103: 0 | K103: 0 | L103: 0 | M103: 1 | N103: 0
A104: ='Mode Strength'!A104 -> 220.5741497 | B104: 0 | C104: 0 | D104: 0 | E104: 0 | F104: 0 | G104: 0 | H104: 0 | I104: 0 | J104: 0 | K104: 0 | L104: 0 | M104: 1 | N104: 0
A105: ='Mode Strength'!A105 -> 222.3996274 | B105: 0 | C105: 0 | D105: 0 | E105: 0 | F105: 0 | G105: 0 | H105: 0 | I105: 0 | J105: 0 | K105: 0 | L105: 0 | M105: 1 | N105: 0
A106: ='Mode Strength'!A106 -> 223.174264 | B106: 0 | C106: 0 | D106: 0 | E106: 0 | F106: 0 | G106: 0 | H106: 0 | I106: 0 | J106: 0 | K106: 0 | L106: 0 | M106: 1 | N106: 0
A107: ='Mode Strength'!A107 -> 223.8558942 | B107: 0 | C107: 0 | D107: 0 | E107: 0 | F107: 0 | G107: 0 | H107: 0 | I107: 0 | J107: 0 | K107: 0 | L107: 0 | M107: 1 | N107: 0
A108: ='Mode Strength'!A108 -> 224.635076 | B108: 0 | C108: 0 | D108: 0 | E108: 0 | F108: 0 | G108: 0 | H108: 0 | I108: 0 | J108: 0 | K108: 0 | L108: 0 | M108: 0 | N108: 1
A109: ='Mode Strength'!A109 -> 226.5550645 | B109: 0 | C109: 0 | D109: 0 | E109: 0 | F109: 0 | G109: 0 | H109: 0 | I109: 0 | J109: 0 | K109: 0 | L109: 0 | M109: 0 | N109: 1
A110: ='Mode Strength'!A110 -> 226.7605789 | B110: 0 | C110: 0 | D110: 0 | E110: 0 | F110: 0 | G110: 0 | H110: 0 | I110: 0 | J110: 0 | K110: 0 | L110: 0 | M110: 0 | N110: 1
A111: ='Mode Strength'!A111 -> 228.6793011 | B111: 0 | C111: 0 | D111: 0 | E111: 0 | F111: 0 | G111: 0 | H111: 0 | I111: 0 | J111: 0 | K111: 0 | L111: 0 | M111: 0 | N111: 1
A112: ='Mode Strength'!A112 -> 229.3739191 | B112: 0 | C112: 0 | D112: 0 | E112: 0 | F112: 0 | G112: 0 | H112: 0 | I112: 0 | J112: 0 | K112: 0 | L112: 0 | M112: 0 | N112: 1
A113: ='Mode Strength'!A113 -> 230.08869 | B113: 0 | C113: 0 | D113: 0 | E113: 0 | F113: 0 | G113: 0 | H113: 0 | I113: 0 | J113: 0 | K113: 0 | L113: 0 | M113: 0 | N113: 1
A114: ='Mode Strength'!A114 -> 230.331941 | B114: 0 | C114: 0 | D114: 0 | E114: 0 | F114: 0 | G114: 0 | H114: 0 | I114: 0 | J114: 0 | K114: 0 | L114: 0 | M114: 0 | N114: 1
A115: ='Mode Strength'!A115 -> 231.4687408 | B115: 0 | C115: 0 | D115: 0 | E115: 0 | F115: 0 | G115: 0 | H115: 0 | I115: 0 | J115: 0 | K115: 0 | L115: 0 | M115: 0 | N115: 1
A116: ='Mode Strength'!A116 -> 237.3090839 | B116: 0 | C116: 0 | D116: 0 | E116: 0 | F116: 0 | G116: 0 | H116: 0 | I116: 0 | J116: 0 | K116: 0 | L116: 0 | M116: 0 | N116: 1
A117: ='Mode Strength'!A117 -> 237.9140979 | B117: 0 | C117: 0 | D117: 0 | E117: 0 | F117: 0 | G117: 0 | H117: 0 | I117: 0 | J117: 0 | K117: 0 | L117: 0 | M117: 0 | N117: 1
A118: ='Mode Strength'!A118 -> 238.3843818 | B118: 0 | C118: 0 | D118: 0 | E118: 0 | F118: 0 | G118: 0 | H118: 0 | I118: 0 | J118: 0 | K118: 0 | L118: 0 | M118: 0 | N118: 1
A119: ='Mode Strength'!A119 -> 239.2050275 | B119: 0 | C119: 0 | D119: 0 | E119: 0 | F119: 0 | G119: 0 | H119: 0 | I119: 0 | J119: 0 | K119: 0 | L119: 0 | M119: 0 | N119: 1
A120: ='Mode Strength'!A120 -> 239.3344616 | B120: 0 | C120: 0 | D120: 0 | E120: 0 | F120: 0 | G120: 0 | H120: 0 | I120: 0 | J120: 0 | K120: 0 | L120: 0 | M120: 0 | N120: 1
A121: ='Mode Strength'!A121 -> 240.2190954 | B121: 0 | C121: 0 | D121: 0 | E121: 0 | F121: 0 | G121: 0 | H121: 0 | I121: 0 | J121: 0 | K121: 0 | L121: 0 | M121: 0 | N121: 1
A122: ='Mode Strength'!A122 -> 240.9174279 | B122: 0 | C122: 0 | D122: 0 | E122: 0 | F122: 0 | G122: 0 | H122: 0 | I122: 0 | J122: 0 | K122: 0 | L122: 0 | M122: 0 | N122: 1
A123: ='Mode Strength'!A123 -> 241.3081441 | B123: 0 | C123: 0 | D123: 0 | E123: 0 | F123: 0 | G123: 0 | H123: 0 | I123: 0 | J123: 0 | K123: 0 | L123: 0 | M123: 0 | N123: 1
A124: ='Mode Strength'!A124 -> 241.3716547 | B124: 0 | C124: 0 | D124: 0 | E124: 0 | F124: 0 | G124: 0 | H124: 0 | I124: 0 | J124: 0 | K124: 0 | L124: 0 | M124: 0 | N124: 1
A125: ='Mode Strength'!A125 -> 241.9766916 | B125: 0 | C125: 0 | D125: 0 | E125: 0 | F125: 0 | G125: 0 | H125: 0 | I125: 0 | J125: 0 | K125: 0 | L125: 0 | M125: 0 | N125: 1
A126: ='Mode Strength'!A126 -> 242.3623121 | B126: 0 | C126: 0 | D126: 0 | E126: 0 | F126: 0 | G126: 0 | H126: 0 | I126: 0 | J126: 0 | K126: 0 | L126: 0 | M126: 0 | N126: 1
A127: ='Mode Strength'!A127 -> 242.6210024 | B127: 0 | C127: 0 | D127: 0 | E127: 0 | F127: 0 | G127: 0 | H127: 0 | I127: 0 | J127: 0 | K127: 0 | L127: 0 | M127: 0 | N127: 1
A128: ='Mode Strength'!A128 -> 243.0821802 | B128: 0 | C128: 0 | D128: 0 | E128: 0 | F128: 0 | G128: 0 | H128: 0 | I128: 0 | J128: 0 | K128: 0 | L128: 0 | M128: 0 | N128: 1
A129: ='Mode Strength'!A129 -> 243.7622053 | B129: 0 | C129: 0 | D129: 0 | E129: 0 | F129: 0 | G129: 0 | H129: 0 | I129: 0 | J129: 0 | K129: 0 | L129: 0 | M129: 0 | N129: 1
A130: ='Mode Strength'!A130 -> 244.9201533 | B130: 0 | C130: 0 | D130: 0 | E130: 0 | F130: 0 | G130: 0 | H130: 0 | I130: 0 | J130: 0 | K130: 0 | L130: 0 | M130: 0 | N130: 1
A131: ='Mode Strength'!A131 -> 245.4473166 | B131: =IF((AND($A131>=14.1,$A131<17.8)),1,0) -> 0 | C131: =IF((AND($A131>=17.8,$A131<22.4)),1,0) -> 0 | D131: =IF((AND($A131>=22.4,$A131<28.2)),1,0) -> 0 | E131: =IF((AND($A131>=28.2,$A131<35.5)),1,0) -> 0 | F131: =IF((AND($A131>=35.5,$A131<44.7)),1,0) -> 0 | G131: =IF((AND($A131>=44.7,$A131<56.2)),1,0) -> 0 | H131: =IF((AND($A131>=56.2,$A131<70.8)),1,0) -> 0 | I131: =IF((AND($A131>=70.8,$A131<89.1)),1,0) -> 0 | J131: =IF((AND($A131>=89.1,$A131<112)),1,0) -> 0 | K131: =IF((AND($A131>=112,$A131<141)),1,0) -> 0 | L131: =IF((AND($A131>=141,$A131<178)),1,0) -> 0 | M131: =IF((AND($A131>=178,$A131<224)),1,0) -> 0 | N131: =IF((AND($A131>=224,$A131<282)),1,0) -> 1
A132: ='Mode Strength'!A132 -> 245.7256556 | B132: 0 | C132: 0 | D132: 0 | E132: 0 | F132: 0 | G132: 0 | H132: 0 | I132: 0 | J132: 0 | K132: 0 | L132: 0 | M132: 0 | N132: 1
A133: ='Mode Strength'!A133 -> 245.9031938 | B133: 0 | C133: 0 | D133: 0 | E133: 0 | F133: 0 | G133: 0 | H133: 0 | I133: 0 | J133: 0 | K133: 0 | L133: 0 | M133: 0 | N133: 1
A134: ='Mode Strength'!A134 -> 246.4356991 | B134: 0 | C134: 0 | D134: 0 | E134: 0 | F134: 0 | G134: 0 | H134: 0 | I134: 0 | J134: 0 | K134: 0 | L134: 0 | M134: 0 | N134: 1
A135: ='Mode Strength'!A135 -> 246.8243338 | B135: 0 | C135: 0 | D135: 0 | E135: 0 | F135: 0 | G135: 0 | H135: 0 | I135: 0 | J135: 0 | K135: 0 | L135: 0 | M135: 0 | N135: 1
A136: ='Mode Strength'!A136 -> 247.276401 | B136: 0 | C136: 0 | D136: 0 | E136: 0 | F136: 0 | G136: 0 | H136: 0 | I136: 0 | J136: 0 | K136: 0 | L136: 0 | M136: 0 | N136: 1
A137: ='Mode Strength'!A137 -> 248.0742526 | B137: 0 | C137: 0 | D137: 0 | E137: 0 | F137: 0 | G137: 0 | H137: 0 | I137: 0 | J137: 0 | K137: 0 | L137: 0 | M137: 0 | N137: 1
A138: ='Mode Strength'!A138 -> 248.3866684 | B138: 0 | C138: 0 | D138: 0 | E138: 0 | F138: 0 | G138: 0 | H138: 0 | I138: 0 | J138: 0 | K138: 0 | L138: 0 | M138: 0 | N138: 1
A139: ='Mode Strength'!A139 -> 248.5253112 | B139: 0 | C139: 0 | D139: 0 | E139: 0 | F139: 0 | G139: 0 | H139: 0 | I139: 0 | J139: 0 | K139: 0 | L139: 0 | M139: 0 | N139: 1
A140: ='Mode Strength'!A140 -> 249.2424696 | B140: 0 | C140: 0 | D140: 0 | E140: 0 | F140: 0 | G140: 0 | H140: 0 | I140: 0 | J140: 0 | K140: 0 | L140: 0 | M140: 0 | N140: 1
A141: ='Mode Strength'!A141 -> 249.387222 | B141: 0 | C141: 0 | D141: 0 | E141: 0 | F141: 0 | G141: 0 | H141: 0 | I141: 0 | J141: 0 | K141: 0 | L141: 0 | M141: 0 | N141: 1
A142: ='Mode Strength'!A142 -> 249.6881292 | B142: 0 | C142: 0 | D142: 0 | E142: 0 | F142: 0 | G142: 0 | H142: 0 | I142: 0 | J142: 0 | K142: 0 | L142: 0 | M142: 0 | N142: 1
A143: ='Mode Strength'!A143 -> 250.7971765 | B143: 0 | C143: 0 | D143: 0 | E143: 0 | F143: 0 | G143: 0 | H143: 0 | I143: 0 | J143: 0 | K143: 0 | L143: 0 | M143: 0 | N143: 1
A144: ='Mode Strength'!A144 -> 251.431948 | B144: 0 | C144: 0 | D144: 0 | E144: 0 | F144: 0 | G144: 0 | H144: 0 | I144: 0 | J144: 0 | K144: 0 | L144: 0 | M144: 0 | N144: 1
A145: ='Mode Strength'!A145 -> 251.5582351 | B145: 0 | C145: 0 | D145: 0 | E145: 0 | F145: 0 | G145: 0 | H145: 0 | I145: 0 | J145: 0 | K145: 0 | L145: 0 | M145: 0 | N145: 1
A146: ='Mode Strength'!A146 -> 251.9730861 | B146: 0 | C146: 0 | D146: 0 | E146: 0 | F146: 0 | G146: 0 | H146: 0 | I146: 0 | J146: 0 | K146: 0 | L146: 0 | M146: 0 | N146: 1
A147: ='Mode Strength'!A147 -> 252.4470968 | B147: 0 | C147: 0 | D147: 0 | E147: 0 | F147: 0 | G147: 0 | H147: 0 | I147: 0 | J147: 0 | K147: 0 | L147: 0 | M147: 0 | N147: 1
A148: ='Mode Strength'!A148 -> 254.2141411 | B148: 0 | C148: 0 | D148: 0 | E148: 0 | F148: 0 | G148: 0 | H148: 0 | I148: 0 | J148: 0 | K148: 0 | L148: 0 | M148: 0 | N148: 1
A149: ='Mode Strength'!A149 -> 254.9902858 | B149: 0 | C149: 0 | D149: 0 | E149: 0 | F149: 0 | G149: 0 | H149: 0 | I149: 0 | J149: 0 | K149: 0 | L149: 0 | M149: 0 | N149: 1
A150: ='Mode Strength'!A150 -> 255.269855 | B150: 0 | C150: 0 | D150: 0 | E150: 0 | F150: 0 | G150: 0 | H150: 0 | I150: 0 | J150: 0 | K150: 0 | L150: 0 | M150: 0 | N150: 1
A151: ='Mode Strength'!A151 -> 255.6114322 | B151: 0 | C151: 0 | D151: 0 | E151: 0 | F151: 0 | G151: 0 | H151: 0 | I151: 0 | J151: 0 | K151: 0 | L151: 0 | M151: 0 | N151: 1
A152: ='Mode Strength'!A152 -> 256.443124 | B152: 0 | C152: 0 | D152: 0 | E152: 0 | F152: 0 | G152: 0 | H152: 0 | I152: 0 | J152: 0 | K152: 0 | L152: 0 | M152: 0 | N152: 1
A153: ='Mode Strength'!A153 -> 257.531427 | B153: 0 | C153: 0 | D153: 0 | E153: 0 | F153: 0 | G153: 0 | H153: 0 | I153: 0 | J153: 0 | K153: 0 | L153: 0 | M153: 0 | N153: 1
A154: ='Mode Strength'!A154 -> 258.38103 | B154: 0 | C154: 0 | D154: 0 | E154: 0 | F154: 0 | G154: 0 | H154: 0 | I154: 0 | J154: 0 | K154: 0 | L154: 0 | M154: 0 | N154: 1
A155: ='Mode Strength'!A155 -> 258.5684617 | B155: 0 | C155: 0 | D155: 0 | E155: 0 | F155: 0 | G155: 0 | H155: 0 | I155: 0 | J155: 0 | K155: 0 | L155: 0 | M155: 0 | N155: 1
A156: ='Mode Strength'!A156 -> 258.6944392 | B156: 0 | C156: 0 | D156: 0 | E156: 0 | F156: 0 | G156: 0 | H156: 0 | I156: 0 | J156: 0 | K156: 0 | L156: 0 | M156: 0 | N156: 1
A157: ='Mode Strength'!A157 -> 259.558864 | B157: 0 | C157: 0 | D157: 0 | E157: 0 | F157: 0 | G157: 0 | H157: 0 | I157: 0 | J157: 0 | K157: 0 | L157: 0 | M157: 0 | N157: 1
A158: ='Mode Strength'!A158 -> 261.0418489 | B158: 0 | C158: 0 | D158: 0 | E158: 0 | F158: 0 | G158: 0 | H158: 0 | I158: 0 | J158: 0 | K158: 0 | L158: 0 | M158: 0 | N158: 1
A159: ='Mode Strength'!A159 -> 262.0443732 | B159: 0 | C159: 0 | D159: 0 | E159: 0 | F159: 0 | G159: 0 | H159: 0 | I159: 0 | J159: 0 | K159: 0 | L159: 0 | M159: 0 | N159: 1
A160: ='Mode Strength'!A160 -> 262.1028592 | B160: 0 | C160: 0 | D160: 0 | E160: 0 | F160: 0 | G160: 0 | H160: 0 | I160: 0 | J160: 0 | K160: 0 | L160: 0 | M160: 0 | N160: 1
A161: ='Mode Strength'!A161 -> 263.3632949 | B161: 0 | C161: 0 | D161: 0 | E161: 0 | F161: 0 | G161: 0 | H161: 0 | I161: 0 | J161: 0 | K161: 0 | L161: 0 | M161: 0 | N161: 1
A162: ='Mode Strength'!A162 -> 264.2000131 | B162: 0 | C162: 0 | D162: 0 | E162: 0 | F162: 0 | G162: 0 | H162: 0 | I162: 0 | J162: 0 | K162: 0 | L162: 0 | M162: 0 | N162: 1
A163: ='Mode Strength'!A163 -> 265.3337971 | B163: 0 | C163: 0 | D163: 0 | E163: 0 | F163: 0 | G163: 0 | H163: 0 | I163: 0 | J163: 0 | K163: 0 | L163: 0 | M163: 0 | N163: 1
A164: ='Mode Strength'!A164 -> 265.3742915 | B164: 0 | C164: 0 | D164: 0 | E164: 0 | F164: 0 | G164: 0 | H164: 0 | I164: 0 | J164: 0 | K164: 0 | L164: 0 | M164: 0 | N164: 1
A165: ='Mode Strength'!A165 -> 266.1178891 | B165: 0 | C165: 0 | D165: 0 | E165: 0 | F165: 0 | G165: 0 | H165: 0 | I165: 0 | J165: 0 | K165: 0 | L165: 0 | M165: 0 | N165: 1
A166: ='Mode Strength'!A166 -> 266.7736623 | B166: 0 | C166: 0 | D166: 0 | E166: 0 | F166: 0 | G166: 0 | H166: 0 | I166: 0 | J166: 0 | K166: 0 | L166: 0 | M166: 0 | N166: 1
A167: ='Mode Strength'!A167 -> 267.1931556 | B167: 0 | C167: 0 | D167: 0 | E167: 0 | F167: 0 | G167: 0 | H167: 0 | I167: 0 | J167: 0 | K167: 0 | L167: 0 | M167: 0 | N167: 1
A168: ='Mode Strength'!A168 -> 268.0411413 | B168: 0 | C168: 0 | D168: 0 | E168: 0 | F168: 0 | G168: 0 | H168: 0 | I168: 0 | J168: 0 | K168: 0 | L168: 0 | M168: 0 | N168: 1
A169: ='Mode Strength'!A169 -> 268.5769352 | B169: 0 | C169: 0 | D169: 0 | E169: 0 | F169: 0 | G169: 0 | H169: 0 | I169: 0 | J169: 0 | K169: 0 | L169: 0 | M169: 0 | N169: 1
A170: ='Mode Strength'!A170 -> 268.9936163 | B170: 0 | C170: 0 | D170: 0 | E170: 0 | F170: 0 | G170: 0 | H170: 0 | I170: 0 | J170: 0 | K170: 0 | L170: 0 | M170: 0 | N170: 1
A171: ='Mode Strength'!A171 -> 269.3685982 | B171: 0 | C171: 0 | D171: 0 | E171: 0 | F171: 0 | G171: 0 | H171: 0 | I171: 0 | J171: 0 | K171: 0 | L171: 0 | M171: 0 | N171: 1
A172: ='Mode Strength'!A172 -> 270.1878834 | B172: 0 | C172: 0 | D172: 0 | E172: 0 | F172: 0 | G172: 0 | H172: 0 | I172: 0 | J172: 0 | K172: 0 | L172: 0 | M172: 0 | N172: 1
A173: ='Mode Strength'!A173 -> 270.4030107 | B173: 0 | C173: 0 | D173: 0 | E173: 0 | F173: 0 | G173: 0 | H173: 0 | I173: 0 | J173: 0 | K173: 0 | L173: 0 | M173: 0 | N173: 1
A174: ='Mode Strength'!A174 -> 271.644488 | B174: 0 | C174: 0 | D174: 0 | E174: 0 | F174: 0 | G174: 0 | H174: 0 | I174: 0 | J174: 0 | K174: 0 | L174: 0 | M174: 0 | N174: 1
A175: ='Mode Strength'!A175 -> 272.4392935 | B175: 0 | C175: 0 | D175: 0 | E175: 0 | F175: 0 | G175: 0 | H175: 0 | I175: 0 | J175: 0 | K175: 0 | L175: 0 | M175: 0 | N175: 1
A176: ='Mode Strength'!A176 -> 272.9870646 | B176: 0 | C176: 0 | D176: 0 | E176: 0 | F176: 0 | G176: 0 | H176: 0 | I176: 0 | J176: 0 | K176: 0 | L176: 0 | M176: 0 | N176: 1
A177: ='Mode Strength'!A177 -> 273.7708255 | B177: 0 | C177: 0 | D177: 0 | E177: 0 | F177: 0 | G177: 0 | H177: 0 | I177: 0 | J177: 0 | K177: 0 | L177: 0 | M177: 0 | N177: 1
A178: ='Mode Strength'!A178 -> 274.9551454 | B178: 0 | C178: 0 | D178: 0 | E178: 0 | F178: 0 | G178: 0 | H178: 0 | I178: 0 | J178: 0 | K178: 0 | L178: 0 | M178: 0 | N178: 1
A179: ='Mode Strength'!A179 -> 275.2722968 | B179: 0 | C179: 0 | D179: 0 | E179: 0 | F179: 0 | G179: 0 | H179: 0 | I179: 0 | J179: 0 | K179: 0 | L179: 0 | M179: 0 | N179: 1
A180: ='Mode Strength'!A180 -> 275.5205074 | B180: 0 | C180: 0 | D180: 0 | E180: 0 | F180: 0 | G180: 0 | H180: 0 | I180: 0 | J180: 0 | K180: 0 | L180: 0 | M180: 0 | N180: 1
A181: ='Mode Strength'!A181 -> 275.588052 | B181: 0 | C181: 0 | D181: 0 | E181: 0 | F181: 0 | G181: 0 | H181: 0 | I181: 0 | J181: 0 | K181: 0 | L181: 0 | M181: 0 | N181: 1
A182: ='Mode Strength'!A182 -> 275.6788582 | B182: 0 | C182: 0 | D182: 0 | E182: 0 | F182: 0 | G182: 0 | H182: 0 | I182: 0 | J182: 0 | K182: 0 | L182: 0 | M182: 0 | N182: 1
A183: ='Mode Strength'!A183 -> 276.044759 | B183: 0 | C183: 0 | D183: 0 | E183: 0 | F183: 0 | G183: 0 | H183: 0 | I183: 0 | J183: 0 | K183: 0 | L183: 0 | M183: 0 | N183: 1
A184: ='Mode Strength'!A184 -> 276.1295769 | B184: 0 | C184: 0 | D184: 0 | E184: 0 | F184: 0 | G184: 0 | H184: 0 | I184: 0 | J184: 0 | K184: 0 | L184: 0 | M184: 0 | N184: 1
A185: ='Mode Strength'!A185 -> 276.1539534 | B185: 0 | C185: 0 | D185: 0 | E185: 0 | F185: 0 | G185: 0 | H185: 0 | I185: 0 | J185: 0 | K185: 0 | L185: 0 | M185: 0 | N185: 1
A186: ='Mode Strength'!A186 -> 276.9239563 | B186: 0 | C186: 0 | D186: 0 | E186: 0 | F186: 0 | G186: 0 | H186: 0 | I186: 0 | J186: 0 | K186: 0 | L186: 0 | M186: 0 | N186: 1
A187: ='Mode Strength'!A187 -> 277.1571177 | B187: 0 | C187: 0 | D187: 0 | E187: 0 | F187: 0 | G187: 0 | H187: 0 | I187: 0 | J187: 0 | K187: 0 | L187: 0 | M187: 0 | N187: 1
A188: ='Mode Strength'!A188 -> 277.617159 | B188: 0 | C188: 0 | D188: 0 | E188: 0 | F188: 0 | G188: 0 | H188: 0 | I188: 0 | J188: 0 | K188: 0 | L188: 0 | M188: 0 | N188: 1
A189: ='Mode Strength'!A189 -> 278.0202915 | B189: 0 | C189: 0 | D189: 0 | E189: 0 | F189: 0 | G189: 0 | H189: 0 | I189: 0 | J189: 0 | K189: 0 | L189: 0 | M189: 0 | N189: 1
A190: ='Mode Strength'!A190 -> 279.0100618 | B190: 0 | C190: 0 | D190: 0 | E190: 0 | F190: 0 | G190: 0 | H190: 0 | I190: 0 | J190: 0 | K190: 0 | L190: 0 | M190: 0 | N190: 1
A191: ='Mode Strength'!A191 -> 279.0419966 | B191: 0 | C191: 0 | D191: 0 | E191: 0 | F191: 0 | G191: 0 | H191: 0 | I191: 0 | J191: 0 | K191: 0 | L191: 0 | M191: 0 | N191: 1
A192: ='Mode Strength'!A192 -> 279.8117324 | B192: 0 | C192: 0 | D192: 0 | E192: 0 | F192: 0 | G192: 0 | H192: 0 | I192: 0 | J192: 0 | K192: 0 | L192: 0 | M192: 0 | N192: 1
A193: ='Mode Strength'!A193 -> 280.0529877 | B193: 0 | C193: 0 | D193: 0 | E193: 0 | F193: 0 | G193: 0 | H193: 0 | I193: 0 | J193: 0 | K193: 0 | L193: 0 | M193: 0 | N193: 1
A194: ='Mode Strength'!A194 -> 280.2528745 | B194: 0 | C194: 0 | D194: 0 | E194: 0 | F194: 0 | G194: 0 | H194: 0 | I194: 0 | J194: 0 | K194: 0 | L194: 0 | M194: 0 | N194: 1
A195: ='Mode Strength'!A195 -> 280.9570963 | B195: =IF((AND($A195>=14.1,$A195<17.8)),1,0) -> 0 | C195: =IF((AND($A195>=17.8,$A195<22.4)),1,0) -> 0 | D195: =IF((AND($A195>=22.4,$A195<28.2)),1,0) -> 0 | E195: =IF((AND($A195>=28.2,$A195<35.5)),1,0) -> 0 | F195: =IF((AND($A195>=35.5,$A195<44.7)),1,0) -> 0 | G195: =IF((AND($A195>=44.7,$A195<56.2)),1,0) -> 0 | H195: =IF((AND($A195>=56.2,$A195<70.8)),1,0) -> 0 | I195: =IF((AND($A195>=70.8,$A195<89.1)),1,0) -> 0 | J195: =IF((AND($A195>=89.1,$A195<112)),1,0) -> 0 | K195: =IF((AND($A195>=112,$A195<141)),1,0) -> 0 | L195: =IF((AND($A195>=141,$A195<178)),1,0) -> 0 | M195: =IF((AND($A195>=178,$A195<224)),1,0) -> 0 | N195: =IF((AND($A195>=224,$A195<282)),1,0) -> 1
A196: ='Mode Strength'!A196 -> 282.1170708 | B196: 0 | C196: 0 | D196: 0 | E196: 0 | F196: 0 | G196: 0 | H196: 0 | I196: 0 | J196: 0 | K196: 0 | L196: 0 | M196: 0 | N196: 0
A197: ='Mode Strength'!A197 -> 283.8141963 | B197: 0 | C197: 0 | D197: 0 | E197: 0 | F197: 0 | G197: 0 | H197: 0 | I197: 0 | J197: 0 | K197: 0 | L197: 0 | M197: 0 | N197: 0
A198: ='Mode Strength'!A198 -> 284.038027 | B198: 0 | C198: 0 | D198: 0 | E198: 0 | F198: 0 | G198: 0 | H198: 0 | I198: 0 | J198: 0 | K198: 0 | L198: 0 | M198: 0 | N198: 0
A199: ='Mode Strength'!A199 -> 284.8255463 | B199: 0 | C199: 0 | D199: 0 | E199: 0 | F199: 0 | G199: 0 | H199: 0 | I199: 0 | J199: 0 | K199: 0 | L199: 0 | M199: 0 | N199: 0
A200: ='Mode Strength'!A200 -> 285.1768322 | B200: 0 | C200: 0 | D200: 0 | E200: 0 | F200: 0 | G200: 0 | H200: 0 | I200: 0 | J200: 0 | K200: 0 | L200: 0 | M200: 0 | N200: 0
... 800 more rows

Sheet Ideal Rooms - METRIC
A1: Ideal Room Dimensions for Low Frequency Mode Response
A2: In the yellow boxes - Enter the room height in meters & the spreadsheet will automatically calculate ideal widths and depths | Y2: 2
B3: Dimensions | C3: Height | D3: Width | E3: Length | H3: PHI - Golden Ratio | Y3: 3
B4: A | C4: 1 | D4: 1.14 | E4: 1.39 | F4: L. W. Sepmeyer, 1965 | H4: =((SQRT(5)+1)/2) -> 1.618033989 | Y4: 5
B5: B | C5: 1 | D5: 1.28 | E5: 1.54 | F5: L. W. Sepmeyer, 1965 | Y5: 7
B6: C | C6: 1 | D6: 1.6 | E6: 2.33 | F6: L. W. Sepmeyer, 1965 | Y6: 11
B7: D | C7: 1 | D7: 1.4 | E7: 1.9 | F7: M. M. Louden, 1971 | Y7: 13
B8: E | C8: 1 | D8: 1.3 | E8: 1.9 | F8: M. M. Louden, 1971 | Y8: 17
B9: F | C9: 1 | D9: 1.5 | E9: 2.1 | F9: M. M. Louden, 1971 | Y9: 19
B10: G | C10: 1 | D10: 1.5 | E10: 2.5 | F10: Richard H. Bolt, 1946 | Y10: 23
B11: H | C11: 1 | D11: 1.26 | E11: 1.59 | F11: Richard H. Bolt, 1946 | Y11: 29
B12: I | C12: 1 | D12: 1.96 | E12: 2.59 | F12: IEC 60268-13, 1998 | Y12: 31
B13: J | C13: 1 | D13: 1.62 | E13: 2.62 | F13: The Golden Ratio, 1968 | Y13: 37
B14: K | C14: 1 | D14: 1.49 | E14: 2.31 | F14: Dolby Lab Recomendations | M14: Sonic Behavior Characteristics | Y14: 41
B15: L | C15: 1 | D15: 1.07 | E15: 1.87 | F15: Worst ratio (RPG Inc.) | Y15: 43
L16: Wave Region | M16: Transitional region from F² to F³ | O16: Ray Region | Y16: 47
Y17: 53
B18: IT IS HIGHLY RECOMMENDED TO ALWAYS USE PRIME NUMBERS | Y18: 59
Y19: 61
C20: If you found this spreadsheet helpful, please send a donation via PayPal to https://www.paypal.me/JHBrandt/ | M20: cubic meters | N20: Useable YES | O20: Useable NO | Y20: 67
K21: Minimum size | M21: Legend -> | N21: 1 | O21: 0 | Y21: 71
K22: 42 | Y22: 73
Y23: 79
A24: **Note: you can change the numbers in the yellow blocks and all the other ratios will change too! | K24: USEABLE? | Q24: USING PRIMES | Y24: 83
A25: HEIGHT m | B25: HEIGHT cm | C25: PRIME height | D25: WIDTH cm | E25: PRIME width | F25: DEPTH cm | G25: PRIME depth | H25: VOLUME | I25: PRIME volume | J25: TABLE | K25: 1=Yes 0=NO | L25: F¹ | M25: F² | N25: F³ | O25: minimum RT60 | P25: Floor area | Q25: F¹ | R25: F² | S25: F³ | T25: minimum RT60 | U25: Floor area | Y25: 89
A26: 2.4 | B26: =A26*100 -> 240 | C26: =INDEX($Y$2:$Y$276,MATCH(MIN(ABS($Y$2:$Y$276-B26)),ABS($Y$2:$Y$276-B26),0)) -> 239 | D26: =B26*$D$4 -> 273.6 | E26: =INDEX($Y$2:$Y$276,MATCH(MIN(ABS($Y$2:$Y$276-D26)),ABS($Y$2:$Y$276-D26),0)) -> 271 | F26: =B26*$E$4 -> 333.6 | G26: =INDEX($Y$2:$Y$276,MATCH(MIN(ABS($Y$2:$Y$276-F26)),ABS($Y$2:$Y$276-F26),0)) -> 331 | H26: =(B26/100)*(D26/100)*(F26/100) -> 21.9055104 | I26: =(C26/100)*(E26/100)*(G26/100) -> 21.438539 | J26: A | K26: =IF(H26>$K$22,$N$21,$O$21) -> 0 | L26: =565/(F26*0.0328083989501312) -> 51.62230216 | M26: =(SQRT(O26/(H26*35.3146667214885))*11250) -> 86.68979844 | N26: =4*M26 -> 346.7591938 | O26: =0.25*(((0.028316846592*H26)/100)^(1/3)) -> 0.0459345462 | P26: =(D26/100)*(F26/100) -> 9.127296 | Q26: =565/(G26*0.0328083989501312) -> 52.02779456 | R26: =(SQRT(T26/(I26*35.3146667214885))*11250) -> 87.31470484 | S26: =4*R26 -> 349.2588194 | T26: =0.25*(((0.028316846592*I26)/100)^(1/3)) -> 0.04560579526 | U26: =(E26/100)*(G26/100) -> 8.9701 | Y26: 97
A27: 2.55 | B27: =A27*100 -> 255 | C27: =INDEX($Y$2:$Y$276,MATCH(MIN(ABS($Y$2:$Y$276-B27)),ABS($Y$2:$Y$276-B27),0)) -> 257 | D27: 290.7 | E27: =INDEX($Y$2:$Y$276,MATCH(MIN(ABS($Y$2:$Y$276-D27)),ABS($Y$2:$Y$276-D27),0)) -> 293 | F27: 354.45 | G27: =INDEX($Y$2:$Y$276,MATCH(MIN(ABS($Y$2:$Y$276-F27)),ABS($Y$2:$Y$276-F27),0)) -> 353 | H27: =(B27/100)*(D27/100)*(F27/100) -> 26.27484682 | I27: =(C27/100)*(E27/100)*(G27/100) -> 26.581253 | J27: A | K27: 0 | L27: 48.58569615 | M27: 81.59039854 | N27: =4*M27 -> 326.3615941 | O27: 0.04880545534 | P27: 10.3038615 | Q27: 48.78526912 | R27: 81.27568449 | S27: =4*R27 -> 325.102738 | T27: 0.04899443883 | U27: 10.3429 | Y27: 101
A28: 2.7 | B28: 270 | C28: =INDEX($Y$2:$Y$276,MATCH(MIN(ABS($Y$2:$Y$276-B28)),ABS($Y$2:$Y$276-B28),0)) -> 269 | D28: 307.8 | E28: =INDEX($Y$2:$Y$276,MATCH(MIN(ABS($Y$2:$Y$276-D28)),ABS($Y$2:$Y$276-D28),0)) -> 307 | F28: 375.3 | G28: =INDEX($Y$2:$Y$276,MATCH(MIN(ABS($Y$2:$Y$276-F28)),ABS($Y$2:$Y$276-F28),0)) -> 373 | H28: 31.1896818 | I28: 30.803459 | J28: A | K28: 0 | L28: 45.88649081 | M28: 77.05759862 | N28: 308.2303945 | O28: 0.05167636448 | P28: 11.551734 | Q28: 46.169437 | R28: 77.37831882 | S28: 309.5132753 | T28: 0.05146217458 | U28: 11.4511 | Y28: 103
A29: 2.85 | B29: 285 | C29: =INDEX($Y$2:$Y$276,MATCH(MIN(ABS($Y$2:$Y$276-B29)),ABS($Y$2:$Y$276-B29),0)) -> 283 | D29: 324.9 | E29: =INDEX($Y$2:$Y$276,MATCH(MIN(ABS($Y$2:$Y$276-D29)),ABS($Y$2:$Y$276-D29),0)) -> 331 | F29: 396.15 | G29: =INDEX($Y$2:$Y$276,MATCH(MIN(ABS($Y$2:$Y$276-F29)),ABS($Y$2:$Y$276-F29),0)) -> 397 | H29: 36.68210347 | I29: 37.188181 | J29: A | K29: 0 | L29: 43.47141234 | M29: 73.00193553 | N29: 292.0077421 | O29: 0.05454727362 | P29: 12.8709135 | Q29: 43.37833753 | R29: 72.66927155 | S29: 290.6770862 | T29: 0.05479697907 | U29: 13.1407 | Y29: 107
A30: 3 | B30: 300 | C30: =INDEX($Y$2:$Y$276,MATCH(MIN(ABS($Y$2:$Y$276-B30)),ABS($Y$2:$Y$276-B30),0)) -> 293 | D30: 342 | E30: =INDEX($Y$2:$Y$276,MATCH(MIN(ABS($Y$2:$Y$276-D30)),ABS($Y$2:$Y$276-D30),0)) -> 337 | F30: 417 | G30: =INDEX($Y$2:$Y$276,MATCH(MIN(ABS($Y$2:$Y$276-F30)),ABS($Y$2:$Y$276-F30),0)) -> 419 | H30: 42.7842 | I30: 41.372479 | J30: A | K30: 1 | L30: 41.29784173 | M30: 69.35183876 | N30: 277.407355 | O30: 0.05741818275 | P30: 14.2614 | Q30: 41.10071599 | R30: 70.13184604 | S30: 280.5273842 | T30: 0.056779577 | U30: 14.1203 | Y30: 109
A31: 3.2 | B31: 320 | C31: =INDEX($Y$2:$Y$276,MATCH(MIN(ABS($Y$2:$Y$276-B31)),ABS($Y$2:$Y$276-B31),0)) -> 317 | D31: 364.8 | E31: =INDEX($Y$2:$Y$276,MATCH(MIN(ABS($Y$2:$Y$276-D31)),ABS($Y$2:$Y$276-D31),0)) -> 367 | F31: 444.8 | G31: =INDEX($Y$2:$Y$276,MATCH(MIN(ABS($Y$2:$Y$276-F31)),ABS($Y$2:$Y$276-F31),0)) -> 443 | H31: 51.9241728 | I31: 51.538177 | J31: A | K31: 1 | L31: 38.71672662 | M31: 65.01734883 | N31: 260.0693953 | O31: 0.0612460616 | P31: 16.226304 | Q31: 38.87404063 | R31: 65.17926136 | S31: 260.7170454 | T31: 0.06109391958 | U31: 16.2581 | Y31: 113
A32: 3.3 | B32: 330 | C32: =INDEX($Y$2:$Y$276,MATCH(MIN(ABS($Y$2:$Y$276-B32)),ABS($Y$2:$Y$276-B32),0)) -> 331 | D32: 376.2 | E32: =INDEX($Y$2:$Y$276,MATCH(MIN(ABS($Y$2:$Y$276-D32)),ABS($Y$2:$Y$276-D32),0)) -> 379 | F32: 458.7 | G32: =INDEX($Y$2:$Y$276,MATCH(MIN(ABS($Y$2:$Y$276-F32)),ABS($Y$2:$Y$276-F32),0)) -> 457 | H32: 56.9457702 | I32: 57.330193 | J32: A | K32: 1 | L32: 37.54349248 | M32: 63.04712614 | N32: 252.1885046 | O32: 0.06316000103 | P32: 17.256294 | Q32: 37.68315098 | R32: 62.90589092 | S32: 251.6235637 | T32: 0.06330180678 | U32: 17.3203 | Y32: 127
A33: 3.4 | B33: 340 | C33: =INDEX($Y$2:$Y$276,MATCH(MIN(ABS($Y$2:$Y$276-B33)),ABS($Y$2:$Y$276-B33),0)) -> 337 | D33: 387.6 | E33: =INDEX($Y$2:$Y$276,MATCH(MIN(ABS($Y$2:$Y$276-D33)),ABS($Y$2:$Y$276-D33),0)) -> 389 | F33: 472.6 | G33: =INDEX($Y$2:$Y$276,MATCH(MIN(ABS($Y$2:$Y$276-F33)),ABS($Y$2:$Y$276-F33),0)) -> 467 | H33: 62.2811184 | I33: 61.220431 | J33: A | K33: 1 | L33: 36.43927211 | M33: 61.1927989 | N33: 244.7711956 | O33: 0.06507394045 | P33: 18.317976 | Q33: 36.87623126 | R33: 61.54418022 | S33: 246.1767209 | T33: 0.06470240626 | U33: 18.1663 | Y33: 131
A34: 3.6 | B34: 360 | C34: =INDEX($Y$2:$Y$276,MATCH(MIN(ABS($Y$2:$Y$276-B34)),ABS($Y$2:$Y$276-B34),0)) -> 359 | D34: 410.4 | E34: =INDEX($Y$2:$Y$276,MATCH(MIN(ABS($Y$2:$Y$276-D34)),ABS($Y$2:$Y$276-D34),0)) -> 409 | F34: 500.4 | G34: =INDEX($Y$2:$Y$276,MATCH(MIN(ABS($Y$2:$Y$276-F34)),ABS($Y$2:$Y$276-F34),0)) -> 499 | H34: 73.9310976 | I34: 73.268669 | J34: A | K34: 1 | L34: 34.41486811 | M34: 57.79319896 | N34: 231.1727959 | O34: 0.0689018193 | P34: 20.536416 | Q34: 34.51142285 | R34: 57.96684785 | S34: 231.8673914 | T34: 0.06869541298 | U34: 20.4091 | Y34: 137
A35: 3.75 | B35: 375 | C35: =INDEX($Y$2:$Y$276,MATCH(MIN(ABS($Y$2:$Y$276-B35)),ABS($Y$2:$Y$276-B35),0)) -> 373 | D35: 427.5 | E35: =INDEX($Y$2:$Y$276,MATCH(MIN(ABS($Y$2:$Y$276-D35)),ABS($Y$2:$Y$276-D35),0)) -> 431 | F35: 521.25 | G35: =INDEX($Y$2:$Y$276,MATCH(MIN(ABS($Y$2:$Y$276-F35)),ABS($Y$2:$Y$276-F35),0)) -> 521 | H35: 83.56289062 | I35: 83.757523 | J35: A | K35: 1 | L35: 33.03827338 | M35: 55.481471 | N35: 221.925884 | O35: 0.07177272844 | P35: 22.2834375 | Q35: 33.05412668 | R35: 55.43846247 | S35: 221.7538499 | T35: 0.07182840892 | U35: 22.4551 | Y35: 139
A36: 3.9 | B36: 390 | C36: =INDEX($Y$2:$Y$276,MATCH(MIN(ABS($Y$2:$Y$276-B36)),ABS($Y$2:$Y$276-B36),0)) -> 389 | D36: 444.6 | E36: =INDEX($Y$2:$Y$276,MATCH(MIN(ABS($Y$2:$Y$276-D36)),ABS($Y$2:$Y$276-D36),0)) -> 443 | F36: 542.1 | G36: =INDEX($Y$2:$Y$276,MATCH(MIN(ABS($Y$2:$Y$276-F36)),ABS($Y$2:$Y$276-F36),0)) -> 541 | H36: 93.9968874 | I36: 93.228907 | J36: A | K36: 1 | L36: 31.76757056 | M36: 53.34756827 | N36: 213.3902731 | O36: 0.07464363758 | P36: 24.101766 | Q36: 31.83216266 | R36: 53.4936528 | S36: 213.9746112 | T36: 0.07443979507 | U36: 23.9663 | Y36: 149
A37: 4.05 | B37: 405 | C37: =INDEX($Y$2:$Y$276,MATCH(MIN(ABS($Y$2:$Y$276-B37)),ABS($Y$2:$Y$276-B37),0)) -> 401 | D37: 461.7 | E37: =INDEX($Y$2:$Y$276,MATCH(MIN(ABS($Y$2:$Y$276-D37)),ABS($Y$2:$Y$276-D37),0)) -> 461 | F37: 562.95 | G37: =INDEX($Y$2:$Y$276,MATCH(MIN(ABS($Y$2:$Y$276-F37)),ABS($Y$2:$Y$276-F37),0)) -> 563 | H37: =(B37/100)*(D37/100)*(F37/100) -> 105.2651761 | I37: 104.076743 | J37: A | K37: 1 | L37: 30.59099387 | M37: 51.37173241 | N37: 205.4869296 | O37: 0.07751454672 | P37: 25.9914015 | Q37: 30.58827709 | R37: 51.56652761 | S37: 206.2661104 | T37: 0.07722173155 | U37: 25.9543 | Y37: 151
A38: 4.2 | B38: 420 | C38: =INDEX($Y$2:$Y$276,MATCH(MIN(ABS($Y$2:$Y$276-B38)),ABS($Y$2:$Y$276-B38),0)) -> 419 | D38: 478.8 | E38: =INDEX($Y$2:$Y$276,MATCH(MIN(ABS($Y$2:$Y$276-D38)),ABS($Y$2:$Y$276-D38),0)) -> 479 | F38: 583.8 | G38: =INDEX($Y$2:$Y$276,MATCH(MIN(ABS($Y$2:$Y$276-F38)),ABS($Y$2:$Y$276-F38),0)) -> 587 | H38: =(B38/100)*(D38/100)*(F38/100) -> 117.3998448 | I38: 117.811487 | J38: A | K38: 1 | L38: 29.49845838 | M38: 49.53702768 | N38: 198.1481107 | O38: 0.08038545586 | P38: 27.952344 | Q38: 29.33764906 | R38: 49.47926499 | S38: 197.9170599 | T38: 0.08047929881 | U38: 28.1173 | Y38: 157
A39: 4.35 | B39: 435 | C39: =INDEX($Y$2:$Y$276,MATCH(MIN(ABS($Y$2:$Y$276-B39)),ABS($Y$2:$Y$276-B39),0)) -> 433 | D39: 495.9 | E39: =INDEX($Y$2:$Y$276,MATCH(MIN(ABS($Y$2:$Y$276-D39)),ABS($Y$2:$Y$276-D39),0)) -> 499 | F39: 604.65 | G39: =INDEX($Y$2:$Y$276,MATCH(MIN(ABS($Y$2:$Y$276-F39)),ABS($Y$2:$Y$276-F39),0)) -> 607 | H39: =(B39/100)*(D39/100)*(F39/100) -> 130.4329817 | I39: 131.152669 | J39: A | K39: 1 | L39: 28.48127016 | M39: 47.82885431 | N39: 191.3154173 | O39: 0.08325636499 | P39: 29.9845935 | Q39: 28.37100494 | R39: 47.74120844 | S39: 190.9648337 | T39: 0.08340921151 | U39: 30.2893 | Y39: 163
A40: 4.5 | B40: 450 | C40: =INDEX($Y$2:$Y$276,MATCH(MIN(ABS($Y$2:$Y$276-B40)),ABS($Y$2:$Y$276-B40),0)) -> 449 | D40: 513 | E40: =INDEX($Y$2:$Y$276,MATCH(MIN(ABS($Y$2:$Y$276-D40)),ABS($Y$2:$Y$276-D40),0)) -> 509 | F40: 625.5 | G40: =INDEX($Y$2:$Y$276,MATCH(MIN(ABS($Y$2:$Y$276-F40)),ABS($Y$2:$Y$276-F40),0)) -> 631 | H40: =(B40/100)*(D40/100)*(F40/100) -> 144.396675 | I40: 144.209371 | J40: A | K40: 1 | L40: 27.53189448 | M40: 46.23455917 | N40: 184.9382367 | O40: 0.08612727413 | P40: 32.08815 | Q40: 27.29191759 | R40: 46.25456751 | S40: 185.0182701 | T40: 0.08609001805 | U40: 32.1179 | Y40: 167
A41: HEIGHT m | B41: HEIGHT cm | C41: PRIME height | D41: WIDTH cm | E41: PRIME width | F41: DEPTH cm | G41: PRIME depth | H41: VOLUME | I41: PRIME volume | J41: TABLE | K41: 1=Yes 0=NO | L41: F¹ | M41: F² | N41: F³ | O41: minimum RT60 | P41: Floor area | Q41: F¹ | R41: F² | S41: F³ | T41: minimum RT60 | U41: Floor area | Y41: 173
A42: =A26 -> 2.4 | B42: 240 | C42: =INDEX($Y$2:$Y$276,MATCH(MIN(ABS($Y$2:$Y$276-B42)),ABS($Y$2:$Y$276-B42),0)) -> 239 | D42: =B42*$D$5 -> 307.2 | E42: =INDEX($Y$2:$Y$276,MATCH(MIN(ABS($Y$2:$Y$276-D42)),ABS($Y$2:$Y$276-D42),0)) -> 307 | F42: =B42*$E$5 -> 369.6 | G42: =INDEX($Y$2:$Y$276,MATCH(MIN(ABS($Y$2:$Y$276-F42)),ABS($Y$2:$Y$276-F42),0)) -> 367 | H42: 27.2498688 | I42: =(C42/100)*(E42/100)*(G42/100) -> 26.927891 | J42: B | K42: =IF(H42>$K$22,$N$21,$O$21) -> 0 | L42: =565/(F42*0.0328083989501312) -> 46.59415584 | M42: =(SQRT(O42/(H42*35.3146667214885))*11250) -> 80.60543268 | N42: 322.4217307 | O42: =0.25*(((0.028316846592*H42)/100)^(1/3)) -> 0.04940183831 | P42: =(D42/100)*(F42/100) -> 11.354112 | Q42: =565/(G42*0.0328083989501312) -> 46.92425068 | R42: =(SQRT(T42/(I42*35.3146667214885))*11250) -> 80.92542804 | S42: =4*R42 -> 323.7017122 | T42: =0.25*(((0.028316846592*I42)/100)^(1/3)) -> 0.04920649354 | U42: =(E42/100)*(G42/100) -> 11.2669 | Y42: 179
A43: 2.55 | B43: 255 | C43: =INDEX($Y$2:$Y$276,MATCH(MIN(ABS($Y$2:$Y$276-B43)),ABS($Y$2:$Y$276-B43),0)) -> 257 | D43: 326.4 | E43: =INDEX($Y$2:$Y$276,MATCH(MIN(ABS($Y$2:$Y$276-D43)),ABS($Y$2:$Y$276-D43),0)) -> 331 | F43: 392.7 | G43: =INDEX($Y$2:$Y$276,MATCH(MIN(ABS($Y$2:$Y$276-F43)),ABS($Y$2:$Y$276-F43),0)) -> 389 | H43: 32.6852064 | I43: 33.091063 | J43: B | K43: 0 | L43: 43.85332315 | M43: 75.86393664 | N43: 303.4557466 | O43: 0.0524894532 | P43: 12.817728 | Q43: 44.27043702 | R43: 75.55250692 | S43: =4*R43 -> 302.2100277 | T43: 0.05270581632 | U43: 12.8759 | Y43: 181
A44: 2.7 | B44: 270 | C44: =INDEX($Y$2:$Y$276,MATCH(MIN(ABS($Y$2:$Y$276-B44)),ABS($Y$2:$Y$276-B44),0)) -> 269 | D44: 345.6 | E44: =INDEX($Y$2:$Y$276,MATCH(MIN(ABS($Y$2:$Y$276-D44)),ABS($Y$2:$Y$276-D44),0)) -> 347 | F44: 415.8 | G44: =INDEX($Y$2:$Y$276,MATCH(MIN(ABS($Y$2:$Y$276-F44)),ABS($Y$2:$Y$276-F44),0)) -> 419 | H44: 38.7991296 | I44: 39.110717 | J44: B | K44: 0 | L44: 41.41702742 | M44: 71.6492735 | N44: 286.597094 | O44: 0.05557706809 | P44: 14.370048 | Q44: 41.10071599 | R44: 71.45849407 | S44: 285.8339763 | T44: 0.0557254474 | U44: 14.5393 | Y44: 191
A45: 2.85 | B45: 285 | C45: =INDEX($Y$2:$Y$276,MATCH(MIN(ABS($Y$2:$Y$276-B45)),ABS($Y$2:$Y$276-B45),0)) -> 283 | D45: 364.8 | E45: =INDEX($Y$2:$Y$276,MATCH(MIN(ABS($Y$2:$Y$276-D45)),ABS($Y$2:$Y$276-D45),0)) -> 367 | F45: 438.9 | G45: =INDEX($Y$2:$Y$276,MATCH(MIN(ABS($Y$2:$Y$276-F45)),ABS($Y$2:$Y$276-F45),0)) -> 439 | H45: 45.6315552 | I45: 45.594979 | J45: B | K45: 1 | L45: 39.23718387 | M45: 67.8782591 | N45: 271.5130364 | O45: 0.05866468299 | P45: 16.011072 | Q45: 39.22824601 | R45: 67.89640485 | S45: 271.5856194 | T45: 0.05864900448 | U45: 16.1113 | Y45: 193
A46: 3 | B46: 300 | C46: =INDEX($Y$2:$Y$276,MATCH(MIN(ABS($Y$2:$Y$276-B46)),ABS($Y$2:$Y$276-B46),0)) -> 293 | D46: 384 | E46: =INDEX($Y$2:$Y$276,MATCH(MIN(ABS($Y$2:$Y$276-D46)),ABS($Y$2:$Y$276-D46),0)) -> 383 | F46: 462 | G46: =INDEX($Y$2:$Y$276,MATCH(MIN(ABS($Y$2:$Y$276-F46)),ABS($Y$2:$Y$276-F46),0)) -> 461 | H46: 53.2224 | I46: 51.732959 | J46: B | K46: 1 | L46: 37.27532468 | M46: 64.48434615 | N46: 257.9373846 | O46: 0.06175229788 | P46: 17.7408 | Q46: 37.35618221 | R46: 65.0973554 | S46: 260.3894216 | T46: 0.0611707884 | U46: 17.6563 | Y46: 197
A47: 3.2 | B47: 320 | C47: =INDEX($Y$2:$Y$276,MATCH(MIN(ABS($Y$2:$Y$276-B47)),ABS($Y$2:$Y$276-B47),0)) -> 317 | D47: 409.6 | E47: =INDEX($Y$2:$Y$276,MATCH(MIN(ABS($Y$2:$Y$276-D47)),ABS($Y$2:$Y$276-D47),0)) -> 409 | F47: 492.8 | G47: =INDEX($Y$2:$Y$276,MATCH(MIN(ABS($Y$2:$Y$276-F47)),ABS($Y$2:$Y$276-F47),0)) -> 491 | H47: 64.5922816 | I47: 63.659623 | J47: B | K47: 1 | L47: 34.94561688 | M47: 60.45407451 | N47: 241.8162981 | O47: 0.06586911774 | P47: 20.185088 | Q47: 35.07372709 | R47: 60.74787603 | S47: 242.9915041 | T47: 0.06555054781 | U47: 20.0819 | Y47: 199
A48: 3.3 | B48: 330 | C48: =INDEX($Y$2:$Y$276,MATCH(MIN(ABS($Y$2:$Y$276-B48)),ABS($Y$2:$Y$276-B48),0)) -> 331 | D48: 422.4 | E48: =INDEX($Y$2:$Y$276,MATCH(MIN(ABS($Y$2:$Y$276-D48)),ABS($Y$2:$Y$276-D48),0)) -> 421 | F48: 508.2 | G48: =INDEX($Y$2:$Y$276,MATCH(MIN(ABS($Y$2:$Y$276-F48)),ABS($Y$2:$Y$276-F48),0)) -> 509 | H48: 70.8390144 | I48: 70.929659 | J48: B | K48: 1 | L48: 33.8866588 | M48: 58.62213286 | N48: 234.4885314 | O48: 0.06792752767 | P48: 21.466368 | Q48: 33.83339882 | R48: 58.59715015 | S48: 234.3886006 | T48: 0.06795648836 | U48: 21.4289 | Y48: 211
A49: 3.4 | B49: 340 | C49: =INDEX($Y$2:$Y$276,MATCH(MIN(ABS($Y$2:$Y$276-B49)),ABS($Y$2:$Y$276-B49),0)) -> 337 | D49: 435.2 | E49: =INDEX($Y$2:$Y$276,MATCH(MIN(ABS($Y$2:$Y$276-D49)),ABS($Y$2:$Y$276-D49),0)) -> 433 | F49: 523.6 | G49: =INDEX($Y$2:$Y$276,MATCH(MIN(ABS($Y$2:$Y$276-F49)),ABS($Y$2:$Y$276-F49),0)) -> 523 | H49: 77.4760448 | I49: 76.316683 | J49: B | K49: 1 | L49: 32.88999236 | M49: 56.89795248 | N49: 227.5918099 | O49: 0.0699859376 | P49: 22.787072 | Q49: 32.92772467 | R49: 57.18462666 | S49: 228.7385066 | T49: 0.06963508874 | U49: 22.6459 | Y49: 223
A50: 3.6 | B50: 360 | C50: =INDEX($Y$2:$Y$276,MATCH(MIN(ABS($Y$2:$Y$276-B50)),ABS($Y$2:$Y$276-B50),0)) -> 359 | D50: 460.8 | E50: =INDEX($Y$2:$Y$276,MATCH(MIN(ABS($Y$2:$Y$276-D50)),ABS($Y$2:$Y$276-D50),0)) -> 461 | F50: 554.4 | G50: =INDEX($Y$2:$Y$276,MATCH(MIN(ABS($Y$2:$Y$276-F50)),ABS($Y$2:$Y$276-F50),0)) -> 557 | H50: 91.9683072 | I50: 92.182943 | J50: B | K50: 1 | L50: 31.06277056 | M50: 53.73695512 | N50: 214.9478205 | O50: 0.07410275746 | P50: 25.546752 | Q50: 30.91777379 | R50: 53.69521625 | S50: 214.780865 | T50: 0.07416035972 | U50: 25.6777 | Y50: 227
A51: 3.75 | B51: 375 | C51: =INDEX($Y$2:$Y$276,MATCH(MIN(ABS($Y$2:$Y$276-B51)),ABS($Y$2:$Y$276-B51),0)) -> 373 | D51: 480 | E51: =INDEX($Y$2:$Y$276,MATCH(MIN(ABS($Y$2:$Y$276-D51)),ABS($Y$2:$Y$276-D51),0)) -> 479 | F51: 577.5 | G51: =INDEX($Y$2:$Y$276,MATCH(MIN(ABS($Y$2:$Y$276-F51)),ABS($Y$2:$Y$276-F51),0)) -> 577 | H51: 103.95 | I51: 103.090859 | J51: B | K51: 1 | L51: 29.82025974 | M51: 51.58747692 | N51: 206.3499077 | O51: 0.07719037235 | P51: 27.72 | Q51: 29.84610052 | R51: 51.73038762 | S51: 206.9215505 | T51: 0.07697712573 | U51: 27.6383 | Y51: 229
A52: 3.9 | B52: 390 | C52: =INDEX($Y$2:$Y$276,MATCH(MIN(ABS($Y$2:$Y$276-B52)),ABS($Y$2:$Y$276-B52),0)) -> 389 | D52: 499.2 | E52: =INDEX($Y$2:$Y$276,MATCH(MIN(ABS($Y$2:$Y$276-D52)),ABS($Y$2:$Y$276-D52),0)) -> 499 | F52: 600.6 | G52: =INDEX($Y$2:$Y$276,MATCH(MIN(ABS($Y$2:$Y$276-F52)),ABS($Y$2:$Y$276-F52),0)) -> 601 | H52: 116.9296128 | I52: 116.660711 | J52: B | K52: 1 | L52: 28.67332667 | M52: 49.60334319 | N52: 198.4133728 | O52: 0.08027798725 | P52: 29.981952 | Q52: 28.65424293 | R52: 49.64142569 | S52: 198.5657027 | T52: 0.08021640187 | U52: 29.9899 | Y52: 233
A53: 4.05 | B53: 405 | C53: =INDEX($Y$2:$Y$276,MATCH(MIN(ABS($Y$2:$Y$276-B53)),ABS($Y$2:$Y$276-B53),0)) -> 401 | D53: 518.4 | E53: =INDEX($Y$2:$Y$276,MATCH(MIN(ABS($Y$2:$Y$276-D53)),ABS($Y$2:$Y$276-D53),0)) -> 521 | F53: 623.7 | G53: =INDEX($Y$2:$Y$276,MATCH(MIN(ABS($Y$2:$Y$276-F53)),ABS($Y$2:$Y$276-F53),0)) -> 619 | H53: 130.9470624 | I53: 129.322099 | J53: B | K53: 1 | L53: 27.61135161 | M53: 47.76618233 | N53: 191.0647293 | O53: 0.08336560214 | P53: 32.332608 | Q53: 27.82100162 | R53: 47.96541472 | S53: 191.8616589 | T53: 0.08301932915 | U53: 32.2499 | Y53: 239
A54: 4.2 | B54: 420 | C54: =INDEX($Y$2:$Y$276,MATCH(MIN(ABS($Y$2:$Y$276-B54)),ABS($Y$2:$Y$276-B54),0)) -> 419 | D54: 537.6 | E54: =INDEX($Y$2:$Y$276,MATCH(MIN(ABS($Y$2:$Y$276-D54)),ABS($Y$2:$Y$276-D54),0)) -> 541 | F54: 646.8 | G54: =INDEX($Y$2:$Y$276,MATCH(MIN(ABS($Y$2:$Y$276-F54)),ABS($Y$2:$Y$276-F54),0)) -> 647 | H54: 146.0422656 | I54: 146.661313 | J54: B | K54: 1 | L54: 26.62523191 | M54: 46.06024725 | N54: 184.240989 | O54: 0.08645321704 | P54: 34.771968 | Q54: 26.61700155 | R54: 45.99535013 | S54: 183.9814005 | T54: 0.08657519816 | U54: 35.0027 | Y54: 241
A55: 4.35 | B55: 435 | C55: =INDEX($Y$2:$Y$276,MATCH(MIN(ABS($Y$2:$Y$276-B55)),ABS($Y$2:$Y$276-B55),0)) -> 433 | D55: 556.8 | E55: =INDEX($Y$2:$Y$276,MATCH(MIN(ABS($Y$2:$Y$276-D55)),ABS($Y$2:$Y$276-D55),0)) -> 557 | F55: 669.9 | G55: =INDEX($Y$2:$Y$276,MATCH(MIN(ABS($Y$2:$Y$276-F55)),ABS($Y$2:$Y$276-F55),0)) -> 673 | H55: 162.2551392 | I55: 162.314813 | J55: B | K55: 1 | L55: 25.70712047 | M55: 44.47196286 | N55: 177.8878514 | O55: 0.08954083193 | P55: 37.300032 | Q55: 25.58870728 | R55: 44.46651227 | S55: 177.8660491 | T55: 0.08955180762 | U55: 37.4861 | Y55: 251
A56: 4.5 | B56: 450 | C56: =INDEX($Y$2:$Y$276,MATCH(MIN(ABS($Y$2:$Y$276-B56)),ABS($Y$2:$Y$276-B56),0)) -> 449 | D56: 576 | E56: =INDEX($Y$2:$Y$276,MATCH(MIN(ABS($Y$2:$Y$276-D56)),ABS($Y$2:$Y$276-D56),0)) -> 577 | F56: 693 | G56: =INDEX($Y$2:$Y$276,MATCH(MIN(ABS($Y$2:$Y$276-F56)),ABS($Y$2:$Y$276-F56),0)) -> 691 | H56: 179.6256 | I56: 179.019443 | J56: B | K56: 1 | L56: 24.85021645 | M56: 42.9895641 | N56: 171.9582564 | O56: 0.09262844682 | P56: 39.9168 | Q56: 24.92214182 | R56: 43.0380301 | S56: 172.1521204 | T56: 0.09252413605 | U56: 39.8707 | Y56: 257
A57: HEIGHT m | B57: HEIGHT cm | C57: PRIME height | D57: WIDTH cm | E57: PRIME width | F57: DEPTH cm | G57: PRIME depth | H57: VOLUME | I57: PRIME volume | J57: TABLE | K57: 1=Yes 0=NO | L57: F¹ | M57: F² | N57: F³ | O57: minimum RT60 | P57: Floor area | Q57: F¹ | R57: F² | S57: F³ | T57: minimum RT60 | U57: Floor area | Y57: 263
A58: =A42 -> 2.4 | B58: 240 | C58: =INDEX($Y$2:$Y$276,MATCH(MIN(ABS($Y$2:$Y$276-B58)),ABS($Y$2:$Y$276-B58),0)) -> 239 | D58: =B58*$D$6 -> 384 | E58: =INDEX($Y$2:$Y$276,MATCH(MIN(ABS($Y$2:$Y$276-D58)),ABS($Y$2:$Y$276-D58),0)) -> 383 | F58: =B58*$E$6 -> 559.2 | G58: =INDEX($Y$2:$Y$276,MATCH(MIN(ABS($Y$2:$Y$276-F58)),ABS($Y$2:$Y$276-F58),0)) -> 557 | H58: 51.535872 | I58: =(C58/100)*(E58/100)*(G58/100) -> 50.986109 | J58: C | K58: =IF(H58>$K$22,$N$21,$O$21) -> 1 | L58: =565/(F58*0.0328083989501312) -> 30.79613734 | M58: =(SQRT(O58/(H58*35.3146667214885))*11250) -> 65.18023309 | N58: 260.7209323 | O58: =0.25*(((0.028316846592*H58)/100)^(1/3)) -> 0.06109300878 | P58: =(D58/100)*(F58/100) -> 21.47328 | Q58: =565/(G58*0.0328083989501312) -> 30.91777379 | R58: =(SQRT(T58/(I58*35.3146667214885))*11250) -> 65.41366695 | S58: =4*R58 -> 261.6546678 | T58: =0.25*(((0.028316846592*I58)/100)^(1/3)) -> 0.06087499353 | U58: =(E58/100)*(G58/100) -> 21.3331 | Y58: 269
A59: 2.55 | B59: 255 | C59: =INDEX($Y$2:$Y$276,MATCH(MIN(ABS($Y$2:$Y$276-B59)),ABS($Y$2:$Y$276-B59),0)) -> 257 | D59: 408 | E59: =INDEX($Y$2:$Y$276,MATCH(MIN(ABS($Y$2:$Y$276-D59)),ABS($Y$2:$Y$276-D59),0)) -> 409 | F59: 594.15 | G59: =INDEX($Y$2:$Y$276,MATCH(MIN(ABS($Y$2:$Y$276-F59)),ABS($Y$2:$Y$276-F59),0)) -> 593 | H59: 61.815366 | I59: 62.332009 | J59: C | K59: 1 | L59: 28.98459985 | M59: 61.34610173 | N59: 245.3844069 | O59: 0.06491132183 | P59: 24.24132 | Q59: 29.04080944 | R59: 61.17614087 | S59: =4*R59 -> 244.7045635 | T59: 0.06509165984 | U59: 24.2537 | Y59: 271
A60: 2.7 | B60: 270 | C60: =INDEX($Y$2:$Y$276,MATCH(MIN(ABS($Y$2:$Y$276-B60)),ABS($Y$2:$Y$276-B60),0)) -> 269 | D60: 432 | E60: =INDEX($Y$2:$Y$276,MATCH(MIN(ABS($Y$2:$Y$276-D60)),ABS($Y$2:$Y$276-D60),0)) -> 431 | F60: 629.1 | G60: =INDEX($Y$2:$Y$276,MATCH(MIN(ABS($Y$2:$Y$276-F60)),ABS($Y$2:$Y$276-F60),0)) -> 631 | H60: 73.378224 | I60: 73.157509 | J60: C | K60: 1 | L60: 27.3743443 | M60: 57.93798497 | N60: 231.7519399 | O60: 0.06872963487 | P60: 27.17712 | Q60: 27.29191759 | R60: 57.99619245 | S60: 231.9847698 | T60: 0.06866065484 | U60: 27.1961 | Y60: 277
A61: 2.85 | B61: 285 | C61: =INDEX($Y$2:$Y$276,MATCH(MIN(ABS($Y$2:$Y$276-B61)),ABS($Y$2:$Y$276-B61),0)) -> 283 | D61: 456 | E61: =INDEX($Y$2:$Y$276,MATCH(MIN(ABS($Y$2:$Y$276-D61)),ABS($Y$2:$Y$276-D61),0)) -> 457 | F61: 664.05 | G61: =INDEX($Y$2:$Y$276,MATCH(MIN(ABS($Y$2:$Y$276-F61)),ABS($Y$2:$Y$276-F61),0)) -> 661 | H61: 86.299938 | I61: 85.487791 | J61: C | K61: 1 | L61: 25.93358934 | M61: 54.88861734 | N61: 219.5544693 | O61: 0.07254794792 | P61: 30.28068 | Q61: 26.05325265 | R61: 55.06188653 | S61: 220.2475461 | T61: 0.07231965345 | U61: 30.2077 | Y61: 281
A62: 3 | B62: 300 | C62: =INDEX($Y$2:$Y$276,MATCH(MIN(ABS($Y$2:$Y$276-B62)),ABS($Y$2:$Y$276-B62),0)) -> 293 | D62: 480 | E62: =INDEX($Y$2:$Y$276,MATCH(MIN(ABS($Y$2:$Y$276-D62)),ABS($Y$2:$Y$276-D62),0)) -> 479 | F62: 699 | G62: =INDEX($Y$2:$Y$276,MATCH(MIN(ABS($Y$2:$Y$276-F62)),ABS($Y$2:$Y$276-F62),0)) -> 701 | H62: 100.656 | I62: 98.383247 | J62: C | K62: 1 | L62: 24.63690987 | M62: 52.14418647 | N62: 208.5767459 | O62: 0.07636626097 | P62: 33.552 | Q62: 24.56661912 | R62: 52.54266155 | S62: 210.1706462 | T62: 0.07578711155 | U62: 33.5779 | Y62: 283
A63: 3.2 | B63: 320 | C63: =INDEX($Y$2:$Y$276,MATCH(MIN(ABS($Y$2:$Y$276-B63)),ABS($Y$2:$Y$276-B63),0)) -> 317 | D63: 512 | E63: =INDEX($Y$2:$Y$276,MATCH(MIN(ABS($Y$2:$Y$276-D63)),ABS($Y$2:$Y$276-D63),0)) -> 509 | F63: 745.6 | G63: =INDEX($Y$2:$Y$276,MATCH(MIN(ABS($Y$2:$Y$276-F63)),ABS($Y$2:$Y$276-F63),0)) -> 743 | H63: 122.159104 | I63: 119.885279 | J63: C | K63: 1 | L63: 23.097103 | M63: 48.88517481 | N63: 195.5406993 | O63: 0.08145734504 | P63: 38.17472 | Q63: 23.17792732 | R63: 49.19230424 | S63: 196.769217 | T63: 0.08094877062 | U63: 37.8187 | Y63: 293
A64: 3.3 | B64: 330 | C64: =INDEX($Y$2:$Y$276,MATCH(MIN(ABS($Y$2:$Y$276-B64)),ABS($Y$2:$Y$276-B64),0)) -> 331 | D64: 528 | E64: =INDEX($Y$2:$Y$276,MATCH(MIN(ABS($Y$2:$Y$276-D64)),ABS($Y$2:$Y$276-D64),0)) -> 523 | F64: 768.9 | G64: =INDEX($Y$2:$Y$276,MATCH(MIN(ABS($Y$2:$Y$276-F64)),ABS($Y$2:$Y$276-F64),0)) -> 769 | H64: 133.973136 | I64: 133.123897 | J64: C | K64: 1 | L64: 22.39719079 | M64: 47.40380588 | N64: 189.6152235 | O64: 0.08400288707 | P64: 40.59792 | Q64: 22.39427828 | R64: 47.50439353 | S64: 190.0175741 | T64: 0.08382501609 | U64: 40.2187 | Y64: 307
A65: 3.4 | B65: 340 | C65: =INDEX($Y$2:$Y$276,MATCH(MIN(ABS($Y$2:$Y$276-B65)),ABS($Y$2:$Y$276-B65),0)) -> 337 | D65: 544 | E65: =INDEX($Y$2:$Y$276,MATCH(MIN(ABS($Y$2:$Y$276-D65)),ABS($Y$2:$Y$276-D65),0)) -> 541 | F65: 792.2 | G65: =INDEX($Y$2:$Y$276,MATCH(MIN(ABS($Y$2:$Y$276-F65)),ABS($Y$2:$Y$276-F65),0)) -> 797 | H65: 146.525312 | I65: 145.306649 | J65: C | K65: 1 | L65: 21.73844989 | M65: 46.0095763 | N65: 184.0383052 | O65: 0.0865484291 | P65: 43.09568 | Q65: 21.60752823 | R65: 46.1378433 | S65: 184.5513732 | T65: 0.08630781735 | U65: 43.1177 | Y65: 311
A66: 3.6 | B66: 360 | C66: =INDEX($Y$2:$Y$276,MATCH(MIN(ABS($Y$2:$Y$276-B66)),ABS($Y$2:$Y$276-B66),0)) -> 359 | D66: 576 | E66: =INDEX($Y$2:$Y$276,MATCH(MIN(ABS($Y$2:$Y$276-D66)),ABS($Y$2:$Y$276-D66),0)) -> 577 | F66: 838.8 | G66: =INDEX($Y$2:$Y$276,MATCH(MIN(ABS($Y$2:$Y$276-F66)),ABS($Y$2:$Y$276-F66),0)) -> 839 | H66: 173.933568 | I66: 173.792977 | J66: C | K66: 1 | L66: 20.53075823 | M66: 43.45348872 | N66: 173.8139549 | O66: 0.09163951317 | P66: 48.31488 | Q66: 20.52586412 | R66: 43.4652029 | S66: 173.8608116 | T66: 0.09161481568 | U66: 48.4103 | Y66: 313
A67: 3.75 | B67: 375 | C67: =INDEX($Y$2:$Y$276,MATCH(MIN(ABS($Y$2:$Y$276-B67)),ABS($Y$2:$Y$276-B67),0)) -> 373 | D67: 600 | E67: =INDEX($Y$2:$Y$276,MATCH(MIN(ABS($Y$2:$Y$276-D67)),ABS($Y$2:$Y$276-D67),0)) -> 599 | F67: 873.75 | G67: =INDEX($Y$2:$Y$276,MATCH(MIN(ABS($Y$2:$Y$276-F67)),ABS($Y$2:$Y$276-F67),0)) -> 877 | H67: 196.59375 | I67: 195.945479 | J67: C | K67: 1 | L67: 19.7095279 | M67: 41.71534918 | N67: 166.8613967 | O67: 0.09545782621 | P67: 52.425 | Q67: 19.63648803 | R67: 41.76130257 | S67: 167.0452103 | T67: 0.09535278611 | U67: 52.5323 | Y67: 317
A68: 3.9 | B68: 390 | C68: =INDEX($Y$2:$Y$276,MATCH(MIN(ABS($Y$2:$Y$276-B68)),ABS($Y$2:$Y$276-B68),0)) -> 389 | D68: 624 | E68: =INDEX($Y$2:$Y$276,MATCH(MIN(ABS($Y$2:$Y$276-D68)),ABS($Y$2:$Y$276-D68),0)) -> 619 | F68: 908.7 | G68: =INDEX($Y$2:$Y$276,MATCH(MIN(ABS($Y$2:$Y$276-F68)),ABS($Y$2:$Y$276-F68),0)) -> 907 | H68: 221.141232 | I68: 218.397437 | J68: C | K68: 1 | L68: 18.95146913 | M68: 40.11091267 | N68: 160.4436507 | O68: 0.09927613926 | P68: 56.70288 | Q68: 18.98699008 | R68: 40.27818939 | S68: 161.1127576 | T68: 0.098863842 | U68: 56.1433 | Y68: 331
A69: 4.05 | B69: 405 | C69: =INDEX($Y$2:$Y$276,MATCH(MIN(ABS($Y$2:$Y$276-B69)),ABS($Y$2:$Y$276-B69),0)) -> 401 | D69: 648 | E69: =INDEX($Y$2:$Y$276,MATCH(MIN(ABS($Y$2:$Y$276-D69)),ABS($Y$2:$Y$276-D69),0)) -> 647 | F69: 943.65 | G69: =INDEX($Y$2:$Y$276,MATCH(MIN(ABS($Y$2:$Y$276-F69)),ABS($Y$2:$Y$276-F69),0)) -> 941 | H69: =(B69/100)*(D69/100)*(F69/100) -> 247.651506 | I69: =(C69/100)*(E69/100)*(G69/100) -> 244.139627 | J69: C | K69: 1 | L69: 18.24956287 | M69: 38.62532331 | N69: 154.5012932 | O69: 0.1030944523 | P69: 61.14852 | Q69: 18.30095643 | R69: 38.80964706 | S69: 155.2385882 | T69: 0.1026048123 | U69: 60.8827 | Y69: 337
A70: 4.2 | B70: 420 | C70: =INDEX($Y$2:$Y$276,MATCH(MIN(ABS($Y$2:$Y$276-B70)),ABS($Y$2:$Y$276-B70),0)) -> 419 | D70: 672 | E70: =INDEX($Y$2:$Y$276,MATCH(MIN(ABS($Y$2:$Y$276-D70)),ABS($Y$2:$Y$276-D70),0)) -> 673 | F70: 978.6 | G70: =INDEX($Y$2:$Y$276,MATCH(MIN(ABS($Y$2:$Y$276-F70)),ABS($Y$2:$Y$276-F70),0)) -> 977 | H70: =(B70/100)*(D70/100)*(F70/100) -> 276.200064 | I70: 275.501299 | J70: C | K70: 1 | L70: 17.59779277 | M70: 37.24584748 | N70: 148.9833899 | O70: 0.1069127654 | P70: 65.76192 | Q70: 17.62661208 | R70: 37.27731027 | S70: 149.1092411 | T70: 0.1068225289 | U70: 65.7521 | Y70: 347
A71: 4.35 | B71: 435 | C71: =INDEX($Y$2:$Y$276,MATCH(MIN(ABS($Y$2:$Y$276-B71)),ABS($Y$2:$Y$276-B71),0)) -> 433 | D71: 696 | E71: =INDEX($Y$2:$Y$276,MATCH(MIN(ABS($Y$2:$Y$276-D71)),ABS($Y$2:$Y$276-D71),0)) -> 691 | F71: 1013.55 | G71: =INDEX($Y$2:$Y$276,MATCH(MIN(ABS($Y$2:$Y$276-F71)),ABS($Y$2:$Y$276-F71),0)) -> 1013 | H71: =(B71/100)*(D71/100)*(F71/100) -> 306.862398 | I71: 303.092639 | J71: C | K71: 1 | L71: 16.99097232 | M71: 35.96150791 | N71: 143.8460316 | O71: 0.1107310784 | P71: 70.54308 | Q71: 17.00019743 | R71: 36.1099862 | S71: 144.4399448 | T71: 0.1102757705 | U71: 69.9983 | Y71: 349
A72: 4.5 | B72: 450 | C72: =INDEX($Y$2:$Y$276,MATCH(MIN(ABS($Y$2:$Y$276-B72)),ABS($Y$2:$Y$276-B72),0)) -> 449 | D72: 720 | E72: =INDEX($Y$2:$Y$276,MATCH(MIN(ABS($Y$2:$Y$276-D72)),ABS($Y$2:$Y$276-D72),0)) -> 719 | F72: 1048.5 | G72: =INDEX($Y$2:$Y$276,MATCH(MIN(ABS($Y$2:$Y$276-F72)),ABS($Y$2:$Y$276-F72),0)) -> 1049 | H72: =(B72/100)*(D72/100)*(F72/100) -> 339.714 | I72: 338.649719 | J72: C | K72: 1 | L72: 16.42460658 | M72: 34.76279098 | N72: 139.0511639 | O72: 0.1145493915 | P72: 75.492 | Q72: 16.41677788 | R72: 34.79916946 | S72: 139.1966778 | T72: 0.1144296434 | U72: 75.4231 | Y72: 353
A73: HEIGHT m | B73: HEIGHT cm | C73: PRIME height | D73: WIDTH cm | E73: PRIME width | F73: DEPTH cm | G73: PRIME depth | H73: VOLUME | I73: PRIME volume | J73: TABLE | K73: 1=Yes 0=NO | L73: F¹ | M73: F² | N73: F³ | O73: minimum RT60 | P73: Floor area | Q73: F¹ | R73: F² | S73: F³ | T73: minimum RT60 | U73: Floor area | Y73: 359
A74: =A58 -> 2.4 | B74: 240 | C74: =INDEX($Y$2:$Y$276,MATCH(MIN(ABS($Y$2:$Y$276-B74)),ABS($Y$2:$Y$276-B74),0)) -> 239 | D74: =B74*$D$7 -> 336 | E74: =INDEX($Y$2:$Y$276,MATCH(MIN(ABS($Y$2:$Y$276-D74)),ABS($Y$2:$Y$276-D74),0)) -> 337 | F74: =B74*$E$7 -> 456 | G74: =INDEX($Y$2:$Y$276,MATCH(MIN(ABS($Y$2:$Y$276-F74)),ABS($Y$2:$Y$276-F74),0)) -> 457 | H74: =(B74/100)*(D74/100)*(F74/100) -> 36.77184 | I74: =(C74/100)*(E74/100)*(G74/100) -> 36.808151 | J74: D | K74: =IF(H74>$K$22,$N$21,$O$21) -> 0 | L74: =565/(F74*0.0328083989501312) -> 37.76578947 | M74: =(SQRT(O74/(H74*35.3146667214885))*11250) -> 72.94250349 | N74: 291.770014 | O74: =0.25*(((0.028316846592*H74)/100)^(1/3)) -> 0.0545917176 | P74: =(D74/100)*(F74/100) -> 15.3216 | Q74: =565/(G74*0.0328083989501312) -> 37.68315098 | R74: =(SQRT(T74/(I74*35.3146667214885))*11250) -> 72.91850984 | S74: =4*R74 -> 291.6740393 | T74: =0.25*(((0.028316846592*I74)/100)^(1/3)) -> 0.05460968087 | U74: =(E74/100)*(G74/100) -> 15.4009 | Y74: 367
A75: 2.55 | B75: 255 | C75: =INDEX($Y$2:$Y$276,MATCH(MIN(ABS($Y$2:$Y$276-B75)),ABS($Y$2:$Y$276-B75),0)) -> 257 | D75: 357 | E75: =INDEX($Y$2:$Y$276,MATCH(MIN(ABS($Y$2:$Y$276-D75)),ABS($Y$2:$Y$276-D75),0)) -> 359 | F75: 484.5 | G75: =INDEX($Y$2:$Y$276,MATCH(MIN(ABS($Y$2:$Y$276-F75)),ABS($Y$2:$Y$276-F75),0)) -> 487 | H75: =(B75/100)*(D75/100)*(F75/100) -> 44.1064575 | I75: 44.932081 | J75: D | K75: 1 | L75: 35.54427245 | M75: 68.651768 | N75: 274.607072 | O75: 0.05800369995 | P75: 17.29665 | Q75: 35.36180698 | R75: 68.22867558 | S75: =4*R75 -> 272.9147023 | T75: 0.05836338633 | U75: 17.4833 | Y75: 373
A76: 2.7 | B76: 270 | C76: =INDEX($Y$2:$Y$276,MATCH(MIN(ABS($Y$2:$Y$276-B76)),ABS($Y$2:$Y$276-B76),0)) -> 269 | D76: 378 | E76: =INDEX($Y$2:$Y$276,MATCH(MIN(ABS($Y$2:$Y$276-D76)),ABS($Y$2:$Y$276-D76),0)) -> 379 | F76: 513 | G76: =INDEX($Y$2:$Y$276,MATCH(MIN(ABS($Y$2:$Y$276-F76)),ABS($Y$2:$Y$276-F76),0)) -> 509 | H76: 52.35678 | I76: 51.893059 | J76: D | K76: 1 | L76: 33.56959064 | M76: 64.83778088 | N76: 259.3511235 | O76: 0.0614156823 | P76: 19.3914 | Q76: 33.83339882 | R76: 65.0303405 | S76: 260.121362 | T76: 0.06123382595 | U76: 19.2911 | Y76: 379
A77: 2.85 | B77: 285 | C77: =INDEX($Y$2:$Y$276,MATCH(MIN(ABS($Y$2:$Y$276-B77)),ABS($Y$2:$Y$276-B77),0)) -> 283 | D77: 399 | E77: =INDEX($Y$2:$Y$276,MATCH(MIN(ABS($Y$2:$Y$276-D77)),ABS($Y$2:$Y$276-D77),0)) -> 397 | F77: 541.5 | G77: =INDEX($Y$2:$Y$276,MATCH(MIN(ABS($Y$2:$Y$276-F77)),ABS($Y$2:$Y$276-F77),0)) -> 541 | H77: 61.5766725 | I77: 60.781891 | J77: D | K77: 1 | L77: 31.80277008 | M77: 61.4252661 | N77: 245.7010644 | O77: 0.06482766465 | P77: 21.60585 | Q77: 31.83216266 | R77: 61.69183897 | S77: 246.7673559 | T77: 0.06454754176 | U77: 21.4777 | Y77: 383
A78: 3 | B78: 300 | C78: =INDEX($Y$2:$Y$276,MATCH(MIN(ABS($Y$2:$Y$276-B78)),ABS($Y$2:$Y$276-B78),0)) -> 293 | D78: 420 | E78: =INDEX($Y$2:$Y$276,MATCH(MIN(ABS($Y$2:$Y$276-D78)),ABS($Y$2:$Y$276-D78),0)) -> 419 | F78: 570 | G78: =INDEX($Y$2:$Y$276,MATCH(MIN(ABS($Y$2:$Y$276-F78)),ABS($Y$2:$Y$276-F78),0)) -> 569 | H78: 71.82 | I78: 69.854423 | J78: D | K78: 1 | L78: 30.21263158 | M78: 58.3540028 | N78: 233.4160112 | O78: 0.068239647 | P78: 23.94 | Q78: 30.26572935 | R78: 58.89627332 | S78: 235.5850933 | T78: 0.06761135005 | U78: 23.8411 | Y78: 389
A79: 3.2 | B79: 320 | C79: =INDEX($Y$2:$Y$276,MATCH(MIN(ABS($Y$2:$Y$276-B79)),ABS($Y$2:$Y$276-B79),0)) -> 317 | D79: 448 | E79: =INDEX($Y$2:$Y$276,MATCH(MIN(ABS($Y$2:$Y$276-D79)),ABS($Y$2:$Y$276-D79),0)) -> 449 | F79: 608 | G79: =INDEX($Y$2:$Y$276,MATCH(MIN(ABS($Y$2:$Y$276-F79)),ABS($Y$2:$Y$276-F79),0)) -> 607 | H79: 87.16288 | I79: 86.396131 | J79: D | K79: 1 | L79: 28.32434211 | M79: 54.70687762 | N79: 218.8275105 | O79: 0.0727889568 | P79: 27.2384 | Q79: 28.37100494 | R79: 54.86823887 | S79: 219.4729555 | T79: 0.07257489276 | U79: 27.2543 | Y79: 397
A80: 3.3 | B80: 330 | C80: =INDEX($Y$2:$Y$276,MATCH(MIN(ABS($Y$2:$Y$276-B80)),ABS($Y$2:$Y$276-B80),0)) -> 331 | D80: 462 | E80: =INDEX($Y$2:$Y$276,MATCH(MIN(ABS($Y$2:$Y$276-D80)),ABS($Y$2:$Y$276-D80),0)) -> 461 | F80: 627 | G80: =INDEX($Y$2:$Y$276,MATCH(MIN(ABS($Y$2:$Y$276-F80)),ABS($Y$2:$Y$276-F80),0)) -> 631 | H80: 95.59242 | I80: 96.284921 | J80: D | K80: 1 | L80: 27.46602871 | M80: 53.04909345 | N80: 212.1963738 | O80: 0.0750636117 | P80: 28.9674 | Q80: 27.29191759 | R80: 52.92160732 | S80: 211.6864293 | T80: 0.07524443708 | U80: 29.0891 | Y80: 401
A81: 3.4 | B81: 340 | C81: =INDEX($Y$2:$Y$276,MATCH(MIN(ABS($Y$2:$Y$276-B81)),ABS($Y$2:$Y$276-B81),0)) -> 337 | D81: 476 | E81: =INDEX($Y$2:$Y$276,MATCH(MIN(ABS($Y$2:$Y$276-D81)),ABS($Y$2:$Y$276-D81),0)) -> 479 | F81: 646 | G81: =INDEX($Y$2:$Y$276,MATCH(MIN(ABS($Y$2:$Y$276-F81)),ABS($Y$2:$Y$276-F81),0)) -> 647 | H81: 104.54864 | I81: 104.440681 | J81: D | K81: 1 | L81: 26.65820433 | M81: 51.488826 | N81: 205.955304 | O81: 0.0773382666 | P81: 30.7496 | Q81: 26.61700155 | R81: 51.506561 | S81: 206.026244 | T81: 0.07731163709 | U81: 30.9913 | Y81: 409
A82: 3.6 | B82: 360 | C82: =INDEX($Y$2:$Y$276,MATCH(MIN(ABS($Y$2:$Y$276-B82)),ABS($Y$2:$Y$276-B82),0)) -> 359 | D82: 504 | E82: =INDEX($Y$2:$Y$276,MATCH(MIN(ABS($Y$2:$Y$276-D82)),ABS($Y$2:$Y$276-D82),0)) -> 503 | F82: 684 | G82: =INDEX($Y$2:$Y$276,MATCH(MIN(ABS($Y$2:$Y$276-F82)),ABS($Y$2:$Y$276-F82),0)) -> 683 | H82: 124.10496 | I82: 123.334091 | J82: D | K82: 1 | L82: 25.17719298 | M82: 48.62833566 | N82: 194.5133427 | O82: 0.0818875764 | P82: 34.4736 | Q82: 25.21405564 | R82: 48.72943841 | S82: 194.9177537 | T82: 0.08171767789 | U82: 34.3549 | Y82: 419
A83: 3.75 | B83: 375 | C83: =INDEX($Y$2:$Y$276,MATCH(MIN(ABS($Y$2:$Y$276-B83)),ABS($Y$2:$Y$276-B83),0)) -> 373 | D83: 525 | E83: =INDEX($Y$2:$Y$276,MATCH(MIN(ABS($Y$2:$Y$276-D83)),ABS($Y$2:$Y$276-D83),0)) -> 523 | F83: 712.5 | G83: =INDEX($Y$2:$Y$276,MATCH(MIN(ABS($Y$2:$Y$276-F83)),ABS($Y$2:$Y$276-F83),0)) -> 709 | H83: 140.2734375 | I83: 138.311011 | J83: D | K83: 1 | L83: 24.17010526 | M83: 46.68320224 | N83: 186.7328089 | O83: 0.08529955875 | P83: 37.40625 | Q83: 24.28942172 | R83: 46.90295446 | S83: 187.6118178 | T83: 0.08489990872 | U83: 37.0807 | Y83: 421
A84: 3.9 | B84: 390 | C84: =INDEX($Y$2:$Y$276,MATCH(MIN(ABS($Y$2:$Y$276-B84)),ABS($Y$2:$Y$276-B84),0)) -> 389 | D84: 546 | E84: =INDEX($Y$2:$Y$276,MATCH(MIN(ABS($Y$2:$Y$276-D84)),ABS($Y$2:$Y$276-D84),0)) -> 547 | F84: 741 | G84: =INDEX($Y$2:$Y$276,MATCH(MIN(ABS($Y$2:$Y$276-F84)),ABS($Y$2:$Y$276-F84),0)) -> 739 | H84: 157.78854 | I84: 157.246637 | J84: D | K84: 1 | L84: 23.24048583 | M84: 44.88769446 | N84: 179.5507778 | O84: 0.0887115411 | P84: 40.4586 | Q84: 23.30338295 | R84: 44.93919929 | S84: 179.7567972 | T84: 0.08860986877 | U84: 40.4233 | Y84: 431
A85: 4.05 | B85: 405 | C85: =INDEX($Y$2:$Y$276,MATCH(MIN(ABS($Y$2:$Y$276-B85)),ABS($Y$2:$Y$276-B85),0)) -> 401 | D85: 567 | E85: =INDEX($Y$2:$Y$276,MATCH(MIN(ABS($Y$2:$Y$276-D85)),ABS($Y$2:$Y$276-D85),0)) -> 569 | F85: 769.5 | G85: =INDEX($Y$2:$Y$276,MATCH(MIN(ABS($Y$2:$Y$276-F85)),ABS($Y$2:$Y$276-F85),0)) -> 769 | H85: =(B85/100)*(D85/100)*(F85/100) -> 176.7041325 | I85: 175.461961 | J85: D | K85: 1 | L85: 22.3797271 | M85: 43.22518726 | N85: 172.900749 | O85: 0.09212352345 | P85: 43.63065 | Q85: 22.39427828 | R85: 43.32695079 | S85: 173.3078031 | T85: 0.0919071497 | U85: 43.7561 | Y85: 433
A86: 4.2 | B86: 420 | C86: =INDEX($Y$2:$Y$276,MATCH(MIN(ABS($Y$2:$Y$276-B86)),ABS($Y$2:$Y$276-B86),0)) -> 419 | D86: 588 | E86: =INDEX($Y$2:$Y$276,MATCH(MIN(ABS($Y$2:$Y$276-D86)),ABS($Y$2:$Y$276-D86),0)) -> 587 | F86: 798 | G86: =INDEX($Y$2:$Y$276,MATCH(MIN(ABS($Y$2:$Y$276-F86)),ABS($Y$2:$Y$276-F86),0)) -> 797 | H86: =(B86/100)*(D86/100)*(F86/100) -> 197.07408 | I86: 196.024541 | J86: D | K86: 1 | L86: 21.58045113 | M86: 41.68143057 | N86: 166.7257223 | O86: 0.0955355058 | P86: 46.9224 | Q86: 21.60752823 | R86: 41.75568733 | S86: 167.0227493 | T86: 0.09536560901 | U86: 46.7839 | Y86: 439
A87: 4.35 | B87: 435 | C87: =INDEX($Y$2:$Y$276,MATCH(MIN(ABS($Y$2:$Y$276-B87)),ABS($Y$2:$Y$276-B87),0)) -> 433 | D87: 609 | E87: =INDEX($Y$2:$Y$276,MATCH(MIN(ABS($Y$2:$Y$276-D87)),ABS($Y$2:$Y$276-D87),0)) -> 607 | F87: 826.5 | G87: =INDEX($Y$2:$Y$276,MATCH(MIN(ABS($Y$2:$Y$276-F87)),ABS($Y$2:$Y$276-F87),0)) -> 827 | H87: =(B87/100)*(D87/100)*(F87/100) -> 218.9522475 | I87: 217.361237 | J87: D | K87: 1 | L87: 20.83629764 | M87: 40.24413986 | N87: 160.9765594 | O87: 0.09894748815 | P87: 50.33385 | Q87: 20.82370012 | R87: 40.3420924 | S87: 161.3683696 | T87: 0.09870723889 | U87: 50.1989 | Y87: 443
A88: 4.5 | B88: 450 | C88: =INDEX($Y$2:$Y$276,MATCH(MIN(ABS($Y$2:$Y$276-B88)),ABS($Y$2:$Y$276-B88),0)) -> 449 | D88: 630 | E88: =INDEX($Y$2:$Y$276,MATCH(MIN(ABS($Y$2:$Y$276-D88)),ABS($Y$2:$Y$276-D88),0)) -> 631 | F88: 855 | G88: =INDEX($Y$2:$Y$276,MATCH(MIN(ABS($Y$2:$Y$276-F88)),ABS($Y$2:$Y$276-F88),0)) -> 853 | H88: =(B88/100)*(D88/100)*(F88/100) -> 242.3925 | I88: 241.671107 | J88: D | K88: 1 | L88: 20.14175439 | M88: 38.90266853 | N88: 155.6106741 | O88: 0.1023594705 | P88: 53.865 | Q88: 20.18898007 | R88: 38.94133849 | S88: 155.765354 | T88: 0.1022578244 | U88: 53.8243 | Y88: 449
A89: HEIGHT m | B89: HEIGHT cm | C89: PRIME height | D89: WIDTH cm | E89: PRIME width | F89: DEPTH cm | G89: PRIME depth | H89: VOLUME | I89: PRIME volume | J89: TABLE | K89: 1=Yes 0=NO | L89: F¹ | M89: F² | N89: F³ | O89: minimum RT60 | P89: Floor area | Q89: F¹ | R89: F² | S89: F³ | T89: minimum RT60 | U89: Floor area | Y89: 457
A90: =A74 -> 2.4 | B90: 240 | C90: =INDEX($Y$2:$Y$276,MATCH(MIN(ABS($Y$2:$Y$276-B90)),ABS($Y$2:$Y$276-B90),0)) -> 239 | D90: =B90*$D$8 -> 312 | E90: =INDEX($Y$2:$Y$276,MATCH(MIN(ABS($Y$2:$Y$276-D90)),ABS($Y$2:$Y$276-D90),0)) -> 311 | F90: =B90*$E$8 -> 456 | G90: =INDEX($Y$2:$Y$276,MATCH(MIN(ABS($Y$2:$Y$276-F90)),ABS($Y$2:$Y$276-F90),0)) -> 457 | H90: =(B90/100)*(D90/100)*(F90/100) -> 34.14528 | I90: =(C90/100)*(E90/100)*(G90/100) -> 33.968353 | J90: E | K90: =IF(H90>$K$22,$N$21,$O$21) -> 0 | L90: =565/(F90*0.0328083989501312) -> 37.76578947 | M90: =(SQRT(O90/(H90*35.3146667214885))*11250) -> 74.7668171 | N90: 299.0672684 | O90: =0.25*(((0.028316846592*H90)/100)^(1/3)) -> 0.05325967731 | P90: =(D90/100)*(F90/100) -> 14.2272 | Q90: =565/(G90*0.0328083989501312) -> 37.68315098 | R90: =(SQRT(T90/(I90*35.3146667214885))*11250) -> 74.89640211 | S90: =4*R90 -> 299.5856084 | T90: =0.25*(((0.028316846592*I90)/100)^(1/3)) -> 0.05316752795 | U90: =(E90/100)*(G90/100) -> 14.2127 | Y90: 461
A91: 2.55 | B91: =A91*100 -> 255 | C91: =INDEX($Y$2:$Y$276,MATCH(MIN(ABS($Y$2:$Y$276-B91)),ABS($Y$2:$Y$276-B91),0)) -> 257 | D91: 331.5 | E91: =INDEX($Y$2:$Y$276,MATCH(MIN(ABS($Y$2:$Y$276-D91)),ABS($Y$2:$Y$276-D91),0)) -> 331 | F91: 484.5 | G91: =INDEX($Y$2:$Y$276,MATCH(MIN(ABS($Y$2:$Y$276-F91)),ABS($Y$2:$Y$276-F91),0)) -> 487 | H91: =(B91/100)*(D91/100)*(F91/100) -> 40.95599625 | I91: 41.427629 | J91: E | K91: 0 | L91: 35.54427245 | M91: 70.36876903 | N91: =4*M91 -> 281.4750761 | O91: 0.05658840714 | P91: 16.061175 | Q91: 35.36180698 | R91: 70.10071151 | S91: =4*R91 -> 280.402846 | T91: 0.05680479507 | U91: 16.1197 | Y91: 463
A92: 2.7 | B92: 270 | C92: =INDEX($Y$2:$Y$276,MATCH(MIN(ABS($Y$2:$Y$276-B92)),ABS($Y$2:$Y$276-B92),0)) -> 269 | D92: 351 | E92: =INDEX($Y$2:$Y$276,MATCH(MIN(ABS($Y$2:$Y$276-D92)),ABS($Y$2:$Y$276-D92),0)) -> 349 | F92: 513 | G92: =INDEX($Y$2:$Y$276,MATCH(MIN(ABS($Y$2:$Y$276-F92)),ABS($Y$2:$Y$276-F92),0)) -> 509 | H92: 48.61701 | I92: 47.785429 | J92: E | K92: 1 | L92: 33.56959064 | M92: 66.45939297 | N92: 265.8375719 | O92: 0.05991713697 | P92: 18.0063 | Q92: 33.83339882 | R92: 66.84269561 | S92: 267.3707825 | T92: 0.05957354824 | U92: 17.7641 | Y92: 467
A93: 2.85 | B93: 285 | C93: =INDEX($Y$2:$Y$276,MATCH(MIN(ABS($Y$2:$Y$276-B93)),ABS($Y$2:$Y$276-B93),0)) -> 283 | D93: 370.5 | E93: =INDEX($Y$2:$Y$276,MATCH(MIN(ABS($Y$2:$Y$276-D93)),ABS($Y$2:$Y$276-D93),0)) -> 373 | F93: 541.5 | G93: =INDEX($Y$2:$Y$276,MATCH(MIN(ABS($Y$2:$Y$276-F93)),ABS($Y$2:$Y$276-F93),0)) -> 541 | H93: 57.17833875 | I93: 57.107419 | J93: E | K93: 1 | L93: 31.80277008 | M93: 62.96153019 | N93: 251.8461207 | O93: 0.06324586681 | P93: 20.062575 | Q93: 31.83216266 | R93: 62.98758266 | S93: 251.9503306 | T93: 0.0632197075 | U93: 20.1793 | Y93: 479
A94: 3 | B94: 300 | C94: =INDEX($Y$2:$Y$276,MATCH(MIN(ABS($Y$2:$Y$276-B94)),ABS($Y$2:$Y$276-B94),0)) -> 293 | D94: 390 | E94: =INDEX($Y$2:$Y$276,MATCH(MIN(ABS($Y$2:$Y$276-D94)),ABS($Y$2:$Y$276-D94),0)) -> 389 | F94: 570 | G94: =INDEX($Y$2:$Y$276,MATCH(MIN(ABS($Y$2:$Y$276-F94)),ABS($Y$2:$Y$276-F94),0)) -> 569 | H94: 66.69 | I94: 64.852913 | J94: E | K94: 1 | L94: 30.21263158 | M94: 59.81345368 | N94: 239.2538147 | O94: 0.06657459664 | P94: 22.23 | Q94: 30.26572935 | R94: 60.37298135 | S94: 241.4919254 | T94: 0.06595759334 | U94: 22.1341 | Y94: 487
A95: 3.2 | B95: 320 | C95: =INDEX($Y$2:$Y$276,MATCH(MIN(ABS($Y$2:$Y$276-B95)),ABS($Y$2:$Y$276-B95),0)) -> 317 | D95: 416 | E95: =INDEX($Y$2:$Y$276,MATCH(MIN(ABS($Y$2:$Y$276-D95)),ABS($Y$2:$Y$276-D95),0)) -> 419 | F95: 608 | G95: =INDEX($Y$2:$Y$276,MATCH(MIN(ABS($Y$2:$Y$276-F95)),ABS($Y$2:$Y$276-F95),0)) -> 607 | H95: 80.93696 | I95: 80.623561 | J95: E | K95: 1 | L95: 28.32434211 | M95: 56.07511282 | N95: 224.3004513 | O95: 0.07101290308 | P95: 25.2928 | Q95: 28.37100494 | R95: 56.14767706 | S95: 224.5907082 | T95: 0.07092112729 | U95: 25.4333 | Y95: 491
A96: 3.3 | B96: 330 | C96: =INDEX($Y$2:$Y$276,MATCH(MIN(ABS($Y$2:$Y$276-B96)),ABS($Y$2:$Y$276-B96),0)) -> 331 | D96: 429 | E96: =INDEX($Y$2:$Y$276,MATCH(MIN(ABS($Y$2:$Y$276-D96)),ABS($Y$2:$Y$276-D96),0)) -> 431 | F96: 627 | G96: =INDEX($Y$2:$Y$276,MATCH(MIN(ABS($Y$2:$Y$276-F96)),ABS($Y$2:$Y$276-F96),0)) -> 631 | H96: 88.76439 | I96: 90.019091 | J96: E | K96: 1 | L96: 27.46602871 | M96: 54.37586698 | N96: 217.5034679 | O96: 0.0732320563 | P96: 26.8983 | Q96: 27.29191759 | R96: 54.12205078 | S96: 216.4882031 | T96: 0.0735754927 | U96: 27.1961 | Y96: 499
A97: 3.4 | B97: 340 | C97: =INDEX($Y$2:$Y$276,MATCH(MIN(ABS($Y$2:$Y$276-B97)),ABS($Y$2:$Y$276-B97),0)) -> 337 | D97: 442 | E97: =INDEX($Y$2:$Y$276,MATCH(MIN(ABS($Y$2:$Y$276-D97)),ABS($Y$2:$Y$276-D97),0)) -> 443 | F97: 646 | G97: =INDEX($Y$2:$Y$276,MATCH(MIN(ABS($Y$2:$Y$276-F97)),ABS($Y$2:$Y$276-F97),0)) -> 647 | H97: 97.08088 | I97: 96.591277 | J97: E | K97: 1 | L97: 26.65820433 | M97: 52.77657677 | N97: 211.1063071 | O97: 0.07545120952 | P97: 28.5532 | Q97: 26.61700155 | R97: 52.86559804 | S97: 211.4623922 | T97: 0.07532415596 | U97: 28.6621 | Y97: 503
